Workbook

Sheet Age profile chart

Sheet Forecast Ch1

Sheet Age profile summary
A1: Asset calcs | R1: Remaining life | W1: RC ($ millions) | AB1: RC (%)
R2: Very old | S2: Old | T2: moderate | U2: young | V2: new | W2: =R2 -> Very old | X2: =S2 -> Old | Y2: moderate | Z2: young | AA2: new | AB2: Very old | AC2: Old | AD2: moderate | AE2: young | AF2: new
M3: WARL | O3: WAL | Q3: WAA | R3: > | S3: > | T3: > | U3: > | V3: <=0.2 | W3: =R3 -> > | X3: > | Y3: > | Z3: > | AA3: <=0.2 | AB3: > | AC3: > | AD3: > | AE3: > | AF3: <=0.2
F4: Quantity | G4: Unit | H4: RC | I4: prop total | J4: Rank | K4: prop cat | L4: RC / unit | M4: (Rep life) | O4: Rep life | Q4: % Rep life | R4: =W4 -> 0.9 | S4: =X4 -> 0.8 | T4: =Y4 -> 0.4 | U4: =Z4 -> 0.2 | W4: 0.9 | X4: 0.8 | Y4: 0.4 | Z4: 0.2 | AA4: 0 | AB4: 0.9 | AC4: 0.8 | AD4: 0.4 | AE4: 0.2 | AF4: 0 | AG4: Std life | AH4: Std life | AI4: rep life
G5: Cost | H5: $ millions | I5: % | J5: total | K5: % | L5: $ ('000) | AG5: max | AH5: min
A6: 1 | D6: =VLOOKUP(A6,IDtable,2) -> POLES | F6: =SUMIF($A$21:$A$205,$A6,F$21:F$205) -> 487786 | H6: =SUMIF($A$21:$A$205,$A6,H$21:H$205)/1000 -> 4357.849655 | I6: =H6/($H$18) -> 0.2945770785 | J6: =RANK(I6,I$6:I$17) -> 2 | L6: =H6*1000/(F6+0.001) -> 8.933937517 | M6: =SUMIF($A$21:$A$205,$A6,N$21:N$205)/(H6*1000+0.000001) -> 23.07228281 | O6: =SUMIF($A$21:$A$205,$A6,P$21:P$205)/(H6*1000+0.000001) -> 54.36642114 | Q6: =(O6-M6)/(O6+0.000001) -> 0.5756151885 | R6: =$O6-R$4*$O6 -> 5.436642114 | S6: =$O6-S$4*$O6 -> 10.87328423 | T6: =$O6-T$4*$O6 -> 32.61985268 | U6: =$O6-U$4*$O6 -> 43.49313691 | V6: =$O6-V$4*$O6 -> 54.36642114 | W6: =SUMIF($A$21:$A$205,$A6,W$21:W$205)/1000 -> 259.4970018 | X6: 339.7130174 | Y6: 2926.464051 | Z6: 274.8490868 | AA6: 557.3264982 | AB6: =IF($H6=0,0,W6/$H6) -> 0.05954702946 | AC6: =IF($H6=0,0,X6/$H6) -> 0.07795427662 | AD6: =IF($H6=0,0,Y6/$H6) -> 0.6715385528 | AE6: =IF($H6=0,0,Z6/$H6) -> 0.06306988735 | AF6: =IF($H6=0,0,AA6/$H6) -> 0.1278902538 | AG6: =MAX(IF($A$21:$A$205=$A6,$O$21:$O$205)) -> 76.61996162 | AH6: =MIN(IF($A$21:$A$205=$A6,$O$21:$O$205)) -> 10.31213953 | AI6: =IF(H6=0,0,SUMIF($A$21:$A$205,$A6,$AJ$21:$AJ$205)/(H6*1000)) -> 54.36642114
A7: 2 | D7: OVERHEAD CONDUCTORS | F7: =SUMIF($A$21:$A$205,$A7,F$21:F$205) -> 68953.8 | H7: =SUMIF($A$21:$A$205,$A7,H$21:H$205)/1000 -> 4629.408996 | I7: =H7/($H$18) -> 0.312933645 | J7: 1 | L7: 67.13783618 | M7: 40.33754078 | O7: 75.34119593 | Q7: 0.4646017927 | R7: =$O7-R$4*$O7 -> 7.534119593 | S7: 15.06823919 | T7: 45.20471756 | U7: 60.27295675 | V7: 75.34119593 | W7: 103.9301281 | X7: 125.8733664 | Y7: 2703.364899 | Z7: 1067.826497 | AA7: 628.4141056 | AB7: =IF($H7=0,0,W7/$H7) -> 0.02244997756 | AC7: =IF($H7=0,0,X7/$H7) -> 0.02718994294 | AD7: =IF($H7=0,0,Y7/$H7) -> 0.5839546476 | AE7: =IF($H7=0,0,Z7/$H7) -> 0.2306615159 | AF7: =IF($H7=0,0,AA7/$H7) -> 0.135743916 | AG7: =MAX(IF($A$21:$A$205=$A7,$O$21:$O$205)) -> 88.86622864 | AH7: =MIN(IF($A$21:$A$205=$A7,$O$21:$O$205)) -> 69.6119799 | AI7: =IF(H7=0,0,SUMIF($A$21:$A$205,$A7,$AJ$21:$AJ$205)/(H7*1000)) -> 75.34119593
A8: 3 | D8: UNDERGROUND CABLES | F8: 6466.659549 | H8: 2580.843357 | I8: 0.1744569814 | J8: 3 | L8: 399.0998657 | M8: 45.11318485 | O8: 57.70921437 | Q8: 0.2182672116 | R8: 5.770921437 | S8: 11.54184287 | T8: 34.62552862 | U8: 46.1673715 | V8: 57.70921437 | W8: 8.778492307 | X8: 21.18940529 | Y8: 339.0047626 | Z8: 853.6570211 | AA8: 1358.213676 | AB8: 0.003401404539 | AC8: 0.008210263995 | AD8: 0.1313542574 | AE8: 0.3307666925 | AF8: 0.5262673815 | AG8: =MAX(IF($A$21:$A$205=$A8,$O$21:$O$205)) -> 85.22352023 | AH8: =MIN(IF($A$21:$A$205=$A8,$O$21:$O$205)) -> 45.70686904 | AI8: 57.70921437
A9: 4 | D9: SERVICE LINES | F9: 10910.43356 | H9: 14.03051013 | I9: 0.0009484188329 | J9: 6 | L9: 1.285971705 | M9: 30.88675518 | O9: 58.03400097 | Q9: 0.4677817291 | R9: 5.803400097 | S9: 11.60680019 | T9: 34.82040058 | U9: 46.42720077 | V9: 58.03400097 | W9: 1.147621067 | X9: 1.226065348 | Y9: 5.691397672 | Z9: 1.940812415 | AA9: 4.024613629 | AB9: 0.08179467861 | AC9: 0.08738565716 | AD9: 0.4056443863 | AE9: 0.1383280007 | AF9: 0.2868472772 | AG9: =MAX(IF($A$21:$A$205=$A9,$O$21:$O$205)) -> 58.03400097 | AH9: =MIN(IF($A$21:$A$205=$A9,$O$21:$O$205)) -> 58.03400097 | AI9: 58.03400097
A10: 5 | D10: TRANSFORMERS | F10: 83860 | H10: 2153.209776 | I10: 0.1455502818 | J10: 4 | L10: 25.67624315 | M10: 32.28802189 | O10: 58.99413828 | Q10: 0.4526910082 | R10: 5.899413828 | S10: 11.79882766 | T10: 35.39648297 | U10: 47.19531063 | V10: 58.99413828 | W10: 122.5661285 | X10: 127.7784149 | Y10: 967.3651342 | Z10: 454.8151141 | AA10: 480.6849845 | AB10: 0.0569225209 | AC10: 0.05934322623 | AD10: 0.4492665531 | AE10: 0.2112265693 | AF10: 0.2232411304 | AG10: =MAX(IF($A$21:$A$205=$A10,$O$21:$O$205)) -> 72.92505744 | AH10: =MIN(IF($A$21:$A$205=$A10,$O$21:$O$205)) -> 28.80024784 | AI10: 58.99413828
A11: 6 | D11: SWITCHGEAR | F11: 367331 | H11: 1058.237972 | I11: 0.0715335945 | J11: 5 | L11: 2.880883914 | M11: 30.17285849 | O11: 51.69942088 | Q11: 0.4163791703 | R11: 5.169942088 | S11: 10.33988418 | T11: 31.01965253 | U11: 41.3595367 | V11: 51.69942088 | W11: 61.41738812 | X11: 43.71332798 | Y11: 389.7470406 | Z11: 253.8446181 | AA11: 309.5155972 | AB11: 0.05803740723 | AC11: 0.04130765398 | AD11: 0.3682981058 | AE11: 0.2398747964 | AF11: 0.2924820366 | AG11: =MAX(IF($A$21:$A$205=$A11,$O$21:$O$205)) -> 68.30217777 | AH11: =MIN(IF($A$21:$A$205=$A11,$O$21:$O$205)) -> 47.07360122 | AI11: 51.69942088
A12: 7 | D12: PUBLIC LIGHTING | F12: 0 | H12: 0 | I12: 0 | J12: 7 | L12: 0 | M12: 0 | O12: 0 | Q12: 0 | R12: 0 | S12: 0 | T12: 0 | U12: 0 | V12: 0 | W12: 0 | X12: 0 | Y12: 0 | Z12: 0 | AA12: 0 | AB12: 0 | AC12: 0 | AD12: 0 | AE12: 0 | AF12: 0 | AG12: =MAX(IF($A$21:$A$205=$A12,$O$21:$O$205)) -> 0 | AH12: =MIN(IF($A$21:$A$205=$A12,$O$21:$O$205)) -> 0 | AI12: 0
A13: 8 | D13: SCADA, NETWORK CONTROL AND PROTECTION | F13: 0 | H13: 0 | I13: 0 | J13: 7 | L13: 0 | M13: 0 | O13: 0 | Q13: 0 | R13: 0 | S13: 0 | T13: 0 | U13: 0 | V13: 0 | W13: 0 | X13: 0 | Y13: 0 | Z13: 0 | AA13: 0 | AB13: 0 | AC13: 0 | AD13: 0 | AE13: 0 | AF13: 0 | AG13: =MAX(IF($A$21:$A$205=$A13,$O$21:$O$205)) -> 0 | AH13: =MIN(IF($A$21:$A$205=$A13,$O$21:$O$205)) -> 0 | AI13: 0
A14: 9 | D14: =VLOOKUP(A14,IDtable,2) -> OTHER | F14: =SUMIF($A$21:$A$205,$A14,F$21:F$205) -> 0 | H14: =SUMIF($A$21:$A$205,$A14,H$21:H$205)/1000 -> 0 | I14: =H14/($H$18) -> 0 | J14: 7 | L14: 0 | M14: 0 | O14: 0 | Q14: 0 | R14: =$O14-R$4*$O14 -> 0 | S14: 0 | T14: 0 | U14: 0 | V14: 0 | W14: 0 | X14: 0 | Y14: 0 | Z14: 0 | AA14: 0 | AB14: 0 | AC14: 0 | AD14: 0 | AE14: 0 | AF14: 0 | AG14: =MAX(IF($A$21:$A$205=$A14,$O$21:$O$205)) -> 0 | AH14: =MIN(IF($A$21:$A$205=$A14,$O$21:$O$205)) -> 0 | AI14: 0
A15: 10 | D15: =VLOOKUP(A15,IDtable,2) -> unused | F15: =SUMIF($A$21:$A$205,$A15,F$21:F$205) -> 0 | H15: =SUMIF($A$21:$A$205,$A15,H$21:H$205)/1000 -> 0 | I15: =H15/($H$18) -> 0 | J15: 7 | L15: 0 | M15: 0 | O15: 0 | Q15: 0 | R15: 0 | S15: 0 | T15: 0 | U15: 0 | V15: 0 | W15: 0 | X15: 0 | Y15: 0 | Z15: 0 | AA15: 0 | AB15: 0 | AC15: 0 | AD15: 0 | AE15: 0 | AF15: 0 | AG15: =MAX(IF($A$21:$A$205=$A15,$O$21:$O$205)) -> 0 | AH15: =MIN(IF($A$21:$A$205=$A15,$O$21:$O$205)) -> 0 | AI15: 0
A16: 11 | D16: =VLOOKUP(A16,IDtable,2) -> unused | F16: =SUMIF($A$21:$A$205,$A16,F$21:F$205) -> 0 | H16: =SUMIF($A$21:$A$205,$A16,H$21:H$205)/1000 -> 0 | I16: =H16/($H$18) -> 0 | J16: 7 | L16: 0 | M16: 0 | O16: 0 | Q16: 0 | R16: 0 | S16: 0 | T16: 0 | U16: 0 | V16: 0 | W16: 0 | X16: 0 | Y16: 0 | Z16: 0 | AA16: 0 | AB16: 0 | AC16: 0 | AD16: 0 | AE16: 0 | AF16: 0 | AG16: =MAX(IF($A$21:$A$205=$A16,$O$21:$O$205)) -> 0 | AH16: =MIN(IF($A$21:$A$205=$A16,$O$21:$O$205)) -> 0 | AI16: 0
A17: 12 | D17: =VLOOKUP(A17,IDtable,2) -> unused | F17: =SUMIF($A$21:$A$205,$A17,F$21:F$205) -> 0 | H17: =SUMIF($A$21:$A$205,$A17,H$21:H$205)/1000 -> 0 | I17: =H17/($H$18) -> 0 | J17: =RANK(I17,I$6:I$17) -> 7 | L17: =H17*1000/(F17+0.001) -> 0 | M17: =SUMIF($A$21:$A$205,$A17,N$21:N$205)/(H17*1000+0.000001) -> 0 | O17: =SUMIF($A$21:$A$205,$A17,P$21:P$205)/(H17*1000+0.000001) -> 0 | Q17: =(O17-M17)/(O17+0.000001) -> 0 | R17: 0 | S17: 0 | T17: 0 | U17: 0 | V17: 0 | W17: 0 | X17: 0 | Y17: 0 | Z17: 0 | AA17: 0 | AB17: 0 | AC17: 0 | AD17: 0 | AE17: 0 | AF17: 0 | AG17: =MAX(IF($A$21:$A$205=$A17,$O$21:$O$205)) -> 0 | AH17: =MIN(IF($A$21:$A$205=$A17,$O$21:$O$205)) -> 0 | AI17: 0
D18: Total | H18: =SUM(H6:H17) -> 14793.58027 | M18: =SUMPRODUCT(M6:M17,$H6:$H17)/$H18 -> 34.17704667 | O18: =SUMPRODUCT(O6:O17,$H6:$H17)/$H18 -> 61.99957131 | Q18: =SUMPRODUCT(Q6:Q17,$H6:$H17)/$H18 -> 0.4491488674 | W18: =SUM(W6:W17) -> 557.3367598 | X18: =SUM(X6:X17) -> 659.4935973 | Y18: =SUM(Y6:Y17) -> 7331.637284 | Z18: =SUM(Z6:Z17) -> 2906.933149 | AA18: =SUM(AA6:AA17) -> 3338.179475 | AB18: =W18/$H18 -> 0.03767423097 | AC18: =X18/$H18 -> 0.04457971536 | AD18: =Y18/$H18 -> 0.4955958702 | AE18: =Z18/$H18 -> 0.1964996368 | AF18: =AA18/$H18 -> 0.2256505467
D20: EDB categories
A21: ='Asset data'!A21 -> 1 | B21: ='Asset data'!B21 -> 0 | C21: ='Asset data'!C21 -> 0 | D21: ='Asset data'!E21 -> Staking of a wooden pole | E21: =IF(A21>0,VLOOKUP(A21,IDtable,2),0) -> POLES | F21: =IF(A21>0,SUM('Asset data'!J21:CV21),0) -> 22492 | G21: =IF(A21>0,'Asset data'!F21,0) -> 11.72071104 | H21: =IF(A21>0,SUM('Asset data'!CX21:GJ21),0) -> 263622.2328 | I21: =H21/$H$18/1000 -> 0.01782004275 | J21: =IF(RANK(0,I$21:I$205)=RANK(I21,I$21:I$205),0,RANK(I21,I$21:I$205)) -> 15 | K21: =IF(A21>0,H21/(VLOOKUP(A21,$A$6:$H$17,8)*1000),0) -> 0.06049365023 | L21: =IF($A21>0,H21/F21,0) -> 11.72071104 | M21: =IF($A21>0,SUMPRODUCT('Age profile (years)'!$CT21:$GF21,'Asset data'!$CX21:$GJ21)/H21-0.5,0) -> 8.238306954 | N21: =IF($A21>0,M21*H21,0) -> 2171800.873 | O21: =IF($A21>0,'Asset data'!G21,0) -> 21.74676522 | P21: =IF($A21>0,H21*O21,0) -> 5732930.803 | Q21: =IF($A21>0,(O21-M21)/O21,0) -> 0.621170925 | R21: =IF($A21>0,$O21-R$4*$O21,0) -> 2.174676522 | S21: 4.349353044 | T21: 13.04805913 | U21: 17.39741218 | W21: =IF($A21>0,SUMIF('Age profile (years)'!$CT21:$GF21,"<" & R21+0.5,'Asset data'!$CX21:$GJ21),0) -> 75856.44187 | X21: =IF($A21>0,SUMIF('Age profile (years)'!$CT21:$GF21,"<" & S21+0.5,'Asset data'!$CX21:$GJ21)-W21,0) -> 26770.10402 | Y21: =IF($A21>0,SUMIF('Age profile (years)'!$CT21:$GF21,"<" & T21+0.5,'Asset data'!$CX21:$GJ21)-X21-W21,0) -> 63748.94736 | Z21: =IF($A21>0,SUMIF('Age profile (years)'!$CT21:$GF21,"<" & U21+0.5,'Asset data'!$CX21:$GJ21)-Y21-X21-W21,0) -> 36803.03267 | AA21: =IF($A21>0,H21-Z21-Y21-X21-W21,0) -> 60443.70685 | AB21: =IF($A21>0,W21/$H21,0) -> 0.2877467544 | AC21: 0.1015472168 | AD21: 0.2418193135 | AE21: 0.139605193 | AF21: 0.2292815223 | AI21: =IF($A21>0,'RRR hist-forc'!K21,0) -> 21.74676522 | AJ21: =IF($A21>0,AI21*H21,0) -> 5732930.803
A22: ='Asset data'!A22 -> 1 | B22: ='Asset data'!B22 -> 0 | C22: ='Asset data'!C22 -> 0 | D22: ='Asset data'!E22 -> ˂ = 1 kV; Wood | E22: POLES | F22: =IF(A22>0,SUM('Asset data'!J22:CV22),0) -> 90110 | G22: =IF(A22>0,'Asset data'!F22,0) -> 5.037911286 | H22: =IF(A22>0,SUM('Asset data'!CX22:GJ22),0) -> 453966.1859 | I22: 0.03068670179 | J22: 13 | K22: =IF(A22>0,H22/(VLOOKUP(A22,$A$6:$H$17,8)*1000),0) -> 0.1041720623 | L22: =IF($A22>0,H22/F22,0) -> 5.037911286 | M22: =IF($A22>0,SUMPRODUCT('Age profile (years)'!$CT22:$GF22,'Asset data'!$CX22:$GJ22)/H22-0.5,0) -> 28.40016646 | N22: =IF($A22>0,M22*H22,0) -> 12892715.25 | O22: =IF($A22>0,'Asset data'!G22,0) -> 69.12631108 | P22: =IF($A22>0,H22*O22,0) -> 31381007.79 | Q22: =IF($A22>0,(O22-M22)/O22,0) -> 0.5891554747 | R22: 6.912631108 | S22: 13.82526222 | T22: 41.47578665 | U22: 55.30104886 | W22: =IF($A22>0,SUMIF('Age profile (years)'!$CT22:$GF22,"<" & R22+0.5,'Asset data'!$CX22:$GJ22),0) -> 31819.44768 | X22: =IF($A22>0,SUMIF('Age profile (years)'!$CT22:$GF22,"<" & S22+0.5,'Asset data'!$CX22:$GJ22)-W22,0) -> 25970.43268 | Y22: =IF($A22>0,SUMIF('Age profile (years)'!$CT22:$GF22,"<" & T22+0.5,'Asset data'!$CX22:$GJ22)-X22-W22,0) -> 335338.4889 | Z22: =IF($A22>0,SUMIF('Age profile (years)'!$CT22:$GF22,"<" & U22+0.5,'Asset data'!$CX22:$GJ22)-Y22-X22-W22,0) -> 26348.27602 | AA22: =IF($A22>0,H22-Z22-Y22-X22-W22,0) -> 34489.54066 | AB22: 0.07009210964 | AC22: 0.05720785706 | AD22: 0.7386860504 | AE22: 0.05804017312 | AF22: 0.07597380979 | AI22: =IF($A22>0,'RRR hist-forc'!K22,0) -> 69.12631108 | AJ22: =IF($A22>0,AI22*H22,0) -> 31381007.79
A23: ='Asset data'!A23 -> 1 | B23: ='Asset data'!B23 -> 0 | C23: ='Asset data'!C23 -> 0 | D23: ='Asset data'!E23 -> > 1 kV & < = 11 kV; Wood | E23: =IF(A23>0,VLOOKUP(A23,IDtable,2),0) -> POLES | F23: =IF(A23>0,SUM('Asset data'!J23:CV23),0) -> 662 | G23: =IF(A23>0,'Asset data'!F23,0) -> 5.168946997 | H23: =IF(A23>0,SUM('Asset data'!CX23:GJ23),0) -> 3421.842912 | I23: =H23/$H$18/1000 -> 0.0002313059348 | J23: =IF(RANK(0,I$21:I$205)=RANK(I23,I$21:I$205),0,RANK(I23,I$21:I$205)) -> 40 | K23: =IF(A23>0,H23/(VLOOKUP(A23,$A$6:$H$17,8)*1000),0) -> 0.0007852136221 | L23: =IF($A23>0,H23/F23,0) -> 5.168946997 | M23: =IF($A23>0,SUMPRODUCT('Age profile (years)'!$CT23:$GF23,'Asset data'!$CX23:$GJ23)/H23-0.5,0) -> 35.31268882 | N23: =IF($A23>0,M23*H23,0) -> 120834.474 | O23: =IF($A23>0,'Asset data'!G23,0) -> 69.78217208 | P23: =IF($A23>0,H23*O23,0) -> 238783.6309 | Q23: =IF($A23>0,(O23-M23)/O23,0) -> 0.4939583024 | R23: 6.978217208 | S23: 13.95643442 | T23: 41.86930325 | U23: 55.82573766 | W23: =IF($A23>0,SUMIF('Age profile (years)'!$CT23:$GF23,"<" & R23+0.5,'Asset data'!$CX23:$GJ23),0) -> 134.3926219 | X23: =IF($A23>0,SUMIF('Age profile (years)'!$CT23:$GF23,"<" & S23+0.5,'Asset data'!$CX23:$GJ23)-W23,0) -> 118.8857809 | Y23: =IF($A23>0,SUMIF('Age profile (years)'!$CT23:$GF23,"<" & T23+0.5,'Asset data'!$CX23:$GJ23)-X23-W23,0) -> 2000.382488 | Z23: =IF($A23>0,SUMIF('Age profile (years)'!$CT23:$GF23,"<" & U23+0.5,'Asset data'!$CX23:$GJ23)-Y23-X23-W23,0) -> 527.2325937 | AA23: =IF($A23>0,H23-Z23-Y23-X23-W23,0) -> 640.9494276 | AB23: =IF($A23>0,W23/$H23,0) -> 0.03927492447 | AC23: =IF($A23>0,X23/$H23,0) -> 0.03474320242 | AD23: =IF($A23>0,Y23/$H23,0) -> 0.584592145 | AE23: =IF($A23>0,Z23/$H23,0) -> 0.1540785498 | AF23: =IF($A23>0,AA23/$H23,0) -> 0.1873111782 | AI23: =IF($A23>0,'RRR hist-forc'!K23,0) -> 69.78217208 | AJ23: =IF($A23>0,AI23*H23,0) -> 238783.6309
A24: ='Asset data'!A24 -> 1 | B24: ='Asset data'!B24 -> 0 | C24: ='Asset data'!C24 -> 0 | D24: ='Asset data'!E24 -> ˃ 11 kV & < = 22 kV; Wood | E24: POLES | F24: =IF(A24>0,SUM('Asset data'!J24:CV24),0) -> 233096 | G24: =IF(A24>0,'Asset data'!F24,0) -> 7.22514602 | H24: =IF(A24>0,SUM('Asset data'!CX24:GJ24),0) -> 1684152.637 | I24: 0.1138434785 | J24: 2 | K24: 0.3864641441 | L24: 7.22514602 | M24: =IF($A24>0,SUMPRODUCT('Age profile (years)'!$CT24:$GF24,'Asset data'!$CX24:$GJ24)/H24-0.5,0) -> 25.26817706 | N24: 42555467.02 | O24: =IF($A24>0,'Asset data'!G24,0) -> 64.67303377 | P24: 108919260.4 | Q24: 0.609293463 | R24: 6.467303377 | S24: 12.93460675 | T24: 38.80382026 | U24: 51.73842702 | W24: =IF($A24>0,SUMIF('Age profile (years)'!$CT24:$GF24,"<" & R24+0.5,'Asset data'!$CX24:$GJ24),0) -> 126136.5992 | X24: =IF($A24>0,SUMIF('Age profile (years)'!$CT24:$GF24,"<" & S24+0.5,'Asset data'!$CX24:$GJ24)-W24,0) -> 184024.4691 | Y24: =IF($A24>0,SUMIF('Age profile (years)'!$CT24:$GF24,"<" & T24+0.5,'Asset data'!$CX24:$GJ24)-X24-W24,0) -> 1099212.04 | Z24: =IF($A24>0,SUMIF('Age profile (years)'!$CT24:$GF24,"<" & U24+0.5,'Asset data'!$CX24:$GJ24)-Y24-X24-W24,0) -> 102871.629 | AA24: 171907.8993 | AB24: 0.07489618011 | AC24: 0.1092682843 | AD24: 0.6526795827 | AE24: 0.06108212925 | AF24: 0.1020738237 | AI24: =IF($A24>0,'RRR hist-forc'!K24,0) -> 64.67303377 | AJ24: 108919260.4
A25: ='Asset data'!A25 -> 1 | B25: ='Asset data'!B25 -> 0 | C25: ='Asset data'!C25 -> 0 | D25: ='Asset data'!E25 -> > 22 kV & < = 66 kV; Wood | E25: POLES | F25: =IF(A25>0,SUM('Asset data'!J25:CV25),0) -> 16105 | G25: =IF(A25>0,'Asset data'!F25,0) -> 8.541391624 | H25: =IF(A25>0,SUM('Asset data'!CX25:GJ25),0) -> 137559.1121 | I25: 0.009298568003 | J25: 19 | K25: 0.03156582329 | L25: 8.541391624 | M25: =IF($A25>0,SUMPRODUCT('Age profile (years)'!$CT25:$GF25,'Asset data'!$CX25:$GJ25)/H25-0.5,0) -> 29.53141881 | N25: 4062315.751 | O25: =IF($A25>0,'Asset data'!G25,0) -> 63.51673988 | P25: 8737306.342 | Q25: 0.5350608537 | R25: 6.351673988 | S25: 12.70334798 | T25: 38.11004393 | U25: 50.81339191 | W25: =IF($A25>0,SUMIF('Age profile (years)'!$CT25:$GF25,"<" & R25+0.5,'Asset data'!$CX25:$GJ25),0) -> 11650.45818 | X25: =IF($A25>0,SUMIF('Age profile (years)'!$CT25:$GF25,"<" & S25+0.5,'Asset data'!$CX25:$GJ25)-W25,0) -> 13162.28449 | Y25: =IF($A25>0,SUMIF('Age profile (years)'!$CT25:$GF25,"<" & T25+0.5,'Asset data'!$CX25:$GJ25)-X25-W25,0) -> 66819.30668 | Z25: =IF($A25>0,SUMIF('Age profile (years)'!$CT25:$GF25,"<" & U25+0.5,'Asset data'!$CX25:$GJ25)-Y25-X25-W25,0) -> 13093.95336 | AA25: 32833.1094 | AB25: 0.08469419435 | AC25: 0.09568457001 | AD25: 0.4857497672 | AE25: 0.09518782987 | AF25: 0.2386836386 | AI25: =IF($A25>0,'RRR hist-forc'!K25,0) -> 63.51673988 | AJ25: 8737306.342
A26: ='Asset data'!A26 -> 0 | B26: ='Asset data'!B26 -> 0 | C26: ='Asset data'!C26 -> 0 | D26: ='Asset data'!E26 -> > 66 kV & < = 132 kV; Wood | E26: 0 | F26: =IF(A26>0,SUM('Asset data'!J26:CV26),0) -> 0 | G26: =IF(A26>0,'Asset data'!F26,0) -> 0 | H26: =IF(A26>0,SUM('Asset data'!CX26:GJ26),0) -> 0 | I26: 0 | J26: 0 | K26: 0 | L26: 0 | M26: =IF($A26>0,SUMPRODUCT('Age profile (years)'!$CT26:$GF26,'Asset data'!$CX26:$GJ26)/H26-0.5,0) -> 0 | N26: 0 | O26: =IF($A26>0,'Asset data'!G26,0) -> 0 | P26: 0 | Q26: 0 | R26: 0 | S26: 0 | T26: 0 | U26: 0 | W26: =IF($A26>0,SUMIF('Age profile (years)'!$CT26:$GF26,"<" & R26+0.5,'Asset data'!$CX26:$GJ26),0) -> 0 | X26: =IF($A26>0,SUMIF('Age profile (years)'!$CT26:$GF26,"<" & S26+0.5,'Asset data'!$CX26:$GJ26)-W26,0) -> 0 | Y26: =IF($A26>0,SUMIF('Age profile (years)'!$CT26:$GF26,"<" & T26+0.5,'Asset data'!$CX26:$GJ26)-X26-W26,0) -> 0 | Z26: =IF($A26>0,SUMIF('Age profile (years)'!$CT26:$GF26,"<" & U26+0.5,'Asset data'!$CX26:$GJ26)-Y26-X26-W26,0) -> 0 | AA26: 0 | AB26: 0 | AC26: 0 | AD26: 0 | AE26: 0 | AF26: 0 | AI26: =IF($A26>0,'RRR hist-forc'!K26,0) -> 0 | AJ26: 0
A27: ='Asset data'!A27 -> 0 | B27: ='Asset data'!B27 -> 0 | C27: ='Asset data'!C27 -> 0 | D27: ='Asset data'!E27 -> > 132 kV; Wood | E27: 0 | F27: =IF(A27>0,SUM('Asset data'!J27:CV27),0) -> 0 | G27: =IF(A27>0,'Asset data'!F27,0) -> 0 | H27: =IF(A27>0,SUM('Asset data'!CX27:GJ27),0) -> 0 | I27: 0 | J27: 0 | K27: 0 | L27: 0 | M27: =IF($A27>0,SUMPRODUCT('Age profile (years)'!$CT27:$GF27,'Asset data'!$CX27:$GJ27)/H27-0.5,0) -> 0 | N27: 0 | O27: =IF($A27>0,'Asset data'!G27,0) -> 0 | P27: 0 | Q27: 0 | R27: 0 | S27: 0 | T27: 0 | U27: 0 | W27: =IF($A27>0,SUMIF('Age profile (years)'!$CT27:$GF27,"<" & R27+0.5,'Asset data'!$CX27:$GJ27),0) -> 0 | X27: =IF($A27>0,SUMIF('Age profile (years)'!$CT27:$GF27,"<" & S27+0.5,'Asset data'!$CX27:$GJ27)-W27,0) -> 0 | Y27: =IF($A27>0,SUMIF('Age profile (years)'!$CT27:$GF27,"<" & T27+0.5,'Asset data'!$CX27:$GJ27)-X27-W27,0) -> 0 | Z27: =IF($A27>0,SUMIF('Age profile (years)'!$CT27:$GF27,"<" & U27+0.5,'Asset data'!$CX27:$GJ27)-Y27-X27-W27,0) -> 0 | AA27: 0 | AB27: 0 | AC27: 0 | AD27: 0 | AE27: 0 | AF27: 0 | AI27: =IF($A27>0,'RRR hist-forc'!K27,0) -> 0 | AJ27: 0
A28: ='Asset data'!A28 -> 1 | B28: ='Asset data'!B28 -> 0 | C28: ='Asset data'!C28 -> 0 | D28: ='Asset data'!E28 -> ˂ = 1 kV; Concrete | E28: POLES | F28: =IF(A28>0,SUM('Asset data'!J28:CV28),0) -> 23275 | G28: =IF(A28>0,'Asset data'!F28,0) -> 10.21225459 | H28: =IF(A28>0,SUM('Asset data'!CX28:GJ28),0) -> 237690.2256 | I28: 0.01606711974 | J28: 16 | K28: 0.05454300731 | L28: 10.21225459 | M28: =IF($A28>0,SUMPRODUCT('Age profile (years)'!$CT28:$GF28,'Asset data'!$CX28:$GJ28)/H28-0.5,0) -> 25.20212675 | N28: 5990299.191 | O28: =IF($A28>0,'Asset data'!G28,0) -> 50.37333641 | P28: 11973249.69 | Q28: 0.4996931206 | R28: 5.037333641 | S28: 10.07466728 | T28: 30.22400185 | U28: 40.29866913 | W28: =IF($A28>0,SUMIF('Age profile (years)'!$CT28:$GF28,"<" & R28+0.5,'Asset data'!$CX28:$GJ28),0) -> 142.9715643 | X28: =IF($A28>0,SUMIF('Age profile (years)'!$CT28:$GF28,"<" & S28+0.5,'Asset data'!$CX28:$GJ28)-W28,0) -> 6780.937048 | Y28: =IF($A28>0,SUMIF('Age profile (years)'!$CT28:$GF28,"<" & T28+0.5,'Asset data'!$CX28:$GJ28)-X28-W28,0) -> 190397.2746 | Z28: =IF($A28>0,SUMIF('Age profile (years)'!$CT28:$GF28,"<" & U28+0.5,'Asset data'!$CX28:$GJ28)-Y28-X28-W28,0) -> 13806.96821 | AA28: 26562.07419 | AB28: 0.0006015037594 | AC28: 0.02852846402 | AD28: 0.8010311493 | AE28: 0.05808807734 | AF28: 0.1117508056 | AI28: =IF($A28>0,'RRR hist-forc'!K28,0) -> 50.37333641 | AJ28: 11973249.69
A29: ='Asset data'!A29 -> 1 | B29: ='Asset data'!B29 -> 0 | C29: ='Asset data'!C29 -> 0 | D29: ='Asset data'!E29 -> > 1 kV & < = 11 kV; Concrete | E29: POLES | F29: =IF(A29>0,SUM('Asset data'!J29:CV29),0) -> 65 | G29: =IF(A29>0,'Asset data'!F29,0) -> 12.23133165 | H29: =IF(A29>0,SUM('Asset data'!CX29:GJ29),0) -> 795.0365574 | I29: 5.374199775e-05 | J29: 44 | K29: 0.0001824378123 | L29: 12.23133165 | M29: =IF($A29>0,SUMPRODUCT('Age profile (years)'!$CT29:$GF29,'Asset data'!$CX29:$GJ29)/H29-0.5,0) -> 25.7 | N29: 20432.43952 | O29: =IF($A29>0,'Asset data'!G29,0) -> 47.66993958 | P29: 37899.34465 | Q29: 0.4608761784 | R29: 4.766993958 | S29: 9.533987916 | T29: 28.60196375 | U29: 38.13595166 | W29: =IF($A29>0,SUMIF('Age profile (years)'!$CT29:$GF29,"<" & R29+0.5,'Asset data'!$CX29:$GJ29),0) -> 0 | X29: =IF($A29>0,SUMIF('Age profile (years)'!$CT29:$GF29,"<" & S29+0.5,'Asset data'!$CX29:$GJ29)-W29,0) -> 0 | Y29: =IF($A29>0,SUMIF('Age profile (years)'!$CT29:$GF29,"<" & T29+0.5,'Asset data'!$CX29:$GJ29)-X29-W29,0) -> 513.7159294 | Z29: =IF($A29>0,SUMIF('Age profile (years)'!$CT29:$GF29,"<" & U29+0.5,'Asset data'!$CX29:$GJ29)-Y29-X29-W29,0) -> 256.8579647 | AA29: 24.4626633 | AB29: 0 | AC29: 0 | AD29: 0.6461538462 | AE29: 0.3230769231 | AF29: 0.03076923077 | AI29: =IF($A29>0,'RRR hist-forc'!K29,0) -> 47.66993958 | AJ29: 37899.34465
A30: ='Asset data'!A30 -> 1 | B30: ='Asset data'!B30 -> 0 | C30: ='Asset data'!C30 -> 0 | D30: ='Asset data'!E30 -> ˃ 11 kV & < = 22 kV; Concrete | E30: POLES | F30: =IF(A30>0,SUM('Asset data'!J30:CV30),0) -> 86750 | G30: =IF(A30>0,'Asset data'!F30,0) -> 15.36887348 | H30: =IF(A30>0,SUM('Asset data'!CX30:GJ30),0) -> 1333249.775 | I30: 0.09012353675 | J30: 3 | K30: 0.3059421229 | L30: 15.36887348 | M30: =IF($A30>0,SUMPRODUCT('Age profile (years)'!$CT30:$GF30,'Asset data'!$CX30:$GJ30)/H30-0.5,0) -> 20.37463977 | N30: 27164483.88 | O30: =IF($A30>0,'Asset data'!G30,0) -> 43.23987366 | P30: 57649551.82 | Q30: 0.5287997387 | R30: 4.323987366 | S30: 8.647974732 | T30: 25.9439242 | U30: 34.59189893 | W30: =IF($A30>0,SUMIF('Age profile (years)'!$CT30:$GF30,"<" & R30+0.5,'Asset data'!$CX30:$GJ30),0) -> 3919.062738 | X30: =IF($A30>0,SUMIF('Age profile (years)'!$CT30:$GF30,"<" & S30+0.5,'Asset data'!$CX30:$GJ30)-W30,0) -> 65778.77851 | Y30: =IF($A30>0,SUMIF('Age profile (years)'!$CT30:$GF30,"<" & T30+0.5,'Asset data'!$CX30:$GJ30)-X30-W30,0) -> 1012055.688 | Z30: =IF($A30>0,SUMIF('Age profile (years)'!$CT30:$GF30,"<" & U30+0.5,'Asset data'!$CX30:$GJ30)-Y30-X30-W30,0) -> 62120.98662 | AA30: 189375.2591 | AB30: 0.002939481268 | AC30: 0.04933717579 | AD30: 0.7590893372 | AE30: 0.04659365994 | AF30: 0.1420403458 | AI30: =IF($A30>0,'RRR hist-forc'!K30,0) -> 43.23987366 | AJ30: 57649551.82
A31: ='Asset data'!A31 -> 1 | B31: ='Asset data'!B31 -> 0 | C31: ='Asset data'!C31 -> 0 | D31: ='Asset data'!E31 -> > 22 kV & < = 66 kV; Concrete | E31: POLES | F31: =IF(A31>0,SUM('Asset data'!J31:CV31),0) -> 10071 | G31: =IF(A31>0,'Asset data'!F31,0) -> 18.49680874 | H31: =IF(A31>0,SUM('Asset data'!CX31:GJ31),0) -> 186281.3609 | I31: 0.01259204043 | J31: 17 | K31: 0.04274616511 | L31: 18.49680874 | M31: =IF($A31>0,SUMPRODUCT('Age profile (years)'!$CT31:$GF31,'Asset data'!$CX31:$GJ31)/H31-0.5,0) -> 20.2356767 | N31: 3769529.393 | O31: =IF($A31>0,'Asset data'!G31,0) -> 45.1144848 | P31: 8403987.623 | Q31: 0.5514594307 | R31: 4.51144848 | S31: 9.022896959 | T31: 27.06869088 | U31: 36.09158784 | W31: =IF($A31>0,SUMIF('Age profile (years)'!$CT31:$GF31,"<" & R31+0.5,'Asset data'!$CX31:$GJ31),0) -> 1054.318098 | X31: =IF($A31>0,SUMIF('Age profile (years)'!$CT31:$GF31,"<" & S31+0.5,'Asset data'!$CX31:$GJ31)-W31,0) -> 15148.88636 | Y31: =IF($A31>0,SUMIF('Age profile (years)'!$CT31:$GF31,"<" & T31+0.5,'Asset data'!$CX31:$GJ31)-X31-W31,0) -> 129292.6931 | Z31: =IF($A31>0,SUMIF('Age profile (years)'!$CT31:$GF31,"<" & U31+0.5,'Asset data'!$CX31:$GJ31)-Y31-X31-W31,0) -> 6936.303279 | AA31: 33849.16 | AB31: 0.005659815311 | AC31: 0.08132260947 | AD31: 0.6940720882 | AE31: 0.03723562705 | AF31: 0.18170986 | AI31: =IF($A31>0,'RRR hist-forc'!K31,0) -> 45.1144848 | AJ31: 8403987.623
A32: ='Asset data'!A32 -> 0 | B32: ='Asset data'!B32 -> 0 | C32: ='Asset data'!C32 -> 0 | D32: ='Asset data'!E32 -> > 66 kV & < = 132 kV; Concrete | E32: 0 | F32: =IF(A32>0,SUM('Asset data'!J32:CV32),0) -> 0 | G32: =IF(A32>0,'Asset data'!F32,0) -> 0 | H32: =IF(A32>0,SUM('Asset data'!CX32:GJ32),0) -> 0 | I32: 0 | J32: 0 | K32: 0 | L32: 0 | M32: =IF($A32>0,SUMPRODUCT('Age profile (years)'!$CT32:$GF32,'Asset data'!$CX32:$GJ32)/H32-0.5,0) -> 0 | N32: 0 | O32: =IF($A32>0,'Asset data'!G32,0) -> 0 | P32: 0 | Q32: 0 | R32: 0 | S32: 0 | T32: 0 | U32: 0 | W32: =IF($A32>0,SUMIF('Age profile (years)'!$CT32:$GF32,"<" & R32+0.5,'Asset data'!$CX32:$GJ32),0) -> 0 | X32: =IF($A32>0,SUMIF('Age profile (years)'!$CT32:$GF32,"<" & S32+0.5,'Asset data'!$CX32:$GJ32)-W32,0) -> 0 | Y32: =IF($A32>0,SUMIF('Age profile (years)'!$CT32:$GF32,"<" & T32+0.5,'Asset data'!$CX32:$GJ32)-X32-W32,0) -> 0 | Z32: =IF($A32>0,SUMIF('Age profile (years)'!$CT32:$GF32,"<" & U32+0.5,'Asset data'!$CX32:$GJ32)-Y32-X32-W32,0) -> 0 | AA32: 0 | AB32: 0 | AC32: 0 | AD32: 0 | AE32: 0 | AF32: 0 | AI32: =IF($A32>0,'RRR hist-forc'!K32,0) -> 0 | AJ32: 0
A33: ='Asset data'!A33 -> 0 | B33: ='Asset data'!B33 -> 0 | C33: ='Asset data'!C33 -> 0 | D33: ='Asset data'!E33 -> > 132 kV; Concrete | E33: 0 | F33: =IF(A33>0,SUM('Asset data'!J33:CV33),0) -> 0 | G33: =IF(A33>0,'Asset data'!F33,0) -> 0 | H33: =IF(A33>0,SUM('Asset data'!CX33:GJ33),0) -> 0 | I33: 0 | J33: 0 | K33: 0 | L33: 0 | M33: =IF($A33>0,SUMPRODUCT('Age profile (years)'!$CT33:$GF33,'Asset data'!$CX33:$GJ33)/H33-0.5,0) -> 0 | N33: 0 | O33: =IF($A33>0,'Asset data'!G33,0) -> 0 | P33: 0 | Q33: 0 | R33: 0 | S33: 0 | T33: 0 | U33: 0 | W33: =IF($A33>0,SUMIF('Age profile (years)'!$CT33:$GF33,"<" & R33+0.5,'Asset data'!$CX33:$GJ33),0) -> 0 | X33: =IF($A33>0,SUMIF('Age profile (years)'!$CT33:$GF33,"<" & S33+0.5,'Asset data'!$CX33:$GJ33)-W33,0) -> 0 | Y33: =IF($A33>0,SUMIF('Age profile (years)'!$CT33:$GF33,"<" & T33+0.5,'Asset data'!$CX33:$GJ33)-X33-W33,0) -> 0 | Z33: =IF($A33>0,SUMIF('Age profile (years)'!$CT33:$GF33,"<" & U33+0.5,'Asset data'!$CX33:$GJ33)-Y33-X33-W33,0) -> 0 | AA33: 0 | AB33: 0 | AC33: 0 | AD33: 0 | AE33: 0 | AF33: 0 | AI33: =IF($A33>0,'RRR hist-forc'!K33,0) -> 0 | AJ33: 0
A34: ='Asset data'!A34 -> 1 | B34: ='Asset data'!B34 -> 0 | C34: ='Asset data'!C34 -> 0 | D34: ='Asset data'!E34 -> ˂ = 1 kV; Steel | E34: POLES | F34: =IF(A34>0,SUM('Asset data'!J34:CV34),0) -> 501 | G34: =IF(A34>0,'Asset data'!F34,0) -> 9.233864229 | H34: =IF(A34>0,SUM('Asset data'!CX34:GJ34),0) -> 4626.165979 | I34: 0.0003127144272 | J34: 37 | K34: 0.001061570808 | L34: 9.233864229 | M34: =IF($A34>0,SUMPRODUCT('Age profile (years)'!$CT34:$GF34,'Asset data'!$CX34:$GJ34)/H34-0.5,0) -> 27.11277445 | N34: 125428.1948 | O34: =IF($A34>0,'Asset data'!G34,0) -> 49.39173613 | P34: 228494.3693 | Q34: 0.4510665837 | R34: 4.939173613 | S34: 9.878347226 | T34: 29.63504168 | U34: 39.5133889 | W34: =IF($A34>0,SUMIF('Age profile (years)'!$CT34:$GF34,"<" & R34+0.5,'Asset data'!$CX34:$GJ34),0) -> 803.346188 | X34: =IF($A34>0,SUMIF('Age profile (years)'!$CT34:$GF34,"<" & S34+0.5,'Asset data'!$CX34:$GJ34)-W34,0) -> 230.8466057 | Y34: =IF($A34>0,SUMIF('Age profile (years)'!$CT34:$GF34,"<" & T34+0.5,'Asset data'!$CX34:$GJ34)-X34-W34,0) -> 738.7091383 | Z34: =IF($A34>0,SUMIF('Age profile (years)'!$CT34:$GF34,"<" & U34+0.5,'Asset data'!$CX34:$GJ34)-Y34-X34-W34,0) -> 1542.055326 | AA34: 1311.208721 | AB34: 0.1736526946 | AC34: 0.0499001996 | AD34: 0.1596806387 | AE34: 0.3333333333 | AF34: 0.2834331337 | AI34: =IF($A34>0,'RRR hist-forc'!K34,0) -> 49.39173613 | AJ34: 228494.3693
A35: ='Asset data'!A35 -> 0 | B35: ='Asset data'!B35 -> 0 | C35: ='Asset data'!C35 -> 0 | D35: ='Asset data'!E35 -> > 1 kV & < = 11 kV; Steel | E35: 0 | F35: =IF(A35>0,SUM('Asset data'!J35:CV35),0) -> 0 | G35: =IF(A35>0,'Asset data'!F35,0) -> 0 | H35: =IF(A35>0,SUM('Asset data'!CX35:GJ35),0) -> 0 | I35: 0 | J35: 0 | K35: 0 | L35: 0 | M35: =IF($A35>0,SUMPRODUCT('Age profile (years)'!$CT35:$GF35,'Asset data'!$CX35:$GJ35)/H35-0.5,0) -> 0 | N35: 0 | O35: =IF($A35>0,'Asset data'!G35,0) -> 0 | P35: 0 | Q35: 0 | R35: 0 | S35: 0 | T35: 0 | U35: 0 | W35: =IF($A35>0,SUMIF('Age profile (years)'!$CT35:$GF35,"<" & R35+0.5,'Asset data'!$CX35:$GJ35),0) -> 0 | X35: =IF($A35>0,SUMIF('Age profile (years)'!$CT35:$GF35,"<" & S35+0.5,'Asset data'!$CX35:$GJ35)-W35,0) -> 0 | Y35: =IF($A35>0,SUMIF('Age profile (years)'!$CT35:$GF35,"<" & T35+0.5,'Asset data'!$CX35:$GJ35)-X35-W35,0) -> 0 | Z35: =IF($A35>0,SUMIF('Age profile (years)'!$CT35:$GF35,"<" & U35+0.5,'Asset data'!$CX35:$GJ35)-Y35-X35-W35,0) -> 0 | AA35: 0 | AB35: 0 | AC35: 0 | AD35: 0 | AE35: 0 | AF35: 0 | AI35: =IF($A35>0,'RRR hist-forc'!K35,0) -> 0 | AJ35: 0
A36: ='Asset data'!A36 -> 1 | B36: ='Asset data'!B36 -> 0 | C36: ='Asset data'!C36 -> 0 | D36: ='Asset data'!E36 -> ˃ 11 kV & < = 22 kV; Steel | E36: POLES | F36: =IF(A36>0,SUM('Asset data'!J36:CV36),0) -> 433 | G36: =IF(A36>0,'Asset data'!F36,0) -> 10.15017952 | H36: =IF(A36>0,SUM('Asset data'!CX36:GJ36),0) -> 4395.027733 | I36: 0.0002970902009 | J36: 38 | K36: 0.00100853129 | L36: 10.15017952 | M36: =IF($A36>0,SUMPRODUCT('Age profile (years)'!$CT36:$GF36,'Asset data'!$CX36:$GJ36)/H36-0.5,0) -> -23.69168591 | N36: -104125.6166 | O36: =IF($A36>0,'Asset data'!G36,0) -> 15.37178686 | P36: 67559.42955 | Q36: 2.541244757 | R36: 1.537178686 | S36: 3.074357372 | T36: 9.223072117 | U36: 12.29742949 | W36: =IF($A36>0,SUMIF('Age profile (years)'!$CT36:$GF36,"<" & R36+0.5,'Asset data'!$CX36:$GJ36),0) -> 4171.723783 | X36: =IF($A36>0,SUMIF('Age profile (years)'!$CT36:$GF36,"<" & S36+0.5,'Asset data'!$CX36:$GJ36)-W36,0) -> 20.30035904 | Y36: =IF($A36>0,SUMIF('Age profile (years)'!$CT36:$GF36,"<" & T36+0.5,'Asset data'!$CX36:$GJ36)-X36-W36,0) -> 162.4028723 | Z36: =IF($A36>0,SUMIF('Age profile (years)'!$CT36:$GF36,"<" & U36+0.5,'Asset data'!$CX36:$GJ36)-Y36-X36-W36,0) -> 20.30035904 | AA36: 20.30035904 | AB36: 0.9491916859 | AC36: 0.004618937644 | AD36: 0.03695150115 | AE36: 0.004618937644 | AF36: 0.004618937644 | AI36: =IF($A36>0,'RRR hist-forc'!K36,0) -> 15.37178686 | AJ36: 67559.42955
A37: ='Asset data'!A37 -> 1 | B37: ='Asset data'!B37 -> 0 | C37: ='Asset data'!C37 -> 0 | D37: ='Asset data'!E37 -> > 22 kV & < = 66 kV; Steel | E37: POLES | F37: =IF(A37>0,SUM('Asset data'!J37:CV37),0) -> 97 | G37: =IF(A37>0,'Asset data'!F37,0) -> 20.83372953 | H37: =IF(A37>0,SUM('Asset data'!CX37:GJ37),0) -> 2020.871765 | I37: 0.0001366046439 | J37: 42 | K37: 0.00046373141 | L37: 20.83372953 | M37: =IF($A37>0,SUMPRODUCT('Age profile (years)'!$CT37:$GF37,'Asset data'!$CX37:$GJ37)/H37-0.5,0) -> -27.76804124 | N37: -56115.6505 | O37: =IF($A37>0,'Asset data'!G37,0) -> 10.31213953 | P37: 20839.51161 | Q37: 3.692752668 | R37: =IF($A37>0,$O37-R$4*$O37,0) -> 1.031213953 | S37: 2.062427906 | T37: 6.187283718 | U37: 8.249711624 | W37: =IF($A37>0,SUMIF('Age profile (years)'!$CT37:$GF37,"<" & R37+0.5,'Asset data'!$CX37:$GJ37),0) -> 1833.368199 | X37: =IF($A37>0,SUMIF('Age profile (years)'!$CT37:$GF37,"<" & S37+0.5,'Asset data'!$CX37:$GJ37)-W37,0) -> 0 | Y37: =IF($A37>0,SUMIF('Age profile (years)'!$CT37:$GF37,"<" & T37+0.5,'Asset data'!$CX37:$GJ37)-X37-W37,0) -> 187.5035658 | Z37: =IF($A37>0,SUMIF('Age profile (years)'!$CT37:$GF37,"<" & U37+0.5,'Asset data'!$CX37:$GJ37)-Y37-X37-W37,0) -> 0 | AA37: 0 | AB37: 0.9072164948 | AC37: 0 | AD37: 0.09278350515 | AE37: 0 | AF37: 0 | AI37: =IF($A37>0,'RRR hist-forc'!K37,0) -> 10.31213953 | AJ37: 20839.51161
A38: ='Asset data'!A38 -> 0 | B38: ='Asset data'!B38 -> 0 | C38: ='Asset data'!C38 -> 0 | D38: ='Asset data'!E38 -> > 66 kV & < = 132 kV; Steel | E38: 0 | F38: =IF(A38>0,SUM('Asset data'!J38:CV38),0) -> 0 | G38: =IF(A38>0,'Asset data'!F38,0) -> 0 | H38: =IF(A38>0,SUM('Asset data'!CX38:GJ38),0) -> 0 | I38: 0 | J38: 0 | K38: 0 | L38: 0 | M38: =IF($A38>0,SUMPRODUCT('Age profile (years)'!$CT38:$GF38,'Asset data'!$CX38:$GJ38)/H38-0.5,0) -> 0 | N38: 0 | O38: =IF($A38>0,'Asset data'!G38,0) -> 0 | P38: 0 | Q38: 0 | R38: 0 | S38: 0 | T38: 0 | U38: 0 | W38: =IF($A38>0,SUMIF('Age profile (years)'!$CT38:$GF38,"<" & R38+0.5,'Asset data'!$CX38:$GJ38),0) -> 0 | X38: =IF($A38>0,SUMIF('Age profile (years)'!$CT38:$GF38,"<" & S38+0.5,'Asset data'!$CX38:$GJ38)-W38,0) -> 0 | Y38: =IF($A38>0,SUMIF('Age profile (years)'!$CT38:$GF38,"<" & T38+0.5,'Asset data'!$CX38:$GJ38)-X38-W38,0) -> 0 | Z38: =IF($A38>0,SUMIF('Age profile (years)'!$CT38:$GF38,"<" & U38+0.5,'Asset data'!$CX38:$GJ38)-Y38-X38-W38,0) -> 0 | AA38: 0 | AB38: 0 | AC38: 0 | AD38: 0 | AE38: 0 | AF38: 0 | AI38: =IF($A38>0,'RRR hist-forc'!K38,0) -> 0 | AJ38: 0
A39: ='Asset data'!A39 -> 0 | B39: ='Asset data'!B39 -> 0 | C39: ='Asset data'!C39 -> 0 | D39: ='Asset data'!E39 -> > 132 kV; Steel | E39: 0 | F39: =IF(A39>0,SUM('Asset data'!J39:CV39),0) -> 0 | G39: =IF(A39>0,'Asset data'!F39,0) -> 0 | H39: =IF(A39>0,SUM('Asset data'!CX39:GJ39),0) -> 0 | I39: 0 | J39: 0 | K39: 0 | L39: 0 | M39: =IF($A39>0,SUMPRODUCT('Age profile (years)'!$CT39:$GF39,'Asset data'!$CX39:$GJ39)/H39-0.5,0) -> 0 | N39: 0 | O39: =IF($A39>0,'Asset data'!G39,0) -> 0 | P39: 0 | Q39: 0 | R39: 0 | S39: 0 | T39: 0 | U39: 0 | W39: =IF($A39>0,SUMIF('Age profile (years)'!$CT39:$GF39,"<" & R39+0.5,'Asset data'!$CX39:$GJ39),0) -> 0 | X39: =IF($A39>0,SUMIF('Age profile (years)'!$CT39:$GF39,"<" & S39+0.5,'Asset data'!$CX39:$GJ39)-W39,0) -> 0 | Y39: =IF($A39>0,SUMIF('Age profile (years)'!$CT39:$GF39,"<" & T39+0.5,'Asset data'!$CX39:$GJ39)-X39-W39,0) -> 0 | Z39: =IF($A39>0,SUMIF('Age profile (years)'!$CT39:$GF39,"<" & U39+0.5,'Asset data'!$CX39:$GJ39)-Y39-X39-W39,0) -> 0 | AA39: 0 | AB39: 0 | AC39: 0 | AD39: 0 | AE39: 0 | AF39: 0 | AI39: =IF($A39>0,'RRR hist-forc'!K39,0) -> 0 | AJ39: 0
A40: ='Asset data'!A40 -> 1 | B40: ='Asset data'!B40 -> 0 | C40: ='Asset data'!C40 -> 0 | D40: ='Asset data'!E40 -> Other | E40: POLES | F40: =IF(A40>0,SUM('Asset data'!J40:CV40),0) -> 4129 | G40: =IF(A40>0,'Asset data'!F40,0) -> 11.15746697 | H40: =IF(A40>0,SUM('Asset data'!CX40:GJ40),0) -> 46069.18111 | I40: 0.003114133312 | J40: 26 | K40: 0.01057153981 | L40: 11.15746697 | M40: =IF($A40>0,SUMPRODUCT('Age profile (years)'!$CT40:$GF40,'Asset data'!$CX40:$GJ40)/H40-0.5,0) -> 39.77658029 | N40: 1832474.481 | O40: =IF($A40>0,'Asset data'!G40,0) -> 76.61996162 | P40: 3529818.889 | Q40: 0.4808587809 | R40: 7.661996162 | S40: 15.32399232 | T40: 45.97197697 | U40: 61.2959693 | W40: =IF($A40>0,SUMIF('Age profile (years)'!$CT40:$GF40,"<" & R40+0.5,'Asset data'!$CX40:$GJ40),0) -> 1974.871653 | X40: =IF($A40>0,SUMIF('Age profile (years)'!$CT40:$GF40,"<" & S40+0.5,'Asset data'!$CX40:$GJ40)-W40,0) -> 1707.092446 | Y40: =IF($A40>0,SUMIF('Age profile (years)'!$CT40:$GF40,"<" & T40+0.5,'Asset data'!$CX40:$GJ40)-X40-W40,0) -> 25996.89804 | Z40: =IF($A40>0,SUMIF('Age profile (years)'!$CT40:$GF40,"<" & U40+0.5,'Asset data'!$CX40:$GJ40)-Y40-X40-W40,0) -> 10521.49135 | AA40: 5868.827626 | AB40: 0.0428675224 | AC40: 0.03705497699 | AD40: 0.5643012836 | AE40: 0.2283845968 | AF40: 0.1273916202 | AI40: =IF($A40>0,'RRR hist-forc'!K40,0) -> 76.61996162 | AJ40: 3529818.889
A41: ='Asset data'!A41 -> 2 | B41: ='Asset data'!B41 -> 0 | C41: ='Asset data'!C41 -> 0 | D41: ='Asset data'!E41 -> ˂ = 1 kV | E41: OVERHEAD CONDUCTORS | F41: =IF(A41>0,SUM('Asset data'!J41:CV41),0) -> 9664.2 | G41: =IF(A41>0,'Asset data'!F41,0) -> 83.49749146 | H41: =IF(A41>0,SUM('Asset data'!CX41:GJ41),0) -> 806936.457 | I41: 0.05454639394 | J41: 7 | K41: 0.1743065816 | L41: 83.49749146 | M41: =IF($A41>0,SUMPRODUCT('Age profile (years)'!$CT41:$GF41,'Asset data'!$CX41:$GJ41)/H41-0.5,0) -> 38.34847168 | N41: 30944779.87 | O41: =IF($A41>0,'Asset data'!G41,0) -> 75.29955325 | P41: 60761954.71 | Q41: 0.4907211262 | R41: 7.529955325 | S41: 15.05991065 | T41: 45.17973195 | U41: 60.2396426 | W41: =IF($A41>0,SUMIF('Age profile (years)'!$CT41:$GF41,"<" & R41+0.5,'Asset data'!$CX41:$GJ41),0) -> 17843.41393 | X41: =IF($A41>0,SUMIF('Age profile (years)'!$CT41:$GF41,"<" & S41+0.5,'Asset data'!$CX41:$GJ41)-W41,0) -> 19404.81702 | Y41: =IF($A41>0,SUMIF('Age profile (years)'!$CT41:$GF41,"<" & T41+0.5,'Asset data'!$CX41:$GJ41)-X41-W41,0) -> 512374.0066 | Z41: =IF($A41>0,SUMIF('Age profile (years)'!$CT41:$GF41,"<" & U41+0.5,'Asset data'!$CX41:$GJ41)-Y41-X41-W41,0) -> 182425.3194 | AA41: 74888.90009 | AB41: 0.02211253906 | AC41: 0.02404751557 | AD41: 0.6349620248 | AE41: 0.2260714803 | AF41: 0.09280644026 | AI41: =IF($A41>0,'RRR hist-forc'!K41,0) -> 75.29955325 | AJ41: 60761954.71
A42: ='Asset data'!A42 -> 2 | B42: ='Asset data'!B42 -> 0 | C42: ='Asset data'!C42 -> 0 | D42: ='Asset data'!E42 -> > 1 kV & < = 11 kV | E42: OVERHEAD CONDUCTORS | F42: =IF(A42>0,SUM('Asset data'!J42:CV42),0) -> 53.3 | G42: =IF(A42>0,'Asset data'!F42,0) -> 71.62414072 | H42: =IF(A42>0,SUM('Asset data'!CX42:GJ42),0) -> 3817.5667 | I42: 0.0002580556317 | J42: 39 | K42: 0.0008246337068 | L42: 71.62414072 | M42: =IF($A42>0,SUMPRODUCT('Age profile (years)'!$CT42:$GF42,'Asset data'!$CX42:$GJ42)/H42-0.5,0) -> 40.61444653 | N42: 155048.3586 | O42: =IF($A42>0,'Asset data'!G42,0) -> 75.94647217 | P42: 289930.7232 | Q42: 0.4652227369 | R42: 7.594647217 | S42: 15.18929443 | T42: 45.5678833 | U42: 60.75717774 | W42: =IF($A42>0,SUMIF('Age profile (years)'!$CT42:$GF42,"<" & R42+0.5,'Asset data'!$CX42:$GJ42),0) -> 78.78655479 | X42: =IF($A42>0,SUMIF('Age profile (years)'!$CT42:$GF42,"<" & S42+0.5,'Asset data'!$CX42:$GJ42)-W42,0) -> 78.78655479 | Y42: =IF($A42>0,SUMIF('Age profile (years)'!$CT42:$GF42,"<" & T42+0.5,'Asset data'!$CX42:$GJ42)-X42-W42,0) -> 2227.510776 | Z42: =IF($A42>0,SUMIF('Age profile (years)'!$CT42:$GF42,"<" & U42+0.5,'Asset data'!$CX42:$GJ42)-Y42-X42-W42,0) -> 859.4896887 | AA42: 572.9931258 | AB42: 0.02063789869 | AC42: 0.02063789869 | AD42: 0.5834896811 | AE42: 0.2251407129 | AF42: 0.1500938086 | AI42: =IF($A42>0,'RRR hist-forc'!K42,0) -> 75.94647217 | AJ42: 289930.7232
A43: ='Asset data'!A43 -> 2 | B43: ='Asset data'!B43 -> 0 | C43: ='Asset data'!C43 -> 0 | D43: ='Asset data'!E43 -> ˃ 11 kV & < = 22 kV ; SWER | E43: OVERHEAD CONDUCTORS | F43: =IF(A43>0,SUM('Asset data'!J43:CV43),0) -> 21631.9 | G43: =IF(A43>0,'Asset data'!F43,0) -> 54.14117106 | H43: =IF(A43>0,SUM('Asset data'!CX43:GJ43),0) -> 1171176.398 | I43: 0.07916788075 | J43: 4 | K43: 0.2529861586 | L43: 54.14117106 | M43: =IF($A43>0,SUMPRODUCT('Age profile (years)'!$CT43:$GF43,'Asset data'!$CX43:$GJ43)/H43-0.5,0) -> 41.73305858 | N43: 48876773.24 | O43: =IF($A43>0,'Asset data'!G43,0) -> 79.34162528 | P43: 92923038.93 | Q43: 0.4740080199 | R43: 7.934162528 | S43: 15.86832506 | T43: 47.60497517 | U43: 63.47330023 | W43: =IF($A43>0,SUMIF('Age profile (years)'!$CT43:$GF43,"<" & R43+0.5,'Asset data'!$CX43:$GJ43),0) -> 27990.98544 | X43: =IF($A43>0,SUMIF('Age profile (years)'!$CT43:$GF43,"<" & S43+0.5,'Asset data'!$CX43:$GJ43)-W43,0) -> 19387.95336 | Y43: =IF($A43>0,SUMIF('Age profile (years)'!$CT43:$GF43,"<" & T43+0.5,'Asset data'!$CX43:$GJ43)-X43-W43,0) -> 727007.645 | Z43: =IF($A43>0,SUMIF('Age profile (years)'!$CT43:$GF43,"<" & U43+0.5,'Asset data'!$CX43:$GJ43)-Y43-X43-W43,0) -> 293780.8224 | AA43: 103008.9921 | AB43: 0.02389988859 | AC43: 0.01655425552 | AD43: 0.620749911 | AE43: 0.2508425057 | AF43: 0.08795343913 | AI43: =IF($A43>0,'RRR hist-forc'!K43,0) -> 79.34162528 | AJ43: 92923038.93
A44: ='Asset data'!A44 -> 0 | B44: ='Asset data'!B44 -> 0 | C44: ='Asset data'!C44 -> 0 | D44: ='Asset data'!E44 -> ˃ 11 kV & < = 22 kV ; Single-Phase | E44: 0 | F44: =IF(A44>0,SUM('Asset data'!J44:CV44),0) -> 0 | G44: =IF(A44>0,'Asset data'!F44,0) -> 0 | H44: =IF(A44>0,SUM('Asset data'!CX44:GJ44),0) -> 0 | I44: 0 | J44: 0 | K44: 0 | L44: 0 | M44: =IF($A44>0,SUMPRODUCT('Age profile (years)'!$CT44:$GF44,'Asset data'!$CX44:$GJ44)/H44-0.5,0) -> 0 | N44: 0 | O44: =IF($A44>0,'Asset data'!G44,0) -> 0 | P44: 0 | Q44: 0 | R44: 0 | S44: 0 | T44: 0 | U44: 0 | W44: =IF($A44>0,SUMIF('Age profile (years)'!$CT44:$GF44,"<" & R44+0.5,'Asset data'!$CX44:$GJ44),0) -> 0 | X44: =IF($A44>0,SUMIF('Age profile (years)'!$CT44:$GF44,"<" & S44+0.5,'Asset data'!$CX44:$GJ44)-W44,0) -> 0 | Y44: =IF($A44>0,SUMIF('Age profile (years)'!$CT44:$GF44,"<" & T44+0.5,'Asset data'!$CX44:$GJ44)-X44-W44,0) -> 0 | Z44: =IF($A44>0,SUMIF('Age profile (years)'!$CT44:$GF44,"<" & U44+0.5,'Asset data'!$CX44:$GJ44)-Y44-X44-W44,0) -> 0 | AA44: 0 | AB44: 0 | AC44: 0 | AD44: 0 | AE44: 0 | AF44: 0 | AI44: =IF($A44>0,'RRR hist-forc'!K44,0) -> 0 | AJ44: 0
A45: ='Asset data'!A45 -> 2 | B45: ='Asset data'!B45 -> 0 | C45: ='Asset data'!C45 -> 0 | D45: ='Asset data'!E45 -> ˃ 11 kV & < = 22 kV ; Multiple-Phase | E45: OVERHEAD CONDUCTORS | F45: =IF(A45>0,SUM('Asset data'!J45:CV45),0) -> 34489 | G45: =IF(A45>0,'Asset data'!F45,0) -> 58.45200256 | H45: =IF(A45>0,SUM('Asset data'!CX45:GJ45),0) -> 2015951.116 | I45: 0.1362720234 | J45: 1 | K45: 0.4354661941 | L45: 58.45200256 | M45: =IF($A45>0,SUMPRODUCT('Age profile (years)'!$CT45:$GF45,'Asset data'!$CX45:$GJ45)/H45-0.5,0) -> 35.25341703 | N45: 71069165.42 | O45: =IF($A45>0,'Asset data'!G45,0) -> 69.6119799 | P45: 140334348.6 | Q45: 0.4935725563 | R45: 6.96119799 | S45: 13.92239598 | T45: 41.76718794 | U45: 55.68958392 | W45: =IF($A45>0,SUMIF('Age profile (years)'!$CT45:$GF45,"<" & R45+0.5,'Asset data'!$CX45:$GJ45),0) -> 57697.97173 | X45: =IF($A45>0,SUMIF('Age profile (years)'!$CT45:$GF45,"<" & S45+0.5,'Asset data'!$CX45:$GJ45)-W45,0) -> 78045.11382 | Y45: =IF($A45>0,SUMIF('Age profile (years)'!$CT45:$GF45,"<" & T45+0.5,'Asset data'!$CX45:$GJ45)-X45-W45,0) -> 1217210.347 | Z45: =IF($A45>0,SUMIF('Age profile (years)'!$CT45:$GF45,"<" & U45+0.5,'Asset data'!$CX45:$GJ45)-Y45-X45-W45,0) -> 394866.6581 | AA45: 268131.0262 | AB45: 0.02862071965 | AC45: 0.0387137928 | AD45: 0.6037896141 | AE45: 0.1958711473 | AF45: 0.1330047261 | AI45: =IF($A45>0,'RRR hist-forc'!K45,0) -> 69.6119799 | AJ45: 140334348.6
A46: ='Asset data'!A46 -> 2 | B46: ='Asset data'!B46 -> 0 | C46: ='Asset data'!C46 -> 0 | D46: ='Asset data'!E46 -> > 22 kV & < = 66 kV | E46: OVERHEAD CONDUCTORS | F46: =IF(A46>0,SUM('Asset data'!J46:CV46),0) -> 3095 | G46: =IF(A46>0,'Asset data'!F46,0) -> 199.3565058 | H46: =IF(A46>0,SUM('Asset data'!CX46:GJ46),0) -> 617008.3854 | I46: 0.04170784721 | J46: 11 | K46: 0.133280163 | L46: 199.3565058 | M46: =IF($A46>0,SUMPRODUCT('Age profile (years)'!$CT46:$GF46,'Asset data'!$CX46:$GJ46)/H46-0.5,0) -> 56.54403877 | N46: 34888146.07 | O46: =IF($A46>0,'Asset data'!G46,0) -> 86.19928568 | P46: 53185682.08 | Q46: 0.3440312373 | R46: 8.619928568 | S46: 17.23985714 | T46: 51.71957141 | U46: 68.95942855 | W46: =IF($A46>0,SUMIF('Age profile (years)'!$CT46:$GF46,"<" & R46+0.5,'Asset data'!$CX46:$GJ46),0) -> 318.9704092 | X46: =IF($A46>0,SUMIF('Age profile (years)'!$CT46:$GF46,"<" & S46+0.5,'Asset data'!$CX46:$GJ46)-W46,0) -> 8672.008001 | Y46: =IF($A46>0,SUMIF('Age profile (years)'!$CT46:$GF46,"<" & T46+0.5,'Asset data'!$CX46:$GJ46)-X46-W46,0) -> 238211.0888 | Z46: =IF($A46>0,SUMIF('Age profile (years)'!$CT46:$GF46,"<" & U46+0.5,'Asset data'!$CX46:$GJ46)-Y46-X46-W46,0) -> 190485.1413 | AA46: 179321.1769 | AB46: 0.0005169628433 | AC46: 0.0140549273 | AD46: 0.3860743134 | AE46: 0.308723748 | AF46: 0.2906300485 | AI46: =IF($A46>0,'RRR hist-forc'!K46,0) -> 86.19928568 | AJ46: 53185682.08
A47: ='Asset data'!A47 -> 0 | B47: ='Asset data'!B47 -> 0 | C47: ='Asset data'!C47 -> 0 | D47: ='Asset data'!E47 -> > 66 kV & < = 132 kV | E47: 0 | F47: =IF(A47>0,SUM('Asset data'!J47:CV47),0) -> 0 | G47: =IF(A47>0,'Asset data'!F47,0) -> 0 | H47: =IF(A47>0,SUM('Asset data'!CX47:GJ47),0) -> 0 | I47: 0 | J47: 0 | K47: 0 | L47: 0 | M47: =IF($A47>0,SUMPRODUCT('Age profile (years)'!$CT47:$GF47,'Asset data'!$CX47:$GJ47)/H47-0.5,0) -> 0 | N47: 0 | O47: =IF($A47>0,'Asset data'!G47,0) -> 0 | P47: 0 | Q47: 0 | R47: 0 | S47: 0 | T47: 0 | U47: 0 | W47: =IF($A47>0,SUMIF('Age profile (years)'!$CT47:$GF47,"<" & R47+0.5,'Asset data'!$CX47:$GJ47),0) -> 0 | X47: =IF($A47>0,SUMIF('Age profile (years)'!$CT47:$GF47,"<" & S47+0.5,'Asset data'!$CX47:$GJ47)-W47,0) -> 0 | Y47: =IF($A47>0,SUMIF('Age profile (years)'!$CT47:$GF47,"<" & T47+0.5,'Asset data'!$CX47:$GJ47)-X47-W47,0) -> 0 | Z47: =IF($A47>0,SUMIF('Age profile (years)'!$CT47:$GF47,"<" & U47+0.5,'Asset data'!$CX47:$GJ47)-Y47-X47-W47,0) -> 0 | AA47: 0 | AB47: 0 | AC47: 0 | AD47: 0 | AE47: 0 | AF47: 0 | AI47: =IF($A47>0,'RRR hist-forc'!K47,0) -> 0 | AJ47: 0
A48: ='Asset data'!A48 -> 0 | B48: ='Asset data'!B48 -> 0 | C48: ='Asset data'!C48 -> 0 | D48: ='Asset data'!E48 -> > 132 kV | E48: 0 | F48: =IF(A48>0,SUM('Asset data'!J48:CV48),0) -> 0 | G48: =IF(A48>0,'Asset data'!F48,0) -> 0 | H48: =IF(A48>0,SUM('Asset data'!CX48:GJ48),0) -> 0 | I48: 0 | J48: 0 | K48: 0 | L48: 0 | M48: =IF($A48>0,SUMPRODUCT('Age profile (years)'!$CT48:$GF48,'Asset data'!$CX48:$GJ48)/H48-0.5,0) -> 0 | N48: 0 | O48: =IF($A48>0,'Asset data'!G48,0) -> 0 | P48: 0 | Q48: 0 | R48: 0 | S48: 0 | T48: 0 | U48: 0 | W48: =IF($A48>0,SUMIF('Age profile (years)'!$CT48:$GF48,"<" & R48+0.5,'Asset data'!$CX48:$GJ48),0) -> 0 | X48: =IF($A48>0,SUMIF('Age profile (years)'!$CT48:$GF48,"<" & S48+0.5,'Asset data'!$CX48:$GJ48)-W48,0) -> 0 | Y48: =IF($A48>0,SUMIF('Age profile (years)'!$CT48:$GF48,"<" & T48+0.5,'Asset data'!$CX48:$GJ48)-X48-W48,0) -> 0 | Z48: =IF($A48>0,SUMIF('Age profile (years)'!$CT48:$GF48,"<" & U48+0.5,'Asset data'!$CX48:$GJ48)-Y48-X48-W48,0) -> 0 | AA48: 0 | AB48: 0 | AC48: 0 | AD48: 0 | AE48: 0 | AF48: 0 | AI48: =IF($A48>0,'RRR hist-forc'!K48,0) -> 0 | AJ48: 0
A49: ='Asset data'!A49 -> 2 | B49: ='Asset data'!B49 -> 0 | C49: ='Asset data'!C49 -> 0 | D49: ='Asset data'!E49 -> Other | E49: OVERHEAD CONDUCTORS | F49: =IF(A49>0,SUM('Asset data'!J49:CV49),0) -> 20.4 | G49: =IF(A49>0,'Asset data'!F49,0) -> 711.7192085 | H49: =IF(A49>0,SUM('Asset data'!CX49:GJ49),0) -> 14519.07185 | I49: 0.0009814440854 | J49: 32 | K49: 0.003136268985 | L49: 711.7192085 | M49: =IF($A49>0,SUMPRODUCT('Age profile (years)'!$CT49:$GF49,'Asset data'!$CX49:$GJ49)/H49-0.5,0) -> 55.44852941 | N49: 805061.1827 | O49: =IF($A49>0,'Asset data'!G49,0) -> 88.86622864 | P49: 1290255.159 | Q49: 0.3760449807 | R49: 8.886622864 | S49: 17.77324573 | T49: 53.31973719 | U49: 71.09298291 | W49: =IF($A49>0,SUMIF('Age profile (years)'!$CT49:$GF49,"<" & R49+0.5,'Asset data'!$CX49:$GJ49),0) -> 0 | X49: =IF($A49>0,SUMIF('Age profile (years)'!$CT49:$GF49,"<" & S49+0.5,'Asset data'!$CX49:$GJ49)-W49,0) -> 284.6876834 | Y49: =IF($A49>0,SUMIF('Age profile (years)'!$CT49:$GF49,"<" & T49+0.5,'Asset data'!$CX49:$GJ49)-X49-W49,0) -> 6334.300955 | Z49: =IF($A49>0,SUMIF('Age profile (years)'!$CT49:$GF49,"<" & U49+0.5,'Asset data'!$CX49:$GJ49)-Y49-X49-W49,0) -> 5409.065984 | AA49: 2491.01723 | AB49: 0 | AC49: 0.01960784314 | AD49: 0.4362745098 | AE49: 0.3725490196 | AF49: 0.1715686275 | AI49: =IF($A49>0,'RRR hist-forc'!K49,0) -> 88.86622864 | AJ49: 1290255.159
A50: ='Asset data'!A50 -> 3 | B50: ='Asset data'!B50 -> 0 | C50: ='Asset data'!C50 -> 0 | D50: ='Asset data'!E50 -> ˂ = 1 kV | E50: UNDERGROUND CABLES | F50: =IF(A50>0,SUM('Asset data'!J50:CV50),0) -> 3621.48764 | G50: =IF(A50>0,'Asset data'!F50,0) -> 220.9071552 | H50: =IF(A50>0,SUM('Asset data'!CX50:GJ50),0) -> 800012.5323 | I50: 0.05407835817 | J50: 8 | K50: 0.3099810495 | L50: 220.9071552 | M50: =IF($A50>0,SUMPRODUCT('Age profile (years)'!$CT50:$GF50,'Asset data'!$CX50:$GJ50)/H50-0.5,0) -> 55.3498554 | N50: 44280577.98 | O50: =IF($A50>0,'Asset data'!G50,0) -> 67.54464911 | P50: 54036565.78 | Q50: 0.1805441863 | R50: 6.754464911 | S50: 13.50892982 | T50: 40.52678947 | U50: 54.03571929 | W50: =IF($A50>0,SUMIF('Age profile (years)'!$CT50:$GF50,"<" & R50+0.5,'Asset data'!$CX50:$GJ50),0) -> 0 | X50: =IF($A50>0,SUMIF('Age profile (years)'!$CT50:$GF50,"<" & S50+0.5,'Asset data'!$CX50:$GJ50)-W50,0) -> 180.0694516 | Y50: =IF($A50>0,SUMIF('Age profile (years)'!$CT50:$GF50,"<" & T50+0.5,'Asset data'!$CX50:$GJ50)-X50-W50,0) -> 62281.52156 | Z50: =IF($A50>0,SUMIF('Age profile (years)'!$CT50:$GF50,"<" & U50+0.5,'Asset data'!$CX50:$GJ50)-Y50-X50-W50,0) -> 216353.446 | AA50: 521197.4952 | AB50: 0 | AC50: 0.0002250832884 | AD50: 0.07785068239 | AE50: 0.2704375711 | AF50: 0.6514866633 | AI50: =IF($A50>0,'RRR hist-forc'!K50,0) -> 67.54464911 | AJ50: 54036565.78
A51: ='Asset data'!A51 -> 3 | B51: ='Asset data'!B51 -> 0 | C51: ='Asset data'!C51 -> 0 | D51: ='Asset data'!E51 -> > 1 kV & < = 11 kV | E51: UNDERGROUND CABLES | F51: =IF(A51>0,SUM('Asset data'!J51:CV51),0) -> 16.658405 | G51: =IF(A51>0,'Asset data'!F51,0) -> 610.1107977 | H51: =IF(A51>0,SUM('Asset data'!CX51:GJ51),0) -> 10163.47276 | I51: 0.000687019138 | J51: 34 | K51: 0.003938043251 | L51: 610.1107977 | M51: =IF($A51>0,SUMPRODUCT('Age profile (years)'!$CT51:$GF51,'Asset data'!$CX51:$GJ51)/H51-0.5,0) -> 49.69684722 | N51: 505092.5531 | O51: =IF($A51>0,'Asset data'!G51,0) -> 67.99937573 | P51: 691109.8031 | Q51: 0.2691573021 | R51: 6.799937573 | S51: 13.59987515 | T51: 40.79962544 | U51: 54.39950058 | W51: =IF($A51>0,SUMIF('Age profile (years)'!$CT51:$GF51,"<" & R51+0.5,'Asset data'!$CX51:$GJ51),0) -> 0 | X51: =IF($A51>0,SUMIF('Age profile (years)'!$CT51:$GF51,"<" & S51+0.5,'Asset data'!$CX51:$GJ51)-W51,0) -> 0 | Y51: =IF($A51>0,SUMIF('Age profile (years)'!$CT51:$GF51,"<" & T51+0.5,'Asset data'!$CX51:$GJ51)-X51-W51,0) -> 2342.116684 | Z51: =IF($A51>0,SUMIF('Age profile (years)'!$CT51:$GF51,"<" & U51+0.5,'Asset data'!$CX51:$GJ51)-Y51-X51-W51,0) -> 5793.657061 | AA51: 2027.699017 | AB51: 0 | AC51: 0 | AD51: 0.2304445281 | AE51: 0.5700469905 | AF51: 0.1995084814 | AI51: =IF($A51>0,'RRR hist-forc'!K51,0) -> 67.99937573 | AJ51: 691109.8031
A52: ='Asset data'!A52 -> 3 | B52: ='Asset data'!B52 -> 0 | C52: ='Asset data'!C52 -> 0 | D52: ='Asset data'!E52 -> > 11 kV & < = 22 kV | E52: UNDERGROUND CABLES | F52: =IF(A52>0,SUM('Asset data'!J52:CV52),0) -> 1606.679584 | G52: =IF(A52>0,'Asset data'!F52,0) -> 522.0756578 | H52: =IF(A52>0,SUM('Asset data'!CX52:GJ52),0) -> 838808.3007 | I52: 0.05670083142 | J52: 6 | K52: 0.3250132553 | L52: 522.0756578 | M52: =IF($A52>0,SUMPRODUCT('Age profile (years)'!$CT52:$GF52,'Asset data'!$CX52:$GJ52)/H52-0.5,0) -> 49.62126409 | N52: 41622728.21 | O52: =IF($A52>0,'Asset data'!G52,0) -> 61.5112976 | P52: 51596187.01 | Q52: 0.1932983691 | R52: 6.15112976 | S52: 12.30225952 | T52: 36.90677856 | U52: 49.20903808 | W52: =IF($A52>0,SUMIF('Age profile (years)'!$CT52:$GF52,"<" & R52+0.5,'Asset data'!$CX52:$GJ52),0) -> 524.7294902 | X52: =IF($A52>0,SUMIF('Age profile (years)'!$CT52:$GF52,"<" & S52+0.5,'Asset data'!$CX52:$GJ52)-W52,0) -> 104.945898 | Y52: =IF($A52>0,SUMIF('Age profile (years)'!$CT52:$GF52,"<" & T52+0.5,'Asset data'!$CX52:$GJ52)-X52-W52,0) -> 79916.30135 | Z52: =IF($A52>0,SUMIF('Age profile (years)'!$CT52:$GF52,"<" & U52+0.5,'Asset data'!$CX52:$GJ52)-Y52-X52-W52,0) -> 247252.5358 | AA52: 511009.7882 | AB52: 0.0006255654477 | AC52: 0.0001251130895 | AD52: 0.09527361769 | AE52: 0.294766439 | AF52: 0.6092092648 | AI52: =IF($A52>0,'RRR hist-forc'!K52,0) -> 61.5112976 | AJ52: 51596187.01
A53: ='Asset data'!A53 -> 0 | B53: ='Asset data'!B53 -> 0 | C53: ='Asset data'!C53 -> 0 | D53: ='Asset data'!E53 -> > 22 kV & < = 33 kV | E53: 0 | F53: =IF(A53>0,SUM('Asset data'!J53:CV53),0) -> 0 | G53: =IF(A53>0,'Asset data'!F53,0) -> 0 | H53: =IF(A53>0,SUM('Asset data'!CX53:GJ53),0) -> 0 | I53: 0 | J53: 0 | K53: 0 | L53: 0 | M53: =IF($A53>0,SUMPRODUCT('Age profile (years)'!$CT53:$GF53,'Asset data'!$CX53:$GJ53)/H53-0.5,0) -> 0 | N53: 0 | O53: =IF($A53>0,'Asset data'!G53,0) -> 0 | P53: 0 | Q53: 0 | R53: 0 | S53: 0 | T53: 0 | U53: 0 | W53: =IF($A53>0,SUMIF('Age profile (years)'!$CT53:$GF53,"<" & R53+0.5,'Asset data'!$CX53:$GJ53),0) -> 0 | X53: =IF($A53>0,SUMIF('Age profile (years)'!$CT53:$GF53,"<" & S53+0.5,'Asset data'!$CX53:$GJ53)-W53,0) -> 0 | Y53: =IF($A53>0,SUMIF('Age profile (years)'!$CT53:$GF53,"<" & T53+0.5,'Asset data'!$CX53:$GJ53)-X53-W53,0) -> 0 | Z53: =IF($A53>0,SUMIF('Age profile (years)'!$CT53:$GF53,"<" & U53+0.5,'Asset data'!$CX53:$GJ53)-Y53-X53-W53,0) -> 0 | AA53: 0 | AB53: 0 | AC53: 0 | AD53: 0 | AE53: 0 | AF53: 0 | AI53: =IF($A53>0,'RRR hist-forc'!K53,0) -> 0 | AJ53: 0
A54: ='Asset data'!A54 -> 3 | B54: ='Asset data'!B54 -> 0 | C54: ='Asset data'!C54 -> 0 | D54: ='Asset data'!E54 -> > 33 kV & < = 66 kV | E54: UNDERGROUND CABLES | F54: =IF(A54>0,SUM('Asset data'!J54:CV54),0) -> 3.58225 | G54: =IF(A54>0,'Asset data'!F54,0) -> 156.9692204 | H54: =IF(A54>0,SUM('Asset data'!CX54:GJ54),0) -> 562.3029896 | I54: 3.800993266e-05 | J54: 45 | K54: 0.0002178756755 | L54: 156.9692204 | M54: =IF($A54>0,SUMPRODUCT('Age profile (years)'!$CT54:$GF54,'Asset data'!$CX54:$GJ54)/H54-0.5,0) -> 74.68346645 | N54: 41994.73646 | O54: =IF($A54>0,'Asset data'!G54,0) -> 85.22352023 | P54: 47921.44022 | Q54: 0.1236754097 | R54: 8.522352023 | S54: 17.04470405 | T54: 51.13411214 | U54: 68.17881619 | W54: =IF($A54>0,SUMIF('Age profile (years)'!$CT54:$GF54,"<" & R54+0.5,'Asset data'!$CX54:$GJ54),0) -> 0 | X54: =IF($A54>0,SUMIF('Age profile (years)'!$CT54:$GF54,"<" & S54+0.5,'Asset data'!$CX54:$GJ54)-W54,0) -> 0 | Y54: =IF($A54>0,SUMIF('Age profile (years)'!$CT54:$GF54,"<" & T54+0.5,'Asset data'!$CX54:$GJ54)-X54-W54,0) -> 0 | Z54: =IF($A54>0,SUMIF('Age profile (years)'!$CT54:$GF54,"<" & U54+0.5,'Asset data'!$CX54:$GJ54)-Y54-X54-W54,0) -> 33.15234932 | AA54: 529.1506403 | AB54: 0 | AC54: 0 | AD54: 0 | AE54: 0.05895815944 | AF54: 0.9410418406 | AI54: =IF($A54>0,'RRR hist-forc'!K54,0) -> 85.22352023 | AJ54: 47921.44022
A55: ='Asset data'!A55 -> 0 | B55: ='Asset data'!B55 -> 0 | C55: ='Asset data'!C55 -> 0 | D55: ='Asset data'!E55 -> > 66 kV & < = 132 kV | E55: 0 | F55: =IF(A55>0,SUM('Asset data'!J55:CV55),0) -> 0 | G55: =IF(A55>0,'Asset data'!F55,0) -> 0 | H55: =IF(A55>0,SUM('Asset data'!CX55:GJ55),0) -> 0 | I55: 0 | J55: 0 | K55: 0 | L55: 0 | M55: =IF($A55>0,SUMPRODUCT('Age profile (years)'!$CT55:$GF55,'Asset data'!$CX55:$GJ55)/H55-0.5,0) -> 0 | N55: 0 | O55: =IF($A55>0,'Asset data'!G55,0) -> 0 | P55: 0 | Q55: 0 | R55: 0 | S55: 0 | T55: 0 | U55: 0 | W55: =IF($A55>0,SUMIF('Age profile (years)'!$CT55:$GF55,"<" & R55+0.5,'Asset data'!$CX55:$GJ55),0) -> 0 | X55: =IF($A55>0,SUMIF('Age profile (years)'!$CT55:$GF55,"<" & S55+0.5,'Asset data'!$CX55:$GJ55)-W55,0) -> 0 | Y55: =IF($A55>0,SUMIF('Age profile (years)'!$CT55:$GF55,"<" & T55+0.5,'Asset data'!$CX55:$GJ55)-X55-W55,0) -> 0 | Z55: =IF($A55>0,SUMIF('Age profile (years)'!$CT55:$GF55,"<" & U55+0.5,'Asset data'!$CX55:$GJ55)-Y55-X55-W55,0) -> 0 | AA55: 0 | AB55: 0 | AC55: 0 | AD55: 0 | AE55: 0 | AF55: 0 | AI55: =IF($A55>0,'RRR hist-forc'!K55,0) -> 0 | AJ55: 0
A56: ='Asset data'!A56 -> 0 | B56: ='Asset data'!B56 -> 0 | C56: ='Asset data'!C56 -> 0 | D56: ='Asset data'!E56 -> > 132 kV | E56: 0 | F56: =IF(A56>0,SUM('Asset data'!J56:CV56),0) -> 0 | G56: =IF(A56>0,'Asset data'!F56,0) -> 0 | H56: =IF(A56>0,SUM('Asset data'!CX56:GJ56),0) -> 0 | I56: 0 | J56: 0 | K56: 0 | L56: 0 | M56: =IF($A56>0,SUMPRODUCT('Age profile (years)'!$CT56:$GF56,'Asset data'!$CX56:$GJ56)/H56-0.5,0) -> 0 | N56: 0 | O56: =IF($A56>0,'Asset data'!G56,0) -> 0 | P56: 0 | Q56: 0 | R56: 0 | S56: 0 | T56: 0 | U56: 0 | W56: =IF($A56>0,SUMIF('Age profile (years)'!$CT56:$GF56,"<" & R56+0.5,'Asset data'!$CX56:$GJ56),0) -> 0 | X56: =IF($A56>0,SUMIF('Age profile (years)'!$CT56:$GF56,"<" & S56+0.5,'Asset data'!$CX56:$GJ56)-W56,0) -> 0 | Y56: =IF($A56>0,SUMIF('Age profile (years)'!$CT56:$GF56,"<" & T56+0.5,'Asset data'!$CX56:$GJ56)-X56-W56,0) -> 0 | Z56: =IF($A56>0,SUMIF('Age profile (years)'!$CT56:$GF56,"<" & U56+0.5,'Asset data'!$CX56:$GJ56)-Y56-X56-W56,0) -> 0 | AA56: 0 | AB56: 0 | AC56: 0 | AD56: 0 | AE56: 0 | AF56: 0 | AI56: =IF($A56>0,'RRR hist-forc'!K56,0) -> 0 | AJ56: 0
A57: ='Asset data'!A57 -> 3 | B57: ='Asset data'!B57 -> 0 | C57: ='Asset data'!C57 -> 0 | D57: ='Asset data'!E57 -> Other | E57: UNDERGROUND CABLES | F57: =IF(A57>0,SUM('Asset data'!J57:CV57),0) -> 1218.25167 | G57: =IF(A57>0,'Asset data'!F57,0) -> 764.4534959 | H57: =IF(A57>0,SUM('Asset data'!CX57:GJ57),0) -> 931296.7481 | I57: 0.06295276271 | J57: 5 | K57: 0.3608497763 | L57: 764.4534959 | M57: =IF($A57>0,SUMPRODUCT('Age profile (years)'!$CT57:$GF57,'Asset data'!$CX57:$GJ57)/H57-0.5,0) -> 32.19131819 | N57: 29979669.95 | O57: =IF($A57>0,'Asset data'!G57,0) -> 45.70686904 | P57: 42566658.5 | Q57: 0.2957006492 | R57: 4.570686904 | S57: 9.141373808 | T57: 27.42412142 | U57: 36.56549523 | W57: =IF($A57>0,SUMIF('Age profile (years)'!$CT57:$GF57,"<" & R57+0.5,'Asset data'!$CX57:$GJ57),0) -> 8253.762817 | X57: =IF($A57>0,SUMIF('Age profile (years)'!$CT57:$GF57,"<" & S57+0.5,'Asset data'!$CX57:$GJ57)-W57,0) -> 20904.38994 | Y57: =IF($A57>0,SUMIF('Age profile (years)'!$CT57:$GF57,"<" & T57+0.5,'Asset data'!$CX57:$GJ57)-X57-W57,0) -> 194464.823 | Z57: =IF($A57>0,SUMIF('Age profile (years)'!$CT57:$GF57,"<" & U57+0.5,'Asset data'!$CX57:$GJ57)-Y57-X57-W57,0) -> 384224.2298 | AA57: 323449.5425 | AB57: 0.008862656113 | AC57: 0.02244654025 | AD57: 0.2088108043 | AE57: 0.4125690663 | AF57: 0.347310933 | AI57: =IF($A57>0,'RRR hist-forc'!K57,0) -> 45.70686904 | AJ57: 42566658.5
A58: ='Asset data'!A58 -> 4 | B58: ='Asset data'!B58 -> 0 | C58: ='Asset data'!C58 -> 0 | D58: ='Asset data'!E58 -> ˂ = 11 kV ; Residential ; Simple Type | E58: SERVICE LINES | F58: =IF(A58>0,SUM('Asset data'!J58:CV58),0) -> 10910.43356 | G58: =IF(A58>0,'Asset data'!F58,0) -> 1.285971823 | H58: =IF(A58>0,SUM('Asset data'!CX58:GJ58),0) -> 14030.51013 | I58: 0.0009484188329 | J58: 33 | K58: 1 | L58: 1.285971823 | M58: =IF($A58>0,SUMPRODUCT('Age profile (years)'!$CT58:$GF58,'Asset data'!$CX58:$GJ58)/H58-0.5,0) -> 30.88675518 | N58: 433356.9315 | O58: =IF($A58>0,'Asset data'!G58,0) -> 58.03400097 | P58: 814246.6385 | Q58: 0.4677817372 | R58: 5.803400097 | S58: 11.60680019 | T58: 34.82040058 | U58: 46.42720078 | W58: =IF($A58>0,SUMIF('Age profile (years)'!$CT58:$GF58,"<" & R58+0.5,'Asset data'!$CX58:$GJ58),0) -> 1147.621067 | X58: =IF($A58>0,SUMIF('Age profile (years)'!$CT58:$GF58,"<" & S58+0.5,'Asset data'!$CX58:$GJ58)-W58,0) -> 1226.065348 | Y58: =IF($A58>0,SUMIF('Age profile (years)'!$CT58:$GF58,"<" & T58+0.5,'Asset data'!$CX58:$GJ58)-X58-W58,0) -> 5691.397672 | Z58: =IF($A58>0,SUMIF('Age profile (years)'!$CT58:$GF58,"<" & U58+0.5,'Asset data'!$CX58:$GJ58)-Y58-X58-W58,0) -> 1940.812415 | AA58: 4024.613629 | AB58: 0.08179467861 | AC58: 0.08738565716 | AD58: 0.4056443863 | AE58: 0.1383280007 | AF58: 0.2868472772 | AI58: =IF($A58>0,'RRR hist-forc'!K58,0) -> 58.03400097 | AJ58: 814246.6385
A59: ='Asset data'!A59 -> 0 | B59: ='Asset data'!B59 -> 0 | C59: ='Asset data'!C59 -> 0 | D59: ='Asset data'!E59 -> ˂ = 11 kV ; Commercial & Industrial ; Simple Type | E59: 0 | F59: =IF(A59>0,SUM('Asset data'!J59:CV59),0) -> 0 | G59: =IF(A59>0,'Asset data'!F59,0) -> 0 | H59: =IF(A59>0,SUM('Asset data'!CX59:GJ59),0) -> 0 | I59: 0 | J59: 0 | K59: 0 | L59: 0 | M59: =IF($A59>0,SUMPRODUCT('Age profile (years)'!$CT59:$GF59,'Asset data'!$CX59:$GJ59)/H59-0.5,0) -> 0 | N59: 0 | O59: =IF($A59>0,'Asset data'!G59,0) -> 0 | P59: 0 | Q59: 0 | R59: 0 | S59: 0 | T59: 0 | U59: 0 | W59: =IF($A59>0,SUMIF('Age profile (years)'!$CT59:$GF59,"<" & R59+0.5,'Asset data'!$CX59:$GJ59),0) -> 0 | X59: =IF($A59>0,SUMIF('Age profile (years)'!$CT59:$GF59,"<" & S59+0.5,'Asset data'!$CX59:$GJ59)-W59,0) -> 0 | Y59: =IF($A59>0,SUMIF('Age profile (years)'!$CT59:$GF59,"<" & T59+0.5,'Asset data'!$CX59:$GJ59)-X59-W59,0) -> 0 | Z59: =IF($A59>0,SUMIF('Age profile (years)'!$CT59:$GF59,"<" & U59+0.5,'Asset data'!$CX59:$GJ59)-Y59-X59-W59,0) -> 0 | AA59: 0 | AB59: 0 | AC59: 0 | AD59: 0 | AE59: 0 | AF59: 0 | AI59: =IF($A59>0,'RRR hist-forc'!K59,0) -> 0 | AJ59: 0
A60: ='Asset data'!A60 -> 0 | B60: ='Asset data'!B60 -> 0 | C60: ='Asset data'!C60 -> 0 | D60: ='Asset data'!E60 -> ˂ = 11 kV ; Residential ; Complex Type | E60: 0 | F60: =IF(A60>0,SUM('Asset data'!J60:CV60),0) -> 0 | G60: =IF(A60>0,'Asset data'!F60,0) -> 0 | H60: =IF(A60>0,SUM('Asset data'!CX60:GJ60),0) -> 0 | I60: 0 | J60: 0 | K60: 0 | L60: 0 | M60: =IF($A60>0,SUMPRODUCT('Age profile (years)'!$CT60:$GF60,'Asset data'!$CX60:$GJ60)/H60-0.5,0) -> 0 | N60: 0 | O60: =IF($A60>0,'Asset data'!G60,0) -> 0 | P60: 0 | Q60: 0 | R60: 0 | S60: 0 | T60: 0 | U60: 0 | W60: =IF($A60>0,SUMIF('Age profile (years)'!$CT60:$GF60,"<" & R60+0.5,'Asset data'!$CX60:$GJ60),0) -> 0 | X60: =IF($A60>0,SUMIF('Age profile (years)'!$CT60:$GF60,"<" & S60+0.5,'Asset data'!$CX60:$GJ60)-W60,0) -> 0 | Y60: =IF($A60>0,SUMIF('Age profile (years)'!$CT60:$GF60,"<" & T60+0.5,'Asset data'!$CX60:$GJ60)-X60-W60,0) -> 0 | Z60: =IF($A60>0,SUMIF('Age profile (years)'!$CT60:$GF60,"<" & U60+0.5,'Asset data'!$CX60:$GJ60)-Y60-X60-W60,0) -> 0 | AA60: 0 | AB60: 0 | AC60: 0 | AD60: 0 | AE60: 0 | AF60: 0 | AI60: =IF($A60>0,'RRR hist-forc'!K60,0) -> 0 | AJ60: 0
A61: ='Asset data'!A61 -> 0 | B61: ='Asset data'!B61 -> 0 | C61: ='Asset data'!C61 -> 0 | D61: ='Asset data'!E61 -> ˂ = 11 kV ; Commercial & Industrial ; Complex Type | E61: 0 | F61: =IF(A61>0,SUM('Asset data'!J61:CV61),0) -> 0 | G61: =IF(A61>0,'Asset data'!F61,0) -> 0 | H61: =IF(A61>0,SUM('Asset data'!CX61:GJ61),0) -> 0 | I61: 0 | J61: 0 | K61: 0 | L61: 0 | M61: =IF($A61>0,SUMPRODUCT('Age profile (years)'!$CT61:$GF61,'Asset data'!$CX61:$GJ61)/H61-0.5,0) -> 0 | N61: 0 | O61: =IF($A61>0,'Asset data'!G61,0) -> 0 | P61: 0 | Q61: 0 | R61: 0 | S61: 0 | T61: 0 | U61: 0 | W61: =IF($A61>0,SUMIF('Age profile (years)'!$CT61:$GF61,"<" & R61+0.5,'Asset data'!$CX61:$GJ61),0) -> 0 | X61: =IF($A61>0,SUMIF('Age profile (years)'!$CT61:$GF61,"<" & S61+0.5,'Asset data'!$CX61:$GJ61)-W61,0) -> 0 | Y61: =IF($A61>0,SUMIF('Age profile (years)'!$CT61:$GF61,"<" & T61+0.5,'Asset data'!$CX61:$GJ61)-X61-W61,0) -> 0 | Z61: =IF($A61>0,SUMIF('Age profile (years)'!$CT61:$GF61,"<" & U61+0.5,'Asset data'!$CX61:$GJ61)-Y61-X61-W61,0) -> 0 | AA61: 0 | AB61: 0 | AC61: 0 | AD61: 0 | AE61: 0 | AF61: 0 | AI61: =IF($A61>0,'RRR hist-forc'!K61,0) -> 0 | AJ61: 0
A62: ='Asset data'!A62 -> 0 | B62: ='Asset data'!B62 -> 0 | C62: ='Asset data'!C62 -> 0 | D62: ='Asset data'!E62 -> ˂ = 11 kV ; Subdivision ; Complex Type | E62: 0 | F62: =IF(A62>0,SUM('Asset data'!J62:CV62),0) -> 0 | G62: =IF(A62>0,'Asset data'!F62,0) -> 0 | H62: =IF(A62>0,SUM('Asset data'!CX62:GJ62),0) -> 0 | I62: 0 | J62: 0 | K62: 0 | L62: 0 | M62: =IF($A62>0,SUMPRODUCT('Age profile (years)'!$CT62:$GF62,'Asset data'!$CX62:$GJ62)/H62-0.5,0) -> 0 | N62: 0 | O62: =IF($A62>0,'Asset data'!G62,0) -> 0 | P62: 0 | Q62: 0 | R62: 0 | S62: 0 | T62: 0 | U62: 0 | W62: =IF($A62>0,SUMIF('Age profile (years)'!$CT62:$GF62,"<" & R62+0.5,'Asset data'!$CX62:$GJ62),0) -> 0 | X62: =IF($A62>0,SUMIF('Age profile (years)'!$CT62:$GF62,"<" & S62+0.5,'Asset data'!$CX62:$GJ62)-W62,0) -> 0 | Y62: =IF($A62>0,SUMIF('Age profile (years)'!$CT62:$GF62,"<" & T62+0.5,'Asset data'!$CX62:$GJ62)-X62-W62,0) -> 0 | Z62: =IF($A62>0,SUMIF('Age profile (years)'!$CT62:$GF62,"<" & U62+0.5,'Asset data'!$CX62:$GJ62)-Y62-X62-W62,0) -> 0 | AA62: 0 | AB62: 0 | AC62: 0 | AD62: 0 | AE62: 0 | AF62: 0 | AI62: =IF($A62>0,'RRR hist-forc'!K62,0) -> 0 | AJ62: 0
A63: ='Asset data'!A63 -> 0 | B63: ='Asset data'!B63 -> 0 | C63: ='Asset data'!C63 -> 0 | D63: ='Asset data'!E63 -> > 11 kV & < = 22 kV ; Commercial & Industrial | E63: 0 | F63: =IF(A63>0,SUM('Asset data'!J63:CV63),0) -> 0 | G63: =IF(A63>0,'Asset data'!F63,0) -> 0 | H63: =IF(A63>0,SUM('Asset data'!CX63:GJ63),0) -> 0 | I63: 0 | J63: 0 | K63: 0 | L63: 0 | M63: =IF($A63>0,SUMPRODUCT('Age profile (years)'!$CT63:$GF63,'Asset data'!$CX63:$GJ63)/H63-0.5,0) -> 0 | N63: 0 | O63: =IF($A63>0,'Asset data'!G63,0) -> 0 | P63: 0 | Q63: 0 | R63: 0 | S63: 0 | T63: 0 | U63: 0 | W63: =IF($A63>0,SUMIF('Age profile (years)'!$CT63:$GF63,"<" & R63+0.5,'Asset data'!$CX63:$GJ63),0) -> 0 | X63: =IF($A63>0,SUMIF('Age profile (years)'!$CT63:$GF63,"<" & S63+0.5,'Asset data'!$CX63:$GJ63)-W63,0) -> 0 | Y63: =IF($A63>0,SUMIF('Age profile (years)'!$CT63:$GF63,"<" & T63+0.5,'Asset data'!$CX63:$GJ63)-X63-W63,0) -> 0 | Z63: =IF($A63>0,SUMIF('Age profile (years)'!$CT63:$GF63,"<" & U63+0.5,'Asset data'!$CX63:$GJ63)-Y63-X63-W63,0) -> 0 | AA63: 0 | AB63: 0 | AC63: 0 | AD63: 0 | AE63: 0 | AF63: 0 | AI63: =IF($A63>0,'RRR hist-forc'!K63,0) -> 0 | AJ63: 0
A64: ='Asset data'!A64 -> 0 | B64: ='Asset data'!B64 -> 0 | C64: ='Asset data'!C64 -> 0 | D64: ='Asset data'!E64 -> > 11 kV & < = 22 kV ; Subdivision | E64: 0 | F64: =IF(A64>0,SUM('Asset data'!J64:CV64),0) -> 0 | G64: =IF(A64>0,'Asset data'!F64,0) -> 0 | H64: =IF(A64>0,SUM('Asset data'!CX64:GJ64),0) -> 0 | I64: 0 | J64: 0 | K64: 0 | L64: 0 | M64: =IF($A64>0,SUMPRODUCT('Age profile (years)'!$CT64:$GF64,'Asset data'!$CX64:$GJ64)/H64-0.5,0) -> 0 | N64: 0 | O64: =IF($A64>0,'Asset data'!G64,0) -> 0 | P64: 0 | Q64: 0 | R64: 0 | S64: 0 | T64: 0 | U64: 0 | W64: =IF($A64>0,SUMIF('Age profile (years)'!$CT64:$GF64,"<" & R64+0.5,'Asset data'!$CX64:$GJ64),0) -> 0 | X64: =IF($A64>0,SUMIF('Age profile (years)'!$CT64:$GF64,"<" & S64+0.5,'Asset data'!$CX64:$GJ64)-W64,0) -> 0 | Y64: =IF($A64>0,SUMIF('Age profile (years)'!$CT64:$GF64,"<" & T64+0.5,'Asset data'!$CX64:$GJ64)-X64-W64,0) -> 0 | Z64: =IF($A64>0,SUMIF('Age profile (years)'!$CT64:$GF64,"<" & U64+0.5,'Asset data'!$CX64:$GJ64)-Y64-X64-W64,0) -> 0 | AA64: 0 | AB64: 0 | AC64: 0 | AD64: 0 | AE64: 0 | AF64: 0 | AI64: =IF($A64>0,'RRR hist-forc'!K64,0) -> 0 | AJ64: 0
A65: ='Asset data'!A65 -> 0 | B65: ='Asset data'!B65 -> 0 | C65: ='Asset data'!C65 -> 0 | D65: ='Asset data'!E65 -> > 22 kV & < = 33 kV ; Commercial & Industrial | E65: 0 | F65: =IF(A65>0,SUM('Asset data'!J65:CV65),0) -> 0 | G65: =IF(A65>0,'Asset data'!F65,0) -> 0 | H65: =IF(A65>0,SUM('Asset data'!CX65:GJ65),0) -> 0 | I65: 0 | J65: 0 | K65: 0 | L65: 0 | M65: =IF($A65>0,SUMPRODUCT('Age profile (years)'!$CT65:$GF65,'Asset data'!$CX65:$GJ65)/H65-0.5,0) -> 0 | N65: 0 | O65: =IF($A65>0,'Asset data'!G65,0) -> 0 | P65: 0 | Q65: 0 | R65: 0 | S65: 0 | T65: 0 | U65: 0 | W65: =IF($A65>0,SUMIF('Age profile (years)'!$CT65:$GF65,"<" & R65+0.5,'Asset data'!$CX65:$GJ65),0) -> 0 | X65: =IF($A65>0,SUMIF('Age profile (years)'!$CT65:$GF65,"<" & S65+0.5,'Asset data'!$CX65:$GJ65)-W65,0) -> 0 | Y65: =IF($A65>0,SUMIF('Age profile (years)'!$CT65:$GF65,"<" & T65+0.5,'Asset data'!$CX65:$GJ65)-X65-W65,0) -> 0 | Z65: =IF($A65>0,SUMIF('Age profile (years)'!$CT65:$GF65,"<" & U65+0.5,'Asset data'!$CX65:$GJ65)-Y65-X65-W65,0) -> 0 | AA65: 0 | AB65: 0 | AC65: 0 | AD65: 0 | AE65: 0 | AF65: 0 | AI65: =IF($A65>0,'RRR hist-forc'!K65,0) -> 0 | AJ65: 0
A66: ='Asset data'!A66 -> 0 | B66: ='Asset data'!B66 -> 0 | C66: ='Asset data'!C66 -> 0 | D66: ='Asset data'!E66 -> > 22 kV & < = 33 kV ; Subdivision | E66: 0 | F66: =IF(A66>0,SUM('Asset data'!J66:CV66),0) -> 0 | G66: =IF(A66>0,'Asset data'!F66,0) -> 0 | H66: =IF(A66>0,SUM('Asset data'!CX66:GJ66),0) -> 0 | I66: 0 | J66: 0 | K66: 0 | L66: 0 | M66: =IF($A66>0,SUMPRODUCT('Age profile (years)'!$CT66:$GF66,'Asset data'!$CX66:$GJ66)/H66-0.5,0) -> 0 | N66: 0 | O66: =IF($A66>0,'Asset data'!G66,0) -> 0 | P66: 0 | Q66: 0 | R66: 0 | S66: 0 | T66: 0 | U66: 0 | W66: =IF($A66>0,SUMIF('Age profile (years)'!$CT66:$GF66,"<" & R66+0.5,'Asset data'!$CX66:$GJ66),0) -> 0 | X66: =IF($A66>0,SUMIF('Age profile (years)'!$CT66:$GF66,"<" & S66+0.5,'Asset data'!$CX66:$GJ66)-W66,0) -> 0 | Y66: =IF($A66>0,SUMIF('Age profile (years)'!$CT66:$GF66,"<" & T66+0.5,'Asset data'!$CX66:$GJ66)-X66-W66,0) -> 0 | Z66: =IF($A66>0,SUMIF('Age profile (years)'!$CT66:$GF66,"<" & U66+0.5,'Asset data'!$CX66:$GJ66)-Y66-X66-W66,0) -> 0 | AA66: 0 | AB66: 0 | AC66: 0 | AD66: 0 | AE66: 0 | AF66: 0 | AI66: =IF($A66>0,'RRR hist-forc'!K66,0) -> 0 | AJ66: 0
A67: ='Asset data'!A67 -> 0 | B67: ='Asset data'!B67 -> 0 | C67: ='Asset data'!C67 -> 0 | D67: ='Asset data'!E67 -> > 33 kV & < = 66 kV ; Commercial & Industrial | E67: 0 | F67: =IF(A67>0,SUM('Asset data'!J67:CV67),0) -> 0 | G67: =IF(A67>0,'Asset data'!F67,0) -> 0 | H67: =IF(A67>0,SUM('Asset data'!CX67:GJ67),0) -> 0 | I67: 0 | J67: 0 | K67: 0 | L67: 0 | M67: =IF($A67>0,SUMPRODUCT('Age profile (years)'!$CT67:$GF67,'Asset data'!$CX67:$GJ67)/H67-0.5,0) -> 0 | N67: 0 | O67: =IF($A67>0,'Asset data'!G67,0) -> 0 | P67: 0 | Q67: 0 | R67: 0 | S67: 0 | T67: 0 | U67: 0 | W67: =IF($A67>0,SUMIF('Age profile (years)'!$CT67:$GF67,"<" & R67+0.5,'Asset data'!$CX67:$GJ67),0) -> 0 | X67: =IF($A67>0,SUMIF('Age profile (years)'!$CT67:$GF67,"<" & S67+0.5,'Asset data'!$CX67:$GJ67)-W67,0) -> 0 | Y67: =IF($A67>0,SUMIF('Age profile (years)'!$CT67:$GF67,"<" & T67+0.5,'Asset data'!$CX67:$GJ67)-X67-W67,0) -> 0 | Z67: =IF($A67>0,SUMIF('Age profile (years)'!$CT67:$GF67,"<" & U67+0.5,'Asset data'!$CX67:$GJ67)-Y67-X67-W67,0) -> 0 | AA67: 0 | AB67: 0 | AC67: 0 | AD67: 0 | AE67: 0 | AF67: 0 | AI67: =IF($A67>0,'RRR hist-forc'!K67,0) -> 0 | AJ67: 0
A68: ='Asset data'!A68 -> 0 | B68: ='Asset data'!B68 -> 0 | C68: ='Asset data'!C68 -> 0 | D68: ='Asset data'!E68 -> > 33 kV & < = 66 kV ; Subdivision | E68: 0 | F68: =IF(A68>0,SUM('Asset data'!J68:CV68),0) -> 0 | G68: =IF(A68>0,'Asset data'!F68,0) -> 0 | H68: =IF(A68>0,SUM('Asset data'!CX68:GJ68),0) -> 0 | I68: 0 | J68: 0 | K68: 0 | L68: 0 | M68: =IF($A68>0,SUMPRODUCT('Age profile (years)'!$CT68:$GF68,'Asset data'!$CX68:$GJ68)/H68-0.5,0) -> 0 | N68: 0 | O68: =IF($A68>0,'Asset data'!G68,0) -> 0 | P68: 0 | Q68: 0 | R68: 0 | S68: 0 | T68: 0 | U68: 0 | W68: =IF($A68>0,SUMIF('Age profile (years)'!$CT68:$GF68,"<" & R68+0.5,'Asset data'!$CX68:$GJ68),0) -> 0 | X68: =IF($A68>0,SUMIF('Age profile (years)'!$CT68:$GF68,"<" & S68+0.5,'Asset data'!$CX68:$GJ68)-W68,0) -> 0 | Y68: =IF($A68>0,SUMIF('Age profile (years)'!$CT68:$GF68,"<" & T68+0.5,'Asset data'!$CX68:$GJ68)-X68-W68,0) -> 0 | Z68: =IF($A68>0,SUMIF('Age profile (years)'!$CT68:$GF68,"<" & U68+0.5,'Asset data'!$CX68:$GJ68)-Y68-X68-W68,0) -> 0 | AA68: 0 | AB68: 0 | AC68: 0 | AD68: 0 | AE68: 0 | AF68: 0 | AI68: =IF($A68>0,'RRR hist-forc'!K68,0) -> 0 | AJ68: 0
A69: ='Asset data'!A69 -> 0 | B69: ='Asset data'!B69 -> 0 | C69: ='Asset data'!C69 -> 0 | D69: ='Asset data'!E69 -> > 66 kV & < = 132 kV ; Commercial & Industrial | E69: 0 | F69: =IF(A69>0,SUM('Asset data'!J69:CV69),0) -> 0 | G69: =IF(A69>0,'Asset data'!F69,0) -> 0 | H69: =IF(A69>0,SUM('Asset data'!CX69:GJ69),0) -> 0 | I69: 0 | J69: 0 | K69: 0 | L69: 0 | M69: =IF($A69>0,SUMPRODUCT('Age profile (years)'!$CT69:$GF69,'Asset data'!$CX69:$GJ69)/H69-0.5,0) -> 0 | N69: 0 | O69: =IF($A69>0,'Asset data'!G69,0) -> 0 | P69: 0 | Q69: 0 | R69: 0 | S69: 0 | T69: 0 | U69: 0 | W69: =IF($A69>0,SUMIF('Age profile (years)'!$CT69:$GF69,"<" & R69+0.5,'Asset data'!$CX69:$GJ69),0) -> 0 | X69: =IF($A69>0,SUMIF('Age profile (years)'!$CT69:$GF69,"<" & S69+0.5,'Asset data'!$CX69:$GJ69)-W69,0) -> 0 | Y69: =IF($A69>0,SUMIF('Age profile (years)'!$CT69:$GF69,"<" & T69+0.5,'Asset data'!$CX69:$GJ69)-X69-W69,0) -> 0 | Z69: =IF($A69>0,SUMIF('Age profile (years)'!$CT69:$GF69,"<" & U69+0.5,'Asset data'!$CX69:$GJ69)-Y69-X69-W69,0) -> 0 | AA69: 0 | AB69: 0 | AC69: 0 | AD69: 0 | AE69: 0 | AF69: 0 | AI69: =IF($A69>0,'RRR hist-forc'!K69,0) -> 0 | AJ69: 0
A70: ='Asset data'!A70 -> 0 | B70: ='Asset data'!B70 -> 0 | C70: ='Asset data'!C70 -> 0 | D70: ='Asset data'!E70 -> > 66 kV & < = 132 kV ; Subdivision | E70: 0 | F70: =IF(A70>0,SUM('Asset data'!J70:CV70),0) -> 0 | G70: =IF(A70>0,'Asset data'!F70,0) -> 0 | H70: =IF(A70>0,SUM('Asset data'!CX70:GJ70),0) -> 0 | I70: 0 | J70: 0 | K70: 0 | L70: 0 | M70: =IF($A70>0,SUMPRODUCT('Age profile (years)'!$CT70:$GF70,'Asset data'!$CX70:$GJ70)/H70-0.5,0) -> 0 | N70: 0 | O70: =IF($A70>0,'Asset data'!G70,0) -> 0 | P70: 0 | Q70: 0 | R70: 0 | S70: 0 | T70: 0 | U70: 0 | W70: =IF($A70>0,SUMIF('Age profile (years)'!$CT70:$GF70,"<" & R70+0.5,'Asset data'!$CX70:$GJ70),0) -> 0 | X70: =IF($A70>0,SUMIF('Age profile (years)'!$CT70:$GF70,"<" & S70+0.5,'Asset data'!$CX70:$GJ70)-W70,0) -> 0 | Y70: =IF($A70>0,SUMIF('Age profile (years)'!$CT70:$GF70,"<" & T70+0.5,'Asset data'!$CX70:$GJ70)-X70-W70,0) -> 0 | Z70: =IF($A70>0,SUMIF('Age profile (years)'!$CT70:$GF70,"<" & U70+0.5,'Asset data'!$CX70:$GJ70)-Y70-X70-W70,0) -> 0 | AA70: 0 | AB70: 0 | AC70: 0 | AD70: 0 | AE70: 0 | AF70: 0 | AI70: =IF($A70>0,'RRR hist-forc'!K70,0) -> 0 | AJ70: 0
A71: ='Asset data'!A71 -> 0 | B71: ='Asset data'!B71 -> 0 | C71: ='Asset data'!C71 -> 0 | D71: ='Asset data'!E71 -> > 132 kV ; Commercial & Industrial | E71: 0 | F71: =IF(A71>0,SUM('Asset data'!J71:CV71),0) -> 0 | G71: =IF(A71>0,'Asset data'!F71,0) -> 0 | H71: =IF(A71>0,SUM('Asset data'!CX71:GJ71),0) -> 0 | I71: 0 | J71: 0 | K71: 0 | L71: 0 | M71: =IF($A71>0,SUMPRODUCT('Age profile (years)'!$CT71:$GF71,'Asset data'!$CX71:$GJ71)/H71-0.5,0) -> 0 | N71: 0 | O71: =IF($A71>0,'Asset data'!G71,0) -> 0 | P71: 0 | Q71: 0 | R71: 0 | S71: 0 | T71: 0 | U71: 0 | W71: =IF($A71>0,SUMIF('Age profile (years)'!$CT71:$GF71,"<" & R71+0.5,'Asset data'!$CX71:$GJ71),0) -> 0 | X71: =IF($A71>0,SUMIF('Age profile (years)'!$CT71:$GF71,"<" & S71+0.5,'Asset data'!$CX71:$GJ71)-W71,0) -> 0 | Y71: =IF($A71>0,SUMIF('Age profile (years)'!$CT71:$GF71,"<" & T71+0.5,'Asset data'!$CX71:$GJ71)-X71-W71,0) -> 0 | Z71: =IF($A71>0,SUMIF('Age profile (years)'!$CT71:$GF71,"<" & U71+0.5,'Asset data'!$CX71:$GJ71)-Y71-X71-W71,0) -> 0 | AA71: 0 | AB71: 0 | AC71: 0 | AD71: 0 | AE71: 0 | AF71: 0 | AI71: =IF($A71>0,'RRR hist-forc'!K71,0) -> 0 | AJ71: 0
A72: ='Asset data'!A72 -> 0 | B72: ='Asset data'!B72 -> 0 | C72: ='Asset data'!C72 -> 0 | D72: ='Asset data'!E72 -> > 132 kV ; Subdivision | E72: 0 | F72: =IF(A72>0,SUM('Asset data'!J72:CV72),0) -> 0 | G72: =IF(A72>0,'Asset data'!F72,0) -> 0 | H72: =IF(A72>0,SUM('Asset data'!CX72:GJ72),0) -> 0 | I72: 0 | J72: 0 | K72: 0 | L72: 0 | M72: =IF($A72>0,SUMPRODUCT('Age profile (years)'!$CT72:$GF72,'Asset data'!$CX72:$GJ72)/H72-0.5,0) -> 0 | N72: 0 | O72: =IF($A72>0,'Asset data'!G72,0) -> 0 | P72: 0 | Q72: 0 | R72: 0 | S72: 0 | T72: 0 | U72: 0 | W72: =IF($A72>0,SUMIF('Age profile (years)'!$CT72:$GF72,"<" & R72+0.5,'Asset data'!$CX72:$GJ72),0) -> 0 | X72: =IF($A72>0,SUMIF('Age profile (years)'!$CT72:$GF72,"<" & S72+0.5,'Asset data'!$CX72:$GJ72)-W72,0) -> 0 | Y72: =IF($A72>0,SUMIF('Age profile (years)'!$CT72:$GF72,"<" & T72+0.5,'Asset data'!$CX72:$GJ72)-X72-W72,0) -> 0 | Z72: =IF($A72>0,SUMIF('Age profile (years)'!$CT72:$GF72,"<" & U72+0.5,'Asset data'!$CX72:$GJ72)-Y72-X72-W72,0) -> 0 | AA72: 0 | AB72: 0 | AC72: 0 | AD72: 0 | AE72: 0 | AF72: 0 | AI72: =IF($A72>0,'RRR hist-forc'!K72,0) -> 0 | AJ72: 0
A73: ='Asset data'!A73 -> 0 | B73: ='Asset data'!B73 -> 0 | C73: ='Asset data'!C73 -> 0 | D73: ='Asset data'!E73 -> Other | E73: 0 | F73: =IF(A73>0,SUM('Asset data'!J73:CV73),0) -> 0 | G73: =IF(A73>0,'Asset data'!F73,0) -> 0 | H73: =IF(A73>0,SUM('Asset data'!CX73:GJ73),0) -> 0 | I73: 0 | J73: 0 | K73: 0 | L73: 0 | M73: =IF($A73>0,SUMPRODUCT('Age profile (years)'!$CT73:$GF73,'Asset data'!$CX73:$GJ73)/H73-0.5,0) -> 0 | N73: 0 | O73: =IF($A73>0,'Asset data'!G73,0) -> 0 | P73: 0 | Q73: 0 | R73: 0 | S73: 0 | T73: 0 | U73: 0 | W73: =IF($A73>0,SUMIF('Age profile (years)'!$CT73:$GF73,"<" & R73+0.5,'Asset data'!$CX73:$GJ73),0) -> 0 | X73: =IF($A73>0,SUMIF('Age profile (years)'!$CT73:$GF73,"<" & S73+0.5,'Asset data'!$CX73:$GJ73)-W73,0) -> 0 | Y73: =IF($A73>0,SUMIF('Age profile (years)'!$CT73:$GF73,"<" & T73+0.5,'Asset data'!$CX73:$GJ73)-X73-W73,0) -> 0 | Z73: =IF($A73>0,SUMIF('Age profile (years)'!$CT73:$GF73,"<" & U73+0.5,'Asset data'!$CX73:$GJ73)-Y73-X73-W73,0) -> 0 | AA73: 0 | AB73: 0 | AC73: 0 | AD73: 0 | AE73: 0 | AF73: 0 | AI73: =IF($A73>0,'RRR hist-forc'!K73,0) -> 0 | AJ73: 0
A74: ='Asset data'!A74 -> 5 | B74: ='Asset data'!B74 -> 0 | C74: ='Asset data'!C74 -> 0 | D74: ='Asset data'!E74 -> Pole Mounted ; < = 22kV ; < = 60 kVA ; Single Phase | E74: TRANSFORMERS | F74: =IF(A74>0,SUM('Asset data'!J74:CV74),0) -> 35120 | G74: =IF(A74>0,'Asset data'!F74,0) -> 14.92636095 | H74: =IF(A74>0,SUM('Asset data'!CX74:GJ74),0) -> 524213.7965 | I74: 0.03543522171 | J74: 12 | K74: 0.243456909 | L74: 14.92636095 | M74: =IF($A74>0,SUMPRODUCT('Age profile (years)'!$CT74:$GF74,'Asset data'!$CX74:$GJ74)/H74-0.5,0) -> 29.97277904 | N74: 15712144.3 | O74: =IF($A74>0,'Asset data'!G74,0) -> 55.73087892 | P74: 29214895.62 | Q74: 0.4621872179 | R74: 5.573087892 | S74: 11.14617578 | T74: 33.43852735 | U74: 44.58470314 | W74: =IF($A74>0,SUMIF('Age profile (years)'!$CT74:$GF74,"<" & R74+0.5,'Asset data'!$CX74:$GJ74),0) -> 31733.44338 | X74: =IF($A74>0,SUMIF('Age profile (years)'!$CT74:$GF74,"<" & S74+0.5,'Asset data'!$CX74:$GJ74)-W74,0) -> 40017.5737 | Y74: =IF($A74>0,SUMIF('Age profile (years)'!$CT74:$GF74,"<" & T74+0.5,'Asset data'!$CX74:$GJ74)-X74-W74,0) -> 231597.4165 | Z74: =IF($A74>0,SUMIF('Age profile (years)'!$CT74:$GF74,"<" & U74+0.5,'Asset data'!$CX74:$GJ74)-Y74-X74-W74,0) -> 117291.3443 | AA74: 103574.0186 | AB74: 0.06053530752 | AC74: 0.07633826879 | AD74: 0.4417995444 | AE74: 0.2237471526 | AF74: 0.1975797267 | AI74: =IF($A74>0,'RRR hist-forc'!K74,0) -> 55.73087892 | AJ74: 29214895.62
A75: ='Asset data'!A75 -> 5 | B75: ='Asset data'!B75 -> 0 | C75: ='Asset data'!C75 -> 0 | D75: ='Asset data'!E75 -> Pole Mounted ; < = 22kV ; > 60 kVA and < = 600 kVA ; Single Phase | E75: TRANSFORMERS | F75: =IF(A75>0,SUM('Asset data'!J75:CV75),0) -> 989 | G75: =IF(A75>0,'Asset data'!F75,0) -> 19.86916228 | H75: =IF(A75>0,SUM('Asset data'!CX75:GJ75),0) -> 19650.6015 | I75: 0.001328319524 | J75: 31 | K75: 0.009126189986 | L75: 19.86916228 | M75: =IF($A75>0,SUMPRODUCT('Age profile (years)'!$CT75:$GF75,'Asset data'!$CX75:$GJ75)/H75-0.5,0) -> 23.29575329 | N75: 457775.5644 | O75: =IF($A75>0,'Asset data'!G75,0) -> 48.78096453 | P75: 958575.2946 | Q75: 0.5224417248 | R75: 4.878096453 | S75: 9.756192906 | T75: 29.26857872 | U75: 39.02477163 | W75: =IF($A75>0,SUMIF('Age profile (years)'!$CT75:$GF75,"<" & R75+0.5,'Asset data'!$CX75:$GJ75),0) -> 2881.028531 | X75: =IF($A75>0,SUMIF('Age profile (years)'!$CT75:$GF75,"<" & S75+0.5,'Asset data'!$CX75:$GJ75)-W75,0) -> 814.6356535 | Y75: =IF($A75>0,SUMIF('Age profile (years)'!$CT75:$GF75,"<" & T75+0.5,'Asset data'!$CX75:$GJ75)-X75-W75,0) -> 8682.823917 | Z75: =IF($A75>0,SUMIF('Age profile (years)'!$CT75:$GF75,"<" & U75+0.5,'Asset data'!$CX75:$GJ75)-Y75-X75-W75,0) -> 3576.449211 | AA75: 3695.664184 | AB75: 0.1466127401 | AC75: 0.04145601618 | AD75: 0.4418604651 | AE75: 0.1820020222 | AF75: 0.1880687563 | AI75: =IF($A75>0,'RRR hist-forc'!K75,0) -> 48.78096453 | AJ75: 958575.2946
A76: ='Asset data'!A76 -> 0 | B76: ='Asset data'!B76 -> 0 | C76: ='Asset data'!C76 -> 0 | D76: ='Asset data'!E76 -> Pole Mounted ; < = 22kV ; > 600 kVA ; Single Phase | E76: 0 | F76: =IF(A76>0,SUM('Asset data'!J76:CV76),0) -> 0 | G76: =IF(A76>0,'Asset data'!F76,0) -> 0 | H76: =IF(A76>0,SUM('Asset data'!CX76:GJ76),0) -> 0 | I76: 0 | J76: 0 | K76: 0 | L76: 0 | M76: =IF($A76>0,SUMPRODUCT('Age profile (years)'!$CT76:$GF76,'Asset data'!$CX76:$GJ76)/H76-0.5,0) -> 0 | N76: 0 | O76: =IF($A76>0,'Asset data'!G76,0) -> 0 | P76: 0 | Q76: 0 | R76: 0 | S76: 0 | T76: 0 | U76: 0 | W76: =IF($A76>0,SUMIF('Age profile (years)'!$CT76:$GF76,"<" & R76+0.5,'Asset data'!$CX76:$GJ76),0) -> 0 | X76: =IF($A76>0,SUMIF('Age profile (years)'!$CT76:$GF76,"<" & S76+0.5,'Asset data'!$CX76:$GJ76)-W76,0) -> 0 | Y76: =IF($A76>0,SUMIF('Age profile (years)'!$CT76:$GF76,"<" & T76+0.5,'Asset data'!$CX76:$GJ76)-X76-W76,0) -> 0 | Z76: =IF($A76>0,SUMIF('Age profile (years)'!$CT76:$GF76,"<" & U76+0.5,'Asset data'!$CX76:$GJ76)-Y76-X76-W76,0) -> 0 | AA76: 0 | AB76: 0 | AC76: 0 | AD76: 0 | AE76: 0 | AF76: 0 | AI76: =IF($A76>0,'RRR hist-forc'!K76,0) -> 0 | AJ76: 0
A77: ='Asset data'!A77 -> 5 | B77: ='Asset data'!B77 -> 0 | C77: ='Asset data'!C77 -> 0 | D77: ='Asset data'!E77 -> Pole Mounted ; < = 22kV ; < = 60 kVA ; Multiple Phase | E77: TRANSFORMERS | F77: =IF(A77>0,SUM('Asset data'!J77:CV77),0) -> 7207 | G77: =IF(A77>0,'Asset data'!F77,0) -> 11.42646683 | H77: =IF(A77>0,SUM('Asset data'!CX77:GJ77),0) -> 82350.54641 | I77: 0.005566640728 | J77: 22 | K77: 0.03824548231 | L77: 11.42646683 | M77: =IF($A77>0,SUMPRODUCT('Age profile (years)'!$CT77:$GF77,'Asset data'!$CX77:$GJ77)/H77-0.5,0) -> 29.81552657 | N77: 2455324.905 | O77: =IF($A77>0,'Asset data'!G77,0) -> 56.37550453 | P77: 4642553.602 | Q77: 0.4711262131 | R77: 5.637550453 | S77: 11.27510091 | T77: 33.82530272 | U77: 45.10040363 | W77: =IF($A77>0,SUMIF('Age profile (years)'!$CT77:$GF77,"<" & R77+0.5,'Asset data'!$CX77:$GJ77),0) -> 5027.645403 | X77: =IF($A77>0,SUMIF('Age profile (years)'!$CT77:$GF77,"<" & S77+0.5,'Asset data'!$CX77:$GJ77)-W77,0) -> 6330.262621 | Y77: =IF($A77>0,SUMIF('Age profile (years)'!$CT77:$GF77,"<" & T77+0.5,'Asset data'!$CX77:$GJ77)-X77-W77,0) -> 38210.10506 | Z77: =IF($A77>0,SUMIF('Age profile (years)'!$CT77:$GF77,"<" & U77+0.5,'Asset data'!$CX77:$GJ77)-Y77-X77-W77,0) -> 16899.74444 | AA77: 15882.78889 | AB77: 0.06105175524 | AC77: 0.07686971 | AD77: 0.4639933398 | AE77: 0.20521715 | AF77: 0.192868045 | AI77: =IF($A77>0,'RRR hist-forc'!K77,0) -> 56.37550453 | AJ77: 4642553.602
A78: ='Asset data'!A78 -> 5 | B78: ='Asset data'!B78 -> 0 | C78: ='Asset data'!C78 -> 0 | D78: ='Asset data'!E78 -> Pole Mounted ; < = 22kV ; > 60 kVA and < = 600 kVA ; Multiple Phase | E78: TRANSFORMERS | F78: =IF(A78>0,SUM('Asset data'!J78:CV78),0) -> 14682 | G78: =IF(A78>0,'Asset data'!F78,0) -> 24.63149099 | H78: =IF(A78>0,SUM('Asset data'!CX78:GJ78),0) -> 361639.5507 | I78: 0.02444570849 | J78: 14 | K78: 0.1679537009 | L78: 24.63149099 | M78: =IF($A78>0,SUMPRODUCT('Age profile (years)'!$CT78:$GF78,'Asset data'!$CX78:$GJ78)/H78-0.5,0) -> 27.41799482 | N78: 9915431.33 | O78: =IF($A78>0,'Asset data'!G78,0) -> 53.09550648 | P78: 19201435.11 | Q78: 0.4836098827 | R78: 5.309550648 | S78: 10.6191013 | T78: 31.85730389 | U78: 42.47640519 | W78: =IF($A78>0,SUMIF('Age profile (years)'!$CT78:$GF78,"<" & R78+0.5,'Asset data'!$CX78:$GJ78),0) -> 33153.98688 | X78: =IF($A78>0,SUMIF('Age profile (years)'!$CT78:$GF78,"<" & S78+0.5,'Asset data'!$CX78:$GJ78)-W78,0) -> 24976.33187 | Y78: =IF($A78>0,SUMIF('Age profile (years)'!$CT78:$GF78,"<" & T78+0.5,'Asset data'!$CX78:$GJ78)-X78-W78,0) -> 161607.2124 | Z78: =IF($A78>0,SUMIF('Age profile (years)'!$CT78:$GF78,"<" & U78+0.5,'Asset data'!$CX78:$GJ78)-Y78-X78-W78,0) -> 65421.24007 | AA78: 76480.77953 | AB78: 0.09167688326 | AC78: 0.0690641602 | AD78: 0.4468737229 | AE78: 0.1809017845 | AF78: 0.2114834491 | AI78: =IF($A78>0,'RRR hist-forc'!K78,0) -> 53.09550648 | AJ78: 19201435.11
A79: ='Asset data'!A79 -> 5 | B79: ='Asset data'!B79 -> 0 | C79: ='Asset data'!C79 -> 0 | D79: ='Asset data'!E79 -> Pole Mounted ; < = 22kV ; > 600 kVA ; Multiple Phase | E79: TRANSFORMERS | F79: =IF(A79>0,SUM('Asset data'!J79:CV79),0) -> 8 | G79: =IF(A79>0,'Asset data'!F79,0) -> 46.04419824 | H79: =IF(A79>0,SUM('Asset data'!CX79:GJ79),0) -> 368.3535859 | I79: 2.489955638e-05 | J79: 46 | K79: 0.0001710718528 | L79: 46.04419824 | M79: =IF($A79>0,SUMPRODUCT('Age profile (years)'!$CT79:$GF79,'Asset data'!$CX79:$GJ79)/H79-0.5,0) -> 17.75 | N79: 6538.276151 | O79: =IF($A79>0,'Asset data'!G79,0) -> 40.4232209 | P79: 14890.03837 | Q79: 0.5608959502 | R79: 4.04232209 | S79: 8.084644179 | T79: 24.25393254 | U79: 32.33857672 | W79: =IF($A79>0,SUMIF('Age profile (years)'!$CT79:$GF79,"<" & R79+0.5,'Asset data'!$CX79:$GJ79),0) -> 0 | X79: =IF($A79>0,SUMIF('Age profile (years)'!$CT79:$GF79,"<" & S79+0.5,'Asset data'!$CX79:$GJ79)-W79,0) -> 0 | Y79: =IF($A79>0,SUMIF('Age profile (years)'!$CT79:$GF79,"<" & T79+0.5,'Asset data'!$CX79:$GJ79)-X79-W79,0) -> 276.2651895 | Z79: =IF($A79>0,SUMIF('Age profile (years)'!$CT79:$GF79,"<" & U79+0.5,'Asset data'!$CX79:$GJ79)-Y79-X79-W79,0) -> 46.04419824 | AA79: 46.04419824 | AB79: 0 | AC79: 0 | AD79: 0.75 | AE79: 0.125 | AF79: 0.125 | AI79: =IF($A79>0,'RRR hist-forc'!K79,0) -> 40.4232209 | AJ79: 14890.03837
A80: ='Asset data'!A80 -> 5 | B80: ='Asset data'!B80 -> 0 | C80: ='Asset data'!C80 -> 0 | D80: ='Asset data'!E80 -> Kiosk Mounted ; < = 22kV ; < = 60 kVA ; Single Phase | E80: TRANSFORMERS | F80: =IF(A80>0,SUM('Asset data'!J80:CV80),0) -> 1 | G80: =IF(A80>0,'Asset data'!F80,0) -> 30.08150727 | H80: =IF(A80>0,SUM('Asset data'!CX80:GJ80),0) -> 30.08150727 | I80: 2.033416301e-06 | J80: 49 | K80: 1.397054184e-05 | L80: 30.08150727 | M80: =IF($A80>0,SUMPRODUCT('Age profile (years)'!$CT80:$GF80,'Asset data'!$CX80:$GJ80)/H80-0.5,0) -> 23.5 | N80: 706.9154208 | O80: =IF($A80>0,'Asset data'!G80,0) -> 49.54227513 | P80: 1490.30631 | Q80: 0.5256576341 | R80: 4.954227513 | S80: 9.908455027 | T80: 29.72536508 | U80: 39.63382011 | W80: =IF($A80>0,SUMIF('Age profile (years)'!$CT80:$GF80,"<" & R80+0.5,'Asset data'!$CX80:$GJ80),0) -> 0 | X80: =IF($A80>0,SUMIF('Age profile (years)'!$CT80:$GF80,"<" & S80+0.5,'Asset data'!$CX80:$GJ80)-W80,0) -> 0 | Y80: =IF($A80>0,SUMIF('Age profile (years)'!$CT80:$GF80,"<" & T80+0.5,'Asset data'!$CX80:$GJ80)-X80-W80,0) -> 30.08150727 | Z80: =IF($A80>0,SUMIF('Age profile (years)'!$CT80:$GF80,"<" & U80+0.5,'Asset data'!$CX80:$GJ80)-Y80-X80-W80,0) -> 0 | AA80: 0 | AB80: 0 | AC80: 0 | AD80: 1 | AE80: 0 | AF80: 0 | AI80: =IF($A80>0,'RRR hist-forc'!K80,0) -> 49.54227513 | AJ80: 1490.30631
A81: ='Asset data'!A81 -> 0 | B81: ='Asset data'!B81 -> 0 | C81: ='Asset data'!C81 -> 0 | D81: ='Asset data'!E81 -> Kiosk Mounted ; < = 22kV ; > 60 kVA and < = 600 kVA ; Single Phase | E81: 0 | F81: =IF(A81>0,SUM('Asset data'!J81:CV81),0) -> 0 | G81: =IF(A81>0,'Asset data'!F81,0) -> 0 | H81: =IF(A81>0,SUM('Asset data'!CX81:GJ81),0) -> 0 | I81: 0 | J81: 0 | K81: 0 | L81: 0 | M81: =IF($A81>0,SUMPRODUCT('Age profile (years)'!$CT81:$GF81,'Asset data'!$CX81:$GJ81)/H81-0.5,0) -> 0 | N81: 0 | O81: =IF($A81>0,'Asset data'!G81,0) -> 0 | P81: 0 | Q81: 0 | R81: 0 | S81: 0 | T81: 0 | U81: 0 | W81: =IF($A81>0,SUMIF('Age profile (years)'!$CT81:$GF81,"<" & R81+0.5,'Asset data'!$CX81:$GJ81),0) -> 0 | X81: =IF($A81>0,SUMIF('Age profile (years)'!$CT81:$GF81,"<" & S81+0.5,'Asset data'!$CX81:$GJ81)-W81,0) -> 0 | Y81: =IF($A81>0,SUMIF('Age profile (years)'!$CT81:$GF81,"<" & T81+0.5,'Asset data'!$CX81:$GJ81)-X81-W81,0) -> 0 | Z81: =IF($A81>0,SUMIF('Age profile (years)'!$CT81:$GF81,"<" & U81+0.5,'Asset data'!$CX81:$GJ81)-Y81-X81-W81,0) -> 0 | AA81: 0 | AB81: 0 | AC81: 0 | AD81: 0 | AE81: 0 | AF81: 0 | AI81: =IF($A81>0,'RRR hist-forc'!K81,0) -> 0 | AJ81: 0
A82: ='Asset data'!A82 -> 0 | B82: ='Asset data'!B82 -> 0 | C82: ='Asset data'!C82 -> 0 | D82: ='Asset data'!E82 -> Kiosk Mounted ; < = 22kV ; > 600 kVA ; Single Phase | E82: 0 | F82: =IF(A82>0,SUM('Asset data'!J82:CV82),0) -> 0 | G82: =IF(A82>0,'Asset data'!F82,0) -> 0 | H82: =IF(A82>0,SUM('Asset data'!CX82:GJ82),0) -> 0 | I82: 0 | J82: 0 | K82: 0 | L82: 0 | M82: =IF($A82>0,SUMPRODUCT('Age profile (years)'!$CT82:$GF82,'Asset data'!$CX82:$GJ82)/H82-0.5,0) -> 0 | N82: 0 | O82: =IF($A82>0,'Asset data'!G82,0) -> 0 | P82: 0 | Q82: 0 | R82: 0 | S82: 0 | T82: 0 | U82: 0 | W82: =IF($A82>0,SUMIF('Age profile (years)'!$CT82:$GF82,"<" & R82+0.5,'Asset data'!$CX82:$GJ82),0) -> 0 | X82: =IF($A82>0,SUMIF('Age profile (years)'!$CT82:$GF82,"<" & S82+0.5,'Asset data'!$CX82:$GJ82)-W82,0) -> 0 | Y82: =IF($A82>0,SUMIF('Age profile (years)'!$CT82:$GF82,"<" & T82+0.5,'Asset data'!$CX82:$GJ82)-X82-W82,0) -> 0 | Z82: =IF($A82>0,SUMIF('Age profile (years)'!$CT82:$GF82,"<" & U82+0.5,'Asset data'!$CX82:$GJ82)-Y82-X82-W82,0) -> 0 | AA82: 0 | AB82: 0 | AC82: 0 | AD82: 0 | AE82: 0 | AF82: 0 | AI82: =IF($A82>0,'RRR hist-forc'!K82,0) -> 0 | AJ82: 0
A83: ='Asset data'!A83 -> 5 | B83: ='Asset data'!B83 -> 0 | C83: ='Asset data'!C83 -> 0 | D83: ='Asset data'!E83 -> Kiosk Mounted ; < = 22kV ; < = 60 kVA ; Multiple Phase | E83: TRANSFORMERS | F83: =IF(A83>0,SUM('Asset data'!J83:CV83),0) -> 156 | G83: =IF(A83>0,'Asset data'!F83,0) -> 61.27796189 | H83: =IF(A83>0,SUM('Asset data'!CX83:GJ83),0) -> 9559.362055 | I83: 0.0006461831337 | J83: 35 | K83: 0.004439586965 | L83: 61.27796189 | M83: =IF($A83>0,SUMPRODUCT('Age profile (years)'!$CT83:$GF83,'Asset data'!$CX83:$GJ83)/H83-0.5,0) -> 11.37179487 | N83: 108707.1044 | O83: =IF($A83>0,'Asset data'!G83,0) -> 34.52928714 | P83: 330077.9573 | Q83: 0.670662333 | R83: 3.452928714 | S83: 6.905857428 | T83: 20.71757228 | U83: 27.62342971 | W83: =IF($A83>0,SUMIF('Age profile (years)'!$CT83:$GF83,"<" & R83+0.5,'Asset data'!$CX83:$GJ83),0) -> 2941.342171 | X83: =IF($A83>0,SUMIF('Age profile (years)'!$CT83:$GF83,"<" & S83+0.5,'Asset data'!$CX83:$GJ83)-W83,0) -> 857.8914664 | Y83: =IF($A83>0,SUMIF('Age profile (years)'!$CT83:$GF83,"<" & T83+0.5,'Asset data'!$CX83:$GJ83)-X83-W83,0) -> 2696.230323 | Z83: =IF($A83>0,SUMIF('Age profile (years)'!$CT83:$GF83,"<" & U83+0.5,'Asset data'!$CX83:$GJ83)-Y83-X83-W83,0) -> 1409.393123 | AA83: 1654.504971 | AB83: 0.3076923077 | AC83: 0.08974358974 | AD83: 0.2820512821 | AE83: 0.1474358974 | AF83: 0.1730769231 | AI83: =IF($A83>0,'RRR hist-forc'!K83,0) -> 34.52928714 | AJ83: 330077.9573
A84: ='Asset data'!A84 -> 5 | B84: ='Asset data'!B84 -> 0 | C84: ='Asset data'!C84 -> 0 | D84: ='Asset data'!E84 -> Kiosk Mounted ; < = 22kV ; > 60 kVA and < = 600 kVA ; Multiple Phase | E84: TRANSFORMERS | F84: =IF(A84>0,SUM('Asset data'!J84:CV84),0) -> 2807 | G84: =IF(A84>0,'Asset data'!F84,0) -> 35.67980178 | H84: =IF(A84>0,SUM('Asset data'!CX84:GJ84),0) -> 100153.2036 | I84: 0.006770044964 | J84: 21 | K84: 0.04651344458 | L84: 35.67980178 | M84: =IF($A84>0,SUMPRODUCT('Age profile (years)'!$CT84:$GF84,'Asset data'!$CX84:$GJ84)/H84-0.5,0) -> 24.68667617 | N84: 2472449.704 | O84: =IF($A84>0,'Asset data'!G84,0) -> 50.47254892 | P84: 5054987.468 | Q84: 0.5108890537 | R84: 5.047254892 | S84: 10.09450978 | T84: 30.28352935 | U84: 40.37803914 | W84: =IF($A84>0,SUMIF('Age profile (years)'!$CT84:$GF84,"<" & R84+0.5,'Asset data'!$CX84:$GJ84),0) -> 13344.24586 | X84: =IF($A84>0,SUMIF('Age profile (years)'!$CT84:$GF84,"<" & S84+0.5,'Asset data'!$CX84:$GJ84)-W84,0) -> 4281.576213 | Y84: =IF($A84>0,SUMIF('Age profile (years)'!$CT84:$GF84,"<" & T84+0.5,'Asset data'!$CX84:$GJ84)-X84-W84,0) -> 44349.99361 | Z84: =IF($A84>0,SUMIF('Age profile (years)'!$CT84:$GF84,"<" & U84+0.5,'Asset data'!$CX84:$GJ84)-Y84-X84-W84,0) -> 18018.2999 | AA84: 20159.088 | AB84: 0.1332383327 | AC84: 0.04275026719 | AD84: 0.4428215176 | AE84: 0.1799073744 | AF84: 0.201282508 | AI84: =IF($A84>0,'RRR hist-forc'!K84,0) -> 50.47254892 | AJ84: 5054987.468
A85: ='Asset data'!A85 -> 5 | B85: ='Asset data'!B85 -> 0 | C85: ='Asset data'!C85 -> 0 | D85: ='Asset data'!E85 -> Kiosk Mounted ; < = 22kV ; > 600 kVA ; Multiple Phase | E85: TRANSFORMERS | F85: =IF(A85>0,SUM('Asset data'!J85:CV85),0) -> 616 | G85: =IF(A85>0,'Asset data'!F85,0) -> 69.67929396 | H85: =IF(A85>0,SUM('Asset data'!CX85:GJ85),0) -> 42922.44508 | I85: 0.002901423746 | J85: 27 | K85: 0.01993416784 | L85: 69.67929396 | M85: =IF($A85>0,SUMPRODUCT('Age profile (years)'!$CT85:$GF85,'Asset data'!$CX85:$GJ85)/H85-0.5,0) -> 23.77272727 | N85: 1020383.581 | O85: =IF($A85>0,'Asset data'!G85,0) -> 47.98909105 | P85: 2059809.125 | Q85: 0.5046222641 | R85: 4.798909105 | S85: 9.59781821 | T85: 28.79345463 | U85: 38.39127284 | W85: =IF($A85>0,SUMIF('Age profile (years)'!$CT85:$GF85,"<" & R85+0.5,'Asset data'!$CX85:$GJ85),0) -> 6201.457162 | X85: =IF($A85>0,SUMIF('Age profile (years)'!$CT85:$GF85,"<" & S85+0.5,'Asset data'!$CX85:$GJ85)-W85,0) -> 2369.095995 | Y85: =IF($A85>0,SUMIF('Age profile (years)'!$CT85:$GF85,"<" & T85+0.5,'Asset data'!$CX85:$GJ85)-X85-W85,0) -> 17489.50278 | Z85: =IF($A85>0,SUMIF('Age profile (years)'!$CT85:$GF85,"<" & U85+0.5,'Asset data'!$CX85:$GJ85)-Y85-X85-W85,0) -> 6828.570808 | AA85: 10033.81833 | AB85: 0.1444805195 | AC85: 0.05519480519 | AD85: 0.4074675325 | AE85: 0.1590909091 | AF85: 0.2337662338 | AI85: =IF($A85>0,'RRR hist-forc'!K85,0) -> 47.98909105 | AJ85: 2059809.125
A86: ='Asset data'!A86 -> 5 | B86: ='Asset data'!B86 -> 0 | C86: ='Asset data'!C86 -> 0 | D86: ='Asset data'!E86 -> Ground Outdoor / Indoor Chamber Mounted; ˂ 22 kV ; < = 60 kVA ; Single Phase | E86: TRANSFORMERS | F86: =IF(A86>0,SUM('Asset data'!J86:CV86),0) -> 1 | G86: =IF(A86>0,'Asset data'!F86,0) -> 16.94501973 | H86: =IF(A86>0,SUM('Asset data'!CX86:GJ86),0) -> 16.94501973 | I86: 1.145430614e-06 | J86: 50 | K86: 7.869655764e-06 | L86: 16.94501973 | M86: =IF($A86>0,SUMPRODUCT('Age profile (years)'!$CT86:$GF86,'Asset data'!$CX86:$GJ86)/H86-0.5,0) -> 2.5 | N86: 42.36254932 | O86: =IF($A86>0,'Asset data'!G86,0) -> 28.80024784 | P86: 488.0207677 | Q86: 0.9131951914 | R86: 2.880024784 | S86: 5.760049568 | T86: 17.2801487 | U86: 23.04019827 | W86: =IF($A86>0,SUMIF('Age profile (years)'!$CT86:$GF86,"<" & R86+0.5,'Asset data'!$CX86:$GJ86),0) -> 16.94501973 | X86: =IF($A86>0,SUMIF('Age profile (years)'!$CT86:$GF86,"<" & S86+0.5,'Asset data'!$CX86:$GJ86)-W86,0) -> 0 | Y86: =IF($A86>0,SUMIF('Age profile (years)'!$CT86:$GF86,"<" & T86+0.5,'Asset data'!$CX86:$GJ86)-X86-W86,0) -> 0 | Z86: =IF($A86>0,SUMIF('Age profile (years)'!$CT86:$GF86,"<" & U86+0.5,'Asset data'!$CX86:$GJ86)-Y86-X86-W86,0) -> 0 | AA86: 0 | AB86: 1 | AC86: 0 | AD86: 0 | AE86: 0 | AF86: 0 | AI86: =IF($A86>0,'RRR hist-forc'!K86,0) -> 28.80024784 | AJ86: 488.0207677
A87: ='Asset data'!A87 -> 5 | B87: ='Asset data'!B87 -> 0 | C87: ='Asset data'!C87 -> 0 | D87: ='Asset data'!E87 -> Ground Outdoor / Indoor Chamber Mounted; ˂ 22 kV ; > 60 kVA and < = 600 kVA ; Single Phase | E87: =IF(A87>0,VLOOKUP(A87,IDtable,2),0) -> TRANSFORMERS | F87: =IF(A87>0,SUM('Asset data'!J87:CV87),0) -> 1 | G87: =IF(A87>0,'Asset data'!F87,0) -> 147.2963158 | H87: =IF(A87>0,SUM('Asset data'!CX87:GJ87),0) -> 147.2963158 | I87: =H87/$H$18/1000 -> 9.956772675e-06 | J87: =IF(RANK(0,I$21:I$205)=RANK(I87,I$21:I$205),0,RANK(I87,I$21:I$205)) -> 48 | K87: =IF(A87>0,H87/(VLOOKUP(A87,$A$6:$H$17,8)*1000),0) -> 6.840778701e-05 | L87: =IF($A87>0,H87/F87,0) -> 147.2963158 | M87: =IF($A87>0,SUMPRODUCT('Age profile (years)'!$CT87:$GF87,'Asset data'!$CX87:$GJ87)/H87-0.5,0) -> 46.5 | N87: =IF($A87>0,M87*H87,0) -> 6849.278683 | O87: =IF($A87>0,'Asset data'!G87,0) -> 72.92505744 | P87: =IF($A87>0,H87*O87,0) -> 10741.59229 | Q87: =IF($A87>0,(O87-M87)/O87,0) -> 0.3623590898 | R87: 7.292505744 | S87: 14.58501149 | T87: 43.75503446 | U87: 58.34004595 | W87: =IF($A87>0,SUMIF('Age profile (years)'!$CT87:$GF87,"<" & R87+0.5,'Asset data'!$CX87:$GJ87),0) -> 0 | X87: =IF($A87>0,SUMIF('Age profile (years)'!$CT87:$GF87,"<" & S87+0.5,'Asset data'!$CX87:$GJ87)-W87,0) -> 0 | Y87: =IF($A87>0,SUMIF('Age profile (years)'!$CT87:$GF87,"<" & T87+0.5,'Asset data'!$CX87:$GJ87)-X87-W87,0) -> 0 | Z87: =IF($A87>0,SUMIF('Age profile (years)'!$CT87:$GF87,"<" & U87+0.5,'Asset data'!$CX87:$GJ87)-Y87-X87-W87,0) -> 147.2963158 | AA87: =IF($A87>0,H87-Z87-Y87-X87-W87,0) -> 0 | AB87: =IF($A87>0,W87/$H87,0) -> 0 | AC87: =IF($A87>0,X87/$H87,0) -> 0 | AD87: =IF($A87>0,Y87/$H87,0) -> 0 | AE87: =IF($A87>0,Z87/$H87,0) -> 1 | AF87: =IF($A87>0,AA87/$H87,0) -> 0 | AI87: =IF($A87>0,'RRR hist-forc'!K87,0) -> 72.92505744 | AJ87: =IF($A87>0,AI87*H87,0) -> 10741.59229
A88: ='Asset data'!A88 -> 0 | B88: ='Asset data'!B88 -> 0 | C88: ='Asset data'!C88 -> 0 | D88: ='Asset data'!E88 -> Ground Outdoor / Indoor Chamber Mounted; ˂ 22 kV ; > 600 kVA ; Single Phase | E88: 0 | F88: =IF(A88>0,SUM('Asset data'!J88:CV88),0) -> 0 | G88: =IF(A88>0,'Asset data'!F88,0) -> 0 | H88: =IF(A88>0,SUM('Asset data'!CX88:GJ88),0) -> 0 | I88: 0 | J88: 0 | K88: 0 | L88: 0 | M88: =IF($A88>0,SUMPRODUCT('Age profile (years)'!$CT88:$GF88,'Asset data'!$CX88:$GJ88)/H88-0.5,0) -> 0 | N88: 0 | O88: =IF($A88>0,'Asset data'!G88,0) -> 0 | P88: 0 | Q88: 0 | R88: 0 | S88: 0 | T88: 0 | U88: 0 | W88: =IF($A88>0,SUMIF('Age profile (years)'!$CT88:$GF88,"<" & R88+0.5,'Asset data'!$CX88:$GJ88),0) -> 0 | X88: =IF($A88>0,SUMIF('Age profile (years)'!$CT88:$GF88,"<" & S88+0.5,'Asset data'!$CX88:$GJ88)-W88,0) -> 0 | Y88: =IF($A88>0,SUMIF('Age profile (years)'!$CT88:$GF88,"<" & T88+0.5,'Asset data'!$CX88:$GJ88)-X88-W88,0) -> 0 | Z88: =IF($A88>0,SUMIF('Age profile (years)'!$CT88:$GF88,"<" & U88+0.5,'Asset data'!$CX88:$GJ88)-Y88-X88-W88,0) -> 0 | AA88: 0 | AB88: 0 | AC88: 0 | AD88: 0 | AE88: 0 | AF88: 0 | AI88: =IF($A88>0,'RRR hist-forc'!K88,0) -> 0 | AJ88: 0
A89: ='Asset data'!A89 -> 5 | B89: ='Asset data'!B89 -> 0 | C89: ='Asset data'!C89 -> 0 | D89: ='Asset data'!E89 -> Ground Outdoor / Indoor Chamber Mounted; ˂ 22 kV ; < = 60 kVA ; Multiple Phase | E89: TRANSFORMERS | F89: =IF(A89>0,SUM('Asset data'!J89:CV89),0) -> 24 | G89: =IF(A89>0,'Asset data'!F89,0) -> 108.9735123 | H89: =IF(A89>0,SUM('Asset data'!CX89:GJ89),0) -> 2615.364295 | I89: 0.0001767904894 | J89: 41 | K89: 0.001214635157 | L89: 108.9735123 | M89: =IF($A89>0,SUMPRODUCT('Age profile (years)'!$CT89:$GF89,'Asset data'!$CX89:$GJ89)/H89-0.5,0) -> 28.08333333 | N89: 73448.14727 | O89: =IF($A89>0,'Asset data'!G89,0) -> 51 | P89: 133383.579 | Q89: 0.4493464052 | R89: 5.1 | S89: 10.2 | T89: 30.6 | U89: 40.8 | W89: =IF($A89>0,SUMIF('Age profile (years)'!$CT89:$GF89,"<" & R89+0.5,'Asset data'!$CX89:$GJ89),0) -> 0 | X89: =IF($A89>0,SUMIF('Age profile (years)'!$CT89:$GF89,"<" & S89+0.5,'Asset data'!$CX89:$GJ89)-W89,0) -> 0 | Y89: =IF($A89>0,SUMIF('Age profile (years)'!$CT89:$GF89,"<" & T89+0.5,'Asset data'!$CX89:$GJ89)-X89-W89,0) -> 1743.576196 | Z89: =IF($A89>0,SUMIF('Age profile (years)'!$CT89:$GF89,"<" & U89+0.5,'Asset data'!$CX89:$GJ89)-Y89-X89-W89,0) -> 435.8940491 | AA89: 435.8940491 | AB89: 0 | AC89: 0 | AD89: 0.6666666667 | AE89: 0.1666666667 | AF89: 0.1666666667 | AI89: =IF($A89>0,'RRR hist-forc'!K89,0) -> 51 | AJ89: 133383.579
A90: ='Asset data'!A90 -> 5 | B90: ='Asset data'!B90 -> 0 | C90: ='Asset data'!C90 -> 0 | D90: ='Asset data'!E90 -> Ground Outdoor / Indoor Chamber Mounted; ˂ 22 kV ; > 60 kVA and < = 600 kVA ; Multiple Phase | E90: TRANSFORMERS | F90: =IF(A90>0,SUM('Asset data'!J90:CV90),0) -> 364 | G90: =IF(A90>0,'Asset data'!F90,0) -> 69.10119907 | H90: =IF(A90>0,SUM('Asset data'!CX90:GJ90),0) -> 25152.83646 | I90: 0.001700253489 | J90: 29 | K90: 0.01168155409 | L90: 69.10119907 | M90: =IF($A90>0,SUMPRODUCT('Age profile (years)'!$CT90:$GF90,'Asset data'!$CX90:$GJ90)/H90-0.5,0) -> 30.97527473 | N90: 779116.0195 | O90: =IF($A90>0,'Asset data'!G90,0) -> 57.3713484 | P90: 1443052.144 | Q90: 0.4600915685 | R90: 5.73713484 | S90: 11.47426968 | T90: 34.42280904 | U90: 45.89707872 | W90: =IF($A90>0,SUMIF('Age profile (years)'!$CT90:$GF90,"<" & R90+0.5,'Asset data'!$CX90:$GJ90),0) -> 1105.619185 | X90: =IF($A90>0,SUMIF('Age profile (years)'!$CT90:$GF90,"<" & S90+0.5,'Asset data'!$CX90:$GJ90)-W90,0) -> 1934.833574 | Y90: =IF($A90>0,SUMIF('Age profile (years)'!$CT90:$GF90,"<" & T90+0.5,'Asset data'!$CX90:$GJ90)-X90-W90,0) -> 11539.90024 | Z90: =IF($A90>0,SUMIF('Age profile (years)'!$CT90:$GF90,"<" & U90+0.5,'Asset data'!$CX90:$GJ90)-Y90-X90-W90,0) -> 5666.298323 | AA90: 4906.185134 | AB90: 0.04395604396 | AC90: 0.07692307692 | AD90: 0.4587912088 | AE90: 0.2252747253 | AF90: 0.1950549451 | AI90: =IF($A90>0,'RRR hist-forc'!K90,0) -> 57.3713484 | AJ90: 1443052.144
A91: ='Asset data'!A91 -> 5 | B91: ='Asset data'!B91 -> 0 | C91: ='Asset data'!C91 -> 0 | D91: ='Asset data'!E91 -> Ground Outdoor / Indoor Chamber Mounted; ˂ 22 kV ; > 600 kVA ; Multiple Phase | E91: TRANSFORMERS | F91: =IF(A91>0,SUM('Asset data'!J91:CV91),0) -> 638 | G91: =IF(A91>0,'Asset data'!F91,0) -> 120.2413178 | H91: =IF(A91>0,SUM('Asset data'!CX91:GJ91),0) -> 76713.96077 | I91: 0.005185625075 | J91: 24 | K91: 0.03562772268 | L91: 120.2413178 | M91: =IF($A91>0,SUMPRODUCT('Age profile (years)'!$CT91:$GF91,'Asset data'!$CX91:$GJ91)/H91-0.5,0) -> 33.88087774 | N91: 2599136.326 | O91: =IF($A91>0,'Asset data'!G91,0) -> 60.00157007 | P91: 4602958.093 | Q91: 0.4353334804 | R91: 6.000157007 | S91: 12.00031401 | T91: 36.00094204 | U91: 48.00125606 | W91: =IF($A91>0,SUMIF('Age profile (years)'!$CT91:$GF91,"<" & R91+0.5,'Asset data'!$CX91:$GJ91),0) -> 1803.619767 | X91: =IF($A91>0,SUMIF('Age profile (years)'!$CT91:$GF91,"<" & S91+0.5,'Asset data'!$CX91:$GJ91)-W91,0) -> 5410.859302 | Y91: =IF($A91>0,SUMIF('Age profile (years)'!$CT91:$GF91,"<" & T91+0.5,'Asset data'!$CX91:$GJ91)-X91-W91,0) -> 35831.91271 | Z91: =IF($A91>0,SUMIF('Age profile (years)'!$CT91:$GF91,"<" & U91+0.5,'Asset data'!$CX91:$GJ91)-Y91-X91-W91,0) -> 17074.26713 | AA91: 16593.30186 | AB91: 0.02351097179 | AC91: 0.07053291536 | AD91: 0.4670846395 | AE91: 0.2225705329 | AF91: 0.2163009404 | AI91: =IF($A91>0,'RRR hist-forc'!K91,0) -> 60.00157007 | AJ91: 4602958.093
A92: ='Asset data'!A92 -> 0 | B92: ='Asset data'!B92 -> 0 | C92: ='Asset data'!C92 -> 0 | D92: ='Asset data'!E92 -> Ground Outdoor / Indoor Chamber Mounted; > = 22 kV & < = 33 kV ; < = 15 MVA | E92: 0 | F92: =IF(A92>0,SUM('Asset data'!J92:CV92),0) -> 0 | G92: =IF(A92>0,'Asset data'!F92,0) -> 0 | H92: =IF(A92>0,SUM('Asset data'!CX92:GJ92),0) -> 0 | I92: 0 | J92: 0 | K92: 0 | L92: 0 | M92: =IF($A92>0,SUMPRODUCT('Age profile (years)'!$CT92:$GF92,'Asset data'!$CX92:$GJ92)/H92-0.5,0) -> 0 | N92: 0 | O92: =IF($A92>0,'Asset data'!G92,0) -> 0 | P92: 0 | Q92: 0 | R92: 0 | S92: 0 | T92: 0 | U92: 0 | W92: =IF($A92>0,SUMIF('Age profile (years)'!$CT92:$GF92,"<" & R92+0.5,'Asset data'!$CX92:$GJ92),0) -> 0 | X92: =IF($A92>0,SUMIF('Age profile (years)'!$CT92:$GF92,"<" & S92+0.5,'Asset data'!$CX92:$GJ92)-W92,0) -> 0 | Y92: =IF($A92>0,SUMIF('Age profile (years)'!$CT92:$GF92,"<" & T92+0.5,'Asset data'!$CX92:$GJ92)-X92-W92,0) -> 0 | Z92: =IF($A92>0,SUMIF('Age profile (years)'!$CT92:$GF92,"<" & U92+0.5,'Asset data'!$CX92:$GJ92)-Y92-X92-W92,0) -> 0 | AA92: 0 | AB92: 0 | AC92: 0 | AD92: 0 | AE92: 0 | AF92: 0 | AI92: =IF($A92>0,'RRR hist-forc'!K92,0) -> 0 | AJ92: 0
A93: ='Asset data'!A93 -> 0 | B93: ='Asset data'!B93 -> 0 | C93: ='Asset data'!C93 -> 0 | D93: ='Asset data'!E93 -> Ground Outdoor / Indoor Chamber Mounted; > = 22 kV & < = 33 kV ; > 15 MVA and < = 40 MVA | E93: 0 | F93: =IF(A93>0,SUM('Asset data'!J93:CV93),0) -> 0 | G93: =IF(A93>0,'Asset data'!F93,0) -> 0 | H93: =IF(A93>0,SUM('Asset data'!CX93:GJ93),0) -> 0 | I93: 0 | J93: 0 | K93: 0 | L93: 0 | M93: =IF($A93>0,SUMPRODUCT('Age profile (years)'!$CT93:$GF93,'Asset data'!$CX93:$GJ93)/H93-0.5,0) -> 0 | N93: 0 | O93: =IF($A93>0,'Asset data'!G93,0) -> 0 | P93: 0 | Q93: 0 | R93: 0 | S93: 0 | T93: 0 | U93: 0 | W93: =IF($A93>0,SUMIF('Age profile (years)'!$CT93:$GF93,"<" & R93+0.5,'Asset data'!$CX93:$GJ93),0) -> 0 | X93: =IF($A93>0,SUMIF('Age profile (years)'!$CT93:$GF93,"<" & S93+0.5,'Asset data'!$CX93:$GJ93)-W93,0) -> 0 | Y93: =IF($A93>0,SUMIF('Age profile (years)'!$CT93:$GF93,"<" & T93+0.5,'Asset data'!$CX93:$GJ93)-X93-W93,0) -> 0 | Z93: =IF($A93>0,SUMIF('Age profile (years)'!$CT93:$GF93,"<" & U93+0.5,'Asset data'!$CX93:$GJ93)-Y93-X93-W93,0) -> 0 | AA93: 0 | AB93: 0 | AC93: 0 | AD93: 0 | AE93: 0 | AF93: 0 | AI93: =IF($A93>0,'RRR hist-forc'!K93,0) -> 0 | AJ93: 0
A94: ='Asset data'!A94 -> 0 | B94: ='Asset data'!B94 -> 0 | C94: ='Asset data'!C94 -> 0 | D94: ='Asset data'!E94 -> Ground Outdoor / Indoor Chamber Mounted; > = 22 kV & < = 33 kV ; > 40 MVA | E94: 0 | F94: =IF(A94>0,SUM('Asset data'!J94:CV94),0) -> 0 | G94: =IF(A94>0,'Asset data'!F94,0) -> 0 | H94: =IF(A94>0,SUM('Asset data'!CX94:GJ94),0) -> 0 | I94: 0 | J94: 0 | K94: 0 | L94: 0 | M94: =IF($A94>0,SUMPRODUCT('Age profile (years)'!$CT94:$GF94,'Asset data'!$CX94:$GJ94)/H94-0.5,0) -> 0 | N94: 0 | O94: =IF($A94>0,'Asset data'!G94,0) -> 0 | P94: 0 | Q94: 0 | R94: 0 | S94: 0 | T94: 0 | U94: 0 | W94: =IF($A94>0,SUMIF('Age profile (years)'!$CT94:$GF94,"<" & R94+0.5,'Asset data'!$CX94:$GJ94),0) -> 0 | X94: =IF($A94>0,SUMIF('Age profile (years)'!$CT94:$GF94,"<" & S94+0.5,'Asset data'!$CX94:$GJ94)-W94,0) -> 0 | Y94: =IF($A94>0,SUMIF('Age profile (years)'!$CT94:$GF94,"<" & T94+0.5,'Asset data'!$CX94:$GJ94)-X94-W94,0) -> 0 | Z94: =IF($A94>0,SUMIF('Age profile (years)'!$CT94:$GF94,"<" & U94+0.5,'Asset data'!$CX94:$GJ94)-Y94-X94-W94,0) -> 0 | AA94: 0 | AB94: 0 | AC94: 0 | AD94: 0 | AE94: 0 | AF94: 0 | AI94: =IF($A94>0,'RRR hist-forc'!K94,0) -> 0 | AJ94: 0
A95: ='Asset data'!A95 -> 5 | B95: ='Asset data'!B95 -> 0 | C95: ='Asset data'!C95 -> 0 | D95: ='Asset data'!E95 -> Ground Outdoor / Indoor Chamber Mounted; > 33 kV & < = 66 kV ; < = 15 MVA | E95: TRANSFORMERS | F95: =IF(A95>0,SUM('Asset data'!J95:CV95),0) -> 65 | G95: =IF(A95>0,'Asset data'!F95,0) -> 1236.257379 | H95: =IF(A95>0,SUM('Asset data'!CX95:GJ95),0) -> 80356.72962 | I95: 0.005431864915 | J95: 23 | K95: 0.03731950807 | L95: 1236.257379 | M95: =IF($A95>0,SUMPRODUCT('Age profile (years)'!$CT95:$GF95,'Asset data'!$CX95:$GJ95)/H95-0.5,0) -> 16.25384615 | N95: 1306105.921 | O95: =IF($A95>0,'Asset data'!G95,0) -> 66.54561392 | P95: 5347387.904 | Q95: 0.7557487985 | R95: 6.654561392 | S95: 13.30912278 | T95: 39.92736835 | U95: 53.23649113 | W95: =IF($A95>0,SUMIF('Age profile (years)'!$CT95:$GF95,"<" & R95+0.5,'Asset data'!$CX95:$GJ95),0) -> 13598.83117 | X95: =IF($A95>0,SUMIF('Age profile (years)'!$CT95:$GF95,"<" & S95+0.5,'Asset data'!$CX95:$GJ95)-W95,0) -> 11126.31641 | Y95: =IF($A95>0,SUMIF('Age profile (years)'!$CT95:$GF95,"<" & T95+0.5,'Asset data'!$CX95:$GJ95)-X95-W95,0) -> 50686.55253 | Z95: =IF($A95>0,SUMIF('Age profile (years)'!$CT95:$GF95,"<" & U95+0.5,'Asset data'!$CX95:$GJ95)-Y95-X95-W95,0) -> 2472.514757 | AA95: 2472.514757 | AB95: 0.1692307692 | AC95: 0.1384615385 | AD95: 0.6307692308 | AE95: 0.03076923077 | AF95: 0.03076923077 | AI95: =IF($A95>0,'RRR hist-forc'!K95,0) -> 66.54561392 | AJ95: 5347387.904
A96: ='Asset data'!A96 -> 5 | B96: ='Asset data'!B96 -> 0 | C96: ='Asset data'!C96 -> 0 | D96: ='Asset data'!E96 -> Ground Outdoor / Indoor Chamber Mounted; > 33 kV & < = 66 kV ; > 15 MVA and < = 40 MVA | E96: TRANSFORMERS | F96: =IF(A96>0,SUM('Asset data'!J96:CV96),0) -> 75 | G96: =IF(A96>0,'Asset data'!F96,0) -> 1742.501519 | H96: =IF(A96>0,SUM('Asset data'!CX96:GJ96),0) -> 130687.614 | I96: 0.008834076107 | J96: 20 | K96: 0.060694325 | L96: 1742.501519 | M96: =IF($A96>0,SUMPRODUCT('Age profile (years)'!$CT96:$GF96,'Asset data'!$CX96:$GJ96)/H96-0.5,0) -> 30.79333333 | N96: 4024307.259 | O96: =IF($A96>0,'Asset data'!G96,0) -> 57.33277795 | P96: 7492683.952 | Q96: 0.4629017739 | R96: 5.733277795 | S96: 11.46655559 | T96: 34.39966677 | U96: 45.86622236 | W96: =IF($A96>0,SUMIF('Age profile (years)'!$CT96:$GF96,"<" & R96+0.5,'Asset data'!$CX96:$GJ96),0) -> 8712.507597 | X96: =IF($A96>0,SUMIF('Age profile (years)'!$CT96:$GF96,"<" & S96+0.5,'Asset data'!$CX96:$GJ96)-W96,0) -> 15682.51367 | Y96: =IF($A96>0,SUMIF('Age profile (years)'!$CT96:$GF96,"<" & T96+0.5,'Asset data'!$CX96:$GJ96)-X96-W96,0) -> 52275.04558 | Z96: =IF($A96>0,SUMIF('Age profile (years)'!$CT96:$GF96,"<" & U96+0.5,'Asset data'!$CX96:$GJ96)-Y96-X96-W96,0) -> 10455.00912 | AA96: 43562.53799 | AB96: 0.06666666667 | AC96: 0.12 | AD96: 0.4 | AE96: 0.08 | AF96: 0.3333333333 | AI96: =IF($A96>0,'RRR hist-forc'!K96,0) -> 57.33277795 | AJ96: 7492683.952
A97: ='Asset data'!A97 -> 5 | B97: ='Asset data'!B97 -> 0 | C97: ='Asset data'!C97 -> 0 | D97: ='Asset data'!E97 -> Ground Outdoor / Indoor Chamber Mounted; > 33 kV & < = 66 kV ; > 40 MVA | E97: TRANSFORMERS | F97: =IF(A97>0,SUM('Asset data'!J97:CV97),0) -> 1 | G97: =IF(A97>0,'Asset data'!F97,0) -> 351.1457261 | H97: =IF(A97>0,SUM('Asset data'!CX97:GJ97),0) -> 351.1457261 | I97: 2.373635859e-05 | J97: 47 | K97: 0.0001630801281 | L97: 351.1457261 | M97: =IF($A97>0,SUMPRODUCT('Age profile (years)'!$CT97:$GF97,'Asset data'!$CX97:$GJ97)/H97-0.5,0) -> 6.5 | N97: 2282.447219 | O97: =IF($A97>0,'Asset data'!G97,0) -> 61.65095265 | P97: 21648.46853 | Q97: 0.8945677281 | R97: 6.165095265 | S97: 12.33019053 | T97: 36.99057159 | U97: 49.32076212 | W97: =IF($A97>0,SUMIF('Age profile (years)'!$CT97:$GF97,"<" & R97+0.5,'Asset data'!$CX97:$GJ97),0) -> 0 | X97: =IF($A97>0,SUMIF('Age profile (years)'!$CT97:$GF97,"<" & S97+0.5,'Asset data'!$CX97:$GJ97)-W97,0) -> 351.1457261 | Y97: =IF($A97>0,SUMIF('Age profile (years)'!$CT97:$GF97,"<" & T97+0.5,'Asset data'!$CX97:$GJ97)-X97-W97,0) -> 0 | Z97: =IF($A97>0,SUMIF('Age profile (years)'!$CT97:$GF97,"<" & U97+0.5,'Asset data'!$CX97:$GJ97)-Y97-X97-W97,0) -> 0 | AA97: 0 | AB97: 0 | AC97: 1 | AD97: 0 | AE97: 0 | AF97: 0 | AI97: =IF($A97>0,'RRR hist-forc'!K97,0) -> 61.65095265 | AJ97: 21648.46853
A98: ='Asset data'!A98 -> 0 | B98: ='Asset data'!B98 -> 0 | C98: ='Asset data'!C98 -> 0 | D98: ='Asset data'!E98 -> Ground Outdoor / Indoor Chamber Mounted; > 66 kV & < = 132 kV ; < = 100 MVA | E98: 0 | F98: =IF(A98>0,SUM('Asset data'!J98:CV98),0) -> 0 | G98: =IF(A98>0,'Asset data'!F98,0) -> 0 | H98: =IF(A98>0,SUM('Asset data'!CX98:GJ98),0) -> 0 | I98: 0 | J98: 0 | K98: 0 | L98: 0 | M98: =IF($A98>0,SUMPRODUCT('Age profile (years)'!$CT98:$GF98,'Asset data'!$CX98:$GJ98)/H98-0.5,0) -> 0 | N98: 0 | O98: =IF($A98>0,'Asset data'!G98,0) -> 0 | P98: 0 | Q98: 0 | R98: 0 | S98: 0 | T98: 0 | U98: 0 | W98: =IF($A98>0,SUMIF('Age profile (years)'!$CT98:$GF98,"<" & R98+0.5,'Asset data'!$CX98:$GJ98),0) -> 0 | X98: =IF($A98>0,SUMIF('Age profile (years)'!$CT98:$GF98,"<" & S98+0.5,'Asset data'!$CX98:$GJ98)-W98,0) -> 0 | Y98: =IF($A98>0,SUMIF('Age profile (years)'!$CT98:$GF98,"<" & T98+0.5,'Asset data'!$CX98:$GJ98)-X98-W98,0) -> 0 | Z98: =IF($A98>0,SUMIF('Age profile (years)'!$CT98:$GF98,"<" & U98+0.5,'Asset data'!$CX98:$GJ98)-Y98-X98-W98,0) -> 0 | AA98: 0 | AB98: 0 | AC98: 0 | AD98: 0 | AE98: 0 | AF98: 0 | AI98: =IF($A98>0,'RRR hist-forc'!K98,0) -> 0 | AJ98: 0
A99: ='Asset data'!A99 -> 0 | B99: ='Asset data'!B99 -> 0 | C99: ='Asset data'!C99 -> 0 | D99: ='Asset data'!E99 -> Ground Outdoor / Indoor Chamber Mounted; > 66 kV & < = 132 kV ; > 100 MVA | E99: 0 | F99: =IF(A99>0,SUM('Asset data'!J99:CV99),0) -> 0 | G99: =IF(A99>0,'Asset data'!F99,0) -> 0 | H99: =IF(A99>0,SUM('Asset data'!CX99:GJ99),0) -> 0 | I99: 0 | J99: 0 | K99: 0 | L99: 0 | M99: =IF($A99>0,SUMPRODUCT('Age profile (years)'!$CT99:$GF99,'Asset data'!$CX99:$GJ99)/H99-0.5,0) -> 0 | N99: 0 | O99: =IF($A99>0,'Asset data'!G99,0) -> 0 | P99: 0 | Q99: 0 | R99: 0 | S99: 0 | T99: 0 | U99: 0 | W99: =IF($A99>0,SUMIF('Age profile (years)'!$CT99:$GF99,"<" & R99+0.5,'Asset data'!$CX99:$GJ99),0) -> 0 | X99: =IF($A99>0,SUMIF('Age profile (years)'!$CT99:$GF99,"<" & S99+0.5,'Asset data'!$CX99:$GJ99)-W99,0) -> 0 | Y99: =IF($A99>0,SUMIF('Age profile (years)'!$CT99:$GF99,"<" & T99+0.5,'Asset data'!$CX99:$GJ99)-X99-W99,0) -> 0 | Z99: =IF($A99>0,SUMIF('Age profile (years)'!$CT99:$GF99,"<" & U99+0.5,'Asset data'!$CX99:$GJ99)-Y99-X99-W99,0) -> 0 | AA99: 0 | AB99: 0 | AC99: 0 | AD99: 0 | AE99: 0 | AF99: 0 | AI99: =IF($A99>0,'RRR hist-forc'!K99,0) -> 0 | AJ99: 0
A100: ='Asset data'!A100 -> 0 | B100: ='Asset data'!B100 -> 0 | C100: ='Asset data'!C100 -> 0 | D100: ='Asset data'!E100 -> Ground Outdoor / Indoor Chamber Mounted; > 132 kV ; < = 100 MVA | E100: 0 | F100: =IF(A100>0,SUM('Asset data'!J100:CV100),0) -> 0 | G100: =IF(A100>0,'Asset data'!F100,0) -> 0 | H100: =IF(A100>0,SUM('Asset data'!CX100:GJ100),0) -> 0 | I100: 0 | J100: 0 | K100: 0 | L100: 0 | M100: =IF($A100>0,SUMPRODUCT('Age profile (years)'!$CT100:$GF100,'Asset data'!$CX100:$GJ100)/H100-0.5,0) -> 0 | N100: 0 | O100: =IF($A100>0,'Asset data'!G100,0) -> 0 | P100: 0 | Q100: 0 | R100: 0 | S100: 0 | T100: 0 | U100: =IF($A100>0,$O100-U$4*$O100,0) -> 0 | W100: =IF($A100>0,SUMIF('Age profile (years)'!$CT100:$GF100,"<" & R100+0.5,'Asset data'!$CX100:$GJ100),0) -> 0 | X100: =IF($A100>0,SUMIF('Age profile (years)'!$CT100:$GF100,"<" & S100+0.5,'Asset data'!$CX100:$GJ100)-W100,0) -> 0 | Y100: =IF($A100>0,SUMIF('Age profile (years)'!$CT100:$GF100,"<" & T100+0.5,'Asset data'!$CX100:$GJ100)-X100-W100,0) -> 0 | Z100: =IF($A100>0,SUMIF('Age profile (years)'!$CT100:$GF100,"<" & U100+0.5,'Asset data'!$CX100:$GJ100)-Y100-X100-W100,0) -> 0 | AA100: 0 | AB100: 0 | AC100: 0 | AD100: 0 | AE100: 0 | AF100: 0 | AI100: =IF($A100>0,'RRR hist-forc'!K100,0) -> 0 | AJ100: 0
A101: ='Asset data'!A101 -> 0 | B101: ='Asset data'!B101 -> 0 | C101: ='Asset data'!C101 -> 0 | D101: ='Asset data'!E101 -> Ground Outdoor / Indoor Chamber Mounted; > 132 kV ; > 100 MVA | E101: 0 | F101: =IF(A101>0,SUM('Asset data'!J101:CV101),0) -> 0 | G101: =IF(A101>0,'Asset data'!F101,0) -> 0 | H101: =IF(A101>0,SUM('Asset data'!CX101:GJ101),0) -> 0 | I101: 0 | J101: 0 | K101: 0 | L101: 0 | M101: =IF($A101>0,SUMPRODUCT('Age profile (years)'!$CT101:$GF101,'Asset data'!$CX101:$GJ101)/H101-0.5,0) -> 0 | N101: 0 | O101: =IF($A101>0,'Asset data'!G101,0) -> 0 | P101: 0 | Q101: 0 | R101: 0 | S101: 0 | T101: 0 | U101: 0 | W101: =IF($A101>0,SUMIF('Age profile (years)'!$CT101:$GF101,"<" & R101+0.5,'Asset data'!$CX101:$GJ101),0) -> 0 | X101: =IF($A101>0,SUMIF('Age profile (years)'!$CT101:$GF101,"<" & S101+0.5,'Asset data'!$CX101:$GJ101)-W101,0) -> 0 | Y101: =IF($A101>0,SUMIF('Age profile (years)'!$CT101:$GF101,"<" & T101+0.5,'Asset data'!$CX101:$GJ101)-X101-W101,0) -> 0 | Z101: =IF($A101>0,SUMIF('Age profile (years)'!$CT101:$GF101,"<" & U101+0.5,'Asset data'!$CX101:$GJ101)-Y101-X101-W101,0) -> 0 | AA101: 0 | AB101: 0 | AC101: 0 | AD101: 0 | AE101: 0 | AF101: 0 | AI101: =IF($A101>0,'RRR hist-forc'!K101,0) -> 0 | AJ101: 0
A102: ='Asset data'!A102 -> 5 | B102: ='Asset data'!B102 -> 0 | C102: ='Asset data'!C102 -> 0 | D102: ='Asset data'!E102 -> Other | E102: TRANSFORMERS | F102: =IF(A102>0,SUM('Asset data'!J102:CV102),0) -> 21105 | G102: =IF(A102>0,'Asset data'!F102,0) -> 32.9912316 | H102: =IF(A102>0,SUM('Asset data'!CX102:GJ102),0) -> 696279.943 | I102: 0.04706635787 | J102: 10 | K102: 0.3233683734 | L102: 32.9912316 | M102: =IF($A102>0,SUMPRODUCT('Age profile (years)'!$CT102:$GF102,'Asset data'!$CX102:$GJ102)/H102-0.5,0) -> 41.04977493 | N102: 28582134.95 | O102: =IF($A102>0,'Asset data'!G102,0) -> 66.7773034 | P102: 46495697 | Q102: 0.3852735459 | R102: 6.67773034 | S102: 13.35546068 | T102: 40.06638204 | U102: 53.42184272 | W102: =IF($A102>0,SUMIF('Age profile (years)'!$CT102:$GF102,"<" & R102+0.5,'Asset data'!$CX102:$GJ102),0) -> 2045.456359 | X102: =IF($A102>0,SUMIF('Age profile (years)'!$CT102:$GF102,"<" & S102+0.5,'Asset data'!$CX102:$GJ102)-W102,0) -> 13625.37865 | Y102: =IF($A102>0,SUMIF('Age profile (years)'!$CT102:$GF102,"<" & T102+0.5,'Asset data'!$CX102:$GJ102)-X102-W102,0) -> 310348.5157 | Z102: =IF($A102>0,SUMIF('Age profile (years)'!$CT102:$GF102,"<" & U102+0.5,'Asset data'!$CX102:$GJ102)-Y102-X102-W102,0) -> 189072.7483 | AA102: 181187.844 | AB102: 0.00293769249 | AC102: 0.01956882255 | AD102: 0.4457237621 | AE102: 0.2715470268 | AF102: 0.260222696 | AI102: =IF($A102>0,'RRR hist-forc'!K102,0) -> 66.7773034 | AJ102: 46495697
A103: ='Asset data'!A103 -> 0 | B103: ='Asset data'!B103 -> 0 | C103: ='Asset data'!C103 -> 0 | D103: ='Asset data'!E103 -> ˂ = 11 kV ; Fuse | E103: 0 | F103: =IF(A103>0,SUM('Asset data'!J103:CV103),0) -> 0 | G103: =IF(A103>0,'Asset data'!F103,0) -> 0 | H103: =IF(A103>0,SUM('Asset data'!CX103:GJ103),0) -> 0 | I103: 0 | J103: 0 | K103: 0 | L103: 0 | M103: =IF($A103>0,SUMPRODUCT('Age profile (years)'!$CT103:$GF103,'Asset data'!$CX103:$GJ103)/H103-0.5,0) -> 0 | N103: 0 | O103: =IF($A103>0,'Asset data'!G103,0) -> 0 | P103: 0 | Q103: 0 | R103: 0 | S103: 0 | T103: 0 | U103: 0 | W103: =IF($A103>0,SUMIF('Age profile (years)'!$CT103:$GF103,"<" & R103+0.5,'Asset data'!$CX103:$GJ103),0) -> 0 | X103: =IF($A103>0,SUMIF('Age profile (years)'!$CT103:$GF103,"<" & S103+0.5,'Asset data'!$CX103:$GJ103)-W103,0) -> 0 | Y103: =IF($A103>0,SUMIF('Age profile (years)'!$CT103:$GF103,"<" & T103+0.5,'Asset data'!$CX103:$GJ103)-X103-W103,0) -> 0 | Z103: =IF($A103>0,SUMIF('Age profile (years)'!$CT103:$GF103,"<" & U103+0.5,'Asset data'!$CX103:$GJ103)-Y103-X103-W103,0) -> 0 | AA103: 0 | AB103: 0 | AC103: 0 | AD103: 0 | AE103: 0 | AF103: 0 | AI103: =IF($A103>0,'RRR hist-forc'!K103,0) -> 0 | AJ103: 0
A104: ='Asset data'!A104 -> 6 | B104: ='Asset data'!B104 -> 0 | C104: ='Asset data'!C104 -> 0 | D104: ='Asset data'!E104 -> ˂ = 11 kV ; Switch | E104: SWITCHGEAR | F104: =IF(A104>0,SUM('Asset data'!J104:CV104),0) -> 92 | G104: =IF(A104>0,'Asset data'!F104,0) -> 10.33489734 | H104: =IF(A104>0,SUM('Asset data'!CX104:GJ104),0) -> 950.8105552 | I104: 6.427183536e-05 | J104: 43 | K104: 0.0008984846324 | L104: 10.33489734 | M104: =IF($A104>0,SUMPRODUCT('Age profile (years)'!$CT104:$GF104,'Asset data'!$CX104:$GJ104)/H104-0.5,0) -> 39.86956522 | N104: 37908.40344 | O104: =IF($A104>0,'Asset data'!G104,0) -> 64.2942105 | P104: 61131.61398 | Q104: 0.3798887193 | R104: 6.42942105 | S104: 12.8588421 | T104: 38.5765263 | U104: 51.4353684 | W104: =IF($A104>0,SUMIF('Age profile (years)'!$CT104:$GF104,"<" & R104+0.5,'Asset data'!$CX104:$GJ104),0) -> 20.66979468 | X104: =IF($A104>0,SUMIF('Age profile (years)'!$CT104:$GF104,"<" & S104+0.5,'Asset data'!$CX104:$GJ104)-W104,0) -> 82.67917871 | Y104: =IF($A104>0,SUMIF('Age profile (years)'!$CT104:$GF104,"<" & T104+0.5,'Asset data'!$CX104:$GJ104)-X104-W104,0) -> 372.0563042 | Z104: =IF($A104>0,SUMIF('Age profile (years)'!$CT104:$GF104,"<" & U104+0.5,'Asset data'!$CX104:$GJ104)-Y104-X104-W104,0) -> 41.33958936 | AA104: 434.0656882 | AB104: 0.02173913043 | AC104: 0.08695652174 | AD104: 0.3913043478 | AE104: 0.04347826087 | AF104: 0.4565217391 | AI104: =IF($A104>0,'RRR hist-forc'!K104,0) -> 64.2942105 | AJ104: 61131.61398
A105: ='Asset data'!A105 -> 6 | B105: ='Asset data'!B105 -> 0 | C105: ='Asset data'!C105 -> 0 | D105: ='Asset data'!E105 -> ˂ = 11 kV ; Circuit Breaker | E105: SWITCHGEAR | F105: =IF(A105>0,SUM('Asset data'!J105:CV105),0) -> 59 | G105: =IF(A105>0,'Asset data'!F105,0) -> 96.71508106 | H105: =IF(A105>0,SUM('Asset data'!CX105:GJ105),0) -> 5706.189783 | I105: 0.0003857206761 | J105: 36 | K105: 0.005392161247 | L105: 96.71508106 | M105: =IF($A105>0,SUMPRODUCT('Age profile (years)'!$CT105:$GF105,'Asset data'!$CX105:$GJ105)/H105-0.5,0) -> 15.36440678 | N105: 87672.22098 | O105: =IF($A105>0,'Asset data'!G105,0) -> 54.58537301 | P105: 311474.4977 | Q105: 0.7185252031 | R105: 5.458537301 | S105: 10.9170746 | T105: 32.75122381 | U105: 43.66829841 | W105: =IF($A105>0,SUMIF('Age profile (years)'!$CT105:$GF105,"<" & R105+0.5,'Asset data'!$CX105:$GJ105),0) -> 2321.161945 | X105: =IF($A105>0,SUMIF('Age profile (years)'!$CT105:$GF105,"<" & S105+0.5,'Asset data'!$CX105:$GJ105)-W105,0) -> 193.4301621 | Y105: =IF($A105>0,SUMIF('Age profile (years)'!$CT105:$GF105,"<" & T105+0.5,'Asset data'!$CX105:$GJ105)-X105-W105,0) -> 2901.452432 | Z105: =IF($A105>0,SUMIF('Age profile (years)'!$CT105:$GF105,"<" & U105+0.5,'Asset data'!$CX105:$GJ105)-Y105-X105-W105,0) -> 193.4301621 | AA105: 96.71508106 | AB105: 0.406779661 | AC105: 0.03389830508 | AD105: 0.5084745763 | AE105: 0.03389830508 | AF105: 0.01694915254 | AI105: =IF($A105>0,'RRR hist-forc'!K105,0) -> 54.58537301 | AJ105: 311474.4977
A106: ='Asset data'!A106 -> 6 | B106: ='Asset data'!B106 -> 0 | C106: ='Asset data'!C106 -> 0 | D106: ='Asset data'!E106 -> > 11 kV & < = 22 kV ; Switch | E106: SWITCHGEAR | F106: =IF(A106>0,SUM('Asset data'!J106:CV106),0) -> 14155 | G106: =IF(A106>0,'Asset data'!F106,0) -> 9.836411827 | H106: =IF(A106>0,SUM('Asset data'!CX106:GJ106),0) -> 139234.4094 | I106: 0.009411812889 | J106: 18 | K106: 0.1315719272 | L106: 9.836411827 | M106: =IF($A106>0,SUMPRODUCT('Age profile (years)'!$CT106:$GF106,'Asset data'!$CX106:$GJ106)/H106-0.5,0) -> 43.76238078 | N106: 6093229.243 | O106: =IF($A106>0,'Asset data'!G106,0) -> 68.30217777 | P106: 9510013.384 | Q106: 0.3592827899 | R106: 6.830217777 | S106: 13.66043555 | T106: 40.98130666 | U106: 54.64174222 | W106: =IF($A106>0,SUMIF('Age profile (years)'!$CT106:$GF106,"<" & R106+0.5,'Asset data'!$CX106:$GJ106),0) -> 5882.174273 | X106: =IF($A106>0,SUMIF('Age profile (years)'!$CT106:$GF106,"<" & S106+0.5,'Asset data'!$CX106:$GJ106)-W106,0) -> 7957.657168 | Y106: =IF($A106>0,SUMIF('Age profile (years)'!$CT106:$GF106,"<" & T106+0.5,'Asset data'!$CX106:$GJ106)-X106-W106,0) -> 46880.33877 | Z106: =IF($A106>0,SUMIF('Age profile (years)'!$CT106:$GF106,"<" & U106+0.5,'Asset data'!$CX106:$GJ106)-Y106-X106-W106,0) -> 8754.406526 | AA106: 69759.83268 | AB106: 0.04224655599 | AC106: 0.05715294949 | AD106: 0.3367008124 | AE106: 0.06287530908 | AF106: 0.501024373 | AI106: =IF($A106>0,'RRR hist-forc'!K106,0) -> 68.30217777 | AJ106: 9510013.384
A107: ='Asset data'!A107 -> 6 | B107: ='Asset data'!B107 -> 0 | C107: ='Asset data'!C107 -> 0 | D107: ='Asset data'!E107 -> > 11 kV & < = 22 kV ; Circuit Breaker | E107: SWITCHGEAR | F107: =IF(A107>0,SUM('Asset data'!J107:CV107),0) -> 777 | G107: =IF(A107>0,'Asset data'!F107,0) -> 89.19023228 | H107: =IF(A107>0,SUM('Asset data'!CX107:GJ107),0) -> 69300.81048 | I107: 0.004684519179 | J107: 25 | K107: 0.06548698149 | L107: 89.19023228 | M107: =IF($A107>0,SUMPRODUCT('Age profile (years)'!$CT107:$GF107,'Asset data'!$CX107:$GJ107)/H107-0.5,0) -> 14.08043758 | N107: 975785.7363 | O107: =IF($A107>0,'Asset data'!G107,0) -> 47.07360122 | P107: 3262238.717 | Q107: 0.7008846314 | R107: 4.707360122 | S107: 9.414720245 | T107: 28.24416073 | U107: 37.65888098 | W107: =IF($A107>0,SUMIF('Age profile (years)'!$CT107:$GF107,"<" & R107+0.5,'Asset data'!$CX107:$GJ107),0) -> 26043.54783 | X107: =IF($A107>0,SUMIF('Age profile (years)'!$CT107:$GF107,"<" & S107+0.5,'Asset data'!$CX107:$GJ107)-W107,0) -> 6332.506492 | Y107: =IF($A107>0,SUMIF('Age profile (years)'!$CT107:$GF107,"<" & T107+0.5,'Asset data'!$CX107:$GJ107)-X107-W107,0) -> 15965.05158 | Z107: =IF($A107>0,SUMIF('Age profile (years)'!$CT107:$GF107,"<" & U107+0.5,'Asset data'!$CX107:$GJ107)-Y107-X107-W107,0) -> 10078.49625 | AA107: 10881.20834 | AB107: 0.3758043758 | AC107: 0.09137709138 | AD107: 0.2303732304 | AE107: 0.1454311454 | AF107: 0.157014157 | AI107: =IF($A107>0,'RRR hist-forc'!K107,0) -> 47.07360122 | AJ107: 3262238.717
A108: ='Asset data'!A108 -> 0 | B108: ='Asset data'!B108 -> 0 | C108: ='Asset data'!C108 -> 0 | D108: ='Asset data'!E108 -> > 22 kV & < = 33 kV ; Switch | E108: 0 | F108: =IF(A108>0,SUM('Asset data'!J108:CV108),0) -> 0 | G108: =IF(A108>0,'Asset data'!F108,0) -> 0 | H108: =IF(A108>0,SUM('Asset data'!CX108:GJ108),0) -> 0 | I108: 0 | J108: 0 | K108: 0 | L108: 0 | M108: =IF($A108>0,SUMPRODUCT('Age profile (years)'!$CT108:$GF108,'Asset data'!$CX108:$GJ108)/H108-0.5,0) -> 0 | N108: 0 | O108: =IF($A108>0,'Asset data'!G108,0) -> 0 | P108: 0 | Q108: 0 | R108: 0 | S108: 0 | T108: 0 | U108: 0 | W108: =IF($A108>0,SUMIF('Age profile (years)'!$CT108:$GF108,"<" & R108+0.5,'Asset data'!$CX108:$GJ108),0) -> 0 | X108: =IF($A108>0,SUMIF('Age profile (years)'!$CT108:$GF108,"<" & S108+0.5,'Asset data'!$CX108:$GJ108)-W108,0) -> 0 | Y108: =IF($A108>0,SUMIF('Age profile (years)'!$CT108:$GF108,"<" & T108+0.5,'Asset data'!$CX108:$GJ108)-X108-W108,0) -> 0 | Z108: =IF($A108>0,SUMIF('Age profile (years)'!$CT108:$GF108,"<" & U108+0.5,'Asset data'!$CX108:$GJ108)-Y108-X108-W108,0) -> 0 | AA108: 0 | AB108: 0 | AC108: 0 | AD108: 0 | AE108: 0 | AF108: 0 | AI108: =IF($A108>0,'RRR hist-forc'!K108,0) -> 0 | AJ108: 0
A109: ='Asset data'!A109 -> 0 | B109: ='Asset data'!B109 -> 0 | C109: ='Asset data'!C109 -> 0 | D109: ='Asset data'!E109 -> > 22 kV & < = 33 kV ; Circuit Breaker | E109: 0 | F109: =IF(A109>0,SUM('Asset data'!J109:CV109),0) -> 0 | G109: =IF(A109>0,'Asset data'!F109,0) -> 0 | H109: =IF(A109>0,SUM('Asset data'!CX109:GJ109),0) -> 0 | I109: 0 | J109: 0 | K109: 0 | L109: 0 | M109: =IF($A109>0,SUMPRODUCT('Age profile (years)'!$CT109:$GF109,'Asset data'!$CX109:$GJ109)/H109-0.5,0) -> 0 | N109: 0 | O109: =IF($A109>0,'Asset data'!G109,0) -> 0 | P109: 0 | Q109: 0 | R109: 0 | S109: 0 | T109: 0 | U109: 0 | W109: =IF($A109>0,SUMIF('Age profile (years)'!$CT109:$GF109,"<" & R109+0.5,'Asset data'!$CX109:$GJ109),0) -> 0 | X109: =IF($A109>0,SUMIF('Age profile (years)'!$CT109:$GF109,"<" & S109+0.5,'Asset data'!$CX109:$GJ109)-W109,0) -> 0 | Y109: =IF($A109>0,SUMIF('Age profile (years)'!$CT109:$GF109,"<" & T109+0.5,'Asset data'!$CX109:$GJ109)-X109-W109,0) -> 0 | Z109: =IF($A109>0,SUMIF('Age profile (years)'!$CT109:$GF109,"<" & U109+0.5,'Asset data'!$CX109:$GJ109)-Y109-X109-W109,0) -> 0 | AA109: 0 | AB109: 0 | AC109: 0 | AD109: 0 | AE109: 0 | AF109: 0 | AI109: =IF($A109>0,'RRR hist-forc'!K109,0) -> 0 | AJ109: 0
A110: ='Asset data'!A110 -> 6 | B110: ='Asset data'!B110 -> 0 | C110: ='Asset data'!C110 -> 0 | D110: ='Asset data'!E110 -> > 33 kV & < = 66 kV ; Switch | E110: SWITCHGEAR | F110: =IF(A110>0,SUM('Asset data'!J110:CV110),0) -> 287 | G110: =IF(A110>0,'Asset data'!F110,0) -> 71.66604134 | H110: =IF(A110>0,SUM('Asset data'!CX110:GJ110),0) -> 20568.15387 | I110: 0.001390343209 | J110: 30 | K110: 0.0194362274 | L110: 71.66604134 | M110: =IF($A110>0,SUMPRODUCT('Age profile (years)'!$CT110:$GF110,'Asset data'!$CX110:$GJ110)/H110-0.5,0) -> 30.45121951 | N110: 626325.3683 | O110: =IF($A110>0,'Asset data'!G110,0) -> 65.51961038 | P110: 1347617.428 | Q110: 0.5352350337 | R110: 6.551961038 | S110: 13.10392208 | T110: 39.31176623 | U110: 52.41568831 | W110: =IF($A110>0,SUMIF('Age profile (years)'!$CT110:$GF110,"<" & R110+0.5,'Asset data'!$CX110:$GJ110),0) -> 716.6604134 | X110: =IF($A110>0,SUMIF('Age profile (years)'!$CT110:$GF110,"<" & S110+0.5,'Asset data'!$CX110:$GJ110)-W110,0) -> 1719.984992 | Y110: =IF($A110>0,SUMIF('Age profile (years)'!$CT110:$GF110,"<" & T110+0.5,'Asset data'!$CX110:$GJ110)-X110-W110,0) -> 12684.88932 | Z110: =IF($A110>0,SUMIF('Age profile (years)'!$CT110:$GF110,"<" & U110+0.5,'Asset data'!$CX110:$GJ110)-Y110-X110-W110,0) -> 1003.324579 | AA110: 4443.294563 | AB110: 0.03484320557 | AC110: 0.08362369338 | AD110: 0.6167247387 | AE110: 0.0487804878 | AF110: 0.2160278746 | AI110: =IF($A110>0,'RRR hist-forc'!K110,0) -> 65.51961038 | AJ110: 1347617.428
A111: ='Asset data'!A111 -> 6 | B111: ='Asset data'!B111 -> 0 | C111: ='Asset data'!C111 -> 0 | D111: ='Asset data'!E111 -> > 33 kV & < = 66 kV ; Circuit Breaker | E111: SWITCHGEAR | F111: =IF(A111>0,SUM('Asset data'!J111:CV111),0) -> 187 | G111: =IF(A111>0,'Asset data'!F111,0) -> 143.537987 | H111: =IF(A111>0,SUM('Asset data'!CX111:GJ111),0) -> 26841.60357 | I111: 0.001814408891 | J111: 28 | K111: 0.02536443057 | L111: 143.537987 | M111: =IF($A111>0,SUMPRODUCT('Age profile (years)'!$CT111:$GF111,'Asset data'!$CX111:$GJ111)/H111-0.5,0) -> 23.01336898 | N111: 617715.727 | O111: =IF($A111>0,'Asset data'!G111,0) -> 51.10739513 | P111: 1371804.439 | Q111: 0.5497056947 | R111: 5.110739513 | S111: 10.22147903 | T111: 30.66443708 | U111: 40.88591611 | W111: =IF($A111>0,SUMIF('Age profile (years)'!$CT111:$GF111,"<" & R111+0.5,'Asset data'!$CX111:$GJ111),0) -> 6172.133441 | X111: =IF($A111>0,SUMIF('Age profile (years)'!$CT111:$GF111,"<" & S111+0.5,'Asset data'!$CX111:$GJ111)-W111,0) -> 717.689935 | Y111: =IF($A111>0,SUMIF('Age profile (years)'!$CT111:$GF111,"<" & T111+0.5,'Asset data'!$CX111:$GJ111)-X111-W111,0) -> 9042.893181 | Z111: =IF($A111>0,SUMIF('Age profile (years)'!$CT111:$GF111,"<" & U111+0.5,'Asset data'!$CX111:$GJ111)-Y111-X111-W111,0) -> 3157.835714 | AA111: 7751.051298 | AB111: 0.2299465241 | AC111: 0.02673796791 | AD111: 0.3368983957 | AE111: 0.1176470588 | AF111: 0.2887700535 | AI111: =IF($A111>0,'RRR hist-forc'!K111,0) -> 51.10739513 | AJ111: 1371804.439
A112: ='Asset data'!A112 -> 0 | B112: ='Asset data'!B112 -> 0 | C112: ='Asset data'!C112 -> 0 | D112: ='Asset data'!E112 -> > 66 kV & < = 132 kV ; Switch | E112: 0 | F112: =IF(A112>0,SUM('Asset data'!J112:CV112),0) -> 0 | G112: =IF(A112>0,'Asset data'!F112,0) -> 0 | H112: =IF(A112>0,SUM('Asset data'!CX112:GJ112),0) -> 0 | I112: 0 | J112: 0 | K112: 0 | L112: 0 | M112: =IF($A112>0,SUMPRODUCT('Age profile (years)'!$CT112:$GF112,'Asset data'!$CX112:$GJ112)/H112-0.5,0) -> 0 | N112: 0 | O112: =IF($A112>0,'Asset data'!G112,0) -> 0 | P112: 0 | Q112: 0 | R112: 0 | S112: 0 | T112: 0 | U112: 0 | W112: =IF($A112>0,SUMIF('Age profile (years)'!$CT112:$GF112,"<" & R112+0.5,'Asset data'!$CX112:$GJ112),0) -> 0 | X112: =IF($A112>0,SUMIF('Age profile (years)'!$CT112:$GF112,"<" & S112+0.5,'Asset data'!$CX112:$GJ112)-W112,0) -> 0 | Y112: =IF($A112>0,SUMIF('Age profile (years)'!$CT112:$GF112,"<" & T112+0.5,'Asset data'!$CX112:$GJ112)-X112-W112,0) -> 0 | Z112: =IF($A112>0,SUMIF('Age profile (years)'!$CT112:$GF112,"<" & U112+0.5,'Asset data'!$CX112:$GJ112)-Y112-X112-W112,0) -> 0 | AA112: 0 | AB112: 0 | AC112: 0 | AD112: 0 | AE112: 0 | AF112: 0 | AI112: =IF($A112>0,'RRR hist-forc'!K112,0) -> 0 | AJ112: 0
A113: ='Asset data'!A113 -> 0 | B113: ='Asset data'!B113 -> 0 | C113: ='Asset data'!C113 -> 0 | D113: ='Asset data'!E113 -> > 66 kV & < = 132 kV ; Circuit Breaker | E113: 0 | F113: =IF(A113>0,SUM('Asset data'!J113:CV113),0) -> 0 | G113: =IF(A113>0,'Asset data'!F113,0) -> 0 | H113: =IF(A113>0,SUM('Asset data'!CX113:GJ113),0) -> 0 | I113: 0 | J113: 0 | K113: 0 | L113: 0 | M113: =IF($A113>0,SUMPRODUCT('Age profile (years)'!$CT113:$GF113,'Asset data'!$CX113:$GJ113)/H113-0.5,0) -> 0 | N113: 0 | O113: =IF($A113>0,'Asset data'!G113,0) -> 0 | P113: 0 | Q113: 0 | R113: 0 | S113: 0 | T113: 0 | U113: 0 | W113: =IF($A113>0,SUMIF('Age profile (years)'!$CT113:$GF113,"<" & R113+0.5,'Asset data'!$CX113:$GJ113),0) -> 0 | X113: =IF($A113>0,SUMIF('Age profile (years)'!$CT113:$GF113,"<" & S113+0.5,'Asset data'!$CX113:$GJ113)-W113,0) -> 0 | Y113: =IF($A113>0,SUMIF('Age profile (years)'!$CT113:$GF113,"<" & T113+0.5,'Asset data'!$CX113:$GJ113)-X113-W113,0) -> 0 | Z113: =IF($A113>0,SUMIF('Age profile (years)'!$CT113:$GF113,"<" & U113+0.5,'Asset data'!$CX113:$GJ113)-Y113-X113-W113,0) -> 0 | AA113: 0 | AB113: 0 | AC113: 0 | AD113: 0 | AE113: 0 | AF113: 0 | AI113: =IF($A113>0,'RRR hist-forc'!K113,0) -> 0 | AJ113: 0
A114: ='Asset data'!A114 -> 0 | B114: ='Asset data'!B114 -> 0 | C114: ='Asset data'!C114 -> 0 | D114: ='Asset data'!E114 -> > 132 kV ; Switch | E114: 0 | F114: =IF(A114>0,SUM('Asset data'!J114:CV114),0) -> 0 | G114: =IF(A114>0,'Asset data'!F114,0) -> 0 | H114: =IF(A114>0,SUM('Asset data'!CX114:GJ114),0) -> 0 | I114: 0 | J114: 0 | K114: 0 | L114: 0 | M114: =IF($A114>0,SUMPRODUCT('Age profile (years)'!$CT114:$GF114,'Asset data'!$CX114:$GJ114)/H114-0.5,0) -> 0 | N114: 0 | O114: =IF($A114>0,'Asset data'!G114,0) -> 0 | P114: 0 | Q114: 0 | R114: 0 | S114: 0 | T114: 0 | U114: 0 | W114: =IF($A114>0,SUMIF('Age profile (years)'!$CT114:$GF114,"<" & R114+0.5,'Asset data'!$CX114:$GJ114),0) -> 0 | X114: =IF($A114>0,SUMIF('Age profile (years)'!$CT114:$GF114,"<" & S114+0.5,'Asset data'!$CX114:$GJ114)-W114,0) -> 0 | Y114: =IF($A114>0,SUMIF('Age profile (years)'!$CT114:$GF114,"<" & T114+0.5,'Asset data'!$CX114:$GJ114)-X114-W114,0) -> 0 | Z114: =IF($A114>0,SUMIF('Age profile (years)'!$CT114:$GF114,"<" & U114+0.5,'Asset data'!$CX114:$GJ114)-Y114-X114-W114,0) -> 0 | AA114: 0 | AB114: 0 | AC114: 0 | AD114: 0 | AE114: 0 | AF114: 0 | AI114: =IF($A114>0,'RRR hist-forc'!K114,0) -> 0 | AJ114: 0
A115: ='Asset data'!A115 -> 0 | B115: ='Asset data'!B115 -> 0 | C115: ='Asset data'!C115 -> 0 | D115: ='Asset data'!E115 -> > 132 kV ; Circuit Breaker | E115: 0 | F115: =IF(A115>0,SUM('Asset data'!J115:CV115),0) -> 0 | G115: =IF(A115>0,'Asset data'!F115,0) -> 0 | H115: =IF(A115>0,SUM('Asset data'!CX115:GJ115),0) -> 0 | I115: 0 | J115: 0 | K115: 0 | L115: 0 | M115: =IF($A115>0,SUMPRODUCT('Age profile (years)'!$CT115:$GF115,'Asset data'!$CX115:$GJ115)/H115-0.5,0) -> 0 | N115: 0 | O115: =IF($A115>0,'Asset data'!G115,0) -> 0 | P115: 0 | Q115: 0 | R115: 0 | S115: 0 | T115: 0 | U115: 0 | W115: =IF($A115>0,SUMIF('Age profile (years)'!$CT115:$GF115,"<" & R115+0.5,'Asset data'!$CX115:$GJ115),0) -> 0 | X115: =IF($A115>0,SUMIF('Age profile (years)'!$CT115:$GF115,"<" & S115+0.5,'Asset data'!$CX115:$GJ115)-W115,0) -> 0 | Y115: =IF($A115>0,SUMIF('Age profile (years)'!$CT115:$GF115,"<" & T115+0.5,'Asset data'!$CX115:$GJ115)-X115-W115,0) -> 0 | Z115: =IF($A115>0,SUMIF('Age profile (years)'!$CT115:$GF115,"<" & U115+0.5,'Asset data'!$CX115:$GJ115)-Y115-X115-W115,0) -> 0 | AA115: 0 | AB115: 0 | AC115: 0 | AD115: 0 | AE115: 0 | AF115: 0 | AI115: =IF($A115>0,'RRR hist-forc'!K115,0) -> 0 | AJ115: 0
A116: ='Asset data'!A116 -> 6 | B116: ='Asset data'!B116 -> 0 | C116: ='Asset data'!C116 -> 0 | D116: ='Asset data'!E116 -> Other - HV Fuses and Surge Diverters | E116: SWITCHGEAR | F116: =IF(A116>0,SUM('Asset data'!J116:CV116),0) -> 351774 | G116: =IF(A116>0,'Asset data'!F116,0) -> 2.261781696 | H116: =IF(A116>0,SUM('Asset data'!CX116:GJ116),0) -> 795635.9943 | I116: 0.05378251782 | J116: 9 | K116: 0.7518497874 | L116: 2.261781696 | M116: =IF($A116>0,SUMPRODUCT('Age profile (years)'!$CT116:$GF116,'Asset data'!$CX116:$GJ116)/H116-0.5,0) -> 29.52534582 | N116: 23491427.88 | O116: =IF($A116>0,'Asset data'!G116,0) -> 48.82384721 | P116: 38846010.22 | Q116: 0.3952679376 | R116: 4.882384721 | S116: 9.764769442 | T116: 29.29430833 | U116: 39.05907777 | W116: =IF($A116>0,SUMIF('Age profile (years)'!$CT116:$GF116,"<" & R116+0.5,'Asset data'!$CX116:$GJ116),0) -> 20261.04043 | X116: =IF($A116>0,SUMIF('Age profile (years)'!$CT116:$GF116,"<" & S116+0.5,'Asset data'!$CX116:$GJ116)-W116,0) -> 26709.38005 | Y116: =IF($A116>0,SUMIF('Age profile (years)'!$CT116:$GF116,"<" & T116+0.5,'Asset data'!$CX116:$GJ116)-X116-W116,0) -> 301900.359 | Z116: =IF($A116>0,SUMIF('Age profile (years)'!$CT116:$GF116,"<" & U116+0.5,'Asset data'!$CX116:$GJ116)-Y116-X116-W116,0) -> 230615.7853 | AA116: 216149.4295 | AB116: 0.02546521346 | AC116: 0.03356984882 | AD116: 0.3794453257 | AE116: 0.2898508702 | AF116: 0.2716687419 | AI116: =IF($A116>0,'RRR hist-forc'!K116,0) -> 48.82384721 | AJ116: 38846010.22
A117: ='Asset data'!A117 -> 0 | B117: ='Asset data'!B117 -> 0 | C117: ='Asset data'!C117 -> 0 | D117: ='Asset data'!E117 -> 0 | E117: 0 | F117: =IF(A117>0,SUM('Asset data'!J117:CV117),0) -> 0 | G117: =IF(A117>0,'Asset data'!F117,0) -> 0 | H117: =IF(A117>0,SUM('Asset data'!CX117:GJ117),0) -> 0 | I117: 0 | J117: 0 | K117: 0 | L117: 0 | M117: =IF($A117>0,SUMPRODUCT('Age profile (years)'!$CT117:$GF117,'Asset data'!$CX117:$GJ117)/H117-0.5,0) -> 0 | N117: 0 | O117: =IF($A117>0,'Asset data'!G117,0) -> 0 | P117: 0 | Q117: 0 | R117: 0 | S117: 0 | T117: 0 | U117: 0 | W117: =IF($A117>0,SUMIF('Age profile (years)'!$CT117:$GF117,"<" & R117+0.5,'Asset data'!$CX117:$GJ117),0) -> 0 | X117: =IF($A117>0,SUMIF('Age profile (years)'!$CT117:$GF117,"<" & S117+0.5,'Asset data'!$CX117:$GJ117)-W117,0) -> 0 | Y117: =IF($A117>0,SUMIF('Age profile (years)'!$CT117:$GF117,"<" & T117+0.5,'Asset data'!$CX117:$GJ117)-X117-W117,0) -> 0 | Z117: =IF($A117>0,SUMIF('Age profile (years)'!$CT117:$GF117,"<" & U117+0.5,'Asset data'!$CX117:$GJ117)-Y117-X117-W117,0) -> 0 | AA117: 0 | AB117: 0 | AC117: 0 | AD117: 0 | AE117: 0 | AF117: 0 | AI117: =IF($A117>0,'RRR hist-forc'!K117,0) -> 0 | AJ117: 0
A118: ='Asset data'!A118 -> 0 | B118: ='Asset data'!B118 -> 0 | C118: ='Asset data'!C118 -> 0 | D118: ='Asset data'!E118 -> 0 | E118: 0 | F118: =IF(A118>0,SUM('Asset data'!J118:CV118),0) -> 0 | G118: =IF(A118>0,'Asset data'!F118,0) -> 0 | H118: =IF(A118>0,SUM('Asset data'!CX118:GJ118),0) -> 0 | I118: 0 | J118: 0 | K118: 0 | L118: 0 | M118: =IF($A118>0,SUMPRODUCT('Age profile (years)'!$CT118:$GF118,'Asset data'!$CX118:$GJ118)/H118-0.5,0) -> 0 | N118: 0 | O118: =IF($A118>0,'Asset data'!G118,0) -> 0 | P118: 0 | Q118: 0 | R118: 0 | S118: 0 | T118: 0 | U118: 0 | W118: =IF($A118>0,SUMIF('Age profile (years)'!$CT118:$GF118,"<" & R118+0.5,'Asset data'!$CX118:$GJ118),0) -> 0 | X118: =IF($A118>0,SUMIF('Age profile (years)'!$CT118:$GF118,"<" & S118+0.5,'Asset data'!$CX118:$GJ118)-W118,0) -> 0 | Y118: =IF($A118>0,SUMIF('Age profile (years)'!$CT118:$GF118,"<" & T118+0.5,'Asset data'!$CX118:$GJ118)-X118-W118,0) -> 0 | Z118: =IF($A118>0,SUMIF('Age profile (years)'!$CT118:$GF118,"<" & U118+0.5,'Asset data'!$CX118:$GJ118)-Y118-X118-W118,0) -> 0 | AA118: 0 | AB118: 0 | AC118: 0 | AD118: 0 | AE118: 0 | AF118: 0 | AI118: =IF($A118>0,'RRR hist-forc'!K118,0) -> 0 | AJ118: 0
A119: ='Asset data'!A119 -> 0 | B119: ='Asset data'!B119 -> 0 | C119: ='Asset data'!C119 -> 0 | D119: ='Asset data'!E119 -> 0 | E119: 0 | F119: =IF(A119>0,SUM('Asset data'!J119:CV119),0) -> 0 | G119: =IF(A119>0,'Asset data'!F119,0) -> 0 | H119: =IF(A119>0,SUM('Asset data'!CX119:GJ119),0) -> 0 | I119: 0 | J119: 0 | K119: 0 | L119: 0 | M119: =IF($A119>0,SUMPRODUCT('Age profile (years)'!$CT119:$GF119,'Asset data'!$CX119:$GJ119)/H119-0.5,0) -> 0 | N119: 0 | O119: =IF($A119>0,'Asset data'!G119,0) -> 0 | P119: 0 | Q119: 0 | R119: 0 | S119: 0 | T119: 0 | U119: 0 | W119: =IF($A119>0,SUMIF('Age profile (years)'!$CT119:$GF119,"<" & R119+0.5,'Asset data'!$CX119:$GJ119),0) -> 0 | X119: =IF($A119>0,SUMIF('Age profile (years)'!$CT119:$GF119,"<" & S119+0.5,'Asset data'!$CX119:$GJ119)-W119,0) -> 0 | Y119: =IF($A119>0,SUMIF('Age profile (years)'!$CT119:$GF119,"<" & T119+0.5,'Asset data'!$CX119:$GJ119)-X119-W119,0) -> 0 | Z119: =IF($A119>0,SUMIF('Age profile (years)'!$CT119:$GF119,"<" & U119+0.5,'Asset data'!$CX119:$GJ119)-Y119-X119-W119,0) -> 0 | AA119: 0 | AB119: 0 | AC119: 0 | AD119: 0 | AE119: 0 | AF119: 0 | AI119: =IF($A119>0,'RRR hist-forc'!K119,0) -> 0 | AJ119: 0
A120: ='Asset data'!A120 -> 0 | B120: ='Asset data'!B120 -> 0 | C120: ='Asset data'!C120 -> 0 | D120: ='Asset data'!E120 -> 0 | E120: 0 | F120: =IF(A120>0,SUM('Asset data'!J120:CV120),0) -> 0 | G120: =IF(A120>0,'Asset data'!F120,0) -> 0 | H120: =IF(A120>0,SUM('Asset data'!CX120:GJ120),0) -> 0 | I120: 0 | J120: 0 | K120: 0 | L120: 0 | M120: =IF($A120>0,SUMPRODUCT('Age profile (years)'!$CT120:$GF120,'Asset data'!$CX120:$GJ120)/H120-0.5,0) -> 0 | N120: 0 | O120: =IF($A120>0,'Asset data'!G120,0) -> 0 | P120: 0 | Q120: 0 | R120: 0 | S120: 0 | T120: 0 | U120: 0 | W120: =IF($A120>0,SUMIF('Age profile (years)'!$CT120:$GF120,"<" & R120+0.5,'Asset data'!$CX120:$GJ120),0) -> 0 | X120: =IF($A120>0,SUMIF('Age profile (years)'!$CT120:$GF120,"<" & S120+0.5,'Asset data'!$CX120:$GJ120)-W120,0) -> 0 | Y120: =IF($A120>0,SUMIF('Age profile (years)'!$CT120:$GF120,"<" & T120+0.5,'Asset data'!$CX120:$GJ120)-X120-W120,0) -> 0 | Z120: =IF($A120>0,SUMIF('Age profile (years)'!$CT120:$GF120,"<" & U120+0.5,'Asset data'!$CX120:$GJ120)-Y120-X120-W120,0) -> 0 | AA120: 0 | AB120: 0 | AC120: 0 | AD120: 0 | AE120: 0 | AF120: 0 | AI120: =IF($A120>0,'RRR hist-forc'!K120,0) -> 0 | AJ120: 0
A121: ='Asset data'!A121 -> 0 | B121: ='Asset data'!B121 -> 0 | C121: ='Asset data'!C121 -> 0 | D121: ='Asset data'!E121 -> 0 | E121: 0 | F121: =IF(A121>0,SUM('Asset data'!J121:CV121),0) -> 0 | G121: =IF(A121>0,'Asset data'!F121,0) -> 0 | H121: =IF(A121>0,SUM('Asset data'!CX121:GJ121),0) -> 0 | I121: 0 | J121: 0 | K121: 0 | L121: 0 | M121: =IF($A121>0,SUMPRODUCT('Age profile (years)'!$CT121:$GF121,'Asset data'!$CX121:$GJ121)/H121-0.5,0) -> 0 | N121: 0 | O121: =IF($A121>0,'Asset data'!G121,0) -> 0 | P121: 0 | Q121: 0 | R121: 0 | S121: 0 | T121: 0 | U121: 0 | W121: =IF($A121>0,SUMIF('Age profile (years)'!$CT121:$GF121,"<" & R121+0.5,'Asset data'!$CX121:$GJ121),0) -> 0 | X121: =IF($A121>0,SUMIF('Age profile (years)'!$CT121:$GF121,"<" & S121+0.5,'Asset data'!$CX121:$GJ121)-W121,0) -> 0 | Y121: =IF($A121>0,SUMIF('Age profile (years)'!$CT121:$GF121,"<" & T121+0.5,'Asset data'!$CX121:$GJ121)-X121-W121,0) -> 0 | Z121: =IF($A121>0,SUMIF('Age profile (years)'!$CT121:$GF121,"<" & U121+0.5,'Asset data'!$CX121:$GJ121)-Y121-X121-W121,0) -> 0 | AA121: 0 | AB121: 0 | AC121: 0 | AD121: 0 | AE121: 0 | AF121: 0 | AI121: =IF($A121>0,'RRR hist-forc'!K121,0) -> 0 | AJ121: 0
A122: ='Asset data'!A122 -> 0 | B122: ='Asset data'!B122 -> 0 | C122: ='Asset data'!C122 -> 0 | D122: ='Asset data'!E122 -> 0 | E122: 0 | F122: =IF(A122>0,SUM('Asset data'!J122:CV122),0) -> 0 | G122: =IF(A122>0,'Asset data'!F122,0) -> 0 | H122: =IF(A122>0,SUM('Asset data'!CX122:GJ122),0) -> 0 | I122: 0 | J122: 0 | K122: 0 | L122: 0 | M122: =IF($A122>0,SUMPRODUCT('Age profile (years)'!$CT122:$GF122,'Asset data'!$CX122:$GJ122)/H122-0.5,0) -> 0 | N122: 0 | O122: =IF($A122>0,'Asset data'!G122,0) -> 0 | P122: 0 | Q122: 0 | R122: 0 | S122: 0 | T122: 0 | U122: 0 | W122: =IF($A122>0,SUMIF('Age profile (years)'!$CT122:$GF122,"<" & R122+0.5,'Asset data'!$CX122:$GJ122),0) -> 0 | X122: =IF($A122>0,SUMIF('Age profile (years)'!$CT122:$GF122,"<" & S122+0.5,'Asset data'!$CX122:$GJ122)-W122,0) -> 0 | Y122: =IF($A122>0,SUMIF('Age profile (years)'!$CT122:$GF122,"<" & T122+0.5,'Asset data'!$CX122:$GJ122)-X122-W122,0) -> 0 | Z122: =IF($A122>0,SUMIF('Age profile (years)'!$CT122:$GF122,"<" & U122+0.5,'Asset data'!$CX122:$GJ122)-Y122-X122-W122,0) -> 0 | AA122: 0 | AB122: 0 | AC122: 0 | AD122: 0 | AE122: 0 | AF122: 0 | AI122: =IF($A122>0,'RRR hist-forc'!K122,0) -> 0 | AJ122: 0
A123: ='Asset data'!A123 -> 0 | B123: ='Asset data'!B123 -> 0 | C123: ='Asset data'!C123 -> 0 | D123: ='Asset data'!E123 -> 0 | E123: 0 | F123: =IF(A123>0,SUM('Asset data'!J123:CV123),0) -> 0 | G123: =IF(A123>0,'Asset data'!F123,0) -> 0 | H123: =IF(A123>0,SUM('Asset data'!CX123:GJ123),0) -> 0 | I123: 0 | J123: 0 | K123: 0 | L123: 0 | M123: =IF($A123>0,SUMPRODUCT('Age profile (years)'!$CT123:$GF123,'Asset data'!$CX123:$GJ123)/H123-0.5,0) -> 0 | N123: 0 | O123: =IF($A123>0,'Asset data'!G123,0) -> 0 | P123: 0 | Q123: 0 | R123: 0 | S123: 0 | T123: 0 | U123: 0 | W123: =IF($A123>0,SUMIF('Age profile (years)'!$CT123:$GF123,"<" & R123+0.5,'Asset data'!$CX123:$GJ123),0) -> 0 | X123: =IF($A123>0,SUMIF('Age profile (years)'!$CT123:$GF123,"<" & S123+0.5,'Asset data'!$CX123:$GJ123)-W123,0) -> 0 | Y123: =IF($A123>0,SUMIF('Age profile (years)'!$CT123:$GF123,"<" & T123+0.5,'Asset data'!$CX123:$GJ123)-X123-W123,0) -> 0 | Z123: =IF($A123>0,SUMIF('Age profile (years)'!$CT123:$GF123,"<" & U123+0.5,'Asset data'!$CX123:$GJ123)-Y123-X123-W123,0) -> 0 | AA123: 0 | AB123: 0 | AC123: 0 | AD123: 0 | AE123: 0 | AF123: 0 | AI123: =IF($A123>0,'RRR hist-forc'!K123,0) -> 0 | AJ123: 0
A124: ='Asset data'!A124 -> 0 | B124: ='Asset data'!B124 -> 0 | C124: ='Asset data'!C124 -> 0 | D124: ='Asset data'!E124 -> 0 | E124: 0 | F124: =IF(A124>0,SUM('Asset data'!J124:CV124),0) -> 0 | G124: =IF(A124>0,'Asset data'!F124,0) -> 0 | H124: =IF(A124>0,SUM('Asset data'!CX124:GJ124),0) -> 0 | I124: 0 | J124: 0 | K124: 0 | L124: 0 | M124: =IF($A124>0,SUMPRODUCT('Age profile (years)'!$CT124:$GF124,'Asset data'!$CX124:$GJ124)/H124-0.5,0) -> 0 | N124: 0 | O124: =IF($A124>0,'Asset data'!G124,0) -> 0 | P124: 0 | Q124: 0 | R124: 0 | S124: 0 | T124: 0 | U124: 0 | W124: =IF($A124>0,SUMIF('Age profile (years)'!$CT124:$GF124,"<" & R124+0.5,'Asset data'!$CX124:$GJ124),0) -> 0 | X124: =IF($A124>0,SUMIF('Age profile (years)'!$CT124:$GF124,"<" & S124+0.5,'Asset data'!$CX124:$GJ124)-W124,0) -> 0 | Y124: =IF($A124>0,SUMIF('Age profile (years)'!$CT124:$GF124,"<" & T124+0.5,'Asset data'!$CX124:$GJ124)-X124-W124,0) -> 0 | Z124: =IF($A124>0,SUMIF('Age profile (years)'!$CT124:$GF124,"<" & U124+0.5,'Asset data'!$CX124:$GJ124)-Y124-X124-W124,0) -> 0 | AA124: 0 | AB124: 0 | AC124: 0 | AD124: 0 | AE124: 0 | AF124: 0 | AI124: =IF($A124>0,'RRR hist-forc'!K124,0) -> 0 | AJ124: 0
A125: ='Asset data'!A125 -> 0 | B125: ='Asset data'!B125 -> 0 | C125: ='Asset data'!C125 -> 0 | D125: ='Asset data'!E125 -> 0 | E125: 0 | F125: =IF(A125>0,SUM('Asset data'!J125:CV125),0) -> 0 | G125: =IF(A125>0,'Asset data'!F125,0) -> 0 | H125: =IF(A125>0,SUM('Asset data'!CX125:GJ125),0) -> 0 | I125: 0 | J125: 0 | K125: 0 | L125: 0 | M125: =IF($A125>0,SUMPRODUCT('Age profile (years)'!$CT125:$GF125,'Asset data'!$CX125:$GJ125)/H125-0.5,0) -> 0 | N125: 0 | O125: =IF($A125>0,'Asset data'!G125,0) -> 0 | P125: 0 | Q125: 0 | R125: 0 | S125: 0 | T125: 0 | U125: 0 | W125: =IF($A125>0,SUMIF('Age profile (years)'!$CT125:$GF125,"<" & R125+0.5,'Asset data'!$CX125:$GJ125),0) -> 0 | X125: =IF($A125>0,SUMIF('Age profile (years)'!$CT125:$GF125,"<" & S125+0.5,'Asset data'!$CX125:$GJ125)-W125,0) -> 0 | Y125: =IF($A125>0,SUMIF('Age profile (years)'!$CT125:$GF125,"<" & T125+0.5,'Asset data'!$CX125:$GJ125)-X125-W125,0) -> 0 | Z125: =IF($A125>0,SUMIF('Age profile (years)'!$CT125:$GF125,"<" & U125+0.5,'Asset data'!$CX125:$GJ125)-Y125-X125-W125,0) -> 0 | AA125: 0 | AB125: 0 | AC125: 0 | AD125: 0 | AE125: 0 | AF125: 0 | AI125: =IF($A125>0,'RRR hist-forc'!K125,0) -> 0 | AJ125: 0
A126: ='Asset data'!A126 -> 0 | B126: ='Asset data'!B126 -> 0 | C126: ='Asset data'!C126 -> 0 | D126: ='Asset data'!E126 -> 0 | E126: 0 | F126: =IF(A126>0,SUM('Asset data'!J126:CV126),0) -> 0 | G126: =IF(A126>0,'Asset data'!F126,0) -> 0 | H126: =IF(A126>0,SUM('Asset data'!CX126:GJ126),0) -> 0 | I126: 0 | J126: 0 | K126: 0 | L126: 0 | M126: =IF($A126>0,SUMPRODUCT('Age profile (years)'!$CT126:$GF126,'Asset data'!$CX126:$GJ126)/H126-0.5,0) -> 0 | N126: 0 | O126: =IF($A126>0,'Asset data'!G126,0) -> 0 | P126: 0 | Q126: 0 | R126: 0 | S126: 0 | T126: 0 | U126: 0 | W126: =IF($A126>0,SUMIF('Age profile (years)'!$CT126:$GF126,"<" & R126+0.5,'Asset data'!$CX126:$GJ126),0) -> 0 | X126: =IF($A126>0,SUMIF('Age profile (years)'!$CT126:$GF126,"<" & S126+0.5,'Asset data'!$CX126:$GJ126)-W126,0) -> 0 | Y126: =IF($A126>0,SUMIF('Age profile (years)'!$CT126:$GF126,"<" & T126+0.5,'Asset data'!$CX126:$GJ126)-X126-W126,0) -> 0 | Z126: =IF($A126>0,SUMIF('Age profile (years)'!$CT126:$GF126,"<" & U126+0.5,'Asset data'!$CX126:$GJ126)-Y126-X126-W126,0) -> 0 | AA126: 0 | AB126: 0 | AC126: 0 | AD126: 0 | AE126: 0 | AF126: 0 | AI126: =IF($A126>0,'RRR hist-forc'!K126,0) -> 0 | AJ126: 0
A127: ='Asset data'!A127 -> 0 | B127: ='Asset data'!B127 -> 0 | C127: ='Asset data'!C127 -> 0 | D127: ='Asset data'!E127 -> 0 | E127: 0 | F127: =IF(A127>0,SUM('Asset data'!J127:CV127),0) -> 0 | G127: =IF(A127>0,'Asset data'!F127,0) -> 0 | H127: =IF(A127>0,SUM('Asset data'!CX127:GJ127),0) -> 0 | I127: 0 | J127: 0 | K127: 0 | L127: 0 | M127: =IF($A127>0,SUMPRODUCT('Age profile (years)'!$CT127:$GF127,'Asset data'!$CX127:$GJ127)/H127-0.5,0) -> 0 | N127: 0 | O127: =IF($A127>0,'Asset data'!G127,0) -> 0 | P127: 0 | Q127: 0 | R127: 0 | S127: 0 | T127: 0 | U127: 0 | W127: =IF($A127>0,SUMIF('Age profile (years)'!$CT127:$GF127,"<" & R127+0.5,'Asset data'!$CX127:$GJ127),0) -> 0 | X127: =IF($A127>0,SUMIF('Age profile (years)'!$CT127:$GF127,"<" & S127+0.5,'Asset data'!$CX127:$GJ127)-W127,0) -> 0 | Y127: =IF($A127>0,SUMIF('Age profile (years)'!$CT127:$GF127,"<" & T127+0.5,'Asset data'!$CX127:$GJ127)-X127-W127,0) -> 0 | Z127: =IF($A127>0,SUMIF('Age profile (years)'!$CT127:$GF127,"<" & U127+0.5,'Asset data'!$CX127:$GJ127)-Y127-X127-W127,0) -> 0 | AA127: 0 | AB127: 0 | AC127: 0 | AD127: 0 | AE127: 0 | AF127: 0 | AI127: =IF($A127>0,'RRR hist-forc'!K127,0) -> 0 | AJ127: 0
A128: ='Asset data'!A128 -> 0 | B128: ='Asset data'!B128 -> 0 | C128: ='Asset data'!C128 -> 0 | D128: ='Asset data'!E128 -> 0 | E128: 0 | F128: =IF(A128>0,SUM('Asset data'!J128:CV128),0) -> 0 | G128: =IF(A128>0,'Asset data'!F128,0) -> 0 | H128: =IF(A128>0,SUM('Asset data'!CX128:GJ128),0) -> 0 | I128: 0 | J128: 0 | K128: 0 | L128: 0 | M128: =IF($A128>0,SUMPRODUCT('Age profile (years)'!$CT128:$GF128,'Asset data'!$CX128:$GJ128)/H128-0.5,0) -> 0 | N128: 0 | O128: =IF($A128>0,'Asset data'!G128,0) -> 0 | P128: 0 | Q128: 0 | R128: 0 | S128: 0 | T128: 0 | U128: 0 | W128: =IF($A128>0,SUMIF('Age profile (years)'!$CT128:$GF128,"<" & R128+0.5,'Asset data'!$CX128:$GJ128),0) -> 0 | X128: =IF($A128>0,SUMIF('Age profile (years)'!$CT128:$GF128,"<" & S128+0.5,'Asset data'!$CX128:$GJ128)-W128,0) -> 0 | Y128: =IF($A128>0,SUMIF('Age profile (years)'!$CT128:$GF128,"<" & T128+0.5,'Asset data'!$CX128:$GJ128)-X128-W128,0) -> 0 | Z128: =IF($A128>0,SUMIF('Age profile (years)'!$CT128:$GF128,"<" & U128+0.5,'Asset data'!$CX128:$GJ128)-Y128-X128-W128,0) -> 0 | AA128: 0 | AB128: 0 | AC128: 0 | AD128: 0 | AE128: 0 | AF128: 0 | AI128: =IF($A128>0,'RRR hist-forc'!K128,0) -> 0 | AJ128: 0
A129: ='Asset data'!A129 -> 0 | B129: ='Asset data'!B129 -> 0 | C129: ='Asset data'!C129 -> 0 | D129: ='Asset data'!E129 -> 0 | E129: 0 | F129: =IF(A129>0,SUM('Asset data'!J129:CV129),0) -> 0 | G129: =IF(A129>0,'Asset data'!F129,0) -> 0 | H129: =IF(A129>0,SUM('Asset data'!CX129:GJ129),0) -> 0 | I129: 0 | J129: 0 | K129: 0 | L129: 0 | M129: =IF($A129>0,SUMPRODUCT('Age profile (years)'!$CT129:$GF129,'Asset data'!$CX129:$GJ129)/H129-0.5,0) -> 0 | N129: 0 | O129: =IF($A129>0,'Asset data'!G129,0) -> 0 | P129: 0 | Q129: 0 | R129: 0 | S129: 0 | T129: 0 | U129: 0 | W129: =IF($A129>0,SUMIF('Age profile (years)'!$CT129:$GF129,"<" & R129+0.5,'Asset data'!$CX129:$GJ129),0) -> 0 | X129: =IF($A129>0,SUMIF('Age profile (years)'!$CT129:$GF129,"<" & S129+0.5,'Asset data'!$CX129:$GJ129)-W129,0) -> 0 | Y129: =IF($A129>0,SUMIF('Age profile (years)'!$CT129:$GF129,"<" & T129+0.5,'Asset data'!$CX129:$GJ129)-X129-W129,0) -> 0 | Z129: =IF($A129>0,SUMIF('Age profile (years)'!$CT129:$GF129,"<" & U129+0.5,'Asset data'!$CX129:$GJ129)-Y129-X129-W129,0) -> 0 | AA129: 0 | AB129: 0 | AC129: 0 | AD129: 0 | AE129: 0 | AF129: 0 | AI129: =IF($A129>0,'RRR hist-forc'!K129,0) -> 0 | AJ129: 0
A130: ='Asset data'!A130 -> 0 | B130: ='Asset data'!B130 -> 0 | C130: ='Asset data'!C130 -> 0 | D130: ='Asset data'!E130 -> 0 | E130: 0 | F130: =IF(A130>0,SUM('Asset data'!J130:CV130),0) -> 0 | G130: =IF(A130>0,'Asset data'!F130,0) -> 0 | H130: =IF(A130>0,SUM('Asset data'!CX130:GJ130),0) -> 0 | I130: 0 | J130: 0 | K130: 0 | L130: 0 | M130: =IF($A130>0,SUMPRODUCT('Age profile (years)'!$CT130:$GF130,'Asset data'!$CX130:$GJ130)/H130-0.5,0) -> 0 | N130: 0 | O130: =IF($A130>0,'Asset data'!G130,0) -> 0 | P130: 0 | Q130: 0 | R130: 0 | S130: 0 | T130: 0 | U130: 0 | W130: =IF($A130>0,SUMIF('Age profile (years)'!$CT130:$GF130,"<" & R130+0.5,'Asset data'!$CX130:$GJ130),0) -> 0 | X130: =IF($A130>0,SUMIF('Age profile (years)'!$CT130:$GF130,"<" & S130+0.5,'Asset data'!$CX130:$GJ130)-W130,0) -> 0 | Y130: =IF($A130>0,SUMIF('Age profile (years)'!$CT130:$GF130,"<" & T130+0.5,'Asset data'!$CX130:$GJ130)-X130-W130,0) -> 0 | Z130: =IF($A130>0,SUMIF('Age profile (years)'!$CT130:$GF130,"<" & U130+0.5,'Asset data'!$CX130:$GJ130)-Y130-X130-W130,0) -> 0 | AA130: 0 | AB130: 0 | AC130: 0 | AD130: 0 | AE130: 0 | AF130: 0 | AI130: =IF($A130>0,'RRR hist-forc'!K130,0) -> 0 | AJ130: 0
A131: ='Asset data'!A131 -> 0 | B131: ='Asset data'!B131 -> 0 | C131: ='Asset data'!C131 -> 0 | D131: ='Asset data'!E131 -> 0 | E131: 0 | F131: =IF(A131>0,SUM('Asset data'!J131:CV131),0) -> 0 | G131: =IF(A131>0,'Asset data'!F131,0) -> 0 | H131: =IF(A131>0,SUM('Asset data'!CX131:GJ131),0) -> 0 | I131: 0 | J131: 0 | K131: 0 | L131: 0 | M131: =IF($A131>0,SUMPRODUCT('Age profile (years)'!$CT131:$GF131,'Asset data'!$CX131:$GJ131)/H131-0.5,0) -> 0 | N131: 0 | O131: =IF($A131>0,'Asset data'!G131,0) -> 0 | P131: 0 | Q131: 0 | R131: 0 | S131: 0 | T131: 0 | U131: 0 | W131: =IF($A131>0,SUMIF('Age profile (years)'!$CT131:$GF131,"<" & R131+0.5,'Asset data'!$CX131:$GJ131),0) -> 0 | X131: =IF($A131>0,SUMIF('Age profile (years)'!$CT131:$GF131,"<" & S131+0.5,'Asset data'!$CX131:$GJ131)-W131,0) -> 0 | Y131: =IF($A131>0,SUMIF('Age profile (years)'!$CT131:$GF131,"<" & T131+0.5,'Asset data'!$CX131:$GJ131)-X131-W131,0) -> 0 | Z131: =IF($A131>0,SUMIF('Age profile (years)'!$CT131:$GF131,"<" & U131+0.5,'Asset data'!$CX131:$GJ131)-Y131-X131-W131,0) -> 0 | AA131: 0 | AB131: 0 | AC131: 0 | AD131: 0 | AE131: 0 | AF131: 0 | AI131: =IF($A131>0,'RRR hist-forc'!K131,0) -> 0 | AJ131: 0
A132: ='Asset data'!A132 -> 0 | B132: ='Asset data'!B132 -> 0 | C132: ='Asset data'!C132 -> 0 | D132: ='Asset data'!E132 -> 0 | E132: 0 | F132: =IF(A132>0,SUM('Asset data'!J132:CV132),0) -> 0 | G132: =IF(A132>0,'Asset data'!F132,0) -> 0 | H132: =IF(A132>0,SUM('Asset data'!CX132:GJ132),0) -> 0 | I132: 0 | J132: 0 | K132: 0 | L132: 0 | M132: =IF($A132>0,SUMPRODUCT('Age profile (years)'!$CT132:$GF132,'Asset data'!$CX132:$GJ132)/H132-0.5,0) -> 0 | N132: 0 | O132: =IF($A132>0,'Asset data'!G132,0) -> 0 | P132: 0 | Q132: 0 | R132: 0 | S132: 0 | T132: 0 | U132: 0 | W132: =IF($A132>0,SUMIF('Age profile (years)'!$CT132:$GF132,"<" & R132+0.5,'Asset data'!$CX132:$GJ132),0) -> 0 | X132: =IF($A132>0,SUMIF('Age profile (years)'!$CT132:$GF132,"<" & S132+0.5,'Asset data'!$CX132:$GJ132)-W132,0) -> 0 | Y132: =IF($A132>0,SUMIF('Age profile (years)'!$CT132:$GF132,"<" & T132+0.5,'Asset data'!$CX132:$GJ132)-X132-W132,0) -> 0 | Z132: =IF($A132>0,SUMIF('Age profile (years)'!$CT132:$GF132,"<" & U132+0.5,'Asset data'!$CX132:$GJ132)-Y132-X132-W132,0) -> 0 | AA132: 0 | AB132: 0 | AC132: 0 | AD132: 0 | AE132: 0 | AF132: 0 | AI132: =IF($A132>0,'RRR hist-forc'!K132,0) -> 0 | AJ132: 0
A133: ='Asset data'!A133 -> 0 | B133: ='Asset data'!B133 -> 0 | C133: ='Asset data'!C133 -> 0 | D133: ='Asset data'!E133 -> 0 | E133: 0 | F133: =IF(A133>0,SUM('Asset data'!J133:CV133),0) -> 0 | G133: =IF(A133>0,'Asset data'!F133,0) -> 0 | H133: =IF(A133>0,SUM('Asset data'!CX133:GJ133),0) -> 0 | I133: 0 | J133: 0 | K133: 0 | L133: 0 | M133: =IF($A133>0,SUMPRODUCT('Age profile (years)'!$CT133:$GF133,'Asset data'!$CX133:$GJ133)/H133-0.5,0) -> 0 | N133: 0 | O133: =IF($A133>0,'Asset data'!G133,0) -> 0 | P133: 0 | Q133: 0 | R133: 0 | S133: 0 | T133: 0 | U133: 0 | W133: =IF($A133>0,SUMIF('Age profile (years)'!$CT133:$GF133,"<" & R133+0.5,'Asset data'!$CX133:$GJ133),0) -> 0 | X133: =IF($A133>0,SUMIF('Age profile (years)'!$CT133:$GF133,"<" & S133+0.5,'Asset data'!$CX133:$GJ133)-W133,0) -> 0 | Y133: =IF($A133>0,SUMIF('Age profile (years)'!$CT133:$GF133,"<" & T133+0.5,'Asset data'!$CX133:$GJ133)-X133-W133,0) -> 0 | Z133: =IF($A133>0,SUMIF('Age profile (years)'!$CT133:$GF133,"<" & U133+0.5,'Asset data'!$CX133:$GJ133)-Y133-X133-W133,0) -> 0 | AA133: 0 | AB133: 0 | AC133: 0 | AD133: 0 | AE133: 0 | AF133: 0 | AI133: =IF($A133>0,'RRR hist-forc'!K133,0) -> 0 | AJ133: 0
A134: ='Asset data'!A134 -> 0 | B134: ='Asset data'!B134 -> 0 | C134: ='Asset data'!C134 -> 0 | D134: ='Asset data'!E134 -> 0 | E134: 0 | F134: =IF(A134>0,SUM('Asset data'!J134:CV134),0) -> 0 | G134: =IF(A134>0,'Asset data'!F134,0) -> 0 | H134: =IF(A134>0,SUM('Asset data'!CX134:GJ134),0) -> 0 | I134: 0 | J134: 0 | K134: 0 | L134: 0 | M134: =IF($A134>0,SUMPRODUCT('Age profile (years)'!$CT134:$GF134,'Asset data'!$CX134:$GJ134)/H134-0.5,0) -> 0 | N134: 0 | O134: =IF($A134>0,'Asset data'!G134,0) -> 0 | P134: 0 | Q134: 0 | R134: 0 | S134: 0 | T134: 0 | U134: 0 | W134: =IF($A134>0,SUMIF('Age profile (years)'!$CT134:$GF134,"<" & R134+0.5,'Asset data'!$CX134:$GJ134),0) -> 0 | X134: =IF($A134>0,SUMIF('Age profile (years)'!$CT134:$GF134,"<" & S134+0.5,'Asset data'!$CX134:$GJ134)-W134,0) -> 0 | Y134: =IF($A134>0,SUMIF('Age profile (years)'!$CT134:$GF134,"<" & T134+0.5,'Asset data'!$CX134:$GJ134)-X134-W134,0) -> 0 | Z134: =IF($A134>0,SUMIF('Age profile (years)'!$CT134:$GF134,"<" & U134+0.5,'Asset data'!$CX134:$GJ134)-Y134-X134-W134,0) -> 0 | AA134: 0 | AB134: 0 | AC134: 0 | AD134: 0 | AE134: 0 | AF134: 0 | AI134: =IF($A134>0,'RRR hist-forc'!K134,0) -> 0 | AJ134: 0
A135: ='Asset data'!A135 -> 0 | B135: ='Asset data'!B135 -> 0 | C135: ='Asset data'!C135 -> 0 | D135: ='Asset data'!E135 -> 0 | E135: 0 | F135: =IF(A135>0,SUM('Asset data'!J135:CV135),0) -> 0 | G135: =IF(A135>0,'Asset data'!F135,0) -> 0 | H135: =IF(A135>0,SUM('Asset data'!CX135:GJ135),0) -> 0 | I135: 0 | J135: 0 | K135: 0 | L135: 0 | M135: =IF($A135>0,SUMPRODUCT('Age profile (years)'!$CT135:$GF135,'Asset data'!$CX135:$GJ135)/H135-0.5,0) -> 0 | N135: 0 | O135: =IF($A135>0,'Asset data'!G135,0) -> 0 | P135: 0 | Q135: 0 | R135: 0 | S135: 0 | T135: 0 | U135: 0 | W135: =IF($A135>0,SUMIF('Age profile (years)'!$CT135:$GF135,"<" & R135+0.5,'Asset data'!$CX135:$GJ135),0) -> 0 | X135: =IF($A135>0,SUMIF('Age profile (years)'!$CT135:$GF135,"<" & S135+0.5,'Asset data'!$CX135:$GJ135)-W135,0) -> 0 | Y135: =IF($A135>0,SUMIF('Age profile (years)'!$CT135:$GF135,"<" & T135+0.5,'Asset data'!$CX135:$GJ135)-X135-W135,0) -> 0 | Z135: =IF($A135>0,SUMIF('Age profile (years)'!$CT135:$GF135,"<" & U135+0.5,'Asset data'!$CX135:$GJ135)-Y135-X135-W135,0) -> 0 | AA135: 0 | AB135: 0 | AC135: 0 | AD135: 0 | AE135: 0 | AF135: 0 | AI135: =IF($A135>0,'RRR hist-forc'!K135,0) -> 0 | AJ135: 0
A136: ='Asset data'!A136 -> 0 | B136: ='Asset data'!B136 -> 0 | C136: ='Asset data'!C136 -> 0 | D136: ='Asset data'!E136 -> 0 | E136: 0 | F136: =IF(A136>0,SUM('Asset data'!J136:CV136),0) -> 0 | G136: =IF(A136>0,'Asset data'!F136,0) -> 0 | H136: =IF(A136>0,SUM('Asset data'!CX136:GJ136),0) -> 0 | I136: 0 | J136: 0 | K136: 0 | L136: 0 | M136: =IF($A136>0,SUMPRODUCT('Age profile (years)'!$CT136:$GF136,'Asset data'!$CX136:$GJ136)/H136-0.5,0) -> 0 | N136: 0 | O136: =IF($A136>0,'Asset data'!G136,0) -> 0 | P136: 0 | Q136: 0 | R136: 0 | S136: 0 | T136: 0 | U136: 0 | W136: =IF($A136>0,SUMIF('Age profile (years)'!$CT136:$GF136,"<" & R136+0.5,'Asset data'!$CX136:$GJ136),0) -> 0 | X136: =IF($A136>0,SUMIF('Age profile (years)'!$CT136:$GF136,"<" & S136+0.5,'Asset data'!$CX136:$GJ136)-W136,0) -> 0 | Y136: =IF($A136>0,SUMIF('Age profile (years)'!$CT136:$GF136,"<" & T136+0.5,'Asset data'!$CX136:$GJ136)-X136-W136,0) -> 0 | Z136: =IF($A136>0,SUMIF('Age profile (years)'!$CT136:$GF136,"<" & U136+0.5,'Asset data'!$CX136:$GJ136)-Y136-X136-W136,0) -> 0 | AA136: 0 | AB136: 0 | AC136: 0 | AD136: 0 | AE136: 0 | AF136: 0 | AI136: =IF($A136>0,'RRR hist-forc'!K136,0) -> 0 | AJ136: 0
A137: ='Asset data'!A137 -> 0 | B137: ='Asset data'!B137 -> 0 | C137: ='Asset data'!C137 -> 0 | D137: ='Asset data'!E137 -> 0 | E137: 0 | F137: =IF(A137>0,SUM('Asset data'!J137:CV137),0) -> 0 | G137: =IF(A137>0,'Asset data'!F137,0) -> 0 | H137: =IF(A137>0,SUM('Asset data'!CX137:GJ137),0) -> 0 | I137: 0 | J137: 0 | K137: 0 | L137: 0 | M137: =IF($A137>0,SUMPRODUCT('Age profile (years)'!$CT137:$GF137,'Asset data'!$CX137:$GJ137)/H137-0.5,0) -> 0 | N137: 0 | O137: =IF($A137>0,'Asset data'!G137,0) -> 0 | P137: 0 | Q137: 0 | R137: 0 | S137: 0 | T137: 0 | U137: 0 | W137: =IF($A137>0,SUMIF('Age profile (years)'!$CT137:$GF137,"<" & R137+0.5,'Asset data'!$CX137:$GJ137),0) -> 0 | X137: =IF($A137>0,SUMIF('Age profile (years)'!$CT137:$GF137,"<" & S137+0.5,'Asset data'!$CX137:$GJ137)-W137,0) -> 0 | Y137: =IF($A137>0,SUMIF('Age profile (years)'!$CT137:$GF137,"<" & T137+0.5,'Asset data'!$CX137:$GJ137)-X137-W137,0) -> 0 | Z137: =IF($A137>0,SUMIF('Age profile (years)'!$CT137:$GF137,"<" & U137+0.5,'Asset data'!$CX137:$GJ137)-Y137-X137-W137,0) -> 0 | AA137: 0 | AB137: 0 | AC137: 0 | AD137: 0 | AE137: 0 | AF137: 0 | AI137: =IF($A137>0,'RRR hist-forc'!K137,0) -> 0 | AJ137: 0
A138: ='Asset data'!A138 -> 0 | B138: ='Asset data'!B138 -> 0 | C138: ='Asset data'!C138 -> 0 | D138: ='Asset data'!E138 -> 0 | E138: 0 | F138: =IF(A138>0,SUM('Asset data'!J138:CV138),0) -> 0 | G138: =IF(A138>0,'Asset data'!F138,0) -> 0 | H138: =IF(A138>0,SUM('Asset data'!CX138:GJ138),0) -> 0 | I138: 0 | J138: 0 | K138: 0 | L138: 0 | M138: =IF($A138>0,SUMPRODUCT('Age profile (years)'!$CT138:$GF138,'Asset data'!$CX138:$GJ138)/H138-0.5,0) -> 0 | N138: 0 | O138: =IF($A138>0,'Asset data'!G138,0) -> 0 | P138: 0 | Q138: 0 | R138: 0 | S138: 0 | T138: 0 | U138: 0 | W138: =IF($A138>0,SUMIF('Age profile (years)'!$CT138:$GF138,"<" & R138+0.5,'Asset data'!$CX138:$GJ138),0) -> 0 | X138: =IF($A138>0,SUMIF('Age profile (years)'!$CT138:$GF138,"<" & S138+0.5,'Asset data'!$CX138:$GJ138)-W138,0) -> 0 | Y138: =IF($A138>0,SUMIF('Age profile (years)'!$CT138:$GF138,"<" & T138+0.5,'Asset data'!$CX138:$GJ138)-X138-W138,0) -> 0 | Z138: =IF($A138>0,SUMIF('Age profile (years)'!$CT138:$GF138,"<" & U138+0.5,'Asset data'!$CX138:$GJ138)-Y138-X138-W138,0) -> 0 | AA138: 0 | AB138: 0 | AC138: 0 | AD138: 0 | AE138: 0 | AF138: 0 | AI138: =IF($A138>0,'RRR hist-forc'!K138,0) -> 0 | AJ138: 0
A139: ='Asset data'!A139 -> 0 | B139: ='Asset data'!B139 -> 0 | C139: ='Asset data'!C139 -> 0 | D139: ='Asset data'!E139 -> 0 | E139: 0 | F139: =IF(A139>0,SUM('Asset data'!J139:CV139),0) -> 0 | G139: =IF(A139>0,'Asset data'!F139,0) -> 0 | H139: =IF(A139>0,SUM('Asset data'!CX139:GJ139),0) -> 0 | I139: 0 | J139: 0 | K139: 0 | L139: 0 | M139: =IF($A139>0,SUMPRODUCT('Age profile (years)'!$CT139:$GF139,'Asset data'!$CX139:$GJ139)/H139-0.5,0) -> 0 | N139: 0 | O139: =IF($A139>0,'Asset data'!G139,0) -> 0 | P139: 0 | Q139: 0 | R139: 0 | S139: 0 | T139: 0 | U139: 0 | W139: =IF($A139>0,SUMIF('Age profile (years)'!$CT139:$GF139,"<" & R139+0.5,'Asset data'!$CX139:$GJ139),0) -> 0 | X139: =IF($A139>0,SUMIF('Age profile (years)'!$CT139:$GF139,"<" & S139+0.5,'Asset data'!$CX139:$GJ139)-W139,0) -> 0 | Y139: =IF($A139>0,SUMIF('Age profile (years)'!$CT139:$GF139,"<" & T139+0.5,'Asset data'!$CX139:$GJ139)-X139-W139,0) -> 0 | Z139: =IF($A139>0,SUMIF('Age profile (years)'!$CT139:$GF139,"<" & U139+0.5,'Asset data'!$CX139:$GJ139)-Y139-X139-W139,0) -> 0 | AA139: 0 | AB139: 0 | AC139: 0 | AD139: 0 | AE139: 0 | AF139: 0 | AI139: =IF($A139>0,'RRR hist-forc'!K139,0) -> 0 | AJ139: 0
A140: ='Asset data'!A140 -> 0 | B140: ='Asset data'!B140 -> 0 | C140: ='Asset data'!C140 -> 0 | D140: ='Asset data'!E140 -> 0 | E140: 0 | F140: =IF(A140>0,SUM('Asset data'!J140:CV140),0) -> 0 | G140: =IF(A140>0,'Asset data'!F140,0) -> 0 | H140: =IF(A140>0,SUM('Asset data'!CX140:GJ140),0) -> 0 | I140: 0 | J140: 0 | K140: 0 | L140: 0 | M140: =IF($A140>0,SUMPRODUCT('Age profile (years)'!$CT140:$GF140,'Asset data'!$CX140:$GJ140)/H140-0.5,0) -> 0 | N140: 0 | O140: =IF($A140>0,'Asset data'!G140,0) -> 0 | P140: 0 | Q140: 0 | R140: 0 | S140: 0 | T140: 0 | U140: 0 | W140: =IF($A140>0,SUMIF('Age profile (years)'!$CT140:$GF140,"<" & R140+0.5,'Asset data'!$CX140:$GJ140),0) -> 0 | X140: =IF($A140>0,SUMIF('Age profile (years)'!$CT140:$GF140,"<" & S140+0.5,'Asset data'!$CX140:$GJ140)-W140,0) -> 0 | Y140: =IF($A140>0,SUMIF('Age profile (years)'!$CT140:$GF140,"<" & T140+0.5,'Asset data'!$CX140:$GJ140)-X140-W140,0) -> 0 | Z140: =IF($A140>0,SUMIF('Age profile (years)'!$CT140:$GF140,"<" & U140+0.5,'Asset data'!$CX140:$GJ140)-Y140-X140-W140,0) -> 0 | AA140: 0 | AB140: 0 | AC140: 0 | AD140: 0 | AE140: 0 | AF140: 0 | AI140: =IF($A140>0,'RRR hist-forc'!K140,0) -> 0 | AJ140: 0
A141: ='Asset data'!A141 -> 0 | B141: ='Asset data'!B141 -> 0 | C141: ='Asset data'!C141 -> 0 | D141: ='Asset data'!E141 -> 0 | E141: 0 | F141: =IF(A141>0,SUM('Asset data'!J141:CV141),0) -> 0 | G141: =IF(A141>0,'Asset data'!F141,0) -> 0 | H141: =IF(A141>0,SUM('Asset data'!CX141:GJ141),0) -> 0 | I141: 0 | J141: 0 | K141: 0 | L141: 0 | M141: =IF($A141>0,SUMPRODUCT('Age profile (years)'!$CT141:$GF141,'Asset data'!$CX141:$GJ141)/H141-0.5,0) -> 0 | N141: 0 | O141: =IF($A141>0,'Asset data'!G141,0) -> 0 | P141: 0 | Q141: 0 | R141: 0 | S141: 0 | T141: 0 | U141: 0 | W141: =IF($A141>0,SUMIF('Age profile (years)'!$CT141:$GF141,"<" & R141+0.5,'Asset data'!$CX141:$GJ141),0) -> 0 | X141: =IF($A141>0,SUMIF('Age profile (years)'!$CT141:$GF141,"<" & S141+0.5,'Asset data'!$CX141:$GJ141)-W141,0) -> 0 | Y141: =IF($A141>0,SUMIF('Age profile (years)'!$CT141:$GF141,"<" & T141+0.5,'Asset data'!$CX141:$GJ141)-X141-W141,0) -> 0 | Z141: =IF($A141>0,SUMIF('Age profile (years)'!$CT141:$GF141,"<" & U141+0.5,'Asset data'!$CX141:$GJ141)-Y141-X141-W141,0) -> 0 | AA141: 0 | AB141: 0 | AC141: 0 | AD141: 0 | AE141: 0 | AF141: 0 | AI141: =IF($A141>0,'RRR hist-forc'!K141,0) -> 0 | AJ141: 0
A142: ='Asset data'!A142 -> 0 | B142: ='Asset data'!B142 -> 0 | C142: ='Asset data'!C142 -> 0 | D142: ='Asset data'!E142 -> 0 | E142: 0 | F142: =IF(A142>0,SUM('Asset data'!J142:CV142),0) -> 0 | G142: =IF(A142>0,'Asset data'!F142,0) -> 0 | H142: =IF(A142>0,SUM('Asset data'!CX142:GJ142),0) -> 0 | I142: 0 | J142: 0 | K142: 0 | L142: 0 | M142: =IF($A142>0,SUMPRODUCT('Age profile (years)'!$CT142:$GF142,'Asset data'!$CX142:$GJ142)/H142-0.5,0) -> 0 | N142: 0 | O142: =IF($A142>0,'Asset data'!G142,0) -> 0 | P142: 0 | Q142: 0 | R142: 0 | S142: 0 | T142: 0 | U142: 0 | W142: =IF($A142>0,SUMIF('Age profile (years)'!$CT142:$GF142,"<" & R142+0.5,'Asset data'!$CX142:$GJ142),0) -> 0 | X142: =IF($A142>0,SUMIF('Age profile (years)'!$CT142:$GF142,"<" & S142+0.5,'Asset data'!$CX142:$GJ142)-W142,0) -> 0 | Y142: =IF($A142>0,SUMIF('Age profile (years)'!$CT142:$GF142,"<" & T142+0.5,'Asset data'!$CX142:$GJ142)-X142-W142,0) -> 0 | Z142: =IF($A142>0,SUMIF('Age profile (years)'!$CT142:$GF142,"<" & U142+0.5,'Asset data'!$CX142:$GJ142)-Y142-X142-W142,0) -> 0 | AA142: 0 | AB142: 0 | AC142: 0 | AD142: 0 | AE142: 0 | AF142: 0 | AI142: =IF($A142>0,'RRR hist-forc'!K142,0) -> 0 | AJ142: 0
AI206: =IF($A206>0,'RRR hist-forc'!K206,0) -> 0 | AJ206: =IF($A206>0,AI206*H206,0) -> 0

Sheet Asset data
A1: Meth all | D1: 3 | E1: =IF(D1=2,"all normal",IF(D1=1,"all deterministic","individual")) -> individual | L1: Profile type: | M1: 3 | N1: =VLOOKUP(APtype,IDtable,4) -> Installation date
F3: Unit | J3: Quantities | CX3: Replacement Cost (NOT depreciated)
F4: Cost | G4: Replacement life | I4: Rep | J4: =VLOOKUP(APtype,IDtable,4) -> Installation date | CX4: =VLOOKUP(APtype,IDtable,4) -> Installation date
A5: ID | B5: ID | C5: ID | D5: Asset category | E5: Asset ID | F5: $ ('000) | G5: mean | H5: SD | I5: Meth | J5: =IF(OR(APtype=1,APtype=2),0,IF(APtype=3,Now,9999)) -> 2014 | K5: =IF(OR(APtype=1,APtype=2),J5+1,IF(APtype=3,J5-1,9999)) -> 2013 | L5: 2012 | M5: 2011 | N5: 2010 | O5: 2009 | P5: 2008 | Q5: 2007 | R5: 2006 | S5: 2005 | T5: 2004 | U5: 2003 | V5: 2002 | W5: 2001 | X5: 2000 | Y5: 1999 | Z5: 1998 | AA5: 1997 | AB5: 1996 | AC5: 1995 | AD5: 1994 | AE5: 1993 | AF5: 1992 | AG5: 1991 | AH5: 1990 | AI5: 1989 | AJ5: 1988 | AK5: 1987 | AL5: 1986 | AM5: 1985 | AN5: 1984 | AO5: 1983 | AP5: 1982 | AQ5: =IF(OR(APtype=1,APtype=2),AP5+1,IF(APtype=3,AP5-1,9999)) -> 1981 | AR5: 1980 | AS5: 1979 | AT5: 1978 | AU5: 1977 | AV5: 1976 | AW5: 1975 | AX5: 1974 | AY5: 1973 | AZ5: 1972 | BA5: 1971 | BB5: 1970 | BC5: 1969 | BD5: 1968 | BE5: 1967 | BF5: 1966 | BG5: 1965 | BH5: 1964 | BI5: 1963 | BJ5: 1962 | BK5: 1961 | BL5: 1960 | BM5: 1959 | BN5: 1958 | BO5: 1957 | BP5: 1956 | BQ5: 1955 | BR5: 1954 | BS5: 1953 | BT5: 1952 | BU5: 1951 | BV5: 1950 | BW5: =IF(OR(APtype=1,APtype=2),BV5+1,IF(APtype=3,BV5-1,9999)) -> 1949 | BX5: 1948 | BY5: 1947 | BZ5: 1946 | CA5: 1945 | CB5: 1944 | CC5: 1943 | CD5: 1942 | CE5: 1941 | CF5: 1940 | CG5: 1939 | CH5: 1938 | CI5: 1937 | CJ5: 1936 | CK5: 1935 | CL5: 1934 | CM5: 1933 | CN5: 1932 | CO5: 1931 | CP5: 1930 | CQ5: 1929 | CR5: 1928 | CS5: 1927 | CT5: 1926 | CU5: 1925 | CV5: 1924 | CX5: =J5 -> 2014 | CY5: =K5 -> 2013 | CZ5: 2012 | DA5: 2011 | DB5: 2010 | DC5: 2009 | DD5: 2008 | DE5: 2007 | DF5: 2006 | DG5: 2005 | DH5: 2004 | DI5: 2003 | DJ5: 2002 | DK5: 2001 | DL5: 2000 | DM5: 1999 | DN5: 1998 | DO5: 1997 | DP5: 1996 | DQ5: 1995 | DR5: 1994 | DS5: 1993 | DT5: 1992 | DU5: 1991 | DV5: 1990 | DW5: 1989 | DX5: 1988 | DY5: 1987 | DZ5: 1986 | EA5: 1985 | EB5: 1984 | EC5: 1983 | ED5: 1982 | EE5: 1981 | EF5: 1980 | EG5: 1979 | EH5: 1978 | EI5: 1977 | EJ5: 1976 | EK5: 1975 | EL5: 1974 | EM5: 1973 | EN5: 1972 | EO5: 1971 | EP5: 1970 | EQ5: 1969 | ER5: 1968 | ES5: 1967 | ET5: 1966 | EU5: 1965 | EV5: 1964 | EW5: 1963 | EX5: 1962 | EY5: 1961 | EZ5: 1960 | FA5: 1959 | FB5: 1958 | FC5: 1957 | FD5: 1956 | FE5: 1955 | FF5: 1954 | FG5: 1953 | FH5: 1952 | FI5: 1951 | FJ5: 1950 | FK5: =BW5 -> 1949 | FL5: 1948 | FM5: 1947 | FN5: 1946 | FO5: 1945 | FP5: 1944 | FQ5: 1943 | FR5: 1942 | FS5: 1941 | FT5: 1940 | FU5: 1939 | FV5: 1938 | FW5: 1937 | FX5: 1936 | FY5: 1935 | FZ5: 1934 | GA5: 1933 | GB5: 1932 | GC5: 1931 | GD5: 1930 | GE5: 1929 | GF5: 1928 | GG5: 1927 | GH5: 1926 | GI5: 1925 | GJ5: 1924
A21: 1 | D21: POLES | E21: Staking of a wooden pole | F21: 11.72071104 | G21: 21.74676522 | H21: 4.663342709 | I21: 2 | J21: 1066 | K21: 1309 | L21: 1133 | M21: 847 | N21: 802 | O21: 512 | P21: 698 | Q21: 1061 | R21: 869 | S21: 966 | T21: 658 | U21: 607 | V21: 560 | W21: 366 | X21: 209 | Y21: 231 | Z21: 163 | AA21: 1679 | AB21: 1495 | AC21: 789 | AD21: 690 | AE21: 495 | AF21: 571 | AG21: 967 | AH21: 1070 | AI21: 1660 | AJ21: 415 | AK21: 146 | AL21: 75 | AM21: 103 | AN21: 59 | AO21: 52 | AP21: 55 | AQ21: 56 | AR21: 58 | AS21: 0 | AT21: 0 | AU21: 0 | AV21: 0 | AW21: 0 | AX21: 0 | AY21: 0 | AZ21: 0 | BA21: 0 | BB21: 0 | BC21: 0 | BD21: 0 | BE21: 0 | BF21: 0 | BG21: 0 | BH21: 0 | BI21: 0 | BJ21: 0 | BK21: 0 | BL21: 0 | BM21: 0 | BN21: 0 | BO21: 0 | BP21: 0 | BQ21: 0 | BR21: 0 | BS21: 0 | BT21: 0 | BU21: 0 | BV21: 0 | BW21: 0 | BX21: 0 | BY21: 0 | BZ21: 0 | CA21: 0 | CB21: 0 | CC21: 0 | CD21: 0 | CE21: 0 | CF21: 0 | CG21: 0 | CH21: 0 | CI21: 0 | CJ21: 0 | CK21: 0 | CL21: 0 | CM21: 0 | CN21: 0 | CO21: 0 | CP21: 0 | CQ21: 0 | CR21: 0 | CS21: 0 | CT21: 0 | CU21: 0 | CV21: 0 | CX21: =$F21*J21 -> 12494.27797 | CY21: =$F21*K21 -> 15342.41075 | CZ21: 13279.56561 | DA21: 9927.442253 | DB21: 9400.010256 | DC21: 6001.004054 | DD21: 8181.056308 | DE21: 12435.67442 | DF21: 10185.2979 | DG21: 11322.20687 | DH21: 7712.227866 | DI21: 7114.471603 | DJ21: 6563.598184 | DK21: 4289.780242 | DL21: 2449.628608 | DM21: 2707.484251 | DN21: 1910.4759 | DO21: 19679.07384 | DP21: 17522.46301 | DQ21: 9247.641013 | DR21: 8087.290619 | DS21: 5801.751966 | DT21: 6692.526005 | DU21: 11333.92758 | DV21: 12541.16082 | DW21: 19456.38033 | DX21: 4864.095083 | DY21: 1711.223812 | DZ21: 879.0533282 | EA21: 1207.233237 | EB21: 691.5219515 | EC21: 609.4769742 | ED21: 644.6391073 | EE21: 656.3598184 | EF21: 679.8012405 | EG21: 0 | EH21: 0 | EI21: 0 | EJ21: 0 | EK21: 0 | EL21: 0 | EM21: 0 | EN21: 0 | EO21: 0 | EP21: 0 | EQ21: 0 | ER21: 0 | ES21: 0 | ET21: 0 | EU21: 0 | EV21: 0 | EW21: 0 | EX21: 0 | EY21: 0 | EZ21: 0 | FA21: 0 | FB21: 0 | FC21: 0 | FD21: 0 | FE21: 0 | FF21: 0 | FG21: 0 | FH21: 0 | FI21: 0 | FJ21: 0 | FK21: =$F21*BW21 -> 0 | FL21: 0 | FM21: 0 | FN21: 0 | FO21: 0 | FP21: 0 | FQ21: 0 | FR21: 0 | FS21: 0 | FT21: 0 | FU21: 0 | FV21: 0 | FW21: 0 | FX21: 0 | FY21: 0 | FZ21: 0 | GA21: 0 | GB21: 0 | GC21: 0 | GD21: 0 | GE21: 0 | GF21: 0 | GG21: 0 | GH21: 0 | GI21: 0 | GJ21: 0
A22: 1 | D22: POLES | E22: ˂ = 1 kV; Wood | F22: 5.037911286 | G22: 69.12631108 | H22: 8.31422342 | I22: 2 | J22: 300 | K22: 417 | L22: 449 | M22: 289 | N22: 393 | O22: 663 | P22: 383 | Q22: 463 | R22: 459 | S22: 630 | T22: 592 | U22: 568 | V22: 482 | W22: 758 | X22: 653 | Y22: 438 | Z22: 50 | AA22: 20 | AB22: 15 | AC22: 8 | AD22: 4 | AE22: 20 | AF22: 17 | AG22: 38 | AH22: 395 | AI22: 1249 | AJ22: 1233 | AK22: 1090 | AL22: 3214 | AM22: 2147 | AN22: 2523 | AO22: 1927 | AP22: 1846 | AQ22: 2016 | AR22: 3695 | AS22: 1879 | AT22: 2259 | AU22: 1849 | AV22: 3538 | AW22: 3185 | AX22: 2581 | AY22: 3219 | AZ22: 2705 | BA22: 2159 | BB22: 2378 | BC22: 3236 | BD22: 3156 | BE22: 3253 | BF22: 2241 | BG22: 2575 | BH22: 2581 | BI22: 1548 | BJ22: 1788 | BK22: 1581 | BL22: 1484 | BM22: 1185 | BN22: 1115 | BO22: 1181 | BP22: 322 | BQ22: 469 | BR22: 420 | BS22: 463 | BT22: 594 | BU22: 446 | BV22: 768 | BW22: 298 | BX22: 198 | BY22: 150 | BZ22: 136 | CA22: 105 | CB22: 35 | CC22: 29 | CD22: 130 | CE22: 400 | CF22: 918 | CG22: 496 | CH22: 857 | CI22: 234 | CJ22: 181 | CK22: 68 | CL22: 137 | CM22: 71 | CN22: 28 | CO22: 16 | CP22: 21 | CQ22: 0 | CR22: 0 | CS22: 0 | CT22: 0 | CU22: 0 | CV22: 0 | CX22: =$F22*J22 -> 1511.373386 | CY22: =$F22*K22 -> 2100.809006 | CZ22: =$F22*L22 -> 2262.022167 | DA22: =$F22*M22 -> 1455.956362 | DB22: =$F22*N22 -> 1979.899135 | DC22: =$F22*O22 -> 3340.135182 | DD22: =$F22*P22 -> 1929.520022 | DE22: =$F22*Q22 -> 2332.552925 | DF22: =$F22*R22 -> 2312.40128 | DG22: =$F22*S22 -> 3173.88411 | DH22: =$F22*T22 -> 2982.443481 | DI22: =$F22*U22 -> 2861.53361 | DJ22: =$F22*V22 -> 2428.27324 | DK22: =$F22*W22 -> 3818.736754 | DL22: =$F22*X22 -> 3289.75607 | DM22: =$F22*Y22 -> 2206.605143 | DN22: =$F22*Z22 -> 251.8955643 | DO22: =$F22*AA22 -> 100.7582257 | DP22: =$F22*AB22 -> 75.56866928 | DQ22: =$F22*AC22 -> 40.30329028 | DR22: =$F22*AD22 -> 20.15164514 | DS22: =$F22*AE22 -> 100.7582257 | DT22: =$F22*AF22 -> 85.64449186 | DU22: =$F22*AG22 -> 191.4406289 | DV22: =$F22*AH22 -> 1989.974958 | DW22: =$F22*AI22 -> 6292.351196 | DX22: =$F22*AJ22 -> 6211.744615 | DY22: =$F22*AK22 -> 5491.323301 | DZ22: =$F22*AL22 -> 16191.84687 | EA22: =$F22*AM22 -> 10816.39553 | EB22: =$F22*AN22 -> 12710.65017 | EC22: =$F22*AO22 -> 9708.055047 | ED22: =$F22*AP22 -> 9299.984233 | EE22: =$F22*AQ22 -> 10156.42915 | EF22: =$F22*AR22 -> 18615.0822 | EG22: =$F22*AS22 -> 9466.235306 | EH22: =$F22*AT22 -> 11380.64159 | EI22: =$F22*AU22 -> 9315.097967 | EJ22: =$F22*AV22 -> 17824.13013 | EK22: =$F22*AW22 -> 16045.74744 | EL22: =$F22*AX22 -> 13002.84903 | EM22: =$F22*AY22 -> 16217.03643 | EN22: =$F22*AZ22 -> 13627.55003 | EO22: =$F22*BA22 -> 10876.85047 | EP22: =$F22*BB22 -> 11980.15304 | EQ22: =$F22*BC22 -> 16302.68092 | ER22: =$F22*BD22 -> 15899.64802 | ES22: =$F22*BE22 -> 16388.32541 | ET22: =$F22*BF22 -> 11289.95919 | EU22: =$F22*BG22 -> 12972.62156 | EV22: =$F22*BH22 -> 13002.84903 | EW22: =$F22*BI22 -> 7798.68667 | EX22: =$F22*BJ22 -> 9007.785379 | EY22: =$F22*BK22 -> 7964.937743 | EZ22: =$F22*BL22 -> 7476.260348 | FA22: =$F22*BM22 -> 5969.924873 | FB22: =$F22*BN22 -> 5617.271083 | FC22: =$F22*BO22 -> 5949.773228 | FD22: =$F22*BP22 -> 1622.207434 | FE22: =$F22*BQ22 -> 2362.780393 | FF22: =$F22*BR22 -> 2115.92274 | FG22: =$F22*BS22 -> 2332.552925 | FH22: =$F22*BT22 -> 2992.519304 | FI22: =$F22*BU22 -> 2246.908433 | FJ22: =$F22*BV22 -> 3869.115867 | FK22: =$F22*BW22 -> 1501.297563 | FL22: =$F22*BX22 -> 997.5064346 | FM22: =$F22*BY22 -> 755.6866928 | FN22: =$F22*BZ22 -> 685.1559348 | FO22: =$F22*CA22 -> 528.980685 | FP22: =$F22*CB22 -> 176.326895 | FQ22: =$F22*CC22 -> 146.0994273 | FR22: =$F22*CD22 -> 654.9284671 | FS22: =$F22*CE22 -> 2015.164514 | FT22: =$F22*CF22 -> 4624.80256 | FU22: =$F22*CG22 -> 2498.803998 | FV22: =$F22*CH22 -> 4317.489972 | FW22: =$F22*CI22 -> 1178.871241 | FX22: =$F22*CJ22 -> 911.8619427 | FY22: =$F22*CK22 -> 342.5779674 | FZ22: =$F22*CL22 -> 690.1938461 | GA22: =$F22*CM22 -> 357.6917013 | GB22: =$F22*CN22 -> 141.061516 | GC22: =$F22*CO22 -> 80.60658057 | GD22: =$F22*CP22 -> 105.796137 | GE22: =$F22*CQ22 -> 0 | GF22: =$F22*CR22 -> 0 | GG22: =$F22*CS22 -> 0 | GH22: =$F22*CT22 -> 0 | GI22: =$F22*CU22 -> 0 | GJ22: =$F22*CV22 -> 0
A23: 1 | D23: POLES | E23: > 1 kV & < = 11 kV; Wood | F23: 5.168946997 | G23: 69.78217208 | H23: 8.353572414 | I23: 2 | J23: 12 | K23: 19 | L23: 10 | M23: 7 | N23: 2 | O23: 7 | P23: 10 | Q23: 7 | R23: 10 | S23: 5 | T23: 13 | U23: 7 | V23: 5 | W23: 10 | X23: 6 | Y23: 2 | Z23: 2 | AA23: 3 | AB23: 8 | AC23: 3 | AD23: 0 | AE23: 9 | AF23: 0 | AG23: 6 | AH23: 33 | AI23: 15 | AJ23: 7 | AK23: 8 | AL23: 4 | AM23: 20 | AN23: 20 | AO23: 19 | AP23: 3 | AQ23: 4 | AR23: 16 | AS23: 5 | AT23: 30 | AU23: 11 | AV23: 3 | AW23: 9 | AX23: 12 | AY23: 9 | AZ23: 18 | BA23: 7 | BB23: 22 | BC23: 9 | BD23: 17 | BE23: 13 | BF23: 33 | BG23: 18 | BH23: 5 | BI23: 11 | BJ23: 15 | BK23: 20 | BL23: 11 | BM23: 23 | BN23: 10 | BO23: 4 | BP23: 0 | BQ23: 0 | BR23: 7 | BS23: 2 | BT23: 0 | BU23: 2 | BV23: 4 | BW23: 0 | BX23: 0 | BY23: 0 | BZ23: 2 | CA23: 0 | CB23: 0 | CC23: 0 | CD23: 0 | CE23: 9 | CF23: 3 | CG23: 3 | CH23: 3 | CI23: 0 | CJ23: 0 | CK23: 0 | CL23: 0 | CM23: 0 | CN23: 0 | CO23: 0 | CP23: 0 | CQ23: 0 | CR23: 0 | CS23: 0 | CT23: 0 | CU23: 0 | CV23: 0 | CX23: 62.02736397 | CY23: 98.20999295 | CZ23: 51.68946997 | DA23: 36.18262898 | DB23: 10.33789399 | DC23: 36.18262898 | DD23: 51.68946997 | DE23: 36.18262898 | DF23: 51.68946997 | DG23: 25.84473499 | DH23: 67.19631096 | DI23: 36.18262898 | DJ23: 25.84473499 | DK23: 51.68946997 | DL23: 31.01368198 | DM23: 10.33789399 | DN23: 10.33789399 | DO23: 15.50684099 | DP23: 41.35157598 | DQ23: 15.50684099 | DR23: 0 | DS23: 46.52052297 | DT23: 0 | DU23: 31.01368198 | DV23: 170.5752509 | DW23: 77.53420496 | DX23: 36.18262898 | DY23: 41.35157598 | DZ23: 20.67578799 | EA23: 103.3789399 | EB23: 103.3789399 | EC23: 98.20999295 | ED23: 15.50684099 | EE23: 20.67578799 | EF23: 82.70315195 | EG23: 25.84473499 | EH23: 155.0684099 | EI23: 56.85841697 | EJ23: 15.50684099 | EK23: 46.52052297 | EL23: 62.02736397 | EM23: 46.52052297 | EN23: 93.04104595 | EO23: 36.18262898 | EP23: 113.7168339 | EQ23: 46.52052297 | ER23: 87.87209895 | ES23: 67.19631096 | ET23: 170.5752509 | EU23: 93.04104595 | EV23: 25.84473499 | EW23: 56.85841697 | EX23: 77.53420496 | EY23: 103.3789399 | EZ23: 56.85841697 | FA23: 118.8857809 | FB23: 51.68946997 | FC23: 20.67578799 | FD23: 0 | FE23: 0 | FF23: 36.18262898 | FG23: 10.33789399 | FH23: 0 | FI23: 10.33789399 | FJ23: 20.67578799 | FK23: 0 | FL23: 0 | FM23: 0 | FN23: 10.33789399 | FO23: 0 | FP23: 0 | FQ23: 0 | FR23: 0 | FS23: 46.52052297 | FT23: 15.50684099 | FU23: 15.50684099 | FV23: 15.50684099 | FW23: 0 | FX23: 0 | FY23: 0 | FZ23: 0 | GA23: 0 | GB23: 0 | GC23: 0 | GD23: 0 | GE23: 0 | GF23: 0 | GG23: 0 | GH23: 0 | GI23: 0 | GJ23: 0
A24: 1 | D24: POLES | E24: ˃ 11 kV & < = 22 kV; Wood | F24: 7.22514602 | G24: 64.67303377 | H24: 8.041954599 | I24: 2 | J24: 814 | K24: 1394 | L24: 1568 | M24: 1215 | N24: 1199 | O24: 1729 | P24: 1615 | Q24: 1750 | R24: 1821 | S24: 2674 | T24: 3196 | U24: 2715 | V24: 2103 | W24: 3721 | X24: 3292 | Y24: 1915 | Z24: 356 | AA24: 164 | AB24: 122 | AC24: 171 | AD24: 157 | AE24: 540 | AF24: 111 | AG24: 589 | AH24: 1606 | AI24: 1494 | AJ24: 2785 | AK24: 1506 | AL24: 4591 | AM24: 4411 | AN24: 5583 | AO24: 5142 | AP24: 5227 | AQ24: 7037 | AR24: 6981 | AS24: 2630 | AT24: 4653 | AU24: 7206 | AV24: 7223 | AW24: 5543 | AX24: 4057 | AY24: 3664 | AZ24: 3564 | BA24: 3076 | BB24: 4992 | BC24: 7775 | BD24: 8127 | BE24: 8285 | BF24: 9833 | BG24: 11681 | BH24: 11431 | BI24: 5134 | BJ24: 4826 | BK24: 4781 | BL24: 4065 | BM24: 3689 | BN24: 3660 | BO24: 3603 | BP24: 846 | BQ24: 1815 | BR24: 1378 | BS24: 1001 | BT24: 1169 | BU24: 1165 | BV24: 1219 | BW24: 665 | BX24: 240 | BY24: 182 | BZ24: 236 | CA24: 266 | CB24: 220 | CC24: 84 | CD24: 337 | CE24: 588 | CF24: 1677 | CG24: 1321 | CH24: 2577 | CI24: 648 | CJ24: 313 | CK24: 162 | CL24: 84 | CM24: 61 | CN24: 35 | CO24: 7 | CP24: 8 | CQ24: 0 | CR24: 0 | CS24: 0 | CT24: 0 | CU24: 0 | CV24: 0 | CX24: 5881.268861 | CY24: 10071.85355 | CZ24: 11329.02896 | DA24: 8778.552415 | DB24: 8662.950078 | DC24: 12492.27747 | DD24: 11668.61082 | DE24: 12644.00554 | DF24: 13156.9909 | DG24: 19320.04046 | DH24: 23091.56668 | DI24: 19616.27145 | DJ24: 15194.48208 | DK24: 26884.76834 | DL24: 23785.1807 | DM24: 13836.15463 | DN24: 2572.151983 | DO24: 1184.923947 | DP24: 881.4678145 | DQ24: 1235.499969 | DR24: 1134.347925 | DS24: 3901.578851 | DT24: 801.9912083 | DU24: 4255.611006 | DV24: 11603.58451 | DW24: 10794.36815 | DX24: 20122.03167 | DY24: 10881.06991 | DZ24: 33170.64538 | EA24: 31870.1191 | EB24: 40337.99023 | EC24: 37151.70084 | ED24: 37765.83825 | EE24: 50843.35255 | EF24: 50438.74437 | EG24: 19002.13403 | EH24: 33618.60443 | EI24: 52064.40222 | EJ24: 52187.22971 | EK24: 40048.98439 | EL24: 29312.4174 | EM24: 26472.93502 | EN24: 25750.42042 | EO24: 22224.54916 | EP24: 36067.92893 | EQ24: 56175.51031 | ER24: 58718.76171 | ES24: 59860.33478 | ET24: 71044.86082 | EU24: 84396.93066 | EV24: 82590.64416 | EW24: 37093.89967 | EX24: 34868.55469 | EY24: 34543.42312 | EZ24: 29370.21857 | FA24: 26653.56367 | FB24: 26444.03443 | FC24: 26032.20111 | FD24: 6112.473533 | FE24: 13113.64003 | FF24: 9956.251216 | FG24: 7232.371166 | FH24: 8446.195698 | FI24: 8417.295114 | FJ24: 8807.452999 | FK24: 4804.722104 | FL24: 1734.035045 | FM24: 1314.976576 | FN24: 1705.134461 | FO24: 1921.888841 | FP24: 1589.532124 | FQ24: 606.9122657 | FR24: 2434.874209 | FS24: 4248.38586 | FT24: 12116.56988 | FU24: 9544.417893 | FV24: 18619.20129 | FW24: 4681.894621 | FX24: 2261.470704 | FY24: 1170.473655 | FZ24: 606.9122657 | GA24: 440.7339072 | GB24: 252.8801107 | GC24: 50.57602214 | GD24: 57.80116816 | GE24: 0 | GF24: 0 | GG24: 0 | GH24: 0 | GI24: 0 | GJ24: 0
A25: 1 | D25: POLES | E25: > 22 kV & < = 66 kV; Wood | F25: 8.541391624 | G25: 63.51673988 | H25: 7.96973901 | I25: 2 | J25: 45 | K25: 208 | L25: 463 | M25: 292 | N25: 343 | O25: 87 | P25: 314 | Q25: 290 | R25: 378 | S25: 214 | T25: 668 | U25: 268 | V25: 274 | W25: 343 | X25: 271 | Y25: 287 | Z25: 27 | AA25: 13 | AB25: 13 | AC25: 26 | AD25: 10 | AE25: 44 | AF25: 8 | AG25: 35 | AH25: 281 | AI25: 175 | AJ25: 56 | AK25: 42 | AL25: 46 | AM25: 86 | AN25: 293 | AO25: 132 | AP25: 123 | AQ25: 360 | AR25: 201 | AS25: 129 | AT25: 44 | AU25: 430 | AV25: 757 | AW25: 817 | AX25: 388 | AY25: 226 | AZ25: 338 | BA25: 209 | BB25: 753 | BC25: 556 | BD25: 165 | BE25: 446 | BF25: 397 | BG25: 332 | BH25: 497 | BI25: 256 | BJ25: 192 | BK25: 291 | BL25: 127 | BM25: 150 | BN25: 43 | BO25: 482 | BP25: 332 | BQ25: 57 | BR25: 18 | BS25: 62 | BT25: 27 | BU25: 51 | BV25: 34 | BW25: 21 | BX25: 21 | BY25: 7 | BZ25: 7 | CA25: 4 | CB25: 2 | CC25: 266 | CD25: 68 | CE25: 183 | CF25: 62 | CG25: 26 | CH25: 21 | CI25: 5 | CJ25: 4 | CK25: 56 | CL25: 26 | CM25: 2 | CN25: 0 | CO25: 0 | CP25: 2 | CQ25: 0 | CR25: 0 | CS25: 0 | CT25: 0 | CU25: 0 | CV25: 0 | CX25: 384.3626231 | CY25: 1776.609458 | CZ25: 3954.664322 | DA25: 2494.086354 | DB25: 2929.697327 | DC25: 743.1010713 | DD25: 2681.99697 | DE25: 2477.003571 | DF25: 3228.646034 | DG25: 1827.857808 | DH25: 5705.649605 | DI25: 2289.092955 | DJ25: 2340.341305 | DK25: 2929.697327 | DL25: 2314.71713 | DM25: 2451.379396 | DN25: 230.6175739 | DO25: 111.0380911 | DP25: 111.0380911 | DQ25: 222.0761822 | DR25: 85.41391624 | DS25: 375.8212315 | DT25: 68.33113299 | DU25: 298.9487068 | DV25: 2400.131046 | DW25: 1494.743534 | DX25: 478.317931 | DY25: 358.7384482 | DZ25: 392.9040147 | EA25: 734.5596797 | EB25: 2502.627746 | EC25: 1127.463694 | ED25: 1050.59117 | EE25: 3074.900985 | EF25: 1716.819716 | EG25: 1101.83952 | EH25: 375.8212315 | EI25: 3672.798398 | EJ25: 6465.833459 | EK25: 6978.316957 | EL25: 3314.05995 | EM25: 1930.354507 | EN25: 2886.990369 | EO25: 1785.150849 | EP25: 6431.667893 | EQ25: 4749.013743 | ER25: 1409.329618 | ES25: 3809.460664 | ET25: 3390.932475 | EU25: 2835.742019 | EV25: 4245.071637 | EW25: 2186.596256 | EX25: 1639.947192 | EY25: 2485.544963 | EZ25: 1084.756736 | FA25: 1281.208744 | FB25: 367.2798398 | FC25: 4116.950763 | FD25: 2835.742019 | FE25: 486.8593226 | FF25: 153.7450492 | FG25: 529.5662807 | FH25: 230.6175739 | FI25: 435.6109728 | FJ25: 290.4073152 | FK25: 179.3692241 | FL25: 179.3692241 | FM25: 59.78974137 | FN25: 59.78974137 | FO25: 34.1655665 | FP25: 17.08278325 | FQ25: 2272.010172 | FR25: 580.8146304 | FS25: 1563.074667 | FT25: 529.5662807 | FU25: 222.0761822 | FV25: 179.3692241 | FW25: 42.70695812 | FX25: 34.1655665 | FY25: 478.317931 | FZ25: 222.0761822 | GA25: 17.08278325 | GB25: 0 | GC25: 0 | GD25: 17.08278325 | GE25: 0 | GF25: 0 | GG25: 0 | GH25: 0 | GI25: 0 | GJ25: 0
E26: > 66 kV & < = 132 kV; Wood | F26: 11.00450255 | G26: 55.04194922 | H26: 7.419026164 | I26: 2
E27: > 132 kV; Wood | F27: 0.0001 | G27: 0 | H27: 0 | I27: 2
A28: 1 | D28: POLES | E28: ˂ = 1 kV; Concrete | F28: 10.21225459 | G28: 50.37333641 | H28: 7.097417587 | I28: 2 | J28: 235 | K28: 355 | L28: 302 | M28: 244 | N28: 277 | O28: 258 | P28: 158 | Q28: 440 | R28: 247 | S28: 85 | T28: 8 | U28: 3 | V28: 2 | W28: 7 | X28: 16 | Y28: 81 | Z28: 228 | AA28: 346 | AB28: 129 | AC28: 532 | AD28: 776 | AE28: 1498 | AF28: 1310 | AG28: 880 | AH28: 1175 | AI28: 1985 | AJ28: 2158 | AK28: 1523 | AL28: 1401 | AM28: 1500 | AN28: 788 | AO28: 653 | AP28: 96 | AQ28: 635 | AR28: 744 | AS28: 6 | AT28: 795 | AU28: 401 | AV28: 251 | AW28: 69 | AX28: 77 | AY28: 381 | AZ28: 201 | BA28: 2 | BB28: 3 | BC28: 3 | BD28: 2 | BE28: 0 | BF28: 0 | BG28: 0 | BH28: 0 | BI28: 0 | BJ28: 2 | BK28: 0 | BL28: 0 | BM28: 0 | BN28: 3 | BO28: 0 | BP28: 0 | BQ28: 0 | BR28: 0 | BS28: 0 | BT28: 0 | BU28: 0 | BV28: 0 | BW28: 2 | BX28: 0 | BY28: 0 | BZ28: 2 | CA28: 0 | CB28: 0 | CC28: 0 | CD28: 0 | CE28: 0 | CF28: 0 | CG28: 0 | CH28: 0 | CI28: 0 | CJ28: 0 | CK28: 0 | CL28: 0 | CM28: 0 | CN28: 0 | CO28: 0 | CP28: 0 | CQ28: 0 | CR28: 0 | CS28: 0 | CT28: 0 | CU28: 0 | CV28: 0 | CX28: 2399.879829 | CY28: 3625.350379 | CZ28: 3084.100886 | DA28: 2491.79012 | DB28: 2828.794521 | DC28: 2634.761684 | DD28: 1613.536225 | DE28: 4493.392019 | DF28: 2522.426884 | DG28: 868.0416401 | DH28: 81.69803672 | DI28: 30.63676377 | DJ28: 20.42450918 | DK28: 71.48578213 | DL28: 163.3960734 | DM28: 827.1926218 | DN28: 2328.394046 | DO28: 3533.440088 | DP28: 1317.380842 | DQ28: 5432.919442 | DR28: 7924.709562 | DS28: 15297.95738 | DT28: 13378.05351 | DU28: 8986.784039 | DV28: 11999.39914 | DW28: 20271.32536 | DX28: 22038.0454 | DY28: 15553.26374 | DZ28: 14307.36868 | EA28: 15318.38188 | EB28: 8047.256617 | EC28: 6668.602247 | ED28: 980.3764406 | EE28: 6484.781664 | EF28: 7597.917415 | EG28: 61.27352754 | EH28: 8118.742399 | EI28: 4095.11409 | EJ28: 2563.275902 | EK28: 704.6455667 | EL28: 786.3436034 | EM28: 3890.868999 | EN28: 2052.663173 | EO28: 20.42450918 | EP28: 30.63676377 | EQ28: 30.63676377 | ER28: 20.42450918 | ES28: 0 | ET28: 0 | EU28: 0 | EV28: 0 | EW28: 0 | EX28: 20.42450918 | EY28: 0 | EZ28: 0 | FA28: 0 | FB28: 30.63676377 | FC28: 0 | FD28: 0 | FE28: 0 | FF28: 0 | FG28: 0 | FH28: 0 | FI28: 0 | FJ28: 0 | FK28: 20.42450918 | FL28: 0 | FM28: 0 | FN28: 20.42450918 | FO28: 0 | FP28: 0 | FQ28: 0 | FR28: 0 | FS28: 0 | FT28: 0 | FU28: 0 | FV28: 0 | FW28: 0 | FX28: 0 | FY28: 0 | FZ28: 0 | GA28: 0 | GB28: 0 | GC28: 0 | GD28: 0 | GE28: 0 | GF28: 0 | GG28: 0 | GH28: 0 | GI28: 0 | GJ28: 0
A29: 1 | D29: POLES | E29: > 1 kV & < = 11 kV; Concrete | F29: 12.23133165 | G29: 47.66993958 | H29: 6.904342082 | I29: 2 | J29: 0 | K29: 0 | L29: 2 | M29: 0 | N29: 0 | O29: 0 | P29: 0 | Q29: 0 | R29: 0 | S29: 0 | T29: 0 | U29: 0 | V29: 0 | W29: 0 | X29: 0 | Y29: 0 | Z29: 11 | AA29: 6 | AB29: 4 | AC29: 5 | AD29: 3 | AE29: 3 | AF29: 3 | AG29: 3 | AH29: 4 | AI29: 2 | AJ29: 3 | AK29: 1 | AL29: 1 | AM29: 2 | AN29: 6 | AO29: 3 | AP29: 2 | AQ29: 0 | AR29: 0 | AS29: 0 | AT29: 1 | AU29: 0 | AV29: 0 | AW29: 0 | AX29: 0 | AY29: 0 | AZ29: 0 | BA29: 0 | BB29: 0 | BC29: 0 | BD29: 0 | BE29: 0 | BF29: 0 | BG29: 0 | BH29: 0 | BI29: 0 | BJ29: 0 | BK29: 0 | BL29: 0 | BM29: 0 | BN29: 0 | BO29: 0 | BP29: 0 | BQ29: 0 | BR29: 0 | BS29: 0 | BT29: 0 | BU29: 0 | BV29: 0 | BW29: 0 | BX29: 0 | BY29: 0 | BZ29: 0 | CA29: 0 | CB29: 0 | CC29: 0 | CD29: 0 | CE29: 0 | CF29: 0 | CG29: 0 | CH29: 0 | CI29: 0 | CJ29: 0 | CK29: 0 | CL29: 0 | CM29: 0 | CN29: 0 | CO29: 0 | CP29: 0 | CQ29: 0 | CR29: 0 | CS29: 0 | CT29: 0 | CU29: 0 | CV29: 0 | CX29: 0 | CY29: 0 | CZ29: 24.4626633 | DA29: 0 | DB29: 0 | DC29: 0 | DD29: 0 | DE29: 0 | DF29: 0 | DG29: 0 | DH29: 0 | DI29: 0 | DJ29: 0 | DK29: 0 | DL29: 0 | DM29: 0 | DN29: 134.5446482 | DO29: 73.38798991 | DP29: 48.92532661 | DQ29: 61.15665826 | DR29: 36.69399496 | DS29: 36.69399496 | DT29: 36.69399496 | DU29: 36.69399496 | DV29: 48.92532661 | DW29: 24.4626633 | DX29: 36.69399496 | DY29: 12.23133165 | DZ29: 12.23133165 | EA29: 24.4626633 | EB29: 73.38798991 | EC29: 36.69399496 | ED29: 24.4626633 | EE29: 0 | EF29: 0 | EG29: 0 | EH29: 12.23133165 | EI29: 0 | EJ29: 0 | EK29: 0 | EL29: 0 | EM29: 0 | EN29: 0 | EO29: 0 | EP29: 0 | EQ29: 0 | ER29: 0 | ES29: 0 | ET29: 0 | EU29: 0 | EV29: 0 | EW29: 0 | EX29: 0 | EY29: 0 | EZ29: 0 | FA29: 0 | FB29: 0 | FC29: 0 | FD29: 0 | FE29: 0 | FF29: 0 | FG29: 0 | FH29: 0 | FI29: 0 | FJ29: 0 | FK29: 0 | FL29: 0 | FM29: 0 | FN29: 0 | FO29: 0 | FP29: 0 | FQ29: 0 | FR29: 0 | FS29: 0 | FT29: 0 | FU29: 0 | FV29: 0 | FW29: 0 | FX29: 0 | FY29: 0 | FZ29: 0 | GA29: 0 | GB29: 0 | GC29: 0 | GD29: 0 | GE29: 0 | GF29: 0 | GG29: 0 | GH29: 0 | GI29: 0 | GJ29: 0
A30: 1 | D30: POLES | E30: ˃ 11 kV & < = 22 kV; Concrete | F30: 15.36887348 | G30: 43.23987366 | H30: 6.575703283 | I30: 2 | J30: 1065 | K30: 1961 | L30: 1555 | M30: 1252 | N30: 1519 | O30: 1421 | P30: 1070 | Q30: 2479 | R30: 1479 | S30: 443 | T30: 11 | U30: 2 | V30: 6 | W30: 15 | X30: 39 | Y30: 619 | Z30: 1428 | AA30: 2019 | AB30: 1732 | AC30: 2152 | AD30: 3133 | AE30: 4479 | AF30: 3597 | AG30: 3422 | AH30: 5934 | AI30: 6374 | AJ30: 7402 | AK30: 5533 | AL30: 4676 | AM30: 5248 | AN30: 4917 | AO30: 2134 | AP30: 728 | AQ30: 2371 | AR30: 2015 | AS30: 11 | AT30: 1306 | AU30: 681 | AV30: 267 | AW30: 82 | AX30: 9 | AY30: 103 | AZ30: 34 | BA30: 2 | BB30: 9 | BC30: 0 | BD30: 0 | BE30: 0 | BF30: 0 | BG30: 0 | BH30: 4 | BI30: 0 | BJ30: 2 | BK30: 2 | BL30: 0 | BM30: 2 | BN30: 4 | BO30: 0 | BP30: 0 | BQ30: 0 | BR30: 0 | BS30: 0 | BT30: 0 | BU30: 0 | BV30: 0 | BW30: 2 | BX30: 0 | BY30: 0 | BZ30: 0 | CA30: 0 | CB30: 0 | CC30: 0 | CD30: 0 | CE30: 0 | CF30: 0 | CG30: 0 | CH30: 0 | CI30: 0 | CJ30: 0 | CK30: 0 | CL30: 0 | CM30: 0 | CN30: 0 | CO30: 0 | CP30: 0 | CQ30: 0 | CR30: 0 | CS30: 0 | CT30: 0 | CU30: 0 | CV30: 0 | CX30: 16367.85026 | CY30: 30138.3609 | CZ30: 23898.59827 | DA30: 19241.8296 | DB30: 23345.31882 | DC30: 21839.16922 | DD30: 16444.69463 | DE30: 38099.43737 | DF30: 22730.56388 | DG30: 6808.410953 | DH30: 169.0576083 | DI30: 30.73774697 | DJ30: 92.2132409 | DK30: 230.5331022 | DL30: 599.3860658 | DM30: 9513.332686 | DN30: 21946.75133 | DO30: 31029.75556 | DP30: 26618.88887 | DQ30: 33073.81574 | DR30: 48150.68062 | DS30: 68837.18433 | DT30: 55281.83792 | DU30: 52592.28506 | DV30: 91198.89525 | DW30: 97961.19958 | DX30: 113760.4015 | DY30: 85035.97698 | DZ30: 71864.85241 | EA30: 80655.84804 | EB30: 75568.75092 | EC30: 32797.17601 | ED30: 11188.5399 | EE30: 36439.59903 | EF30: 30968.28007 | EG30: 169.0576083 | EH30: 20071.74877 | EI30: 10466.20284 | EJ30: 4103.48922 | EK30: 1260.247626 | EL30: 138.3198613 | EM30: 1582.993969 | EN30: 522.5416984 | EO30: 30.73774697 | EP30: 138.3198613 | EQ30: 0 | ER30: 0 | ES30: 0 | ET30: 0 | EU30: 0 | EV30: 61.47549393 | EW30: 0 | EX30: 30.73774697 | EY30: 30.73774697 | EZ30: 0 | FA30: 30.73774697 | FB30: 61.47549393 | FC30: 0 | FD30: 0 | FE30: 0 | FF30: 0 | FG30: 0 | FH30: 0 | FI30: 0 | FJ30: 0 | FK30: 30.73774697 | FL30: 0 | FM30: 0 | FN30: 0 | FO30: 0 | FP30: 0 | FQ30: 0 | FR30: 0 | FS30: 0 | FT30: 0 | FU30: 0 | FV30: 0 | FW30: 0 | FX30: 0 | FY30: 0 | FZ30: 0 | GA30: 0 | GB30: 0 | GC30: 0 | GD30: 0 | GE30: 0 | GF30: 0 | GG30: 0 | GH30: 0 | GI30: 0 | GJ30: 0
A31: 1 | D31: POLES | E31: > 22 kV & < = 66 kV; Concrete | F31: 18.49680874 | G31: 45.1144848 | H31: 6.716731705 | I31: 2 | J31: 33 | K31: 30 | L31: 337 | M31: 186 | N31: 489 | O31: 283 | P31: 208 | Q31: 233 | R31: 31 | S31: 113 | T31: 132 | U31: 6 | V31: 3 | W31: 2 | X31: 12 | Y31: 19 | Z31: 22 | AA31: 66 | AB31: 44 | AC31: 168 | AD31: 368 | AE31: 144 | AF31: 109 | AG31: 59 | AH31: 272 | AI31: 584 | AJ31: 372 | AK31: 467 | AL31: 301 | AM31: 285 | AN31: 1013 | AO31: 688 | AP31: 503 | AQ31: 866 | AR31: 721 | AS31: 26 | AT31: 545 | AU31: 234 | AV31: 40 | AW31: 0 | AX31: 7 | AY31: 19 | AZ31: 26 | BA31: 0 | BB31: 3 | BC31: 0 | BD31: 2 | BE31: 0 | BF31: 0 | BG31: 0 | BH31: 0 | BI31: 0 | BJ31: 0 | BK31: 0 | BL31: 0 | BM31: 0 | BN31: 0 | BO31: 0 | BP31: 0 | BQ31: 0 | BR31: 0 | BS31: 0 | BT31: 0 | BU31: 0 | BV31: 0 | BW31: 0 | BX31: 0 | BY31: 0 | BZ31: 0 | CA31: 0 | CB31: 0 | CC31: 0 | CD31: 0 | CE31: 0 | CF31: 0 | CG31: 0 | CH31: 0 | CI31: 0 | CJ31: 0 | CK31: 0 | CL31: 0 | CM31: 0 | CN31: 0 | CO31: 0 | CP31: 0 | CQ31: 0 | CR31: 0 | CS31: 0 | CT31: 0 | CU31: 0 | CV31: 0 | CX31: 610.3946886 | CY31: 554.9042623 | CZ31: 6233.424547 | DA31: 3440.406427 | DB31: 9044.939476 | DC31: 5234.596875 | DD31: 3847.336219 | DE31: 4309.756438 | DF31: 573.4010711 | DG31: 2090.139388 | DH31: 2441.578754 | DI31: 110.9808525 | DJ31: 55.49042623 | DK31: 36.99361749 | DL31: 221.9617049 | DM31: 351.4393662 | DN31: 406.9297924 | DO31: 1220.789377 | DP31: 813.8595848 | DQ31: 3107.463869 | DR31: 6806.825618 | DS31: 2663.540459 | DT31: 2016.152153 | DU31: 1091.311716 | DV31: 5031.131979 | DW31: 10802.13631 | DX31: 6880.812853 | DY31: 8638.009684 | DZ31: 5567.539432 | EA31: 5271.590492 | EB31: 18737.26726 | EC31: 12725.80442 | ED31: 9303.894799 | EE31: 16018.23637 | EF31: 13336.19911 | EG31: 480.9170274 | EH31: 10080.76077 | EI31: 4328.253246 | EJ31: 739.8723498 | EK31: 0 | EL31: 129.4776612 | EM31: 351.4393662 | EN31: 480.9170274 | EO31: 0 | EP31: 55.49042623 | EQ31: 0 | ER31: 36.99361749 | ES31: 0 | ET31: 0 | EU31: 0 | EV31: 0 | EW31: 0 | EX31: 0 | EY31: 0 | EZ31: 0 | FA31: 0 | FB31: 0 | FC31: 0 | FD31: 0 | FE31: 0 | FF31: 0 | FG31: 0 | FH31: 0 | FI31: 0 | FJ31: 0 | FK31: 0 | FL31: 0 | FM31: 0 | FN31: 0 | FO31: 0 | FP31: 0 | FQ31: 0 | FR31: 0 | FS31: 0 | FT31: 0 | FU31: 0 | FV31: 0 | FW31: 0 | FX31: 0 | FY31: 0 | FZ31: 0 | GA31: 0 | GB31: 0 | GC31: 0 | GD31: 0 | GE31: 0 | GF31: 0 | GG31: 0 | GH31: 0 | GI31: 0 | GJ31: 0
E32: > 66 kV & < = 132 kV; Concrete | F32: 21.21201926 | G32: 24.20439411 | H32: 4.919796145 | I32: 2
E33: > 132 kV; Concrete | F33: 1151.461797 | G33: 0 | H33: 0 | I33: 2
A34: 1 | D34: POLES | E34: ˂ = 1 kV; Steel | F34: 9.233864229 | G34: 49.39173613 | H34: 7.02792545 | I34: 2 | J34: 0 | K34: 11 | L34: 6 | M34: 3 | N34: 35 | O34: 68 | P34: 8 | Q34: 4 | R34: 7 | S34: 8 | T34: 4 | U34: 7 | V34: 7 | W34: 4 | X34: 39 | Y34: 85 | Z34: 4 | AA34: 6 | AB34: 3 | AC34: 3 | AD34: 7 | AE34: 4 | AF34: 0 | AG34: 3 | AH34: 6 | AI34: 6 | AJ34: 11 | AK34: 12 | AL34: 11 | AM34: 5 | AN34: 0 | AO34: 3 | AP34: 0 | AQ34: 0 | AR34: 6 | AS34: 0 | AT34: 0 | AU34: 0 | AV34: 3 | AW34: 0 | AX34: 0 | AY34: 21 | AZ34: 4 | BA34: 0 | BB34: 4 | BC34: 0 | BD34: 3 | BE34: 0 | BF34: 0 | BG34: 29 | BH34: 0 | BI34: 0 | BJ34: 0 | BK34: 25 | BL34: 13 | BM34: 3 | BN34: 0 | BO34: 0 | BP34: 4 | BQ34: 3 | BR34: 0 | BS34: 0 | BT34: 0 | BU34: 0 | BV34: 0 | BW34: 0 | BX34: 0 | BY34: 0 | BZ34: 0 | CA34: 0 | CB34: 0 | CC34: 0 | CD34: 0 | CE34: 0 | CF34: 3 | CG34: 0 | CH34: 0 | CI34: 0 | CJ34: 0 | CK34: 0 | CL34: 0 | CM34: 0 | CN34: 0 | CO34: 0 | CP34: 0 | CQ34: 0 | CR34: 0 | CS34: 0 | CT34: 0 | CU34: 0 | CV34: 0 | CX34: 0 | CY34: 101.5725065 | CZ34: 55.40318538 | DA34: 27.70159269 | DB34: 323.185248 | DC34: 627.9027676 | DD34: 73.87091383 | DE34: 36.93545692 | DF34: 64.63704961 | DG34: 73.87091383 | DH34: 36.93545692 | DI34: 64.63704961 | DJ34: 64.63704961 | DK34: 36.93545692 | DL34: 360.1207049 | DM34: 784.8784595 | DN34: 36.93545692 | DO34: 55.40318538 | DP34: 27.70159269 | DQ34: 27.70159269 | DR34: 64.63704961 | DS34: 36.93545692 | DT34: 0 | DU34: 27.70159269 | DV34: 55.40318538 | DW34: 55.40318538 | DX34: 101.5725065 | DY34: 110.8063708 | DZ34: 101.5725065 | EA34: 46.16932115 | EB34: 0 | EC34: 27.70159269 | ED34: 0 | EE34: 0 | EF34: 55.40318538 | EG34: 0 | EH34: 0 | EI34: 0 | EJ34: 27.70159269 | EK34: 0 | EL34: 0 | EM34: 193.9111488 | EN34: 36.93545692 | EO34: 0 | EP34: 36.93545692 | EQ34: 0 | ER34: 27.70159269 | ES34: 0 | ET34: 0 | EU34: 267.7820627 | EV34: 0 | EW34: 0 | EX34: 0 | EY34: 230.8466057 | EZ34: 120.040235 | FA34: 27.70159269 | FB34: 0 | FC34: 0 | FD34: 36.93545692 | FE34: 27.70159269 | FF34: 0 | FG34: 0 | FH34: 0 | FI34: 0 | FJ34: 0 | FK34: 0 | FL34: 0 | FM34: 0 | FN34: 0 | FO34: 0 | FP34: 0 | FQ34: 0 | FR34: 0 | FS34: 0 | FT34: 27.70159269 | FU34: 0 | FV34: 0 | FW34: 0 | FX34: 0 | FY34: 0 | FZ34: 0 | GA34: 0 | GB34: 0 | GC34: 0 | GD34: 0 | GE34: 0 | GF34: 0 | GG34: 0 | GH34: 0 | GI34: 0 | GJ34: 0
E35: > 1 kV & < = 11 kV; Steel | F35: 9.221057903 | G35: 44.76883641 | H35: 6.690951831 | I35: 2
A36: 1 | D36: POLES | E36: ˃ 11 kV & < = 22 kV; Steel | F36: 10.15017952 | G36: 15.37178686 | H36: 3.920687039 | I36: 2 | J36: 0 | K36: 0 | L36: 2 | M36: 0 | N36: 0 | O36: 2 | P36: 3 | Q36: 11 | R36: 2 | S36: 0 | T36: 0 | U36: 0 | V36: 2 | W36: 0 | X36: 0 | Y36: 2 | Z36: 0 | AA36: 0 | AB36: 0 | AC36: 0 | AD36: 0 | AE36: 0 | AF36: 5 | AG36: 0 | AH36: 4 | AI36: 5 | AJ36: 1 | AK36: 0 | AL36: 3 | AM36: 2 | AN36: 0 | AO36: 2 | AP36: 0 | AQ36: 0 | AR36: 4 | AS36: 1 | AT36: 3 | AU36: 0 | AV36: 135 | AW36: 0 | AX36: 2 | AY36: 97 | AZ36: 28 | BA36: 98 | BB36: 5 | BC36: 0 | BD36: 0 | BE36: 0 | BF36: 0 | BG36: 3 | BH36: 2 | BI36: 0 | BJ36: 5 | BK36: 2 | BL36: 2 | BM36: 0 | BN36: 0 | BO36: 0 | BP36: 0 | BQ36: 0 | BR36: 0 | BS36: 0 | BT36: 0 | BU36: 0 | BV36: 0 | BW36: 0 | BX36: 0 | BY36: 0 | BZ36: 0 | CA36: 0 | CB36: 0 | CC36: 0 | CD36: 0 | CE36: 0 | CF36: 0 | CG36: 0 | CH36: 0 | CI36: 0 | CJ36: 0 | CK36: 0 | CL36: 0 | CM36: 0 | CN36: 0 | CO36: 0 | CP36: 0 | CQ36: 0 | CR36: 0 | CS36: 0 | CT36: 0 | CU36: 0 | CV36: 0 | CX36: 0 | CY36: 0 | CZ36: 20.30035904 | DA36: 0 | DB36: 0 | DC36: 20.30035904 | DD36: 30.45053856 | DE36: 111.6519747 | DF36: 20.30035904 | DG36: 0 | DH36: 0 | DI36: 0 | DJ36: 20.30035904 | DK36: 0 | DL36: 0 | DM36: 20.30035904 | DN36: 0 | DO36: 0 | DP36: 0 | DQ36: 0 | DR36: 0 | DS36: 0 | DT36: 50.75089761 | DU36: 0 | DV36: 40.60071808 | DW36: 50.75089761 | DX36: 10.15017952 | DY36: 0 | DZ36: 30.45053856 | EA36: 20.30035904 | EB36: 0 | EC36: 20.30035904 | ED36: 0 | EE36: 0 | EF36: 40.60071808 | EG36: 10.15017952 | EH36: 30.45053856 | EI36: 0 | EJ36: 1370.274235 | EK36: 0 | EL36: 20.30035904 | EM36: 984.5674135 | EN36: 284.2050266 | EO36: 994.7175931 | EP36: 50.75089761 | EQ36: 0 | ER36: 0 | ES36: 0 | ET36: 0 | EU36: 30.45053856 | EV36: 20.30035904 | EW36: 0 | EX36: 50.75089761 | EY36: 20.30035904 | EZ36: 20.30035904 | FA36: 0 | FB36: 0 | FC36: 0 | FD36: 0 | FE36: 0 | FF36: 0 | FG36: 0 | FH36: 0 | FI36: 0 | FJ36: 0 | FK36: 0 | FL36: 0 | FM36: 0 | FN36: 0 | FO36: 0 | FP36: 0 | FQ36: 0 | FR36: 0 | FS36: 0 | FT36: 0 | FU36: 0 | FV36: 0 | FW36: 0 | FX36: 0 | FY36: 0 | FZ36: 0 | GA36: 0 | GB36: 0 | GC36: 0 | GD36: 0 | GE36: 0 | GF36: 0 | GG36: 0 | GH36: 0 | GI36: 0 | GJ36: 0
A37: 1 | D37: POLES | E37: > 22 kV & < = 66 kV; Steel | F37: 20.83372953 | G37: 10.31213953 | H37: 3.211252019 | I37: 2 | J37: 0 | K37: 0 | L37: 0 | M37: 0 | N37: 0 | O37: 9 | P37: 0 | Q37: 0 | R37: 0 | S37: 0 | T37: 0 | U37: 0 | V37: 0 | W37: 3 | X37: 0 | Y37: 4 | Z37: 3 | AA37: 0 | AB37: 0 | AC37: 0 | AD37: 0 | AE37: 0 | AF37: 0 | AG37: 0 | AH37: 0 | AI37: 0 | AJ37: 0 | AK37: 0 | AL37: 0 | AM37: 4 | AN37: 0 | AO37: 0 | AP37: 0 | AQ37: 0 | AR37: 3 | AS37: 0 | AT37: 0 | AU37: 0 | AV37: 4 | AW37: 0 | AX37: 30 | AY37: 2 | AZ37: 0 | BA37: 0 | BB37: 6 | BC37: 0 | BD37: 0 | BE37: 0 | BF37: 17 | BG37: 0 | BH37: 0 | BI37: 0 | BJ37: 0 | BK37: 3 | BL37: 2 | BM37: 0 | BN37: 2 | BO37: 0 | BP37: 0 | BQ37: 0 | BR37: 2 | BS37: 0 | BT37: 0 | BU37: 0 | BV37: 3 | BW37: 0 | BX37: 0 | BY37: 0 | BZ37: 0 | CA37: 0 | CB37: 0 | CC37: 0 | CD37: 0 | CE37: 0 | CF37: 0 | CG37: 0 | CH37: 0 | CI37: 0 | CJ37: 0 | CK37: 0 | CL37: 0 | CM37: 0 | CN37: 0 | CO37: 0 | CP37: 0 | CQ37: 0 | CR37: 0 | CS37: 0 | CT37: 0 | CU37: 0 | CV37: 0 | CX37: 0 | CY37: 0 | CZ37: 0 | DA37: 0 | DB37: 0 | DC37: 187.5035658 | DD37: 0 | DE37: 0 | DF37: 0 | DG37: 0 | DH37: 0 | DI37: 0 | DJ37: 0 | DK37: 62.5011886 | DL37: 0 | DM37: 83.33491814 | DN37: 62.5011886 | DO37: 0 | DP37: 0 | DQ37: 0 | DR37: 0 | DS37: 0 | DT37: 0 | DU37: 0 | DV37: 0 | DW37: 0 | DX37: 0 | DY37: 0 | DZ37: 0 | EA37: 83.33491814 | EB37: 0 | EC37: 0 | ED37: 0 | EE37: 0 | EF37: 62.5011886 | EG37: 0 | EH37: 0 | EI37: 0 | EJ37: 83.33491814 | EK37: 0 | EL37: 625.011886 | EM37: 41.66745907 | EN37: 0 | EO37: 0 | EP37: 125.0023772 | EQ37: 0 | ER37: 0 | ES37: 0 | ET37: 354.1734021 | EU37: 0 | EV37: 0 | EW37: 0 | EX37: 0 | EY37: 62.5011886 | EZ37: 41.66745907 | FA37: 0 | FB37: 41.66745907 | FC37: 0 | FD37: 0 | FE37: 0 | FF37: 41.66745907 | FG37: 0 | FH37: 0 | FI37: 0 | FJ37: 62.5011886 | FK37: 0 | FL37: 0 | FM37: 0 | FN37: 0 | FO37: 0 | FP37: 0 | FQ37: 0 | FR37: 0 | FS37: 0 | FT37: 0 | FU37: 0 | FV37: 0 | FW37: 0 | FX37: 0 | FY37: 0 | FZ37: 0 | GA37: 0 | GB37: 0 | GC37: 0 | GD37: 0 | GE37: 0 | GF37: 0 | GG37: 0 | GH37: 0 | GI37: 0 | GJ37: 0
E38: > 66 kV & < = 132 kV; Steel | F38: 17.14329826 | G38: 58 | H38: 7.615773106 | I38: 2
E39: > 132 kV; Steel | F39: 0.0001 | G39: 0 | H39: 0 | I39: 2
A40: 1 | D40: POLES | E40: Other | F40: 11.15746697 | G40: 76.61996162 | H40: 8.753282906 | I40: 2 | J40: 24 | K40: 31 | L40: 28 | M40: 27 | N40: 40 | O40: 53 | P40: 28 | Q40: 39 | R40: 36 | S40: 33 | T40: 39 | U40: 26 | V40: 21 | W40: 42 | X40: 41 | Y40: 18 | Z40: 13 | AA40: 15 | AB40: 7 | AC40: 9 | AD40: 38 | AE40: 70 | AF40: 41 | AG40: 32 | AH40: 63 | AI40: 110 | AJ40: 119 | AK40: 83 | AL40: 132 | AM40: 107 | AN40: 104 | AO40: 98 | AP40: 53 | AQ40: 90 | AR40: 155 | AS40: 65 | AT40: 97 | AU40: 92 | AV40: 118 | AW40: 116 | AX40: 73 | AY40: 83 | AZ40: 104 | BA40: 67 | BB40: 77 | BC40: 110 | BD40: 156 | BE40: 123 | BF40: 71 | BG40: 90 | BH40: 76 | BI40: 45 | BJ40: 53 | BK40: 67 | BL40: 50 | BM40: 34 | BN40: 18 | BO40: 57 | BP40: 24 | BQ40: 22 | BR40: 21 | BS40: 25 | BT40: 50 | BU40: 35 | BV40: 35 | BW40: 14 | BX40: 7 | BY40: 6 | BZ40: 6 | CA40: 4 | CB40: 2 | CC40: 3 | CD40: 8 | CE40: 25 | CF40: 46 | CG40: 17 | CH40: 40 | CI40: 6 | CJ40: 9 | CK40: 4 | CL40: 9 | CM40: 0 | CN40: 2 | CO40: 0 | CP40: 2 | CQ40: 0 | CR40: 0 | CS40: 0 | CT40: 0 | CU40: 0 | CV40: 0 | CX40: 267.7792073 | CY40: 345.881476 | CZ40: 312.4090751 | DA40: 301.2516082 | DB40: 446.2986788 | DC40: 591.3457493 | DD40: 312.4090751 | DE40: 435.1412118 | DF40: 401.6688109 | DG40: 368.19641 | DH40: 435.1412118 | DI40: 290.0941412 | DJ40: 234.3068063 | DK40: 468.6136127 | DL40: 457.4561457 | DM40: 200.8344054 | DN40: 145.0470706 | DO40: 167.3620045 | DP40: 78.10226878 | DQ40: 100.4172027 | DR40: 423.9837448 | DS40: 781.0226878 | DT40: 457.4561457 | DU40: 357.038943 | DV40: 702.920419 | DW40: 1227.321367 | DX40: 1327.738569 | DY40: 926.0697584 | DZ40: 1472.78564 | EA40: 1193.848966 | EB40: 1160.376565 | EC40: 1093.431763 | ED40: 591.3457493 | EE40: 1004.172027 | EF40: 1729.40738 | EG40: 725.235353 | EH40: 1082.274296 | EI40: 1026.486961 | EJ40: 1316.581102 | EK40: 1294.266168 | EL40: 814.4950887 | EM40: 926.0697584 | EN40: 1160.376565 | EO40: 747.5502869 | EP40: 859.1249566 | EQ40: 1227.321367 | ER40: 1740.564847 | ES40: 1372.368437 | ET40: 792.1801548 | EU40: 1004.172027 | EV40: 847.9674896 | EW40: 502.0860136 | EX40: 591.3457493 | EY40: 747.5502869 | EZ40: 557.8733484 | FA40: 379.3538769 | FB40: 200.8344054 | FC40: 635.9756172 | FD40: 267.7792073 | FE40: 245.4642733 | FF40: 234.3068063 | FG40: 278.9366742 | FH40: 557.8733484 | FI40: 390.5113439 | FJ40: 390.5113439 | FK40: 156.2045376 | FL40: 78.10226878 | FM40: 66.94480181 | FN40: 66.94480181 | FO40: 44.62986788 | FP40: 22.31493394 | FQ40: 33.47240091 | FR40: 89.25973575 | FS40: 278.9366742 | FT40: 513.2434806 | FU40: 189.6769385 | FV40: 446.2986788 | FW40: 66.94480181 | FX40: 100.4172027 | FY40: 44.62986788 | FZ40: 100.4172027 | GA40: 0 | GB40: 22.31493394 | GC40: 0 | GD40: 22.31493394 | GE40: 0 | GF40: 0 | GG40: 0 | GH40: 0 | GI40: 0 | GJ40: 0
A41: 2 | D41: OVERHEAD CONDUCTORS | E41: ˂ = 1 kV | F41: 83.49749146 | G41: 75.29955325 | H41: 8.677531518 | I41: 2 | J41: 76.3 | K41: 102.2 | L41: 35.3 | M41: 52.8 | N41: 59.3 | O41: 60.8 | P41: 48.1 | Q41: 67.1 | R41: 60.5 | S41: 61.2 | T41: 51 | U41: 49.9 | V41: 42.4 | W41: 68.1 | X41: 61.9 | Y41: 50.5 | Z41: 23.1 | AA41: 30.7 | AB41: 12.8 | AC41: 45.2 | AD41: 66.6 | AE41: 129.9 | AF41: 113 | AG41: 78 | AH41: 134 | AI41: 275.5 | AJ41: 290.2 | AK41: 226.6 | AL41: 397.6 | AM41: 311.1 | AN41: 280.2 | AO41: 221.4 | AP41: 165.2 | AQ41: 227.9 | AR41: 383.3 | AS41: 165.5 | AT41: 267.3 | AU41: 196 | AV41: 333.6 | AW41: 287.1 | AX41: 232.7 | AY41: 315.6 | AZ41: 257.3 | BA41: 192.5 | BB41: 206 | BC41: 285 | BD41: 276.7 | BE41: 290.1 | BF41: 196.2 | BG41: 229.3 | BH41: 226.9 | BI41: 134.9 | BJ41: 155.1 | BK41: 137.6 | BL41: 128 | BM41: 102.4 | BN41: 88.4 | BO41: 95.4 | BP41: 22.5 | BQ41: 36.3 | BR41: 26.6 | BS41: 35.6 | BT41: 45.6 | BU41: 36.5 | BV41: 54.9 | BW41: 21.8 | BX41: 11.4 | BY41: 8.3 | BZ41: 6.7 | CA41: 3.4 | CB41: 2.8 | CC41: 2.4 | CD41: 6.8 | CE41: 26.8 | CF41: 40.4 | CG41: 28.9 | CH41: 44.7 | CI41: 14.8 | CJ41: 11.5 | CK41: 0 | CL41: 7.2 | CM41: 3.6 | CN41: 2.2 | CO41: 1.3 | CP41: 1.9 | CQ41: 0 | CR41: 0 | CS41: 0 | CT41: 0 | CU41: 0 | CV41: 0 | CX41: 6370.858599 | CY41: 8533.443628 | CZ41: 2947.461449 | DA41: 4408.667549 | DB41: 4951.401244 | DC41: 5076.647481 | DD41: 4016.229339 | DE41: 5602.681677 | DF41: 5051.598234 | DG41: 5110.046478 | DH41: 4258.372065 | DI41: 4166.524824 | DJ41: 3540.293638 | DK41: 5686.179169 | DL41: 5168.494722 | DM41: 4216.623319 | DN41: 1928.792053 | DO41: 2563.372988 | DP41: 1068.767891 | DQ41: 3774.086614 | DR41: 5560.932932 | DS41: 10846.32414 | DT41: 9435.216536 | DU41: 6512.804334 | DV41: 11188.66386 | DW41: 23003.5589 | DX41: 24230.97202 | DY41: 18920.53157 | DZ41: 33198.60261 | EA41: 25976.06959 | EB41: 23395.99711 | EC41: 18486.34461 | ED41: 13793.78559 | EE41: 19029.0783 | EF41: 32004.58848 | EG41: 13818.83484 | EH41: 22318.87947 | EI41: 16365.50833 | EJ41: 27854.76315 | EK41: 23972.1298 | EL41: 19429.86626 | EM41: 26351.80831 | EN41: 21483.90455 | EO41: 16073.26711 | EP41: 17200.48324 | EQ41: 23796.78507 | ER41: 23103.75589 | ES41: 24222.62227 | ET41: 16382.20783 | EU41: 19145.97479 | EV41: 18945.58081 | EW41: 11263.8116 | EX41: 12950.46093 | EY41: 11489.25483 | EZ41: 10687.67891 | FA41: 8550.143126 | FB41: 7381.178245 | FC41: 7965.660686 | FD41: 1878.693558 | FE41: 3030.95894 | FF41: 2221.033273 | FG41: 2972.510696 | FH41: 3807.485611 | FI41: 3047.658438 | FJ41: 4584.012281 | FK41: 1820.245314 | FL41: 951.8714027 | FM41: 693.0291792 | FN41: 559.4331928 | FO41: 283.891471 | FP41: 233.7929761 | FQ41: 200.3939795 | FR41: 567.782942 | FS41: 2237.732771 | FT41: 3373.298655 | FU41: 2413.077503 | FV41: 3732.337868 | FW41: 1235.762874 | FX41: 960.2211518 | FY41: 0 | FZ41: 601.1819385 | GA41: 300.5909693 | GB41: 183.6944812 | GC41: 108.5467389 | GD41: 158.6452338 | GE41: 0 | GF41: 0 | GG41: 0 | GH41: 0 | GI41: 0 | GJ41: 0
A42: 2 | D42: OVERHEAD CONDUCTORS | E42: > 1 kV & < = 11 kV | F42: 71.62414072 | G42: 75.94647217 | H42: 8.714727315 | I42: 2 | J42: 0.1 | K42: 2 | L42: 0.2 | M42: 0.4 | N42: 0.4 | O42: 0.4 | P42: 0.4 | Q42: 0.6 | R42: 0.5 | S42: 0.5 | T42: 0.5 | U42: 0.5 | V42: 0.4 | W42: 0.6 | X42: 0.5 | Y42: 0.4 | Z42: 0.3 | AA42: 0.3 | AB42: 0.3 | AC42: 0.4 | AD42: 0.5 | AE42: 0.8 | AF42: 0.6 | AG42: 0.6 | AH42: 1.1 | AI42: 1.2 | AJ42: 1.5 | AK42: 1.1 | AL42: 1.4 | AM42: 1.5 | AN42: 1.6 | AO42: 1.1 | AP42: 0.9 | AQ42: 1.4 | AR42: 1.4 | AS42: 0.4 | AT42: 0.9 | AU42: 1.2 | AV42: 1.2 | AW42: 0.9 | AX42: 0.7 | AY42: 0.7 | AZ42: 0.7 | BA42: 0.6 | BB42: 0.9 | BC42: 1.3 | BD42: 1.4 | BE42: 1.4 | BF42: 1.6 | BG42: 1.9 | BH42: 1.9 | BI42: 0.9 | BJ42: 0.9 | BK42: 0.8 | BL42: 0.8 | BM42: 0.8 | BN42: 0.8 | BO42: 0.8 | BP42: 0.3 | BQ42: 0.5 | BR42: 0.4 | BS42: 0.3 | BT42: 0.4 | BU42: 0.2 | BV42: 0.1 | BW42: 0.1 | BX42: 0 | BY42: 0 | BZ42: 0 | CA42: 0 | CB42: 0 | CC42: 0 | CD42: 0 | CE42: 0.1 | CF42: 0.2 | CG42: 0.2 | CH42: 0.4 | CI42: 0.1 | CJ42: 0.1 | CK42: 0 | CL42: 0 | CM42: 0 | CN42: 0 | CO42: 0 | CP42: 0 | CQ42: 0 | CR42: 0 | CS42: 0 | CT42: 0 | CU42: 0 | CV42: 0 | CX42: 7.162414072 | CY42: 143.2482814 | CZ42: 14.32482814 | DA42: 28.64965629 | DB42: 28.64965629 | DC42: 28.64965629 | DD42: 28.64965629 | DE42: 42.97448443 | DF42: 35.81207036 | DG42: 35.81207036 | DH42: 35.81207036 | DI42: 35.81207036 | DJ42: 28.64965629 | DK42: 42.97448443 | DL42: 35.81207036 | DM42: 28.64965629 | DN42: 21.48724222 | DO42: 21.48724222 | DP42: 21.48724222 | DQ42: 28.64965629 | DR42: 35.81207036 | DS42: 57.29931258 | DT42: 42.97448443 | DU42: 42.97448443 | DV42: 78.78655479 | DW42: 85.94896887 | DX42: 107.4362111 | DY42: 78.78655479 | DZ42: 100.273797 | EA42: 107.4362111 | EB42: 114.5986252 | EC42: 78.78655479 | ED42: 64.46172665 | EE42: 100.273797 | EF42: 100.273797 | EG42: 28.64965629 | EH42: 64.46172665 | EI42: 85.94896887 | EJ42: 85.94896887 | EK42: 64.46172665 | EL42: 50.13689851 | EM42: 50.13689851 | EN42: 50.13689851 | EO42: 42.97448443 | EP42: 64.46172665 | EQ42: 93.11138294 | ER42: 100.273797 | ES42: 100.273797 | ET42: 114.5986252 | EU42: 136.0858674 | EV42: 136.0858674 | EW42: 64.46172665 | EX42: 64.46172665 | EY42: 57.29931258 | EZ42: 57.29931258 | FA42: 57.29931258 | FB42: 57.29931258 | FC42: 57.29931258 | FD42: 21.48724222 | FE42: 35.81207036 | FF42: 28.64965629 | FG42: 21.48724222 | FH42: 28.64965629 | FI42: 14.32482814 | FJ42: 7.162414072 | FK42: 7.162414072 | FL42: 0 | FM42: 0 | FN42: 0 | FO42: 0 | FP42: 0 | FQ42: 0 | FR42: 0 | FS42: 7.162414072 | FT42: 14.32482814 | FU42: 14.32482814 | FV42: 28.64965629 | FW42: 7.162414072 | FX42: 7.162414072 | FY42: 0 | FZ42: 0 | GA42: 0 | GB42: 0 | GC42: 0 | GD42: 0 | GE42: 0 | GF42: 0 | GG42: 0 | GH42: 0 | GI42: 0 | GJ42: 0
A43: 2 | D43: OVERHEAD CONDUCTORS | E43: ˃ 11 kV & < = 22 kV ; SWER | F43: 54.14117106 | G43: 79.34162528 | H43: 8.907391609 | I43: 2 | J43: 104.4 | K43: 77.1 | L43: 79 | M43: 118.2 | N43: 132.8 | O43: 136 | P43: 107.6 | Q43: 150.2 | R43: 135.4 | S43: 136.9 | T43: 114.2 | U43: 111.7 | V43: 94.9 | W43: 152.5 | X43: 138.6 | Y43: 113.1 | Z43: 51.7 | AA43: 68.7 | AB43: 28.6 | AC43: 101.1 | AD43: 149.1 | AE43: 290.7 | AF43: 252.8 | AG43: 174.6 | AH43: 300 | AI43: 625.6 | AJ43: 649.4 | AK43: 507.2 | AL43: 898.9 | AM43: 696.2 | AN43: 631.6 | AO43: 500 | AP43: 374.2 | AQ43: 509.6 | AR43: 861.9 | AS43: 367.5 | AT43: 597.6 | AU43: 438.2 | AV43: 743.1 | AW43: 642 | AX43: 520.4 | AY43: 710.3 | AZ43: 575.3 | BA43: 430.4 | BB43: 460.5 | BC43: 637.4 | BD43: 618.7 | BE43: 651.2 | BF43: 440.8 | BG43: 514.9 | BH43: 509.6 | BI43: 303.7 | BJ43: 346.5 | BK43: 312.2 | BL43: 294.8 | BM43: 237.6 | BN43: 206.4 | BO43: 221.9 | BP43: 57 | BQ43: 87.9 | BR43: 66.3 | BS43: 86.4 | BT43: 103.7 | BU43: 88.4 | BV43: 124.5 | BW43: 50.1 | BX43: 31.2 | BY43: 24.4 | BZ43: 20.8 | CA43: 13.4 | CB43: 5.3 | CC43: 5.3 | CD43: 12 | CE43: 63.5 | CF43: 118.7 | CG43: 81.7 | CH43: 128.1 | CI43: 34.3 | CJ43: 24.7 | CK43: 11.8 | CL43: 17.3 | CM43: 10.5 | CN43: 3.9 | CO43: 1.8 | CP43: 3.4 | CQ43: 0 | CR43: 0 | CS43: 0 | CT43: 0 | CU43: 0 | CV43: 0 | CX43: 5652.338259 | CY43: 4174.284289 | CZ43: 4277.152514 | DA43: 6399.48642 | DB43: 7189.947517 | DC43: 7363.199264 | DD43: 5825.590006 | DE43: 8132.003894 | DF43: 7330.714562 | DG43: 7411.926318 | DH43: 6182.921735 | DI43: 6047.568808 | DJ43: 5137.997134 | DK43: 8256.528587 | DL43: 7503.966309 | DM43: 6123.366447 | DN43: 2799.098544 | DO43: 3719.498452 | DP43: 1548.437492 | DQ43: 5473.672394 | DR43: 8072.448605 | DS43: 15738.83843 | DT43: 13686.88804 | DU43: 9453.048467 | DV43: 16242.35132 | DW43: 33870.71662 | DX43: 35159.27649 | DY43: 27460.40196 | DZ43: 48667.49867 | EA43: 37693.08329 | EB43: 34195.56364 | EC43: 27070.58553 | ED43: 20259.62621 | EE43: 27590.34077 | EF43: 46664.27534 | EG43: 19896.88037 | EH43: 32354.76383 | EI43: 23724.66116 | EJ43: 40232.30422 | EK43: 34758.63182 | EL43: 28175.06542 | EM43: 38456.47381 | EN43: 31147.41571 | EO43: 23302.36003 | EP43: 24932.00927 | EQ43: 34509.58243 | ER43: 33497.14254 | ES43: 35256.7306 | ET43: 23865.4282 | EU43: 27877.28898 | EV43: 27590.34077 | EW43: 16442.67365 | EX43: 18759.91577 | EY43: 16902.87361 | EZ43: 15960.81723 | FA43: 12863.94224 | FB43: 11174.73771 | FC43: 12013.92586 | FD43: 3086.046751 | FE43: 4759.008936 | FF43: 3589.559641 | FG43: 4677.79718 | FH43: 5614.439439 | FI43: 4786.079522 | FJ43: 6740.575797 | FK43: 2712.47267 | FL43: 1689.204537 | FM43: 1321.044574 | FN43: 1126.136358 | FO43: 725.4916922 | FP43: 286.9482066 | FQ43: 286.9482066 | FR43: 649.6940527 | FS43: 3437.964362 | FT43: 6426.557005 | FU43: 4423.333676 | FV43: 6935.484013 | FW43: 1857.042167 | FX43: 1337.286925 | FY43: 638.8658185 | FZ43: 936.6422594 | GA43: 568.4822962 | GB43: 211.1505671 | GC43: 97.45410791 | GD43: 184.0799816 | GE43: 0 | GF43: 0 | GG43: 0 | GH43: 0 | GI43: 0 | GJ43: 0
E44: ˃ 11 kV & < = 22 kV ; Single-Phase | F44: 30.55047338 | G44: 65.0453347 | H44: 8.065068797 | I44: 2
A45: 2 | D45: OVERHEAD CONDUCTORS | E45: ˃ 11 kV & < = 22 kV ; Multiple-Phase | F45: 58.45200256 | G45: 69.6119799 | H45: 8.343379405 | I45: 2 | J45: 281.3 | K45: 431.5 | L45: 158.8 | M45: 292.5 | N45: 287.6 | O45: 316 | P45: 273.4 | Q45: 405.5 | R45: 355.1 | S45: 338 | T45: 362.3 | U45: 377.4 | V45: 302.9 | W45: 404.9 | X45: 388.3 | Y45: 274.9 | Z45: 187.6 | AA45: 233 | AB45: 199.3 | AC45: 249 | AD45: 351.9 | AE45: 538 | AF45: 396.4 | AG45: 433.7 | AH45: 810.4 | AI45: 841.6 | AJ45: 1094.3 | AK45: 757 | AL45: 997.9 | AM45: 1032.7 | AN45: 1119.4 | AO45: 768.9 | AP45: 643.8 | AQ45: 1015 | AR45: 970.5 | AS45: 286.4 | AT45: 651.6 | AU45: 862.2 | AV45: 830 | AW45: 619.6 | AX45: 446.9 | AY45: 428.6 | AZ45: 399.1 | BA45: 361.8 | BB45: 547 | BC45: 866.3 | BD45: 898.8 | BE45: 923.8 | BF45: 1098.8 | BG45: 1293.9 | BH45: 1269.9 | BI45: 569.6 | BJ45: 534.9 | BK45: 517.1 | BL45: 455.6 | BM45: 414 | BN45: 406.4 | BO45: 371.3 | BP45: 77.8 | BQ45: 171.9 | BR45: 121 | BS45: 80.3 | BT45: 106.5 | BU45: 104.9 | BV45: 89.7 | BW45: 56.1 | BX45: 17.2 | BY45: 16.5 | BZ45: 14 | CA45: 19.3 | CB45: 20.6 | CC45: 5.5 | CD45: 29.4 | CE45: 57.9 | CF45: 136 | CG45: 111.6 | CH45: 189.6 | CI45: 63.8 | CJ45: 33.3 | CK45: 6.3 | CL45: 6.2 | CM45: 5.4 | CN45: 2.7 | CO45: 0.5 | CP45: 0.6 | CQ45: 0 | CR45: 0 | CS45: 0 | CT45: 0 | CU45: 0 | CV45: 0 | CX45: 16442.54832 | CY45: 25222.03911 | CZ45: 9282.178007 | DA45: 17097.21075 | DB45: 16810.79594 | DC45: 18470.83281 | DD45: 15980.7775 | DE45: 23702.28704 | DF45: 20756.30611 | DG45: 19756.77687 | DH45: 21177.16053 | DI45: 22059.78577 | DJ45: 17705.11158 | DK45: 23667.21584 | DL45: 22696.9126 | DM45: 16068.4555 | DN45: 10965.59568 | DO45: 13619.3166 | DP45: 11649.48411 | DQ45: 14554.54864 | DR45: 20569.2597 | DS45: 31447.17738 | DT45: 23170.37382 | DU45: 25350.63351 | DV45: 47369.50288 | DW45: 49193.20536 | DX45: 63964.02641 | DY45: 44248.16594 | DZ45: 58329.25336 | EA45: 60363.38305 | EB45: 65431.17167 | EC45: 44943.74477 | ED45: 37631.39925 | EE45: 59328.7826 | EF45: 56727.66849 | EG45: 16740.65353 | EH45: 38087.32487 | EI45: 50397.31661 | EJ45: 48515.16213 | EK45: 36216.86079 | EL45: 26122.19995 | EM45: 25052.5283 | EN45: 23328.19422 | EO45: 21147.93453 | EP45: 31973.2454 | EQ45: 50636.96982 | ER45: 52536.6599 | ES45: 53997.95997 | ET45: 64227.06042 | EU45: 75631.04612 | EV45: 74228.19806 | EW45: 33294.26066 | EX45: 31265.97617 | EY45: 30225.53053 | EZ45: 26630.73237 | FA45: 24199.12906 | FB45: 23754.89384 | FC45: 21703.22855 | FD45: 4547.565799 | FE45: 10047.89924 | FF45: 7072.69231 | FG45: 4693.695806 | FH45: 6225.138273 | FI45: 6131.615069 | FJ45: 5243.14463 | FK45: 3279.157344 | FL45: 1005.374444 | FM45: 964.4580423 | FN45: 818.3280359 | FO45: 1128.123649 | FP45: 1204.111253 | FQ45: 321.4860141 | FR45: 1718.488875 | FS45: 3384.370948 | FT45: 7949.472349 | FU45: 6523.243486 | FV45: 11082.49969 | FW45: 3729.237764 | FX45: 1946.451685 | FY45: 368.2476162 | FZ45: 362.4024159 | GA45: 315.6408138 | GB45: 157.8204069 | GC45: 29.22600128 | GD45: 35.07120154 | GE45: 0 | GF45: 0 | GG45: 0 | GH45: 0 | GI45: 0 | GJ45: 0
A46: 2 | D46: OVERHEAD CONDUCTORS | E46: > 22 kV & < = 66 kV | F46: 199.3565058 | G46: 86.19928568 | H46: 9.284357042 | I46: 2 | J46: 29.4 | K46: 37.8 | L46: 31.4 | M46: 57.6 | N46: 102.2 | O46: 56.6 | P46: 52.9 | Q46: 82.9 | R46: 56.6 | S46: 43.6 | T46: 123.2 | U46: 37.5 | V46: 37.4 | W46: 76.2 | X46: 29.5 | Y46: 39.1 | Z46: 5.6 | AA46: 9.4 | AB46: 7 | AC46: 22.4 | AD46: 45.4 | AE46: 25 | AF46: 14.1 | AG46: 12.1 | AH46: 68.7 | AI46: 91.1 | AJ46: 52.9 | AK46: 60.2 | AL46: 42.3 | AM46: 44.8 | AN46: 155.9 | AO46: 92.6 | AP46: 71.3 | AQ46: 140.3 | AR46: 102.1 | AS46: 16.8 | AT46: 64.6 | AU46: 73.8 | AV46: 90.2 | AW46: 94.7 | AX46: 51.1 | AY46: 26.3 | AZ46: 40.8 | BA46: 24.3 | BB46: 85.2 | BC46: 64.6 | BD46: 17.4 | BE46: 50.7 | BF46: 47.3 | BG46: 37.8 | BH46: 57.2 | BI46: 29.4 | BJ46: 23.8 | BK46: 35.4 | BL46: 13 | BM46: 16.5 | BN46: 3.7 | BO46: 59.4 | BP46: 36.8 | BQ46: 6.3 | BR46: 2.4 | BS46: 6.5 | BT46: 2.8 | BU46: 4 | BV46: 4.4 | BW46: 1.8 | BX46: 2.5 | BY46: 0.5 | BZ46: 0.8 | CA46: 0.4 | CB46: 0 | CC46: 21.5 | CD46: 4.8 | CE46: 13.6 | CF46: 1.9 | CG46: 0.8 | CH46: 0.5 | CI46: 0.5 | CJ46: 0.4 | CK46: 0.4 | CL46: 0.2 | CM46: 0.1 | CN46: 0 | CO46: 0 | CP46: 0 | CQ46: 0 | CR46: 0 | CS46: 0 | CT46: 0 | CU46: 0 | CV46: 0 | CX46: 5861.08127 | CY46: 7535.675918 | CZ46: 6259.794281 | DA46: 11482.93473 | DB46: 20374.23489 | DC46: 11283.57823 | DD46: 10545.95916 | DE46: 16526.65433 | DF46: 11283.57823 | DG46: 8691.943652 | DH46: 24560.72151 | DI46: 7475.868967 | DJ46: 7455.933316 | DK46: 15190.96574 | DL46: 5881.01692 | DM46: 7794.839376 | DN46: 1116.396432 | DO46: 1873.951154 | DP46: 1395.49554 | DQ46: 4465.585729 | DR46: 9050.785362 | DS46: 4983.912644 | DT46: 2810.926731 | DU46: 2412.21372 | DV46: 13695.79195 | DW46: 18161.37768 | DX46: 10545.95916 | DY46: 12001.26165 | DZ46: 8432.780194 | EA46: 8931.171459 | EB46: 31079.67925 | EC46: 18460.41244 | ED46: 14214.11886 | EE46: 27969.71776 | EF46: 20354.29924 | EG46: 3349.189297 | EH46: 12878.43027 | EI46: 14712.51013 | EJ46: 17981.95682 | EK46: 18879.0611 | EL46: 10187.11745 | EM46: 5243.076102 | EN46: 8133.745436 | EO46: 4844.36309 | EP46: 16985.17429 | EQ46: 12878.43027 | ER46: 3468.803201 | ES46: 10107.37484 | ET46: 9429.562723 | EU46: 7535.675918 | EV46: 11403.19213 | EW46: 5861.08127 | EX46: 4744.684838 | EY46: 7057.220305 | EZ46: 2591.634575 | FA46: 3289.382345 | FB46: 737.6190714 | FC46: 11841.77644 | FD46: 7336.319413 | FE46: 1255.945986 | FF46: 478.4556139 | FG46: 1295.817288 | FH46: 558.1982162 | FI46: 797.4260231 | FJ46: 877.1686254 | FK46: 358.8417104 | FL46: 498.3912644 | FM46: 99.67825289 | FN46: 159.4852046 | FO46: 79.74260231 | FP46: 0 | FQ46: 4286.164874 | FR46: 956.9112277 | FS46: 2711.248479 | FT46: 378.777361 | FU46: 159.4852046 | FV46: 99.67825289 | FW46: 99.67825289 | FX46: 79.74260231 | FY46: 79.74260231 | FZ46: 39.87130116 | GA46: 19.93565058 | GB46: 0 | GC46: 0 | GD46: 0 | GE46: 0 | GF46: 0 | GG46: 0 | GH46: 0 | GI46: 0 | GJ46: 0
E47: > 66 kV & < = 132 kV | F47: 292.3861714 | G47: 75.54966839 | H47: 8.691931223 | I47: 2
E48: > 132 kV | F48: 911.106186 | G48: 0 | H48: 0 | I48: 2
A49: 2 | D49: OVERHEAD CONDUCTORS | E49: Other | F49: 711.7192085 | G49: 88.86622864 | H49: 9.426888598 | I49: 2 | J49: 0.7 | K49: 1 | L49: 0.1 | M49: 0.1 | N49: 0.1 | O49: 0.1 | P49: 0.1 | Q49: 0.1 | R49: 0.1 | S49: 0.1 | T49: 0.1 | U49: 0.1 | V49: 0.15 | W49: 0.15 | X49: 0.15 | Y49: 0.15 | Z49: 0.05 | AA49: 0.15 | AB49: 0.05 | AC49: 0.15 | AD49: 0.15 | AE49: 0.25 | AF49: 0.25 | AG49: 0.15 | AH49: 0.25 | AI49: 0.55 | AJ49: 0.55 | AK49: 0.45 | AL49: 0.75 | AM49: 0.65 | AN49: 0.65 | AO49: 0.55 | AP49: 0.45 | AQ49: 0.55 | AR49: 0.9 | AS49: 0.3 | AT49: 0.5 | AU49: 0.3 | AV49: 0.6 | AW49: 0.5 | AX49: 0.4 | AY49: 0.7 | AZ49: 0.5 | BA49: 0.3 | BB49: 0.4 | BC49: 0.5 | BD49: 0.5 | BE49: 0.5 | BF49: 0.3 | BG49: 0.4 | BH49: 0.4 | BI49: 0.2 | BJ49: 0.3 | BK49: 0.2 | BL49: 0.2 | BM49: 0.2 | BN49: 0.2 | BO49: 0.2 | BP49: 0 | BQ49: 0.1 | BR49: 0.1 | BS49: 0.1 | BT49: 0.1 | BU49: 0.1 | BV49: 0.1 | BW49: 0 | BX49: 0 | BY49: 0 | BZ49: 0 | CA49: 0 | CB49: 0 | CC49: 0 | CD49: 0 | CE49: 0.1 | CF49: 0.1 | CG49: 0.1 | CH49: 0.1 | CI49: 0 | CJ49: 0 | CK49: 0 | CL49: 0 | CM49: 0 | CN49: 0 | CO49: 0 | CP49: 0 | CQ49: 0 | CR49: 0 | CS49: 0 | CT49: 0 | CU49: 0 | CV49: 0 | CX49: 498.2034459 | CY49: 711.7192085 | CZ49: 71.17192085 | DA49: 71.17192085 | DB49: 71.17192085 | DC49: 71.17192085 | DD49: 71.17192085 | DE49: 71.17192085 | DF49: 71.17192085 | DG49: 71.17192085 | DH49: 71.17192085 | DI49: 71.17192085 | DJ49: 106.7578813 | DK49: 106.7578813 | DL49: 106.7578813 | DM49: 106.7578813 | DN49: 35.58596042 | DO49: 106.7578813 | DP49: 35.58596042 | DQ49: 106.7578813 | DR49: 106.7578813 | DS49: 177.9298021 | DT49: 177.9298021 | DU49: 106.7578813 | DV49: 177.9298021 | DW49: 391.4455647 | DX49: 391.4455647 | DY49: 320.2736438 | DZ49: 533.7894064 | EA49: 462.6174855 | EB49: 462.6174855 | EC49: 391.4455647 | ED49: 320.2736438 | EE49: 391.4455647 | EF49: 640.5472876 | EG49: 213.5157625 | EH49: 355.8596042 | EI49: 213.5157625 | EJ49: 427.0315251 | EK49: 355.8596042 | EL49: 284.6876834 | EM49: 498.2034459 | EN49: 355.8596042 | EO49: 213.5157625 | EP49: 284.6876834 | EQ49: 355.8596042 | ER49: 355.8596042 | ES49: 355.8596042 | ET49: 213.5157625 | EU49: 284.6876834 | EV49: 284.6876834 | EW49: 142.3438417 | EX49: 213.5157625 | EY49: 142.3438417 | EZ49: 142.3438417 | FA49: 142.3438417 | FB49: 142.3438417 | FC49: 142.3438417 | FD49: 0 | FE49: 71.17192085 | FF49: 71.17192085 | FG49: 71.17192085 | FH49: 71.17192085 | FI49: 71.17192085 | FJ49: 71.17192085 | FK49: 0 | FL49: 0 | FM49: 0 | FN49: 0 | FO49: 0 | FP49: 0 | FQ49: 0 | FR49: 0 | FS49: 71.17192085 | FT49: 71.17192085 | FU49: 71.17192085 | FV49: 71.17192085 | FW49: 0 | FX49: 0 | FY49: 0 | FZ49: 0 | GA49: 0 | GB49: 0 | GC49: 0 | GD49: 0 | GE49: 0 | GF49: 0 | GG49: 0 | GH49: 0 | GI49: 0 | GJ49: 0
A50: 3 | D50: UNDERGROUND CABLES | E50: ˂ = 1 kV | F50: 220.9071552 | G50: 67.54464911 | H50: 8.218555172 | I50: 2 | J50: 88.86146 | K50: 112.1102836 | L50: 158.6459115 | M50: 237.5103531 | N50: 266.7533696 | O50: 60.52387377 | P50: 198.4857005 | Q50: 159.0534797 | R50: 166.3897068 | S50: 175.8656669 | T50: 157.9326672 | U50: 227.728717 | V50: 227.830609 | W50: 121.6590998 | X50: 141.7318323 | Y50: 146.6226504 | Z50: 107.0885376 | AA50: 68.5733452 | AB50: 42.59087413 | AC50: 48.60250469 | AD50: 61.5427942 | AE50: 73.9736235 | AF50: 57.36522042 | AG50: 56.1425159 | AH50: 63.47874303 | AI50: 60.72765786 | AJ50: 50.94602169 | AK50: 33.42059023 | AL50: 37.8019481 | AM50: 25.88057902 | AN50: 19.46138029 | AO50: 6.826766907 | AP50: 11.5138009 | AQ50: 8.151363471 | AR50: 15.28380651 | AS50: 16.50651103 | AT50: 12.73650542 | AU50: 26.18625515 | AV50: 36.98681175 | AW50: 8.049471427 | AX50: 2.139732911 | AY50: 12.94028951 | AZ50: 1.834056781 | BA50: 1.324596564 | BB50: 1.018920434 | BC50: 0.7132443037 | BD50: 0.1018920434 | BE50: 0.2037840868 | BF50: 1.732164738 | BG50: 1.018920434 | BH50: 0.1018920434 | BI50: 0 | BJ50: 0 | BK50: 0 | BL50: 0 | BM50: 0 | BN50: 0 | BO50: 0 | BP50: 0.8151363471 | BQ50: 0 | BR50: 0 | BS50: 0 | BT50: 0 | BU50: 0 | BV50: 0 | BW50: 0 | BX50: 0 | BY50: 0 | BZ50: 0 | CA50: 0 | CB50: 0 | CC50: 0 | CD50: 0 | CE50: 0 | CF50: 0 | CG50: 0 | CH50: 0 | CI50: 0 | CJ50: 0 | CK50: 0 | CL50: 0 | CM50: 0 | CN50: 0 | CO50: 0 | CP50: 0 | CQ50: 0 | CR50: 0 | CS50: 0 | CT50: 0 | CU50: 0 | CV50: 0 | CX50: 19630.13234 | CY50: 24765.96383 | CZ50: 35046.01701 | DA50: 52467.73645 | DB50: 58927.72802 | DC50: 13370.15678 | DD50: 43846.91145 | DE50: 35136.05174 | DF50: 36756.6768 | DG50: 38849.98417 | DH50: 34888.45624 | DI50: 50306.90303 | DJ50: 50329.41171 | DK50: 26875.36564 | DL50: 31309.57589 | DM50: 32389.9926 | DN50: 23656.6242 | DO50: 15148.34261 | DP50: 9408.628844 | DQ50: 10736.64105 | DR50: 13595.24359 | DS50: 16341.30273 | DT50: 12672.38765 | DU50: 12402.28348 | DV50: 14022.90854 | DW50: 13415.17414 | DX50: 11254.34072 | DY50: 7382.847514 | DZ50: 8350.720816 | EA50: 5717.205087 | EB50: 4299.158156 | EC50: 1508.081657 | ED50: 2543.481003 | EE50: 1800.694516 | EF50: 3376.302217 | EG50: 3646.406394 | EH50: 2813.585181 | EI50: 5784.731131 | EJ50: 8170.651364 | EK50: 1778.185834 | EL50: 472.6823103 | EM50: 2858.602543 | EN50: 405.156266 | EO50: 292.6128588 | EP50: 225.0868144 | EQ50: 157.5607701 | ER50: 22.50868144 | ES50: 45.01736289 | ET50: 382.6475846 | EU50: 225.0868144 | EV50: 22.50868144 | EW50: 0 | EX50: 0 | EY50: 0 | EZ50: 0 | FA50: 0 | FB50: 0 | FC50: 0 | FD50: 180.0694516 | FE50: 0 | FF50: 0 | FG50: 0 | FH50: 0 | FI50: 0 | FJ50: 0 | FK50: 0 | FL50: 0 | FM50: 0 | FN50: 0 | FO50: 0 | FP50: 0 | FQ50: 0 | FR50: 0 | FS50: 0 | FT50: 0 | FU50: 0 | FV50: 0 | FW50: 0 | FX50: 0 | FY50: 0 | FZ50: 0 | GA50: 0 | GB50: 0 | GC50: 0 | GD50: 0 | GE50: 0 | GF50: 0 | GG50: 0 | GH50: 0 | GI50: 0 | GJ50: 0
A51: 3 | D51: UNDERGROUND CABLES | E51: > 1 kV & < = 11 kV | F51: 610.1107977 | G51: 67.99937573 | H51: 8.246173399 | I51: 2 | J51: 0.32147 | K51: 0.1734054057 | L51: 0 | M51: 0 | N51: 0 | O51: 0.3030661799 | P51: 0.7071544198 | Q51: 0.3030661799 | R51: 0.6061323598 | S51: 0.2020441199 | T51: 0.7071544198 | U51: 0 | V51: 0 | W51: 0 | X51: 5.051102998 | Y51: 0 | Z51: 0.3030661799 | AA51: 3.232705919 | AB51: 0.10102206 | AC51: 0 | AD51: 0.10102206 | AE51: 0 | AF51: 0 | AG51: 0.4040882399 | AH51: 0 | AI51: 0.2020441199 | AJ51: 0.10102206 | AK51: 0 | AL51: 1.717375019 | AM51: 0 | AN51: 0 | AO51: 0 | AP51: 0 | AQ51: 0.10102206 | AR51: 0 | AS51: 1.717375019 | AT51: 0.10102206 | AU51: 0 | AV51: 0 | AW51: 0 | AX51: 0 | AY51: 0.2020441199 | AZ51: 0 | BA51: 0 | BB51: 0 | BC51: 0 | BD51: 0 | BE51: 0 | BF51: 0 | BG51: 0 | BH51: 0 | BI51: 0 | BJ51: 0 | BK51: 0 | BL51: 0 | BM51: 0 | BN51: 0 | BO51: 0 | BP51: 0 | BQ51: 0 | BR51: 0 | BS51: 0 | BT51: 0 | BU51: 0 | BV51: 0 | BW51: 0 | BX51: 0 | BY51: 0 | BZ51: 0 | CA51: 0 | CB51: 0 | CC51: 0 | CD51: 0 | CE51: 0 | CF51: 0 | CG51: 0 | CH51: 0 | CI51: 0 | CJ51: 0 | CK51: 0 | CL51: 0 | CM51: 0 | CN51: 0 | CO51: 0 | CP51: 0 | CQ51: 0 | CR51: 0 | CS51: 0 | CT51: 0 | CU51: 0 | CV51: 0 | CX51: 196.1323181 | CY51: 105.7965104 | CZ51: 0 | DA51: 0 | DB51: 0 | DC51: 184.9039488 | DD51: 431.4425471 | DE51: 184.9039488 | DF51: 369.8078975 | DG51: 123.2692992 | DH51: 431.4425471 | DI51: 0 | DJ51: 0 | DK51: 0 | DL51: 3081.732479 | DM51: 0 | DN51: 184.9039488 | DO51: 1972.308787 | DP51: 61.63464959 | DQ51: 0 | DR51: 61.63464959 | DS51: 0 | DT51: 0 | DU51: 246.5385984 | DV51: 0 | DW51: 123.2692992 | DX51: 61.63464959 | DY51: 0 | DZ51: 1047.789043 | EA51: 0 | EB51: 0 | EC51: 0 | ED51: 0 | EE51: 61.63464959 | EF51: 0 | EG51: 1047.789043 | EH51: 61.63464959 | EI51: 0 | EJ51: 0 | EK51: 0 | EL51: 0 | EM51: 123.2692992 | EN51: 0 | EO51: 0 | EP51: 0 | EQ51: 0 | ER51: 0 | ES51: 0 | ET51: 0 | EU51: 0 | EV51: 0 | EW51: 0 | EX51: 0 | EY51: 0 | EZ51: 0 | FA51: 0 | FB51: 0 | FC51: 0 | FD51: 0 | FE51: 0 | FF51: 0 | FG51: 0 | FH51: 0 | FI51: 0 | FJ51: 0 | FK51: 0 | FL51: 0 | FM51: 0 | FN51: 0 | FO51: 0 | FP51: 0 | FQ51: 0 | FR51: 0 | FS51: 0 | FT51: 0 | FU51: 0 | FV51: 0 | FW51: 0 | FX51: 0 | FY51: 0 | FZ51: 0 | GA51: 0 | GB51: 0 | GC51: 0 | GD51: 0 | GE51: 0 | GF51: 0 | GG51: 0 | GH51: 0 | GI51: 0 | GJ51: 0
A52: 3 | D52: UNDERGROUND CABLES | E52: > 11 kV & < = 22 kV | F52: 522.0756578 | G52: 61.5112976 | H52: 7.842913846 | I52: 2 | J52: 69.105284 | K52: 76.18327879 | L52: 44.8267122 | M52: 82.51733345 | N52: 81.21072525 | O52: 39.90180436 | P52: 112.4688138 | Q52: 80.90920028 | R52: 83.32140004 | S52: 87.24122465 | T52: 67.74260992 | U52: 82.51733345 | V52: 70.85836795 | W52: 52.36483645 | X52: 73.87361765 | Y52: 72.06446783 | Z52: 47.64094526 | AA52: 44.8267122 | AB52: 32.76571341 | AC52: 24.22250592 | AD52: 37.28858796 | AE52: 31.05707191 | AF52: 16.58387335 | AG52: 21.20725622 | AH52: 19.69963137 | AI52: 16.08133173 | AJ52: 22.71488107 | AK52: 11.35744054 | AL52: 14.17167359 | AM52: 11.75947383 | AN52: 9.64879904 | AO52: 5.326941136 | AP52: 5.025416166 | AQ52: 4.020332933 | AR52: 5.42744946 | AS52: 6.834565986 | AT52: 4.924907843 | AU52: 8.14117419 | AV52: 9.548290716 | AW52: 0.8040665866 | AX52: 3.517791317 | AY52: 0.8040665866 | AZ52: 0.7035582633 | BA52: 0.90457491 | BB52: 1.20609988 | BC52: 0.7035582633 | BD52: 3.0152497 | BE52: 0.2010166467 | BF52: 6.131007723 | BG52: 0.1005083233 | BH52: 0 | BI52: 0.1005083233 | BJ52: 0 | BK52: 0 | BL52: 0.1005083233 | BM52: 0 | BN52: 0.1005083233 | BO52: 0 | BP52: 0.7035582633 | BQ52: 0 | BR52: 0 | BS52: 0 | BT52: 0.1005083233 | BU52: 0 | BV52: 0 | BW52: 0.1005083233 | BX52: 0 | BY52: 0 | BZ52: 0 | CA52: 0 | CB52: 0 | CC52: 0 | CD52: 0 | CE52: 0 | CF52: 0 | CG52: 0 | CH52: 0 | CI52: 0 | CJ52: 0 | CK52: 0 | CL52: 0 | CM52: 0 | CN52: 0 | CO52: 0 | CP52: 0 | CQ52: 0 | CR52: 0 | CS52: 0 | CT52: 0 | CU52: 0 | CV52: 0 | CX52: 36078.1866 | CY52: 39773.43539 | CZ52: 23402.93526 | DA52: 43080.29114 | DB52: 42398.14281 | DC52: 20831.76076 | DD52: 58717.22995 | DE52: 42240.72396 | DF52: 43500.07474 | DG52: 45546.51975 | DH52: 35366.76764 | DI52: 43080.29114 | DJ52: 36993.42906 | DK52: 27338.40644 | DL52: 38567.61753 | DM52: 37623.10445 | DN52: 24872.17783 | DO52: 23402.93526 | DP52: 17106.18138 | DQ52: 12645.98071 | DR52: 19467.46409 | DS52: 16214.14125 | DT52: 8658.036588 | DU52: 11071.79224 | DV52: 10284.69801 | DW52: 8395.671843 | DX52: 11858.88648 | DY52: 5929.443239 | DZ52: 7398.685812 | EA52: 6139.335035 | EB52: 5037.403106 | EC52: 2781.066298 | ED52: 2623.647451 | EE52: 2098.917961 | EF52: 2833.539247 | EG52: 3568.160533 | EH52: 2571.174502 | EI52: 4250.30887 | EJ52: 4984.930157 | EK52: 419.7835921 | EL52: 1836.553216 | EM52: 419.7835921 | EN52: 367.3106431 | EO52: 472.2565412 | EP52: 629.6753882 | EQ52: 367.3106431 | ER52: 1574.188471 | ES52: 104.945898 | ET52: 3200.84989 | EU52: 52.47294902 | EV52: 0 | EW52: 52.47294902 | EX52: 0 | EY52: 0 | EZ52: 52.47294902 | FA52: 0 | FB52: 52.47294902 | FC52: 0 | FD52: 367.3106431 | FE52: 0 | FF52: 0 | FG52: 0 | FH52: 52.47294902 | FI52: 0 | FJ52: 0 | FK52: 52.47294902 | FL52: 0 | FM52: 0 | FN52: 0 | FO52: 0 | FP52: 0 | FQ52: 0 | FR52: 0 | FS52: 0 | FT52: 0 | FU52: 0 | FV52: 0 | FW52: 0 | FX52: 0 | FY52: 0 | FZ52: 0 | GA52: 0 | GB52: 0 | GC52: 0 | GD52: 0 | GE52: 0 | GF52: 0 | GG52: 0 | GH52: 0 | GI52: 0 | GJ52: 0
E53: > 22 kV & < = 33 kV | F53: 1082.58162 | G53: 67.93293627 | H53: 8.242143912 | I53: 2
A54: 3 | D54: UNDERGROUND CABLES | E54: > 33 kV & < = 66 kV | F54: 156.9692204 | G54: 85.22352023 | H54: 9.231658585 | I54: 2 | J54: 0.414207 | K54: 0 | L54: 0 | M54: 0 | N54: 0 | O54: 0 | P54: 0 | Q54: 0.1056014333 | R54: 0 | S54: 0.3168043 | T54: 2.2176301 | U54: 0.3168043 | V54: 0 | W54: 0 | X54: 0 | Y54: 0 | Z54: 0 | AA54: 0 | AB54: 0 | AC54: 0 | AD54: 0 | AE54: 0 | AF54: 0 | AG54: 0 | AH54: 0 | AI54: 0 | AJ54: 0 | AK54: 0 | AL54: 0.2112028667 | AM54: 0 | AN54: 0 | AO54: 0 | AP54: 0 | AQ54: 0 | AR54: 0 | AS54: 0 | AT54: 0 | AU54: 0 | AV54: 0 | AW54: 0 | AX54: 0 | AY54: 0 | AZ54: 0 | BA54: 0 | BB54: 0 | BC54: 0 | BD54: 0 | BE54: 0 | BF54: 0 | BG54: 0 | BH54: 0 | BI54: 0 | BJ54: 0 | BK54: 0 | BL54: 0 | BM54: 0 | BN54: 0 | BO54: 0 | BP54: 0 | BQ54: 0 | BR54: 0 | BS54: 0 | BT54: 0 | BU54: 0 | BV54: 0 | BW54: 0 | BX54: 0 | BY54: 0 | BZ54: 0 | CA54: 0 | CB54: 0 | CC54: 0 | CD54: 0 | CE54: 0 | CF54: 0 | CG54: 0 | CH54: 0 | CI54: 0 | CJ54: 0 | CK54: 0 | CL54: 0 | CM54: 0 | CN54: 0 | CO54: 0 | CP54: 0 | CQ54: 0 | CR54: 0 | CS54: 0 | CT54: 0 | CU54: 0 | CV54: 0 | CX54: 65.01774986 | CY54: 0 | CZ54: 0 | DA54: 0 | DB54: 0 | DC54: 0 | DD54: 0 | DE54: 16.57617466 | DF54: 0 | DG54: 49.72852398 | DH54: 348.0996678 | DI54: 49.72852398 | DJ54: 0 | DK54: 0 | DL54: 0 | DM54: 0 | DN54: 0 | DO54: 0 | DP54: 0 | DQ54: 0 | DR54: 0 | DS54: 0 | DT54: 0 | DU54: 0 | DV54: 0 | DW54: 0 | DX54: 0 | DY54: 0 | DZ54: 33.15234932 | EA54: 0 | EB54: 0 | EC54: 0 | ED54: 0 | EE54: 0 | EF54: 0 | EG54: 0 | EH54: 0 | EI54: 0 | EJ54: 0 | EK54: 0 | EL54: 0 | EM54: 0 | EN54: 0 | EO54: 0 | EP54: 0 | EQ54: 0 | ER54: 0 | ES54: 0 | ET54: 0 | EU54: 0 | EV54: 0 | EW54: 0 | EX54: 0 | EY54: 0 | EZ54: 0 | FA54: 0 | FB54: 0 | FC54: 0 | FD54: 0 | FE54: 0 | FF54: 0 | FG54: 0 | FH54: 0 | FI54: 0 | FJ54: 0 | FK54: 0 | FL54: 0 | FM54: 0 | FN54: 0 | FO54: 0 | FP54: 0 | FQ54: 0 | FR54: 0 | FS54: 0 | FT54: 0 | FU54: 0 | FV54: 0 | FW54: 0 | FX54: 0 | FY54: 0 | FZ54: 0 | GA54: 0 | GB54: 0 | GC54: 0 | GD54: 0 | GE54: 0 | GF54: 0 | GG54: 0 | GH54: 0 | GI54: 0 | GJ54: 0
E55: > 66 kV & < = 132 kV | F55: 3019.570588 | G55: 46.29694774 | H55: 6.804186045 | I55: 2
E56: > 132 kV | F56: 0.0001 | G56: 0 | H56: 0 | I56: 2
A57: 3 | D57: UNDERGROUND CABLES | E57: Other | F57: 764.4534959 | G57: 45.70686904 | H57: 6.760685545 | I57: 2 | J57: 25.90092 | K57: 28.90418101 | L57: 38.34429282 | M57: 57.4155332 | N57: 64.47895556 | O57: 21.79570329 | P57: 72.75325032 | Q57: 50.04939273 | R57: 63.46989522 | S57: 63.16717712 | T57: 58.9291237 | U57: 84.66016231 | V57: 71.13875378 | W57: 44.80227898 | X57: 46.61858759 | Y57: 55.29650649 | Z57: 36.12436008 | AA57: 21.19026708 | AB57: 20.68573692 | AC57: 17.15402574 | AD57: 20.78664295 | AE57: 27.44644118 | AF57: 20.28211278 | AG57: 24.41926016 | AH57: 19.27305244 | AI57: 21.89660932 | AJ57: 14.32865679 | AK57: 15.8422473 | AL57: 6.76070426 | AM57: 10.39332147 | AN57: 13.31959645 | AO57: 4.036241349 | AP57: 7.56795253 | AQ57: 10.19150941 | AR57: 11.30147578 | AS57: 3.935335316 | AT57: 5.448925822 | AU57: 8.677918901 | AV57: 12.91597232 | AW57: 5.448925822 | AX57: 0.3027181012 | AY57: 0.7063422362 | AZ57: 5.448925822 | BA57: 0.9081543036 | BB57: 0.8072482699 | BC57: 0.8072482699 | BD57: 0 | BE57: 1.009060337 | BF57: 0.5045301687 | BG57: 0 | BH57: 0.5045301687 | BI57: 0 | BJ57: 0 | BK57: 0 | BL57: 0 | BM57: 0 | BN57: 0 | BO57: 0 | BP57: 0.1009060337 | BQ57: 0 | BR57: 0 | BS57: 0 | BT57: 0 | BU57: 0 | BV57: 0 | BW57: 0 | BX57: 0 | BY57: 0 | BZ57: 0 | CA57: 0 | CB57: 0 | CC57: 0 | CD57: 0 | CE57: 0 | CF57: 0 | CG57: 0 | CH57: 0 | CI57: 0 | CJ57: 0 | CK57: 0 | CL57: 0 | CM57: 0 | CN57: 0 | CO57: 0 | CP57: 0 | CQ57: 0 | CR57: 0 | CS57: 0 | CT57: 0 | CU57: 0 | CV57: 0 | CX57: 19800.04884 | CY57: 22095.90222 | CZ57: 29312.4287 | DA57: 43891.50507 | DB57: 49291.16299 | DC57: 16661.80157 | DD57: 55616.47655 | DE57: 38260.43325 | DF57: 48519.78329 | DG57: 48288.36938 | DH57: 45048.57463 | DI57: 64718.75704 | DJ57: 54382.26903 | DK57: 34249.25879 | DL57: 35637.74226 | DM57: 42271.6077 | DN57: 27615.39335 | DO57: 16198.97375 | DP57: 15813.2839 | DQ57: 13113.45494 | DR57: 15890.42187 | DS57: 20981.52791 | DT57: 15504.73202 | DU57: 18667.3888 | DV57: 14733.35232 | DW57: 16738.93954 | DX57: 10953.59178 | DY57: 12110.66133 | DZ57: 5168.244007 | EA57: 7945.210936 | EB57: 10182.21207 | EC57: 3085.51881 | ED57: 5785.347769 | EE57: 7790.934995 | EF57: 8639.452668 | EG57: 3008.38084 | EH57: 4165.450394 | EI57: 6633.865442 | EJ57: 9873.660192 | EK57: 4165.450394 | EL57: 231.4139108 | EM57: 539.9657918 | EN57: 4165.450394 | EO57: 694.2417323 | EP57: 617.103762 | EQ57: 617.103762 | ER57: 0 | ES57: 771.3797025 | ET57: 385.6898513 | EU57: 0 | EV57: 385.6898513 | EW57: 0 | EX57: 0 | EY57: 0 | EZ57: 0 | FA57: 0 | FB57: 0 | FC57: 0 | FD57: 77.13797025 | FE57: 0 | FF57: 0 | FG57: 0 | FH57: 0 | FI57: 0 | FJ57: 0 | FK57: 0 | FL57: 0 | FM57: 0 | FN57: 0 | FO57: 0 | FP57: 0 | FQ57: 0 | FR57: 0 | FS57: 0 | FT57: 0 | FU57: 0 | FV57: 0 | FW57: 0 | FX57: 0 | FY57: 0 | FZ57: 0 | GA57: 0 | GB57: 0 | GC57: 0 | GD57: 0 | GE57: 0 | GF57: 0 | GG57: 0 | GH57: 0 | GI57: 0 | GJ57: 0
A58: 4 | D58: SERVICE LINES | E58: ˂ = 11 kV ; Residential ; Simple Type | F58: 1.285971823 | G58: 58.03400097 | H58: 7.618005052 | I58: 2 | J58: 263.43526 | K58: 280.266984 | L58: 221.872568 | M58: 332.128039 | N58: 372.9895147 | O58: 128.8135338 | P58: 264.8107918 | Q58: 257.7836922 | R58: 254.4607247 | S58: 243.7112264 | T58: 225.6925411 | U58: 283.6632844 | V58: 248.415074 | W58: 180.2628818 | X58: 193.32051 | Y58: 176.2993991 | Z58: 114.8811485 | AA58: 81.12723377 | AB58: 42.5690368 | AC58: 78.24934805 | AD58: 99.20612294 | AE58: 160.0045506 | AF58: 134.8831554 | AG58: 108.3420714 | AH58: 148.3320848 | AI58: 247.3469225 | AJ58: 247.0514892 | AK58: 191.9406494 | AL58: 313.1863 | AM58: 240.6884411 | AN58: 217.5960022 | AO58: 163.2516394 | AP58: 120.6081299 | AQ58: 162.5259619 | AR58: 287.9035632 | AS58: 122.3467883 | AT58: 198.3673303 | AU58: 148.5957177 | AV58: 248.9059887 | AW58: 204.982168 | AX58: 164.030813 | AY58: 227.80271 | AZ58: 181.5051355 | BA58: 134.4256775 | BB58: 144.1154065 | BC58: 201.9051355 | BD58: 195.7 | BE58: 206.3 | BF58: 137.510271 | BG58: 161.7051355 | BH58: 159.9 | BI58: 92.3 | BJ58: 106.3 | BK58: 95.1 | BL58: 89.4 | BM58: 77.6 | BN58: 67.4 | BO58: 72.5 | BP58: 18.01540649 | BQ58: 22.8 | BR58: 15.8 | BS58: 22.3 | BT58: 29.7 | BU58: 23 | BV58: 36.5 | BW58: 12.8 | BX58: 7.5 | BY58: 7.2 | BZ58: 6 | CA58: 3.6 | CB58: 2 | CC58: 1.6 | CD58: 5.1 | CE58: 22 | CF58: 43.7 | CG58: 26.2 | CH58: 46.8 | CI58: 10.4 | CJ58: 7.3 | CK58: 2.4 | CL58: 5.8 | CM58: 2 | CN58: 1.5 | CO58: 0.8 | CP58: 1.3 | CQ58: 0 | CR58: 0 | CS58: 0 | CT58: 0 | CU58: 0 | CV58: 0 | CX58: 338.7703214 | CY58: 360.4154443 | CZ58: 285.3218706 | DA58: 427.1072996 | DB58: 479.654006 | DC58: 165.6505748 | DD58: 340.5392165 | DE58: 331.5025645 | DF58: 327.2293219 | DG58: 313.40577 | DH58: 290.2342484 | DI58: 364.7829909 | DJ58: 319.4547855 | DK58: 231.8129867 | DL58: 248.6047285 | DM58: 226.7160596 | DN58: 147.7339199 | DO58: 104.3273367 | DP58: 54.74258183 | DQ58: 100.6264567 | DR58: 127.5762787 | DS58: 205.7613436 | DT58: 173.4559372 | DU58: 139.3248511 | DV58: 190.7508815 | DW58: 318.0811727 | DX58: 317.7012538 | DY58: 246.8302667 | DZ58: 402.748757 | EA58: 309.5185533 | EB58: 279.8223275 | EC58: 209.9370083 | ED58: 155.0986566 | EE58: 209.0038074 | EF58: 370.2358699 | EG58: 157.3345224 | EH58: 255.0947973 | EI58: 191.089906 | EJ58: 320.086088 | EK58: 263.6012921 | EL58: 210.9390035 | EM58: 292.9478661 | EN58: 233.4104899 | EO58: 172.8676335 | EP58: 185.328352 | EQ58: 259.6443151 | ER58: 251.6646857 | ES58: 265.295987 | ET58: 176.8343338 | EU58: 207.9482478 | EV58: 205.6268944 | EW58: 118.6951992 | EX58: 136.6988047 | EY58: 122.2959203 | EZ58: 114.9658809 | FA58: 99.79141343 | FB58: 86.67450084 | FC58: 93.23295714 | FD58: 23.16730512 | FE58: 29.32015755 | FF58: 20.3183548 | FG58: 28.67717164 | FH58: 38.19336313 | FI58: 29.57735192 | FJ58: 46.93797152 | FK58: 16.46043933 | FL58: 9.644788669 | FM58: 9.258997123 | FN58: 7.715830935 | FO58: 4.629498561 | FP58: 2.571943645 | FQ58: 2.057554916 | FR58: 6.558456295 | FS58: 28.2913801 | FT58: 56.19696865 | FU58: 33.69246175 | FV58: 60.1834813 | FW58: 13.37410695 | FX58: 9.387594305 | FY58: 3.086332374 | FZ58: 7.458636571 | GA58: 2.571943645 | GB58: 1.928957734 | GC58: 1.028777458 | GD58: 1.671763369 | GE58: 0 | GF58: 0 | GG58: 0 | GH58: 0 | GI58: 0 | GJ58: 0
E59: ˂ = 11 kV ; Commercial & Industrial ; Simple Type | F59: 0.792017314 | G59: 60.99780448 | H59: 7.810109121 | I59: 2
E60: ˂ = 11 kV ; Residential ; Complex Type | F60: 0.4708645922 | G60: 37.22015627 | H60: 6.100832424 | I60: 2
E61: ˂ = 11 kV ; Commercial & Industrial ; Complex Type | F61: 0.5117431138 | G61: 47.3364846 | H61: 6.880151496 | I61: 2
E62: ˂ = 11 kV ; Subdivision ; Complex Type | F62: 0.0001 | G62: 0 | H62: 0 | I62: 2
E63: > 11 kV & < = 22 kV ; Commercial & Industrial | F63: 0.0001 | G63: 0 | H63: 0 | I63: 2
E64: > 11 kV & < = 22 kV ; Subdivision | F64: 0.0001 | G64: 0 | H64: 0 | I64: 2
E65: > 22 kV & < = 33 kV ; Commercial & Industrial | F65: 0.0001 | G65: 0 | H65: 0 | I65: 2
E66: > 22 kV & < = 33 kV ; Subdivision | F66: 0.0001 | G66: 0 | H66: 0 | I66: 2
E67: > 33 kV & < = 66 kV ; Commercial & Industrial | F67: 0.0001 | G67: 0 | H67: 0 | I67: 2
E68: > 33 kV & < = 66 kV ; Subdivision | F68: 0.0001 | G68: 0 | H68: 0 | I68: 2
E69: > 66 kV & < = 132 kV ; Commercial & Industrial | F69: 0.0001 | G69: 0 | H69: 0 | I69: 2
E70: > 66 kV & < = 132 kV ; Subdivision | F70: 0.0001 | G70: 0 | H70: 0 | I70: 2
E71: > 132 kV ; Commercial & Industrial | F71: 0.0001 | G71: 0 | H71: 0 | I71: 2
E72: > 132 kV ; Subdivision | F72: 0.0001 | G72: 0 | H72: 0 | I72: 2
E73: Other | F73: 0.0001 | G73: 0 | H73: 0 | I73: 2
A74: 5 | D74: TRANSFORMERS | E74: Pole Mounted ; < = 22kV ; < = 60 kVA ; Single Phase | F74: 14.92636095 | G74: 55.73087892 | H74: 7.46531171 | I74: 2 | J74: 459 | K74: 580 | L74: 301 | M74: 551 | N74: 542 | O74: 322 | P74: 750 | Q74: 933 | R74: 979 | S74: 832 | T74: 690 | U74: 712 | V74: 660 | W74: 729 | X74: 632 | Y74: 646 | Z74: 693 | AA74: 581 | AB74: 581 | AC74: 588 | AD74: 642 | AE74: 706 | AF74: 688 | AG74: 773 | AH74: 871 | AI74: 1031 | AJ74: 1145 | AK74: 986 | AL74: 935 | AM74: 1026 | AN74: 861 | AO74: 703 | AP74: 743 | AQ74: 825 | AR74: 804 | AS74: 776 | AT74: 631 | AU74: 622 | AV74: 866 | AW74: 372 | AX74: 277 | AY74: 331 | AZ74: 269 | BA74: 234 | BB74: 435 | BC74: 479 | BD74: 500 | BE74: 548 | BF74: 608 | BG74: 546 | BH74: 517 | BI74: 311 | BJ74: 269 | BK74: 231 | BL74: 201 | BM74: 126 | BN74: 144 | BO74: 93 | BP74: 78 | BQ74: 53 | BR74: 35 | BS74: 34 | BT74: 23 | BU74: 8 | BV74: 3 | BW74: 0 | BX74: 0 | BY74: 0 | BZ74: 0 | CA74: 0 | CB74: 0 | CC74: 0 | CD74: 0 | CE74: 0 | CF74: 0 | CG74: 0 | CH74: 0 | CI74: 0 | CJ74: 0 | CK74: 0 | CL74: 0 | CM74: 0 | CN74: 0 | CO74: 0 | CP74: 0 | CQ74: 0 | CR74: 0 | CS74: 0 | CT74: 0 | CU74: 0 | CV74: 0 | CX74: 6851.199676 | CY74: 8657.289351 | CZ74: 4492.834646 | DA74: 8224.424883 | DB74: 8090.087634 | DC74: 4806.288226 | DD74: 11194.77071 | DE74: 13926.29477 | DF74: 14612.90737 | DG74: 12418.73231 | DH74: 10299.18905 | DI74: 10627.569 | DJ74: 9851.398226 | DK74: 10881.31713 | DL74: 9433.46012 | DM74: 9642.429173 | DN74: 10343.96814 | DO74: 8672.215711 | DP74: 8672.215711 | DQ74: 8776.700238 | DR74: 9582.723729 | DS74: 10538.01083 | DT74: 10269.33633 | DU74: 11538.07701 | DV74: 13000.86039 | DW74: 15389.07814 | DX74: 17090.68329 | DY74: 14717.3919 | DZ74: 13956.14749 | EA74: 15314.44633 | EB74: 12851.59678 | EC74: 10493.23175 | ED74: 11090.28619 | EE74: 12314.24778 | EF74: 12000.7942 | EG74: 11582.8561 | EH74: 9418.533759 | EI74: 9284.19651 | EJ74: 12926.22858 | EK74: 5552.606273 | EL74: 4134.601983 | EM74: 4940.625474 | EN74: 4015.191095 | EO74: 3492.768462 | EP74: 6492.967013 | EQ74: 7149.726895 | ER74: 7463.180475 | ES74: 8179.6458 | ET74: 9075.227457 | EU74: 8149.793078 | EV74: 7716.928611 | EW74: 4642.098255 | EX74: 4015.191095 | EY74: 3447.989379 | EZ74: 3000.198551 | FA74: 1880.72148 | FB74: 2149.395977 | FC74: 1388.151568 | FD74: 1164.256154 | FE74: 791.0971303 | FF74: 522.4226332 | FG74: 507.4962723 | FH74: 343.3063018 | FI74: 119.4108876 | FJ74: 44.77908285 | FK74: 0 | FL74: 0 | FM74: 0 | FN74: 0 | FO74: 0 | FP74: 0 | FQ74: 0 | FR74: 0 | FS74: 0 | FT74: 0 | FU74: 0 | FV74: 0 | FW74: 0 | FX74: 0 | FY74: 0 | FZ74: 0 | GA74: 0 | GB74: 0 | GC74: 0 | GD74: 0 | GE74: 0 | GF74: 0 | GG74: 0 | GH74: 0 | GI74: 0 | GJ74: 0
A75: 5 | D75: TRANSFORMERS | E75: Pole Mounted ; < = 22kV ; > 60 kVA and < = 600 kVA ; Single Phase | F75: 19.86916228 | G75: 48.78096453 | H75: 6.984337086 | I75: 2 | J75: 26 | K75: 16 | L75: 8 | M75: 15 | N75: 15 | O75: 9 | P75: 21 | Q75: 26 | R75: 27 | S75: 23 | T75: 19 | U75: 20 | V75: 18 | W75: 20 | X75: 18 | Y75: 18 | Z75: 19 | AA75: 16 | AB75: 16 | AC75: 16 | AD75: 18 | AE75: 20 | AF75: 19 | AG75: 22 | AH75: 24 | AI75: 29 | AJ75: 32 | AK75: 27 | AL75: 26 | AM75: 29 | AN75: 24 | AO75: 20 | AP75: 21 | AQ75: 23 | AR75: 22 | AS75: 22 | AT75: 18 | AU75: 17 | AV75: 24 | AW75: 10 | AX75: 8 | AY75: 9 | AZ75: 7 | BA75: 7 | BB75: 12 | BC75: 13 | BD75: 14 | BE75: 15 | BF75: 17 | BG75: 15 | BH75: 14 | BI75: 9 | BJ75: 7 | BK75: 6 | BL75: 6 | BM75: 4 | BN75: 4 | BO75: 3 | BP75: 2 | BQ75: 1 | BR75: 1 | BS75: 1 | BT75: 1 | BU75: 0 | BV75: 0 | BW75: 0 | BX75: 0 | BY75: 0 | BZ75: 0 | CA75: 0 | CB75: 0 | CC75: 0 | CD75: 0 | CE75: 0 | CF75: 0 | CG75: 0 | CH75: 0 | CI75: 0 | CJ75: 0 | CK75: 0 | CL75: 0 | CM75: 0 | CN75: 0 | CO75: 0 | CP75: 0 | CQ75: 0 | CR75: 0 | CS75: 0 | CT75: 0 | CU75: 0 | CV75: 0 | CX75: 516.5982193 | CY75: 317.9065965 | CZ75: 158.9532983 | DA75: 298.0374342 | DB75: 298.0374342 | DC75: 178.8224605 | DD75: 417.2524079 | DE75: 516.5982193 | DF75: 536.4673816 | DG75: 456.9907325 | DH75: 377.5140833 | DI75: 397.3832456 | DJ75: 357.6449211 | DK75: 397.3832456 | DL75: 357.6449211 | DM75: 357.6449211 | DN75: 377.5140833 | DO75: 317.9065965 | DP75: 317.9065965 | DQ75: 317.9065965 | DR75: 357.6449211 | DS75: 397.3832456 | DT75: 377.5140833 | DU75: 437.1215702 | DV75: 476.8598948 | DW75: 576.2057062 | DX75: 635.813193 | DY75: 536.4673816 | DZ75: 516.5982193 | EA75: 576.2057062 | EB75: 476.8598948 | EC75: 397.3832456 | ED75: 417.2524079 | EE75: 456.9907325 | EF75: 437.1215702 | EG75: 437.1215702 | EH75: 357.6449211 | EI75: 337.7757588 | EJ75: 476.8598948 | EK75: 198.6916228 | EL75: 158.9532983 | EM75: 178.8224605 | EN75: 139.084136 | EO75: 139.084136 | EP75: 238.4299474 | EQ75: 258.2991097 | ER75: 278.1682719 | ES75: 298.0374342 | ET75: 337.7757588 | EU75: 298.0374342 | EV75: 278.1682719 | EW75: 178.8224605 | EX75: 139.084136 | EY75: 119.2149737 | EZ75: 119.2149737 | FA75: 79.47664913 | FB75: 79.47664913 | FC75: 59.60748684 | FD75: 39.73832456 | FE75: 19.86916228 | FF75: 19.86916228 | FG75: 19.86916228 | FH75: 19.86916228 | FI75: 0 | FJ75: 0 | FK75: 0 | FL75: 0 | FM75: 0 | FN75: 0 | FO75: 0 | FP75: 0 | FQ75: 0 | FR75: 0 | FS75: 0 | FT75: 0 | FU75: 0 | FV75: 0 | FW75: 0 | FX75: 0 | FY75: 0 | FZ75: 0 | GA75: 0 | GB75: 0 | GC75: 0 | GD75: 0 | GE75: 0 | GF75: 0 | GG75: 0 | GH75: 0 | GI75: 0 | GJ75: 0
E76: Pole Mounted ; < = 22kV ; > 600 kVA ; Single Phase | F76: 0.0001 | G76: 51 | H76: 7.141428429 | I76: 2
A77: 5 | D77: TRANSFORMERS | E77: Pole Mounted ; < = 22kV ; < = 60 kVA ; Multiple Phase | F77: 11.42646683 | G77: 56.37550453 | H77: 7.508362307 | I77: 2 | J77: 52 | K77: 120 | L77: 62 | M77: 114 | N77: 112 | O77: 66 | P77: 155 | Q77: 193 | R77: 202 | S77: 172 | T77: 142 | U77: 147 | V77: 136 | W77: 150 | X77: 131 | Y77: 133 | Z77: 143 | AA77: 120 | AB77: 120 | AC77: 121 | AD77: 132 | AE77: 146 | AF77: 142 | AG77: 160 | AH77: 180 | AI77: 213 | AJ77: 236 | AK77: 203 | AL77: 193 | AM77: 212 | AN77: 178 | AO77: 145 | AP77: 153 | AQ77: 170 | AR77: 166 | AS77: 160 | AT77: 130 | AU77: 128 | AV77: 179 | AW77: 77 | AX77: 57 | AY77: 68 | AZ77: 56 | BA77: 48 | BB77: 90 | BC77: 99 | BD77: 103 | BE77: 113 | BF77: 126 | BG77: 113 | BH77: 107 | BI77: 64 | BJ77: 56 | BK77: 48 | BL77: 41 | BM77: 26 | BN77: 30 | BO77: 19 | BP77: 16 | BQ77: 11 | BR77: 7 | BS77: 7 | BT77: 5 | BU77: 2 | BV77: 1 | BW77: 0 | BX77: 0 | BY77: 0 | BZ77: 0 | CA77: 0 | CB77: 0 | CC77: 0 | CD77: 0 | CE77: 0 | CF77: 0 | CG77: 0 | CH77: 0 | CI77: 0 | CJ77: 0 | CK77: 0 | CL77: 0 | CM77: 0 | CN77: 0 | CO77: 0 | CP77: 0 | CQ77: 0 | CR77: 0 | CS77: 0 | CT77: 0 | CU77: 0 | CV77: 0 | CX77: 594.1762749 | CY77: 1371.176019 | CZ77: 708.4409432 | DA77: 1302.617218 | DB77: 1279.764284 | DC77: 754.1468105 | DD77: 1771.102358 | DE77: 2205.308097 | DF77: 2308.146299 | DG77: 1965.352294 | DH77: 1622.558289 | DI77: 1679.690623 | DJ77: 1553.999488 | DK77: 1713.970024 | DL77: 1496.867154 | DM77: 1519.720088 | DN77: 1633.984756 | DO77: 1371.176019 | DP77: 1371.176019 | DQ77: 1382.602486 | DR77: 1508.293621 | DS77: 1668.264157 | DT77: 1622.558289 | DU77: 1828.234692 | DV77: 2056.764029 | DW77: 2433.837434 | DX77: 2696.646171 | DY77: 2319.572766 | DZ77: 2205.308097 | EA77: 2422.410967 | EB77: 2033.911095 | EC77: 1656.83769 | ED77: 1748.249424 | EE77: 1942.49936 | EF77: 1896.793493 | EG77: 1828.234692 | EH77: 1485.440687 | EI77: 1462.587754 | EJ77: 2045.337562 | EK77: 879.8379456 | EL77: 651.3086091 | EM77: 776.9997441 | EN77: 639.8821422 | EO77: 548.4704076 | EP77: 1028.382014 | EQ77: 1131.220216 | ER77: 1176.926083 | ES77: 1291.190751 | ET77: 1439.73482 | EU77: 1291.190751 | EV77: 1222.63195 | EW77: 731.2938768 | EX77: 639.8821422 | EY77: 548.4704076 | EZ77: 468.4851399 | FA77: 297.0881375 | FB77: 342.7940048 | FC77: 217.1028697 | FD77: 182.8234692 | FE77: 125.6911351 | FF77: 79.98526778 | FG77: 79.98526778 | FH77: 57.13233413 | FI77: 22.85293365 | FJ77: 11.42646683 | FK77: 0 | FL77: 0 | FM77: 0 | FN77: 0 | FO77: 0 | FP77: 0 | FQ77: 0 | FR77: 0 | FS77: 0 | FT77: 0 | FU77: 0 | FV77: 0 | FW77: 0 | FX77: 0 | FY77: 0 | FZ77: 0 | GA77: 0 | GB77: 0 | GC77: 0 | GD77: 0 | GE77: 0 | GF77: 0 | GG77: 0 | GH77: 0 | GI77: 0 | GJ77: 0
A78: 5 | D78: TRANSFORMERS | E78: Pole Mounted ; < = 22kV ; > 60 kVA and < = 600 kVA ; Multiple Phase | F78: 24.63149099 | G78: 53.09550648 | H78: 7.286666349 | I78: 2 | J78: 444 | K78: 238 | L78: 123 | M78: 227 | N78: 223 | O78: 132 | P78: 308 | Q78: 383 | R78: 402 | S78: 342 | T78: 283 | U78: 293 | V78: 271 | W78: 299 | X78: 260 | Y78: 265 | Z78: 285 | AA78: 239 | AB78: 239 | AC78: 242 | AD78: 263 | AE78: 290 | AF78: 283 | AG78: 318 | AH78: 358 | AI78: 423 | AJ78: 470 | AK78: 405 | AL78: 384 | AM78: 421 | AN78: 354 | AO78: 289 | AP78: 305 | AQ78: 339 | AR78: 330 | AS78: 319 | AT78: 259 | AU78: 255 | AV78: 356 | AW78: 153 | AX78: 114 | AY78: 136 | AZ78: 111 | BA78: 96 | BB78: 179 | BC78: 197 | BD78: 206 | BE78: 225 | BF78: 250 | BG78: 224 | BH78: 212 | BI78: 128 | BJ78: 111 | BK78: 95 | BL78: 82 | BM78: 52 | BN78: 59 | BO78: 38 | BP78: 32 | BQ78: 22 | BR78: 14 | BS78: 14 | BT78: 9 | BU78: 3 | BV78: 1 | BW78: 0 | BX78: 0 | BY78: 0 | BZ78: 0 | CA78: 0 | CB78: 0 | CC78: 0 | CD78: 0 | CE78: 0 | CF78: 0 | CG78: 0 | CH78: 0 | CI78: 0 | CJ78: 0 | CK78: 0 | CL78: 0 | CM78: 0 | CN78: 0 | CO78: 0 | CP78: 0 | CQ78: 0 | CR78: 0 | CS78: 0 | CT78: 0 | CU78: 0 | CV78: 0 | CX78: 10936.382 | CY78: 5862.294856 | CZ78: 3029.673392 | DA78: 5591.348455 | DB78: 5492.822491 | DC78: 3251.356811 | DD78: 7586.499226 | DE78: 9433.86105 | DF78: 9901.859379 | DG78: 8423.969919 | DH78: 6970.711951 | DI78: 7217.026861 | DJ78: 6675.134059 | DK78: 7364.815807 | DL78: 6404.187658 | DM78: 6527.345113 | DN78: 7019.974933 | DO78: 5886.926347 | DP78: 5886.926347 | DQ78: 5960.82082 | DR78: 6478.082131 | DS78: 7143.132388 | DT78: 6970.711951 | DU78: 7832.814135 | DV78: 8818.073775 | DW78: 10419.12069 | DX78: 11576.80077 | DY78: 9975.753852 | DZ78: 9458.492541 | EA78: 10369.85771 | EB78: 8719.547811 | EC78: 7118.500897 | ED78: 7512.604753 | EE78: 8350.075446 | EF78: 8128.392027 | EG78: 7857.445626 | EH78: 6379.556167 | EI78: 6281.030203 | EJ78: 8768.810793 | EK78: 3768.618122 | EL78: 2807.989973 | EM78: 3349.882775 | EN78: 2734.0955 | EO78: 2364.623135 | EP78: 4409.036888 | EQ78: 4852.403725 | ER78: 5074.087144 | ES78: 5542.085473 | ET78: 6157.872748 | EU78: 5517.453982 | EV78: 5221.87609 | EW78: 3152.830847 | EX78: 2734.0955 | EY78: 2339.991644 | EZ78: 2019.782261 | FA78: 1280.837532 | FB78: 1453.257969 | FC78: 935.9966577 | FD78: 788.2077117 | FE78: 541.8928018 | FF78: 344.8408739 | FG78: 344.8408739 | FH78: 221.6834189 | FI78: 73.89447298 | FJ78: 24.63149099 | FK78: 0 | FL78: 0 | FM78: 0 | FN78: 0 | FO78: 0 | FP78: 0 | FQ78: 0 | FR78: 0 | FS78: 0 | FT78: 0 | FU78: 0 | FV78: 0 | FW78: 0 | FX78: 0 | FY78: 0 | FZ78: 0 | GA78: 0 | GB78: 0 | GC78: 0 | GD78: 0 | GE78: 0 | GF78: 0 | GG78: 0 | GH78: 0 | GI78: 0 | GJ78: 0
A79: 5 | D79: TRANSFORMERS | E79: Pole Mounted ; < = 22kV ; > 600 kVA ; Multiple Phase | F79: 46.04419824 | G79: 40.4232209 | H79: 6.357925833 | I79: 2 | J79: 0 | K79: 0 | L79: 0 | M79: 0 | N79: 0 | O79: 0 | P79: 0 | Q79: 1 | R79: 1 | S79: 0 | T79: 0 | U79: 0 | V79: 0 | W79: 0 | X79: 0 | Y79: 0 | Z79: 0 | AA79: 0 | AB79: 0 | AC79: 0 | AD79: 0 | AE79: 0 | AF79: 0 | AG79: 0 | AH79: 1 | AI79: 1 | AJ79: 1 | AK79: 1 | AL79: 1 | AM79: 1 | AN79: 0 | AO79: 0 | AP79: 0 | AQ79: 0 | AR79: 0 | AS79: 0 | AT79: 0 | AU79: 0 | AV79: 0 | AW79: 0 | AX79: 0 | AY79: 0 | AZ79: 0 | BA79: 0 | BB79: 0 | BC79: 0 | BD79: 0 | BE79: 0 | BF79: 0 | BG79: 0 | BH79: 0 | BI79: 0 | BJ79: 0 | BK79: 0 | BL79: 0 | BM79: 0 | BN79: 0 | BO79: 0 | BP79: 0 | BQ79: 0 | BR79: 0 | BS79: 0 | BT79: 0 | BU79: 0 | BV79: 0 | BW79: 0 | BX79: 0 | BY79: 0 | BZ79: 0 | CA79: 0 | CB79: 0 | CC79: 0 | CD79: 0 | CE79: 0 | CF79: 0 | CG79: 0 | CH79: 0 | CI79: 0 | CJ79: 0 | CK79: 0 | CL79: 0 | CM79: 0 | CN79: 0 | CO79: 0 | CP79: 0 | CQ79: 0 | CR79: 0 | CS79: 0 | CT79: 0 | CU79: 0 | CV79: 0 | CX79: 0 | CY79: 0 | CZ79: 0 | DA79: 0 | DB79: 0 | DC79: 0 | DD79: 0 | DE79: 46.04419824 | DF79: 46.04419824 | DG79: 0 | DH79: 0 | DI79: 0 | DJ79: 0 | DK79: 0 | DL79: 0 | DM79: 0 | DN79: 0 | DO79: 0 | DP79: 0 | DQ79: 0 | DR79: 0 | DS79: 0 | DT79: 0 | DU79: 0 | DV79: 46.04419824 | DW79: 46.04419824 | DX79: 46.04419824 | DY79: 46.04419824 | DZ79: 46.04419824 | EA79: 46.04419824 | EB79: 0 | EC79: 0 | ED79: 0 | EE79: 0 | EF79: 0 | EG79: 0 | EH79: 0 | EI79: 0 | EJ79: 0 | EK79: 0 | EL79: 0 | EM79: 0 | EN79: 0 | EO79: 0 | EP79: 0 | EQ79: 0 | ER79: 0 | ES79: 0 | ET79: 0 | EU79: 0 | EV79: 0 | EW79: 0 | EX79: 0 | EY79: 0 | EZ79: 0 | FA79: 0 | FB79: 0 | FC79: 0 | FD79: 0 | FE79: 0 | FF79: 0 | FG79: 0 | FH79: 0 | FI79: 0 | FJ79: 0 | FK79: 0 | FL79: 0 | FM79: 0 | FN79: 0 | FO79: 0 | FP79: 0 | FQ79: 0 | FR79: 0 | FS79: 0 | FT79: 0 | FU79: 0 | FV79: 0 | FW79: 0 | FX79: 0 | FY79: 0 | FZ79: 0 | GA79: 0 | GB79: 0 | GC79: 0 | GD79: 0 | GE79: 0 | GF79: 0 | GG79: 0 | GH79: 0 | GI79: 0 | GJ79: 0
A80: 5 | D80: TRANSFORMERS | E80: Kiosk Mounted ; < = 22kV ; < = 60 kVA ; Single Phase | F80: 30.08150727 | G80: 49.54227513 | H80: 7.038627362 | I80: 2 | J80: 0 | K80: 0 | L80: 0 | M80: 0 | N80: 0 | O80: 0 | P80: 0 | Q80: 0 | R80: 0 | S80: 0 | T80: 0 | U80: 0 | V80: 0 | W80: 0 | X80: 0 | Y80: 0 | Z80: 0 | AA80: 0 | AB80: 0 | AC80: 0 | AD80: 0 | AE80: 0 | AF80: 0 | AG80: 0 | AH80: 0 | AI80: 0 | AJ80: 1 | AK80: 0 | AL80: 0 | AM80: 0 | AN80: 0 | AO80: 0 | AP80: 0 | AQ80: 0 | AR80: 0 | AS80: 0 | AT80: 0 | AU80: 0 | AV80: 0 | AW80: 0 | AX80: 0 | AY80: 0 | AZ80: 0 | BA80: 0 | BB80: 0 | BC80: 0 | BD80: 0 | BE80: 0 | BF80: 0 | BG80: 0 | BH80: 0 | BI80: 0 | BJ80: 0 | BK80: 0 | BL80: 0 | BM80: 0 | BN80: 0 | BO80: 0 | BP80: 0 | BQ80: 0 | BR80: 0 | BS80: 0 | BT80: 0 | BU80: 0 | BV80: 0 | BW80: 0 | BX80: 0 | BY80: 0 | BZ80: 0 | CA80: 0 | CB80: 0 | CC80: 0 | CD80: 0 | CE80: 0 | CF80: 0 | CG80: 0 | CH80: 0 | CI80: 0 | CJ80: 0 | CK80: 0 | CL80: 0 | CM80: 0 | CN80: 0 | CO80: 0 | CP80: 0 | CQ80: 0 | CR80: 0 | CS80: 0 | CT80: 0 | CU80: 0 | CV80: 0 | CX80: 0 | CY80: 0 | CZ80: 0 | DA80: 0 | DB80: 0 | DC80: 0 | DD80: 0 | DE80: 0 | DF80: 0 | DG80: 0 | DH80: 0 | DI80: 0 | DJ80: 0 | DK80: 0 | DL80: 0 | DM80: 0 | DN80: 0 | DO80: 0 | DP80: 0 | DQ80: 0 | DR80: 0 | DS80: 0 | DT80: 0 | DU80: 0 | DV80: 0 | DW80: 0 | DX80: 30.08150727 | DY80: 0 | DZ80: 0 | EA80: 0 | EB80: 0 | EC80: 0 | ED80: 0 | EE80: 0 | EF80: 0 | EG80: 0 | EH80: 0 | EI80: 0 | EJ80: 0 | EK80: 0 | EL80: 0 | EM80: 0 | EN80: 0 | EO80: 0 | EP80: 0 | EQ80: 0 | ER80: 0 | ES80: 0 | ET80: 0 | EU80: 0 | EV80: 0 | EW80: 0 | EX80: 0 | EY80: 0 | EZ80: 0 | FA80: 0 | FB80: 0 | FC80: 0 | FD80: 0 | FE80: 0 | FF80: 0 | FG80: 0 | FH80: 0 | FI80: 0 | FJ80: 0 | FK80: 0 | FL80: 0 | FM80: 0 | FN80: 0 | FO80: 0 | FP80: 0 | FQ80: 0 | FR80: 0 | FS80: 0 | FT80: 0 | FU80: 0 | FV80: 0 | FW80: 0 | FX80: 0 | FY80: 0 | FZ80: 0 | GA80: 0 | GB80: 0 | GC80: 0 | GD80: 0 | GE80: 0 | GF80: 0 | GG80: 0 | GH80: 0 | GI80: 0 | GJ80: 0
E81: Kiosk Mounted ; < = 22kV ; > 60 kVA and < = 600 kVA ; Single Phase | F81: 65.99544495 | G81: 36.65378972 | H81: 6.054237336 | I81: 2
E82: Kiosk Mounted ; < = 22kV ; > 600 kVA ; Single Phase | F82: 0.0001 | G82: 0 | H82: 0 | I82: 2
A83: 5 | D83: TRANSFORMERS | E83: Kiosk Mounted ; < = 22kV ; < = 60 kVA ; Multiple Phase | F83: 61.27796189 | G83: 34.52928714 | H83: 5.87616262 | I83: 2 | J83: 16 | K83: 2 | L83: 1 | M83: 2 | N83: 2 | O83: 1 | P83: 3 | Q83: 4 | R83: 4 | S83: 3 | T83: 3 | U83: 3 | V83: 3 | W83: 3 | X83: 3 | Y83: 3 | Z83: 3 | AA83: 2 | AB83: 2 | AC83: 2 | AD83: 3 | AE83: 3 | AF83: 3 | AG83: 3 | AH83: 4 | AI83: 4 | AJ83: 5 | AK83: 4 | AL83: 4 | AM83: 4 | AN83: 3 | AO83: 3 | AP83: 3 | AQ83: 3 | AR83: 3 | AS83: 3 | AT83: 3 | AU83: 3 | AV83: 4 | AW83: 2 | AX83: 1 | AY83: 1 | AZ83: 1 | BA83: 1 | BB83: 2 | BC83: 2 | BD83: 2 | BE83: 2 | BF83: 2 | BG83: 2 | BH83: 2 | BI83: 1 | BJ83: 1 | BK83: 1 | BL83: 1 | BM83: 1 | BN83: 1 | BO83: 0 | BP83: 0 | BQ83: 0 | BR83: 0 | BS83: 0 | BT83: 0 | BU83: 0 | BV83: 0 | BW83: 0 | BX83: 0 | BY83: 0 | BZ83: 0 | CA83: 0 | CB83: 0 | CC83: 0 | CD83: 0 | CE83: 0 | CF83: 0 | CG83: 0 | CH83: 0 | CI83: 0 | CJ83: 0 | CK83: 0 | CL83: 0 | CM83: 0 | CN83: 0 | CO83: 0 | CP83: 0 | CQ83: 0 | CR83: 0 | CS83: 0 | CT83: 0 | CU83: 0 | CV83: 0 | CX83: 980.4473902 | CY83: 122.5559238 | CZ83: 61.27796189 | DA83: 122.5559238 | DB83: 122.5559238 | DC83: 61.27796189 | DD83: 183.8338857 | DE83: 245.1118476 | DF83: 245.1118476 | DG83: 183.8338857 | DH83: 183.8338857 | DI83: 183.8338857 | DJ83: 183.8338857 | DK83: 183.8338857 | DL83: 183.8338857 | DM83: 183.8338857 | DN83: 183.8338857 | DO83: 122.5559238 | DP83: 122.5559238 | DQ83: 122.5559238 | DR83: 183.8338857 | DS83: 183.8338857 | DT83: 183.8338857 | DU83: 183.8338857 | DV83: 245.1118476 | DW83: 245.1118476 | DX83: 306.3898094 | DY83: 245.1118476 | DZ83: 245.1118476 | EA83: 245.1118476 | EB83: 183.8338857 | EC83: 183.8338857 | ED83: 183.8338857 | EE83: 183.8338857 | EF83: 183.8338857 | EG83: 183.8338857 | EH83: 183.8338857 | EI83: 183.8338857 | EJ83: 245.1118476 | EK83: 122.5559238 | EL83: 61.27796189 | EM83: 61.27796189 | EN83: 61.27796189 | EO83: 61.27796189 | EP83: 122.5559238 | EQ83: 122.5559238 | ER83: 122.5559238 | ES83: 122.5559238 | ET83: 122.5559238 | EU83: 122.5559238 | EV83: 122.5559238 | EW83: 61.27796189 | EX83: 61.27796189 | EY83: 61.27796189 | EZ83: 61.27796189 | FA83: 61.27796189 | FB83: 61.27796189 | FC83: 0 | FD83: 0 | FE83: 0 | FF83: 0 | FG83: 0 | FH83: 0 | FI83: 0 | FJ83: 0 | FK83: 0 | FL83: 0 | FM83: 0 | FN83: 0 | FO83: 0 | FP83: 0 | FQ83: 0 | FR83: 0 | FS83: 0 | FT83: 0 | FU83: 0 | FV83: 0 | FW83: 0 | FX83: 0 | FY83: 0 | FZ83: 0 | GA83: 0 | GB83: 0 | GC83: 0 | GD83: 0 | GE83: 0 | GF83: 0 | GG83: 0 | GH83: 0 | GI83: 0 | GJ83: 0
A84: 5 | D84: TRANSFORMERS | E84: Kiosk Mounted ; < = 22kV ; > 60 kVA and < = 600 kVA ; Multiple Phase | F84: 35.67980178 | G84: 50.47254892 | H84: 7.104403488 | I84: 2 | J84: 116 | K84: 45 | L84: 23 | M84: 43 | N84: 42 | O84: 25 | P84: 58 | Q84: 72 | R84: 76 | S84: 65 | T84: 53 | U84: 55 | V84: 51 | W84: 57 | X84: 49 | Y84: 50 | Z84: 54 | AA84: 45 | AB84: 45 | AC84: 46 | AD84: 50 | AE84: 55 | AF84: 53 | AG84: 60 | AH84: 68 | AI84: 80 | AJ84: 89 | AK84: 76 | AL84: 73 | AM84: 80 | AN84: 67 | AO84: 55 | AP84: 58 | AQ84: 64 | AR84: 62 | AS84: 60 | AT84: 49 | AU84: 48 | AV84: 67 | AW84: 29 | AX84: 21 | AY84: 26 | AZ84: 21 | BA84: 18 | BB84: 34 | BC84: 37 | BD84: 39 | BE84: 43 | BF84: 47 | BG84: 42 | BH84: 40 | BI84: 24 | BJ84: 21 | BK84: 18 | BL84: 16 | BM84: 10 | BN84: 11 | BO84: 7 | BP84: 6 | BQ84: 4 | BR84: 3 | BS84: 3 | BT84: 2 | BU84: 1 | BV84: 0 | BW84: 0 | BX84: 0 | BY84: 0 | BZ84: 0 | CA84: 0 | CB84: 0 | CC84: 0 | CD84: 0 | CE84: 0 | CF84: 0 | CG84: 0 | CH84: 0 | CI84: 0 | CJ84: 0 | CK84: 0 | CL84: 0 | CM84: 0 | CN84: 0 | CO84: 0 | CP84: 0 | CQ84: 0 | CR84: 0 | CS84: 0 | CT84: 0 | CU84: 0 | CV84: 0 | CX84: 4138.857006 | CY84: 1605.59108 | CZ84: 820.6354408 | DA84: 1534.231476 | DB84: 1498.551675 | DC84: 891.9950444 | DD84: 2069.428503 | DE84: 2568.945728 | DF84: 2711.664935 | DG84: 2319.187115 | DH84: 1891.029494 | DI84: 1962.389098 | DJ84: 1819.669891 | DK84: 2033.748701 | DL84: 1748.310287 | DM84: 1783.990089 | DN84: 1926.709296 | DO84: 1605.59108 | DP84: 1605.59108 | DQ84: 1641.270882 | DR84: 1783.990089 | DS84: 1962.389098 | DT84: 1891.029494 | DU84: 2140.788107 | DV84: 2426.226521 | DW84: 2854.384142 | DX84: 3175.502358 | DY84: 2711.664935 | DZ84: 2604.62553 | EA84: 2854.384142 | EB84: 2390.546719 | EC84: 1962.389098 | ED84: 2069.428503 | EE84: 2283.507314 | EF84: 2212.14771 | EG84: 2140.788107 | EH84: 1748.310287 | EI84: 1712.630485 | EJ84: 2390.546719 | EK84: 1034.714251 | EL84: 749.2758373 | EM84: 927.6748462 | EN84: 749.2758373 | EO84: 642.236432 | EP84: 1213.11326 | EQ84: 1320.152666 | ER84: 1391.512269 | ES84: 1534.231476 | ET84: 1676.950683 | EU84: 1498.551675 | EV84: 1427.192071 | EW84: 856.3152426 | EX84: 749.2758373 | EY84: 642.236432 | EZ84: 570.8768284 | FA84: 356.7980178 | FB84: 392.4778195 | FC84: 249.7586124 | FD84: 214.0788107 | FE84: 142.7192071 | FF84: 107.0394053 | FG84: 107.0394053 | FH84: 71.35960355 | FI84: 35.67980178 | FJ84: 0 | FK84: 0 | FL84: 0 | FM84: 0 | FN84: 0 | FO84: 0 | FP84: 0 | FQ84: 0 | FR84: 0 | FS84: 0 | FT84: 0 | FU84: 0 | FV84: 0 | FW84: 0 | FX84: 0 | FY84: 0 | FZ84: 0 | GA84: 0 | GB84: 0 | GC84: 0 | GD84: 0 | GE84: 0 | GF84: 0 | GG84: 0 | GH84: 0 | GI84: 0 | GJ84: 0
A85: 5 | D85: TRANSFORMERS | E85: Kiosk Mounted ; < = 22kV ; > 600 kVA ; Multiple Phase | F85: 69.67929396 | G85: 47.98909105 | H85: 6.9274159 | I85: 2 | J85: 50 | K85: 9 | L85: 5 | M85: 9 | N85: 9 | O85: 5 | P85: 12 | Q85: 15 | R85: 16 | S85: 14 | T85: 11 | U85: 12 | V85: 11 | W85: 12 | X85: 10 | Y85: 11 | Z85: 11 | AA85: 10 | AB85: 10 | AC85: 10 | AD85: 10 | AE85: 12 | AF85: 11 | AG85: 13 | AH85: 14 | AI85: 17 | AJ85: 19 | AK85: 16 | AL85: 15 | AM85: 17 | AN85: 14 | AO85: 12 | AP85: 12 | AQ85: 13 | AR85: 13 | AS85: 13 | AT85: 10 | AU85: 10 | AV85: 14 | AW85: 6 | AX85: 5 | AY85: 5 | AZ85: 4 | BA85: 4 | BB85: 7 | BC85: 8 | BD85: 8 | BE85: 9 | BF85: 10 | BG85: 9 | BH85: 8 | BI85: 5 | BJ85: 4 | BK85: 4 | BL85: 3 | BM85: 2 | BN85: 2 | BO85: 2 | BP85: 1 | BQ85: 1 | BR85: 1 | BS85: 1 | BT85: 0 | BU85: 0 | BV85: 0 | BW85: 0 | BX85: 0 | BY85: 0 | BZ85: 0 | CA85: 0 | CB85: 0 | CC85: 0 | CD85: 0 | CE85: 0 | CF85: 0 | CG85: 0 | CH85: 0 | CI85: 0 | CJ85: 0 | CK85: 0 | CL85: 0 | CM85: 0 | CN85: 0 | CO85: 0 | CP85: 0 | CQ85: 0 | CR85: 0 | CS85: 0 | CT85: 0 | CU85: 0 | CV85: 0 | CX85: 3483.964698 | CY85: 627.1136456 | CZ85: 348.3964698 | DA85: 627.1136456 | DB85: 627.1136456 | DC85: 348.3964698 | DD85: 836.1515275 | DE85: 1045.189409 | DF85: 1114.868703 | DG85: 975.5101154 | DH85: 766.4722335 | DI85: 836.1515275 | DJ85: 766.4722335 | DK85: 836.1515275 | DL85: 696.7929396 | DM85: 766.4722335 | DN85: 766.4722335 | DO85: 696.7929396 | DP85: 696.7929396 | DQ85: 696.7929396 | DR85: 696.7929396 | DS85: 836.1515275 | DT85: 766.4722335 | DU85: 905.8308214 | DV85: 975.5101154 | DW85: 1184.547997 | DX85: 1323.906585 | DY85: 1114.868703 | DZ85: 1045.189409 | EA85: 1184.547997 | EB85: 975.5101154 | EC85: 836.1515275 | ED85: 836.1515275 | EE85: 905.8308214 | EF85: 905.8308214 | EG85: 905.8308214 | EH85: 696.7929396 | EI85: 696.7929396 | EJ85: 975.5101154 | EK85: 418.0757637 | EL85: 348.3964698 | EM85: 348.3964698 | EN85: 278.7171758 | EO85: 278.7171758 | EP85: 487.7550577 | EQ85: 557.4343517 | ER85: 557.4343517 | ES85: 627.1136456 | ET85: 696.7929396 | EU85: 627.1136456 | EV85: 557.4343517 | EW85: 348.3964698 | EX85: 278.7171758 | EY85: 278.7171758 | EZ85: 209.0378819 | FA85: 139.3585879 | FB85: 139.3585879 | FC85: 139.3585879 | FD85: 69.67929396 | FE85: 69.67929396 | FF85: 69.67929396 | FG85: 69.67929396 | FH85: 0 | FI85: 0 | FJ85: 0 | FK85: 0 | FL85: 0 | FM85: 0 | FN85: 0 | FO85: 0 | FP85: 0 | FQ85: 0 | FR85: 0 | FS85: 0 | FT85: 0 | FU85: 0 | FV85: 0 | FW85: 0 | FX85: 0 | FY85: 0 | FZ85: 0 | GA85: 0 | GB85: 0 | GC85: 0 | GD85: 0 | GE85: 0 | GF85: 0 | GG85: 0 | GH85: 0 | GI85: 0 | GJ85: 0
A86: 5 | D86: TRANSFORMERS | E86: Ground Outdoor / Indoor Chamber Mounted; ˂ 22 kV ; < = 60 kVA ; Single Phase | F86: 16.94501973 | G86: 28.80024784 | H86: 5.366586237 | I86: 2 | J86: 0 | K86: 0 | L86: 0 | M86: 0 | N86: 0 | O86: 0 | P86: 0 | Q86: 0 | R86: 0 | S86: 0 | T86: 0 | U86: 0 | V86: 0 | W86: 0 | X86: 0 | Y86: 0 | Z86: 0 | AA86: 0 | AB86: 0 | AC86: 0 | AD86: 0 | AE86: 0 | AF86: 0 | AG86: 0 | AH86: 0 | AI86: 0 | AJ86: 1 | AK86: 0 | AL86: 0 | AM86: 0 | AN86: 0 | AO86: 0 | AP86: 0 | AQ86: 0 | AR86: 0 | AS86: 0 | AT86: 0 | AU86: 0 | AV86: 0 | AW86: 0 | AX86: 0 | AY86: 0 | AZ86: 0 | BA86: 0 | BB86: 0 | BC86: 0 | BD86: 0 | BE86: 0 | BF86: 0 | BG86: 0 | BH86: 0 | BI86: 0 | BJ86: 0 | BK86: 0 | BL86: 0 | BM86: 0 | BN86: 0 | BO86: 0 | BP86: 0 | BQ86: 0 | BR86: 0 | BS86: 0 | BT86: 0 | BU86: 0 | BV86: 0 | BW86: 0 | BX86: 0 | BY86: 0 | BZ86: 0 | CA86: 0 | CB86: 0 | CC86: 0 | CD86: 0 | CE86: 0 | CF86: 0 | CG86: 0 | CH86: 0 | CI86: 0 | CJ86: 0 | CK86: 0 | CL86: 0 | CM86: 0 | CN86: 0 | CO86: 0 | CP86: 0 | CQ86: 0 | CR86: 0 | CS86: 0 | CT86: 0 | CU86: 0 | CV86: 0 | CX86: =$F86*J86 -> 0 | CY86: =$F86*K86 -> 0 | CZ86: =$F86*L86 -> 0 | DA86: =$F86*M86 -> 0 | DB86: =$F86*N86 -> 0 | DC86: =$F86*O86 -> 0 | DD86: =$F86*P86 -> 0 | DE86: =$F86*Q86 -> 0 | DF86: =$F86*R86 -> 0 | DG86: =$F86*S86 -> 0 | DH86: =$F86*T86 -> 0 | DI86: =$F86*U86 -> 0 | DJ86: =$F86*V86 -> 0 | DK86: =$F86*W86 -> 0 | DL86: =$F86*X86 -> 0 | DM86: =$F86*Y86 -> 0 | DN86: =$F86*Z86 -> 0 | DO86: =$F86*AA86 -> 0 | DP86: =$F86*AB86 -> 0 | DQ86: =$F86*AC86 -> 0 | DR86: =$F86*AD86 -> 0 | DS86: =$F86*AE86 -> 0 | DT86: =$F86*AF86 -> 0 | DU86: =$F86*AG86 -> 0 | DV86: =$F86*AH86 -> 0 | DW86: =$F86*AI86 -> 0 | DX86: =$F86*AJ86 -> 16.94501973 | DY86: =$F86*AK86 -> 0 | DZ86: =$F86*AL86 -> 0 | EA86: =$F86*AM86 -> 0 | EB86: =$F86*AN86 -> 0 | EC86: =$F86*AO86 -> 0 | ED86: =$F86*AP86 -> 0 | EE86: =$F86*AQ86 -> 0 | EF86: =$F86*AR86 -> 0 | EG86: =$F86*AS86 -> 0 | EH86: =$F86*AT86 -> 0 | EI86: =$F86*AU86 -> 0 | EJ86: =$F86*AV86 -> 0 | EK86: =$F86*AW86 -> 0 | EL86: =$F86*AX86 -> 0 | EM86: =$F86*AY86 -> 0 | EN86: =$F86*AZ86 -> 0 | EO86: =$F86*BA86 -> 0 | EP86: =$F86*BB86 -> 0 | EQ86: =$F86*BC86 -> 0 | ER86: =$F86*BD86 -> 0 | ES86: =$F86*BE86 -> 0 | ET86: =$F86*BF86 -> 0 | EU86: =$F86*BG86 -> 0 | EV86: =$F86*BH86 -> 0 | EW86: =$F86*BI86 -> 0 | EX86: =$F86*BJ86 -> 0 | EY86: =$F86*BK86 -> 0 | EZ86: =$F86*BL86 -> 0 | FA86: =$F86*BM86 -> 0 | FB86: =$F86*BN86 -> 0 | FC86: =$F86*BO86 -> 0 | FD86: =$F86*BP86 -> 0 | FE86: =$F86*BQ86 -> 0 | FF86: =$F86*BR86 -> 0 | FG86: =$F86*BS86 -> 0 | FH86: =$F86*BT86 -> 0 | FI86: =$F86*BU86 -> 0 | FJ86: =$F86*BV86 -> 0 | FK86: =$F86*BW86 -> 0 | FL86: =$F86*BX86 -> 0 | FM86: =$F86*BY86 -> 0 | FN86: =$F86*BZ86 -> 0 | FO86: =$F86*CA86 -> 0 | FP86: =$F86*CB86 -> 0 | FQ86: =$F86*CC86 -> 0 | FR86: =$F86*CD86 -> 0 | FS86: =$F86*CE86 -> 0 | FT86: =$F86*CF86 -> 0 | FU86: =$F86*CG86 -> 0 | FV86: =$F86*CH86 -> 0 | FW86: =$F86*CI86 -> 0 | FX86: =$F86*CJ86 -> 0 | FY86: =$F86*CK86 -> 0 | FZ86: =$F86*CL86 -> 0 | GA86: =$F86*CM86 -> 0 | GB86: =$F86*CN86 -> 0 | GC86: =$F86*CO86 -> 0 | GD86: =$F86*CP86 -> 0 | GE86: =$F86*CQ86 -> 0 | GF86: =$F86*CR86 -> 0 | GG86: =$F86*CS86 -> 0 | GH86: =$F86*CT86 -> 0 | GI86: =$F86*CU86 -> 0 | GJ86: =$F86*CV86 -> 0
A87: 5 | D87: TRANSFORMERS | E87: Ground Outdoor / Indoor Chamber Mounted; ˂ 22 kV ; > 60 kVA and < = 600 kVA ; Single Phase | F87: 147.2963158 | G87: 72.92505744 | H87: 8.539616937 | I87: 2 | J87: 0 | K87: 0 | L87: 0 | M87: 0 | N87: 0 | O87: 0 | P87: 0 | Q87: 0 | R87: 0 | S87: 0 | T87: 0 | U87: 0 | V87: 0 | W87: 0 | X87: 0 | Y87: 0 | Z87: 0 | AA87: 0 | AB87: 0 | AC87: 0 | AD87: 0 | AE87: 0 | AF87: 0 | AG87: 0 | AH87: 0 | AI87: 0 | AJ87: 1 | AK87: 0 | AL87: 0 | AM87: 0 | AN87: 0 | AO87: 0 | AP87: 0 | AQ87: 0 | AR87: 0 | AS87: 0 | AT87: 0 | AU87: 0 | AV87: 0 | AW87: 0 | AX87: 0 | AY87: 0 | AZ87: 0 | BA87: 0 | BB87: 0 | BC87: 0 | BD87: 0 | BE87: 0 | BF87: 0 | BG87: 0 | BH87: 0 | BI87: 0 | BJ87: 0 | BK87: 0 | BL87: 0 | BM87: 0 | BN87: 0 | BO87: 0 | BP87: 0 | BQ87: 0 | BR87: 0 | BS87: 0 | BT87: 0 | BU87: 0 | BV87: 0 | BW87: 0 | BX87: 0 | BY87: 0 | BZ87: 0 | CA87: 0 | CB87: 0 | CC87: 0 | CD87: 0 | CE87: 0 | CF87: 0 | CG87: 0 | CH87: 0 | CI87: 0 | CJ87: 0 | CK87: 0 | CL87: 0 | CM87: 0 | CN87: 0 | CO87: 0 | CP87: 0 | CQ87: 0 | CR87: 0 | CS87: 0 | CT87: 0 | CU87: 0 | CV87: 0 | CX87: 0 | CY87: 0 | CZ87: 0 | DA87: 0 | DB87: 0 | DC87: 0 | DD87: 0 | DE87: 0 | DF87: 0 | DG87: 0 | DH87: 0 | DI87: 0 | DJ87: 0 | DK87: 0 | DL87: 0 | DM87: 0 | DN87: 0 | DO87: 0 | DP87: 0 | DQ87: 0 | DR87: 0 | DS87: 0 | DT87: 0 | DU87: 0 | DV87: 0 | DW87: 0 | DX87: 147.2963158 | DY87: 0 | DZ87: 0 | EA87: 0 | EB87: 0 | EC87: 0 | ED87: 0 | EE87: 0 | EF87: 0 | EG87: 0 | EH87: 0 | EI87: 0 | EJ87: 0 | EK87: 0 | EL87: 0 | EM87: 0 | EN87: 0 | EO87: 0 | EP87: 0 | EQ87: 0 | ER87: 0 | ES87: 0 | ET87: 0 | EU87: 0 | EV87: 0 | EW87: 0 | EX87: 0 | EY87: 0 | EZ87: 0 | FA87: 0 | FB87: 0 | FC87: 0 | FD87: 0 | FE87: 0 | FF87: 0 | FG87: 0 | FH87: 0 | FI87: 0 | FJ87: 0 | FK87: 0 | FL87: 0 | FM87: 0 | FN87: 0 | FO87: 0 | FP87: 0 | FQ87: 0 | FR87: 0 | FS87: 0 | FT87: 0 | FU87: 0 | FV87: 0 | FW87: 0 | FX87: 0 | FY87: 0 | FZ87: 0 | GA87: 0 | GB87: 0 | GC87: 0 | GD87: 0 | GE87: 0 | GF87: 0 | GG87: 0 | GH87: 0 | GI87: 0 | GJ87: 0
E88: Ground Outdoor / Indoor Chamber Mounted; ˂ 22 kV ; > 600 kVA ; Single Phase | F88: 0.0001 | G88: 0 | H88: 0 | I88: 2
A89: 5 | D89: TRANSFORMERS | E89: Ground Outdoor / Indoor Chamber Mounted; ˂ 22 kV ; < = 60 kVA ; Multiple Phase | F89: 108.9735123 | G89: 51 | H89: 7.141428429 | I89: 2 | J89: 0 | K89: 0 | L89: 0 | M89: 0 | N89: 0 | O89: 0 | P89: 1 | Q89: 1 | R89: 1 | S89: 1 | T89: 1 | U89: 1 | V89: 0 | W89: 1 | X89: 0 | Y89: 0 | Z89: 1 | AA89: 0 | AB89: 0 | AC89: 0 | AD89: 0 | AE89: 1 | AF89: 1 | AG89: 1 | AH89: 1 | AI89: 1 | AJ89: 1 | AK89: 1 | AL89: 1 | AM89: 1 | AN89: 1 | AO89: 1 | AP89: 1 | AQ89: 1 | AR89: 1 | AS89: 1 | AT89: 0 | AU89: 0 | AV89: 1 | AW89: 0 | AX89: 0 | AY89: 0 | AZ89: 0 | BA89: 0 | BB89: 0 | BC89: 0 | BD89: 0 | BE89: 0 | BF89: 0 | BG89: 0 | BH89: 0 | BI89: 0 | BJ89: 0 | BK89: 0 | BL89: 0 | BM89: 0 | BN89: 0 | BO89: 0 | BP89: 0 | BQ89: 0 | BR89: 0 | BS89: 0 | BT89: 0 | BU89: 0 | BV89: 0 | BW89: 0 | BX89: 0 | BY89: 0 | BZ89: 0 | CA89: 0 | CB89: 0 | CC89: 0 | CD89: 0 | CE89: 0 | CF89: 0 | CG89: 0 | CH89: 0 | CI89: 0 | CJ89: 0 | CK89: 0 | CL89: 0 | CM89: 0 | CN89: 0 | CO89: 0 | CP89: 0 | CQ89: 0 | CR89: 0 | CS89: 0 | CT89: 0 | CU89: 0 | CV89: 0 | CX89: 0 | CY89: 0 | CZ89: 0 | DA89: 0 | DB89: 0 | DC89: 0 | DD89: 108.9735123 | DE89: 108.9735123 | DF89: 108.9735123 | DG89: 108.9735123 | DH89: 108.9735123 | DI89: 108.9735123 | DJ89: 0 | DK89: 108.9735123 | DL89: 0 | DM89: 0 | DN89: 108.9735123 | DO89: 0 | DP89: 0 | DQ89: 0 | DR89: 0 | DS89: 108.9735123 | DT89: 108.9735123 | DU89: 108.9735123 | DV89: 108.9735123 | DW89: 108.9735123 | DX89: 108.9735123 | DY89: 108.9735123 | DZ89: 108.9735123 | EA89: 108.9735123 | EB89: 108.9735123 | EC89: 108.9735123 | ED89: 108.9735123 | EE89: 108.9735123 | EF89: 108.9735123 | EG89: 108.9735123 | EH89: 0 | EI89: 0 | EJ89: 108.9735123 | EK89: 0 | EL89: 0 | EM89: 0 | EN89: 0 | EO89: 0 | EP89: 0 | EQ89: 0 | ER89: 0 | ES89: 0 | ET89: 0 | EU89: 0 | EV89: 0 | EW89: 0 | EX89: 0 | EY89: 0 | EZ89: 0 | FA89: 0 | FB89: 0 | FC89: 0 | FD89: 0 | FE89: 0 | FF89: 0 | FG89: 0 | FH89: 0 | FI89: 0 | FJ89: 0 | FK89: 0 | FL89: 0 | FM89: 0 | FN89: 0 | FO89: 0 | FP89: 0 | FQ89: 0 | FR89: 0 | FS89: 0 | FT89: 0 | FU89: 0 | FV89: 0 | FW89: 0 | FX89: 0 | FY89: 0 | FZ89: 0 | GA89: 0 | GB89: 0 | GC89: 0 | GD89: 0 | GE89: 0 | GF89: 0 | GG89: 0 | GH89: 0 | GI89: 0 | GJ89: 0
A90: 5 | D90: TRANSFORMERS | E90: Ground Outdoor / Indoor Chamber Mounted; ˂ 22 kV ; > 60 kVA and < = 600 kVA ; Multiple Phase | F90: 69.10119907 | G90: 57.3713484 | H90: 7.574387658 | I90: 2 | J90: 3 | K90: 6 | L90: 3 | M90: 6 | N90: 6 | O90: 3 | P90: 8 | Q90: 10 | R90: 10 | S90: 9 | T90: 7 | U90: 7 | V90: 7 | W90: 8 | X90: 7 | Y90: 7 | Z90: 7 | AA90: 6 | AB90: 6 | AC90: 6 | AD90: 7 | AE90: 7 | AF90: 7 | AG90: 8 | AH90: 9 | AI90: 11 | AJ90: 12 | AK90: 10 | AL90: 10 | AM90: 11 | AN90: 9 | AO90: 7 | AP90: 8 | AQ90: 9 | AR90: 8 | AS90: 8 | AT90: 7 | AU90: 6 | AV90: 9 | AW90: 4 | AX90: 3 | AY90: 3 | AZ90: 3 | BA90: 2 | BB90: 5 | BC90: 5 | BD90: 5 | BE90: 6 | BF90: 6 | BG90: 6 | BH90: 5 | BI90: 3 | BJ90: 3 | BK90: 2 | BL90: 2 | BM90: 1 | BN90: 2 | BO90: 1 | BP90: 1 | BQ90: 1 | BR90: 0 | BS90: 0 | BT90: 0 | BU90: 0 | BV90: 0 | BW90: 0 | BX90: 0 | BY90: 0 | BZ90: 0 | CA90: 0 | CB90: 0 | CC90: 0 | CD90: 0 | CE90: 0 | CF90: 0 | CG90: 0 | CH90: 0 | CI90: 0 | CJ90: 0 | CK90: 0 | CL90: 0 | CM90: 0 | CN90: 0 | CO90: 0 | CP90: 0 | CQ90: 0 | CR90: 0 | CS90: 0 | CT90: 0 | CU90: 0 | CV90: 0 | CX90: 207.3035972 | CY90: 414.6071944 | CZ90: 207.3035972 | DA90: 414.6071944 | DB90: 414.6071944 | DC90: 207.3035972 | DD90: 552.8095925 | DE90: 691.0119907 | DF90: 691.0119907 | DG90: 621.9107916 | DH90: 483.7083935 | DI90: 483.7083935 | DJ90: 483.7083935 | DK90: 552.8095925 | DL90: 483.7083935 | DM90: 483.7083935 | DN90: 483.7083935 | DO90: 414.6071944 | DP90: 414.6071944 | DQ90: 414.6071944 | DR90: 483.7083935 | DS90: 483.7083935 | DT90: 483.7083935 | DU90: 552.8095925 | DV90: 621.9107916 | DW90: 760.1131897 | DX90: 829.2143888 | DY90: 691.0119907 | DZ90: 691.0119907 | EA90: 760.1131897 | EB90: 621.9107916 | EC90: 483.7083935 | ED90: 552.8095925 | EE90: 621.9107916 | EF90: 552.8095925 | EG90: 552.8095925 | EH90: 483.7083935 | EI90: 414.6071944 | EJ90: 621.9107916 | EK90: 276.4047963 | EL90: 207.3035972 | EM90: 207.3035972 | EN90: 207.3035972 | EO90: 138.2023981 | EP90: 345.5059953 | EQ90: 345.5059953 | ER90: 345.5059953 | ES90: 414.6071944 | ET90: 414.6071944 | EU90: 414.6071944 | EV90: 345.5059953 | EW90: 207.3035972 | EX90: 207.3035972 | EY90: 138.2023981 | EZ90: 138.2023981 | FA90: 69.10119907 | FB90: 138.2023981 | FC90: 69.10119907 | FD90: 69.10119907 | FE90: 69.10119907 | FF90: 0 | FG90: 0 | FH90: 0 | FI90: 0 | FJ90: 0 | FK90: 0 | FL90: 0 | FM90: 0 | FN90: 0 | FO90: 0 | FP90: 0 | FQ90: 0 | FR90: 0 | FS90: 0 | FT90: 0 | FU90: 0 | FV90: 0 | FW90: 0 | FX90: 0 | FY90: 0 | FZ90: 0 | GA90: 0 | GB90: 0 | GC90: 0 | GD90: 0 | GE90: 0 | GF90: 0 | GG90: 0 | GH90: 0 | GI90: 0 | GJ90: 0
A91: 5 | D91: TRANSFORMERS | E91: Ground Outdoor / Indoor Chamber Mounted; ˂ 22 kV ; > 600 kVA ; Multiple Phase | F91: 120.2413178 | G91: 60.00157007 | H91: 7.746068039 | I91: 2 | J91: 8 | K91: 10 | L91: 5 | M91: 10 | N91: 10 | O91: 6 | P91: 14 | Q91: 17 | R91: 18 | S91: 15 | T91: 12 | U91: 13 | V91: 12 | W91: 13 | X91: 11 | Y91: 12 | Z91: 12 | AA91: 10 | AB91: 10 | AC91: 11 | AD91: 12 | AE91: 13 | AF91: 12 | AG91: 14 | AH91: 16 | AI91: 19 | AJ91: 22 | AK91: 18 | AL91: 17 | AM91: 19 | AN91: 16 | AO91: 13 | AP91: 13 | AQ91: 15 | AR91: 15 | AS91: 14 | AT91: 11 | AU91: 11 | AV91: 16 | AW91: 7 | AX91: 5 | AY91: 6 | AZ91: 5 | BA91: 4 | BB91: 8 | BC91: 9 | BD91: 9 | BE91: 10 | BF91: 11 | BG91: 10 | BH91: 9 | BI91: 6 | BJ91: 5 | BK91: 4 | BL91: 4 | BM91: 2 | BN91: 3 | BO91: 2 | BP91: 1 | BQ91: 1 | BR91: 1 | BS91: 1 | BT91: 0 | BU91: 0 | BV91: 0 | BW91: 0 | BX91: 0 | BY91: 0 | BZ91: 0 | CA91: 0 | CB91: 0 | CC91: 0 | CD91: 0 | CE91: 0 | CF91: 0 | CG91: 0 | CH91: 0 | CI91: 0 | CJ91: 0 | CK91: 0 | CL91: 0 | CM91: 0 | CN91: 0 | CO91: 0 | CP91: 0 | CQ91: 0 | CR91: 0 | CS91: 0 | CT91: 0 | CU91: 0 | CV91: 0 | CX91: 961.9305426 | CY91: 1202.413178 | CZ91: 601.2065891 | DA91: 1202.413178 | DB91: 1202.413178 | DC91: 721.447907 | DD91: 1683.37845 | DE91: 2044.102403 | DF91: 2164.343721 | DG91: 1803.619767 | DH91: 1442.895814 | DI91: 1563.137132 | DJ91: 1442.895814 | DK91: 1563.137132 | DL91: 1322.654496 | DM91: 1442.895814 | DN91: 1442.895814 | DO91: 1202.413178 | DP91: 1202.413178 | DQ91: 1322.654496 | DR91: 1442.895814 | DS91: 1563.137132 | DT91: 1442.895814 | DU91: 1683.37845 | DV91: 1923.861085 | DW91: 2284.585039 | DX91: 2645.308992 | DY91: 2164.343721 | DZ91: 2044.102403 | EA91: 2284.585039 | EB91: 1923.861085 | EC91: 1563.137132 | ED91: 1563.137132 | EE91: 1803.619767 | EF91: 1803.619767 | EG91: 1683.37845 | EH91: 1322.654496 | EI91: 1322.654496 | EJ91: 1923.861085 | EK91: 841.6892248 | EL91: 601.2065891 | EM91: 721.447907 | EN91: 601.2065891 | EO91: 480.9652713 | EP91: 961.9305426 | EQ91: 1082.17186 | ER91: 1082.17186 | ES91: 1202.413178 | ET91: 1322.654496 | EU91: 1202.413178 | EV91: 1082.17186 | EW91: 721.447907 | EX91: 601.2065891 | EY91: 480.9652713 | EZ91: 480.9652713 | FA91: 240.4826357 | FB91: 360.7239535 | FC91: 240.4826357 | FD91: 120.2413178 | FE91: 120.2413178 | FF91: 120.2413178 | FG91: 120.2413178 | FH91: 0 | FI91: 0 | FJ91: 0 | FK91: 0 | FL91: 0 | FM91: 0 | FN91: 0 | FO91: 0 | FP91: 0 | FQ91: 0 | FR91: 0 | FS91: 0 | FT91: 0 | FU91: 0 | FV91: 0 | FW91: 0 | FX91: 0 | FY91: 0 | FZ91: 0 | GA91: 0 | GB91: 0 | GC91: 0 | GD91: 0 | GE91: 0 | GF91: 0 | GG91: 0 | GH91: 0 | GI91: 0 | GJ91: 0
E92: Ground Outdoor / Indoor Chamber Mounted; > = 22 kV & < = 33 kV ; < = 15 MVA | F92: 373.0151742 | G92: 61.92026148 | H92: 7.868942844 | I92: 2
E93: Ground Outdoor / Indoor Chamber Mounted; > = 22 kV & < = 33 kV ; > 15 MVA and < = 40 MVA | F93: 1844.005796 | G93: 48.23877026 | H93: 6.945413614 | I93: 2
E94: Ground Outdoor / Indoor Chamber Mounted; > = 22 kV & < = 33 kV ; > 40 MVA | F94: 634.3753382 | G94: 0 | H94: 0 | I94: 2
A95: 5 | D95: TRANSFORMERS | E95: Ground Outdoor / Indoor Chamber Mounted; > 33 kV & < = 66 kV ; < = 15 MVA | F95: 1236.257379 | G95: 66.54561392 | H95: 8.157549504 | I95: 2 | J95: 0 | K95: 0 | L95: 0 | M95: 0 | N95: 0 | O95: 0 | P95: 0 | Q95: 0 | R95: 0 | S95: 0 | T95: 0 | U95: 1 | V95: 0 | W95: 1 | X95: 1 | Y95: 0 | Z95: 1 | AA95: 0 | AB95: 0 | AC95: 0 | AD95: 0 | AE95: 0 | AF95: 0 | AG95: 0 | AH95: 0 | AI95: 0 | AJ95: 0 | AK95: 0 | AL95: 0 | AM95: 0 | AN95: 0 | AO95: 0 | AP95: 0 | AQ95: 0 | AR95: 1 | AS95: 0 | AT95: 1 | AU95: 0 | AV95: 0 | AW95: 0 | AX95: 0 | AY95: 0 | AZ95: 0 | BA95: 0 | BB95: 0 | BC95: 0 | BD95: 3 | BE95: 8 | BF95: 3 | BG95: 6 | BH95: 0 | BI95: 4 | BJ95: 15 | BK95: 0 | BL95: 6 | BM95: 1 | BN95: 2 | BO95: 0 | BP95: 0 | BQ95: 0 | BR95: 0 | BS95: 0 | BT95: 0 | BU95: 0 | BV95: 6 | BW95: 0 | BX95: 4 | BY95: 1 | BZ95: 0 | CA95: 0 | CB95: 0 | CC95: 0 | CD95: 0 | CE95: 0 | CF95: 0 | CG95: 0 | CH95: 0 | CI95: 0 | CJ95: 0 | CK95: 0 | CL95: 0 | CM95: 0 | CN95: 0 | CO95: 0 | CP95: 0 | CQ95: 0 | CR95: 0 | CS95: 0 | CT95: 0 | CU95: 0 | CV95: 0 | CX95: 0 | CY95: 0 | CZ95: 0 | DA95: 0 | DB95: 0 | DC95: 0 | DD95: 0 | DE95: 0 | DF95: 0 | DG95: 0 | DH95: 0 | DI95: 1236.257379 | DJ95: 0 | DK95: 1236.257379 | DL95: 1236.257379 | DM95: 0 | DN95: 1236.257379 | DO95: 0 | DP95: 0 | DQ95: 0 | DR95: 0 | DS95: 0 | DT95: 0 | DU95: 0 | DV95: 0 | DW95: 0 | DX95: 0 | DY95: 0 | DZ95: 0 | EA95: 0 | EB95: 0 | EC95: 0 | ED95: 0 | EE95: 0 | EF95: 1236.257379 | EG95: 0 | EH95: 1236.257379 | EI95: 0 | EJ95: 0 | EK95: 0 | EL95: 0 | EM95: 0 | EN95: 0 | EO95: 0 | EP95: 0 | EQ95: 0 | ER95: 3708.772136 | ES95: 9890.05903 | ET95: 3708.772136 | EU95: 7417.544272 | EV95: 0 | EW95: 4945.029515 | EX95: 18543.86068 | EY95: 0 | EZ95: 7417.544272 | FA95: 1236.257379 | FB95: 2472.514757 | FC95: 0 | FD95: 0 | FE95: 0 | FF95: 0 | FG95: 0 | FH95: 0 | FI95: 0 | FJ95: 7417.544272 | FK95: 0 | FL95: 4945.029515 | FM95: 1236.257379 | FN95: 0 | FO95: 0 | FP95: 0 | FQ95: 0 | FR95: 0 | FS95: 0 | FT95: 0 | FU95: 0 | FV95: 0 | FW95: 0 | FX95: 0 | FY95: 0 | FZ95: 0 | GA95: 0 | GB95: 0 | GC95: 0 | GD95: 0 | GE95: 0 | GF95: 0 | GG95: 0 | GH95: 0 | GI95: 0 | GJ95: 0
A96: 5 | D96: TRANSFORMERS | E96: Ground Outdoor / Indoor Chamber Mounted; > 33 kV & < = 66 kV ; > 15 MVA and < = 40 MVA | F96: 1742.501519 | G96: 57.33277795 | H96: 7.57184112 | I96: 2 | J96: 2 | K96: 3 | L96: 3 | M96: 3 | N96: 5 | O96: 1 | P96: 3 | Q96: 1 | R96: 1 | S96: 1 | T96: 2 | U96: 2 | V96: 0 | W96: 3 | X96: 0 | Y96: 1 | Z96: 0 | AA96: 0 | AB96: 0 | AC96: 0 | AD96: 0 | AE96: 0 | AF96: 0 | AG96: 0 | AH96: 0 | AI96: 1 | AJ96: 0 | AK96: 1 | AL96: 2 | AM96: 0 | AN96: 0 | AO96: 0 | AP96: 2 | AQ96: 0 | AR96: 6 | AS96: 2 | AT96: 12 | AU96: 1 | AV96: 0 | AW96: 3 | AX96: 0 | AY96: 0 | AZ96: 0 | BA96: 0 | BB96: 0 | BC96: 0 | BD96: 0 | BE96: 1 | BF96: 4 | BG96: 2 | BH96: 2 | BI96: 2 | BJ96: 0 | BK96: 0 | BL96: 1 | BM96: 1 | BN96: 0 | BO96: 0 | BP96: 0 | BQ96: 0 | BR96: 0 | BS96: 0 | BT96: 0 | BU96: 0 | BV96: 0 | BW96: 0 | BX96: 0 | BY96: 1 | BZ96: 0 | CA96: 0 | CB96: 0 | CC96: 0 | CD96: 0 | CE96: 0 | CF96: 0 | CG96: 0 | CH96: 0 | CI96: 0 | CJ96: 0 | CK96: 0 | CL96: 0 | CM96: 0 | CN96: 0 | CO96: 0 | CP96: 0 | CQ96: 0 | CR96: 0 | CS96: 0 | CT96: 0 | CU96: 0 | CV96: 0 | CX96: 3485.003039 | CY96: 5227.504558 | CZ96: 5227.504558 | DA96: 5227.504558 | DB96: 8712.507597 | DC96: 1742.501519 | DD96: 5227.504558 | DE96: 1742.501519 | DF96: 1742.501519 | DG96: 1742.501519 | DH96: 3485.003039 | DI96: 3485.003039 | DJ96: 0 | DK96: 5227.504558 | DL96: 0 | DM96: 1742.501519 | DN96: 0 | DO96: 0 | DP96: 0 | DQ96: 0 | DR96: 0 | DS96: 0 | DT96: 0 | DU96: 0 | DV96: 0 | DW96: 1742.501519 | DX96: 0 | DY96: 1742.501519 | DZ96: 3485.003039 | EA96: 0 | EB96: 0 | EC96: 0 | ED96: 3485.003039 | EE96: 0 | EF96: 10455.00912 | EG96: 3485.003039 | EH96: 20910.01823 | EI96: 1742.501519 | EJ96: 0 | EK96: 5227.504558 | EL96: 0 | EM96: 0 | EN96: 0 | EO96: 0 | EP96: 0 | EQ96: 0 | ER96: 0 | ES96: 1742.501519 | ET96: 6970.006078 | EU96: 3485.003039 | EV96: 3485.003039 | EW96: 3485.003039 | EX96: 0 | EY96: 0 | EZ96: 1742.501519 | FA96: 1742.501519 | FB96: 0 | FC96: 0 | FD96: 0 | FE96: 0 | FF96: 0 | FG96: 0 | FH96: 0 | FI96: 0 | FJ96: 0 | FK96: 0 | FL96: 0 | FM96: 1742.501519 | FN96: 0 | FO96: 0 | FP96: 0 | FQ96: 0 | FR96: 0 | FS96: 0 | FT96: 0 | FU96: 0 | FV96: 0 | FW96: 0 | FX96: 0 | FY96: 0 | FZ96: 0 | GA96: 0 | GB96: 0 | GC96: 0 | GD96: 0 | GE96: 0 | GF96: 0 | GG96: 0 | GH96: 0 | GI96: 0 | GJ96: 0
A97: 5 | D97: TRANSFORMERS | E97: Ground Outdoor / Indoor Chamber Mounted; > 33 kV & < = 66 kV ; > 40 MVA | F97: 351.1457261 | G97: 61.65095265 | H97: 7.851812062 | I97: 2 | J97: 0 | K97: 0 | L97: 0 | M97: 0 | N97: 0 | O97: 0 | P97: 0 | Q97: 0 | R97: 0 | S97: 0 | T97: 0 | U97: 0 | V97: 0 | W97: 0 | X97: 0 | Y97: 0 | Z97: 0 | AA97: 0 | AB97: 0 | AC97: 0 | AD97: 0 | AE97: 0 | AF97: 0 | AG97: 0 | AH97: 0 | AI97: 0 | AJ97: 0 | AK97: 0 | AL97: 0 | AM97: 0 | AN97: 0 | AO97: 0 | AP97: 0 | AQ97: 0 | AR97: 0 | AS97: 0 | AT97: 0 | AU97: 0 | AV97: 0 | AW97: 0 | AX97: 0 | AY97: 0 | AZ97: 0 | BA97: 0 | BB97: 0 | BC97: 0 | BD97: 0 | BE97: 0 | BF97: 0 | BG97: 0 | BH97: 0 | BI97: 0 | BJ97: 0 | BK97: 0 | BL97: 0 | BM97: 1 | BN97: 0 | BO97: 0 | BP97: 0 | BQ97: 0 | BR97: 0 | BS97: 0 | BT97: 0 | BU97: 0 | BV97: 0 | BW97: 0 | BX97: 0 | BY97: 0 | BZ97: 0 | CA97: 0 | CB97: 0 | CC97: 0 | CD97: 0 | CE97: 0 | CF97: 0 | CG97: 0 | CH97: 0 | CI97: 0 | CJ97: 0 | CK97: 0 | CL97: 0 | CM97: 0 | CN97: 0 | CO97: 0 | CP97: 0 | CQ97: 0 | CR97: 0 | CS97: 0 | CT97: 0 | CU97: 0 | CV97: 0 | CX97: 0 | CY97: 0 | CZ97: 0 | DA97: 0 | DB97: 0 | DC97: 0 | DD97: 0 | DE97: 0 | DF97: 0 | DG97: 0 | DH97: 0 | DI97: 0 | DJ97: 0 | DK97: 0 | DL97: 0 | DM97: 0 | DN97: 0 | DO97: 0 | DP97: 0 | DQ97: 0 | DR97: 0 | DS97: 0 | DT97: 0 | DU97: 0 | DV97: 0 | DW97: 0 | DX97: 0 | DY97: 0 | DZ97: 0 | EA97: 0 | EB97: 0 | EC97: 0 | ED97: 0 | EE97: 0 | EF97: 0 | EG97: 0 | EH97: 0 | EI97: 0 | EJ97: 0 | EK97: 0 | EL97: 0 | EM97: 0 | EN97: 0 | EO97: 0 | EP97: 0 | EQ97: 0 | ER97: 0 | ES97: 0 | ET97: 0 | EU97: 0 | EV97: 0 | EW97: 0 | EX97: 0 | EY97: 0 | EZ97: 0 | FA97: 351.1457261 | FB97: 0 | FC97: 0 | FD97: 0 | FE97: 0 | FF97: 0 | FG97: 0 | FH97: 0 | FI97: 0 | FJ97: 0 | FK97: 0 | FL97: 0 | FM97: 0 | FN97: 0 | FO97: 0 | FP97: 0 | FQ97: 0 | FR97: 0 | FS97: 0 | FT97: 0 | FU97: 0 | FV97: 0 | FW97: 0 | FX97: 0 | FY97: 0 | FZ97: 0 | GA97: 0 | GB97: 0 | GC97: 0 | GD97: 0 | GE97: 0 | GF97: 0 | GG97: 0 | GH97: 0 | GI97: 0 | GJ97: 0
E98: Ground Outdoor / Indoor Chamber Mounted; > 66 kV & < = 132 kV ; < = 100 MVA | F98: 3122.741652 | G98: 56.93760012 | H98: 7.545700771 | I98: 2
E99: Ground Outdoor / Indoor Chamber Mounted; > 66 kV & < = 132 kV ; > 100 MVA | F99: 4267.16617 | G99: 52.28808232 | H99: 7.231049877 | I99: 2
E100: Ground Outdoor / Indoor Chamber Mounted; > 132 kV ; < = 100 MVA | F100: 0.0001 | G100: 0 | H100: 0 | I100: 2
E101: Ground Outdoor / Indoor Chamber Mounted; > 132 kV ; > 100 MVA | F101: 0.0001 | G101: 0 | H101: 0 | I101: 2
A102: 5 | D102: TRANSFORMERS | E102: Other | F102: 32.9912316 | G102: 66.7773034 | H102: 8.171738089 | I102: 2 | J102: 214 | K102: 356 | L102: 209 | M102: 384 | N102: 377 | O102: 192 | P102: 448 | Q102: 557 | R102: 587 | S102: 498 | T102: 413 | U102: 427 | V102: 394 | W102: 436 | X102: 378 | Y102: 386 | Z102: 415 | AA102: 347 | AB102: 347 | AC102: 351 | AD102: 384 | AE102: 423 | AF102: 412 | AG102: 463 | AH102: 521 | AI102: 618 | AJ102: 686 | AK102: 591 | AL102: 559 | AM102: 615 | AN102: 516 | AO102: 421 | AP102: 445 | AQ102: 494 | AR102: 482 | AS102: 465 | AT102: 378 | AU102: 372 | AV102: 518 | AW102: 223 | AX102: 166 | AY102: 199 | AZ102: 162 | BA102: 140 | BB102: 261 | BC102: 287 | BD102: 299 | BE102: 328 | BF102: 364 | BG102: 326 | BH102: 309 | BI102: 187 | BJ102: 162 | BK102: 138 | BL102: 119 | BM102: 75 | BN102: 86 | BO102: 56 | BP102: 46 | BQ102: 31 | BR102: 21 | BS102: 20 | BT102: 14 | BU102: 5 | BV102: 2 | BW102: 0 | BX102: 0 | BY102: 0 | BZ102: 0 | CA102: 0 | CB102: 0 | CC102: 0 | CD102: 0 | CE102: 0 | CF102: 0 | CG102: 0 | CH102: 0 | CI102: 0 | CJ102: 0 | CK102: 0 | CL102: 0 | CM102: 0 | CN102: 0 | CO102: 0 | CP102: 0 | CQ102: 0 | CR102: 0 | CS102: 0 | CT102: 0 | CU102: 0 | CV102: 0 | CX102: 7060.123563 | CY102: 11744.87845 | CZ102: 6895.167405 | DA102: 12668.63294 | DB102: 12437.69431 | DC102: 6334.316468 | DD102: 14780.07176 | DE102: 18376.116 | DF102: 19365.85295 | DG102: 16429.63334 | DH102: 13625.37865 | DI102: 14087.25589 | DJ102: 12998.54525 | DK102: 14384.17698 | DL102: 12470.68555 | DM102: 12734.6154 | DN102: 13691.36112 | DO102: 11447.95737 | DP102: 11447.95737 | DQ102: 11579.92229 | DR102: 12668.63294 | DS102: 13955.29097 | DT102: 13592.38742 | DU102: 15274.94023 | DV102: 17188.43166 | DW102: 20388.58113 | DX102: 22631.98488 | DY102: 19497.81788 | DZ102: 18442.09847 | EA102: 20289.60744 | EB102: 17023.47551 | EC102: 13889.3085 | ED102: 14681.09806 | EE102: 16297.66841 | EF102: 15901.77363 | EG102: 15340.9227 | EH102: 12470.68555 | EI102: 12272.73816 | EJ102: 17089.45797 | EK102: 7357.044647 | EL102: 5476.544446 | EM102: 6565.255089 | EN102: 5344.57952 | EO102: 4618.772424 | EP102: 8610.711448 | EQ102: 9468.48347 | ER102: 9864.378249 | ES102: 10821.12397 | ET102: 12008.8083 | EU102: 10755.1415 | EV102: 10194.29057 | EW102: 6169.36031 | EX102: 5344.57952 | EY102: 4552.789961 | EZ102: 3925.956561 | FA102: 2474.34237 | FB102: 2837.245918 | FC102: 1847.50897 | FD102: 1517.596654 | FE102: 1022.72818 | FF102: 692.8158637 | FG102: 659.8246321 | FH102: 461.8772424 | FI102: 164.956158 | FJ102: 65.98246321 | FK102: 0 | FL102: 0 | FM102: 0 | FN102: 0 | FO102: 0 | FP102: 0 | FQ102: 0 | FR102: 0 | FS102: 0 | FT102: 0 | FU102: 0 | FV102: 0 | FW102: 0 | FX102: 0 | FY102: 0 | FZ102: 0 | GA102: 0 | GB102: 0 | GC102: 0 | GD102: 0 | GE102: 0 | GF102: 0 | GG102: 0 | GH102: 0 | GI102: 0 | GJ102: 0
E103: ˂ = 11 kV ; Fuse | F103: 1.647177725 | G103: 51.73835536 | H103: 7.192937881 | I103: 2
A104: 6 | D104: SWITCHGEAR | E104: ˂ = 11 kV ; Switch | F104: 10.33489734 | G104: 64.2942105 | H104: 8.018367072 | I104: 2 | J104: 3 | K104: 5 | L104: 3 | M104: 4 | N104: 4 | O104: 7 | P104: 2 | Q104: 9 | R104: 0 | S104: 4 | T104: 0 | U104: 0 | V104: 1 | W104: 2 | X104: 1 | Y104: 1 | Z104: 0 | AA104: 0 | AB104: 0 | AC104: 0 | AD104: 0 | AE104: 0 | AF104: 0 | AG104: 0 | AH104: 0 | AI104: 1 | AJ104: 0 | AK104: 2 | AL104: 0 | AM104: 1 | AN104: 3 | AO104: 1 | AP104: 0 | AQ104: 2 | AR104: 0 | AS104: 2 | AT104: 6 | AU104: 0 | AV104: 3 | AW104: 2 | AX104: 0 | AY104: 0 | AZ104: 0 | BA104: 0 | BB104: 1 | BC104: 4 | BD104: 2 | BE104: 3 | BF104: 1 | BG104: 2 | BH104: 0 | BI104: 1 | BJ104: 3 | BK104: 0 | BL104: 1 | BM104: 2 | BN104: 1 | BO104: 0 | BP104: 0 | BQ104: 1 | BR104: 1 | BS104: 0 | BT104: 0 | BU104: 0 | BV104: 0 | BW104: 0 | BX104: 0 | BY104: 0 | BZ104: 0 | CA104: 0 | CB104: 0 | CC104: 0 | CD104: 0 | CE104: 0 | CF104: 0 | CG104: 0 | CH104: 0 | CI104: 0 | CJ104: 0 | CK104: 0 | CL104: 0 | CM104: 0 | CN104: 0 | CO104: 0 | CP104: 0 | CQ104: 0 | CR104: 0 | CS104: 0 | CT104: 0 | CU104: 0 | CV104: 0 | CX104: 31.00469202 | CY104: 51.67448669 | CZ104: 31.00469202 | DA104: 41.33958936 | DB104: 41.33958936 | DC104: 72.34428137 | DD104: 20.66979468 | DE104: 93.01407605 | DF104: 0 | DG104: 41.33958936 | DH104: 0 | DI104: 0 | DJ104: 10.33489734 | DK104: 20.66979468 | DL104: 10.33489734 | DM104: 10.33489734 | DN104: 0 | DO104: 0 | DP104: 0 | DQ104: 0 | DR104: 0 | DS104: 0 | DT104: 0 | DU104: 0 | DV104: 0 | DW104: 10.33489734 | DX104: 0 | DY104: 20.66979468 | DZ104: 0 | EA104: 10.33489734 | EB104: 31.00469202 | EC104: 10.33489734 | ED104: 0 | EE104: 20.66979468 | EF104: 0 | EG104: 20.66979468 | EH104: 62.00938403 | EI104: 0 | EJ104: 31.00469202 | EK104: 20.66979468 | EL104: 0 | EM104: 0 | EN104: 0 | EO104: 0 | EP104: 10.33489734 | EQ104: 41.33958936 | ER104: 20.66979468 | ES104: 31.00469202 | ET104: 10.33489734 | EU104: 20.66979468 | EV104: 0 | EW104: 10.33489734 | EX104: 31.00469202 | EY104: 0 | EZ104: 10.33489734 | FA104: 20.66979468 | FB104: 10.33489734 | FC104: 0 | FD104: 0 | FE104: 10.33489734 | FF104: 10.33489734 | FG104: 0 | FH104: 0 | FI104: 0 | FJ104: 0 | FK104: 0 | FL104: 0 | FM104: 0 | FN104: 0 | FO104: 0 | FP104: 0 | FQ104: 0 | FR104: 0 | FS104: 0 | FT104: 0 | FU104: 0 | FV104: 0 | FW104: 0 | FX104: 0 | FY104: 0 | FZ104: 0 | GA104: 0 | GB104: 0 | GC104: 0 | GD104: 0 | GE104: 0 | GF104: 0 | GG104: 0 | GH104: 0 | GI104: 0 | GJ104: 0
A105: 6 | D105: SWITCHGEAR | E105: ˂ = 11 kV ; Circuit Breaker | F105: 96.71508106 | G105: 54.58537301 | H105: 7.388191457 | I105: 2 | J105: 0 | K105: 0 | L105: 0 | M105: 1 | N105: 0 | O105: 0 | P105: 0 | Q105: 0 | R105: 0 | S105: 0 | T105: 0 | U105: 0 | V105: 0 | W105: 0 | X105: 0 | Y105: 0 | Z105: 0 | AA105: 0 | AB105: 0 | AC105: 0 | AD105: 2 | AE105: 0 | AF105: 0 | AG105: 0 | AH105: 1 | AI105: 2 | AJ105: 2 | AK105: 2 | AL105: 0 | AM105: 0 | AN105: 20 | AO105: 0 | AP105: 0 | AQ105: 0 | AR105: 0 | AS105: 1 | AT105: 1 | AU105: 0 | AV105: 1 | AW105: 0 | AX105: 0 | AY105: 0 | AZ105: 0 | BA105: 0 | BB105: 0 | BC105: 1 | BD105: 0 | BE105: 1 | BF105: 0 | BG105: 0 | BH105: 8 | BI105: 0 | BJ105: 2 | BK105: 0 | BL105: 1 | BM105: 1 | BN105: 12 | BO105: 0 | BP105: 0 | BQ105: 0 | BR105: 0 | BS105: 0 | BT105: 0 | BU105: 0 | BV105: 0 | BW105: 0 | BX105: 0 | BY105: 0 | BZ105: 0 | CA105: 0 | CB105: 0 | CC105: 0 | CD105: 0 | CE105: 0 | CF105: 0 | CG105: 0 | CH105: 0 | CI105: 0 | CJ105: 0 | CK105: 0 | CL105: 0 | CM105: 0 | CN105: 0 | CO105: 0 | CP105: 0 | CQ105: 0 | CR105: 0 | CS105: 0 | CT105: 0 | CU105: 0 | CV105: 0 | CX105: 0 | CY105: 0 | CZ105: 0 | DA105: 96.71508106 | DB105: 0 | DC105: 0 | DD105: 0 | DE105: 0 | DF105: 0 | DG105: 0 | DH105: 0 | DI105: 0 | DJ105: 0 | DK105: 0 | DL105: 0 | DM105: 0 | DN105: 0 | DO105: 0 | DP105: 0 | DQ105: 0 | DR105: 193.4301621 | DS105: 0 | DT105: 0 | DU105: 0 | DV105: 96.71508106 | DW105: 193.4301621 | DX105: 193.4301621 | DY105: 193.4301621 | DZ105: 0 | EA105: 0 | EB105: 1934.301621 | EC105: 0 | ED105: 0 | EE105: 0 | EF105: 0 | EG105: 96.71508106 | EH105: 96.71508106 | EI105: 0 | EJ105: 96.71508106 | EK105: 0 | EL105: 0 | EM105: 0 | EN105: 0 | EO105: 0 | EP105: 0 | EQ105: 96.71508106 | ER105: 0 | ES105: 96.71508106 | ET105: 0 | EU105: 0 | EV105: 773.7206485 | EW105: 0 | EX105: 193.4301621 | EY105: 0 | EZ105: 96.71508106 | FA105: 96.71508106 | FB105: 1160.580973 | FC105: 0 | FD105: 0 | FE105: 0 | FF105: 0 | FG105: 0 | FH105: 0 | FI105: 0 | FJ105: 0 | FK105: 0 | FL105: 0 | FM105: 0 | FN105: 0 | FO105: 0 | FP105: 0 | FQ105: 0 | FR105: 0 | FS105: 0 | FT105: 0 | FU105: 0 | FV105: 0 | FW105: 0 | FX105: 0 | FY105: 0 | FZ105: 0 | GA105: 0 | GB105: 0 | GC105: 0 | GD105: 0 | GE105: 0 | GF105: 0 | GG105: 0 | GH105: 0 | GI105: 0 | GJ105: 0
A106: 6 | D106: SWITCHGEAR | E106: > 11 kV & < = 22 kV ; Switch | F106: 9.836411827 | G106: 68.30217777 | H106: 8.26451316 | I106: 2 | J106: 552 | K106: 808 | L106: 657 | M106: 666 | N106: 681 | O106: 728 | P106: 693 | Q106: 562 | R106: 497 | S106: 474 | T106: 341 | U106: 211 | V106: 222 | W106: 315 | X106: 122 | Y106: 144 | Z106: 21 | AA106: 27 | AB106: 28 | AC106: 23 | AD106: 20 | AE106: 16 | AF106: 16 | AG106: 29 | AH106: 16 | AI106: 96 | AJ106: 17 | AK106: 228 | AL106: 42 | AM106: 133 | AN106: 31 | AO106: 85 | AP106: 31 | AQ106: 248 | AR106: 42 | AS106: 286 | AT106: 733 | AU106: 13 | AV106: 447 | AW106: 264 | AX106: 13 | AY106: 13 | AZ106: 19 | BA106: 13 | BB106: 118 | BC106: 553 | BD106: 225 | BE106: 326 | BF106: 119 | BG106: 224 | BH106: 39 | BI106: 130 | BJ106: 365 | BK106: 26 | BL106: 104 | BM106: 300 | BN106: 144 | BO106: 13 | BP106: 13 | BQ106: 65 | BR106: 170 | BS106: 13 | BT106: 39 | BU106: 13 | BV106: 26 | BW106: 13 | BX106: 13 | BY106: 13 | BZ106: 13 | CA106: 13 | CB106: 13 | CC106: 13 | CD106: 13 | CE106: 13 | CF106: 13 | CG106: 13 | CH106: 13 | CI106: 13 | CJ106: 13 | CK106: 13 | CL106: 13 | CM106: 13 | CN106: 13 | CO106: 13 | CP106: 13 | CQ106: 13 | CR106: 13 | CS106: 13 | CT106: 13 | CU106: 13 | CV106: 182 | CX106: 5429.699329 | CY106: 7947.820757 | CZ106: 6462.522571 | DA106: 6551.050277 | DB106: 6698.596454 | DC106: 7160.90781 | DD106: 6816.633396 | DE106: 5528.063447 | DF106: 4888.696678 | DG106: 4662.459206 | DH106: 3354.216433 | DI106: 2075.482896 | DJ106: 2183.683426 | DK106: 3098.469726 | DL106: 1200.042243 | DM106: 1416.443303 | DN106: 206.5646484 | DO106: 265.5831193 | DP106: 275.4195312 | DQ106: 226.237472 | DR106: 196.7282365 | DS106: 157.3825892 | DT106: 157.3825892 | DU106: 285.255943 | DV106: 157.3825892 | DW106: 944.2955354 | DX106: 167.2190011 | DY106: 2242.701897 | DZ106: 413.1292967 | EA106: 1308.242773 | EB106: 304.9287666 | EC106: 836.0950053 | ED106: 304.9287666 | EE106: 2439.430133 | EF106: 413.1292967 | EG106: 2813.213783 | EH106: 7210.089869 | EI106: 127.8733538 | EJ106: 4396.876087 | EK106: 2596.812722 | EL106: 127.8733538 | EM106: 127.8733538 | EN106: 186.8918247 | EO106: 127.8733538 | EP106: 1160.696596 | EQ106: 5439.535741 | ER106: 2213.192661 | ES106: 3206.670256 | ET106: 1170.533007 | EU106: 2203.356249 | EV106: 383.6200613 | EW106: 1278.733538 | EX106: 3590.290317 | EY106: 255.7467075 | EZ106: 1022.98683 | FA106: 2950.923548 | FB106: 1416.443303 | FC106: 127.8733538 | FD106: 127.8733538 | FE106: 639.3667688 | FF106: 1672.190011 | FG106: 127.8733538 | FH106: 383.6200613 | FI106: 127.8733538 | FJ106: 255.7467075 | FK106: 127.8733538 | FL106: 127.8733538 | FM106: 127.8733538 | FN106: 127.8733538 | FO106: 127.8733538 | FP106: 127.8733538 | FQ106: 127.8733538 | FR106: 127.8733538 | FS106: 127.8733538 | FT106: 127.8733538 | FU106: 127.8733538 | FV106: 127.8733538 | FW106: 127.8733538 | FX106: 127.8733538 | FY106: 127.8733538 | FZ106: 127.8733538 | GA106: 127.8733538 | GB106: 127.8733538 | GC106: 127.8733538 | GD106: 127.8733538 | GE106: 127.8733538 | GF106: 127.8733538 | GG106: 127.8733538 | GH106: 127.8733538 | GI106: 127.8733538 | GJ106: 1790.226953
A107: 6 | D107: SWITCHGEAR | E107: > 11 kV & < = 22 kV ; Circuit Breaker | F107: 89.19023228 | G107: 47.07360122 | H107: 6.861020421 | I107: 2 | J107: 7 | K107: 9 | L107: 15 | M107: 16 | N107: 12 | O107: 16 | P107: 14 | Q107: 15 | R107: 18 | S107: 12 | T107: 23 | U107: 14 | V107: 15 | W107: 25 | X107: 7 | Y107: 13 | Z107: 0 | AA107: 2 | AB107: 2 | AC107: 0 | AD107: 0 | AE107: 0 | AF107: 0 | AG107: 2 | AH107: 0 | AI107: 9 | AJ107: 0 | AK107: 22 | AL107: 3 | AM107: 13 | AN107: 0 | AO107: 7 | AP107: 0 | AQ107: 21 | AR107: 0 | AS107: 28 | AT107: 74 | AU107: 0 | AV107: 45 | AW107: 26 | AX107: 0 | AY107: 0 | AZ107: 0 | BA107: 0 | BB107: 11 | BC107: 56 | BD107: 22 | BE107: 33 | BF107: 11 | BG107: 22 | BH107: 3 | BI107: 13 | BJ107: 37 | BK107: 2 | BL107: 10 | BM107: 30 | BN107: 14 | BO107: 0 | BP107: 0 | BQ107: 6 | BR107: 17 | BS107: 0 | BT107: 3 | BU107: 0 | BV107: 2 | BW107: 0 | BX107: 0 | BY107: 0 | BZ107: 0 | CA107: 0 | CB107: 0 | CC107: 0 | CD107: 0 | CE107: 0 | CF107: 0 | CG107: 0 | CH107: 0 | CI107: 0 | CJ107: 0 | CK107: 0 | CL107: 0 | CM107: 0 | CN107: 0 | CO107: 0 | CP107: 0 | CQ107: 0 | CR107: 0 | CS107: 0 | CT107: 0 | CU107: 0 | CV107: 0 | CX107: 624.331626 | CY107: 802.7120905 | CZ107: 1337.853484 | DA107: 1427.043717 | DB107: 1070.282787 | DC107: 1427.043717 | DD107: 1248.663252 | DE107: 1337.853484 | DF107: 1605.424181 | DG107: 1070.282787 | DH107: 2051.375342 | DI107: 1248.663252 | DJ107: 1337.853484 | DK107: 2229.755807 | DL107: 624.331626 | DM107: 1159.47302 | DN107: 0 | DO107: 178.3804646 | DP107: 178.3804646 | DQ107: 0 | DR107: 0 | DS107: 0 | DT107: 0 | DU107: 178.3804646 | DV107: 0 | DW107: 802.7120905 | DX107: 0 | DY107: 1962.18511 | DZ107: 267.5706968 | EA107: 1159.47302 | EB107: 0 | EC107: 624.331626 | ED107: 0 | EE107: 1872.994878 | EF107: 0 | EG107: 2497.326504 | EH107: 6600.077189 | EI107: 0 | EJ107: 4013.560453 | EK107: 2318.946039 | EL107: 0 | EM107: 0 | EN107: 0 | EO107: 0 | EP107: 981.0925551 | EQ107: 4994.653008 | ER107: 1962.18511 | ES107: 2943.277665 | ET107: 981.0925551 | EU107: 1962.18511 | EV107: 267.5706968 | EW107: 1159.47302 | EX107: 3300.038594 | EY107: 178.3804646 | EZ107: 891.9023228 | FA107: 2675.706968 | FB107: 1248.663252 | FC107: 0 | FD107: 0 | FE107: 535.1413937 | FF107: 1516.233949 | FG107: 0 | FH107: 267.5706968 | FI107: 0 | FJ107: 178.3804646 | FK107: 0 | FL107: 0 | FM107: 0 | FN107: 0 | FO107: 0 | FP107: 0 | FQ107: 0 | FR107: 0 | FS107: 0 | FT107: 0 | FU107: 0 | FV107: 0 | FW107: 0 | FX107: 0 | FY107: 0 | FZ107: 0 | GA107: 0 | GB107: 0 | GC107: 0 | GD107: 0 | GE107: 0 | GF107: 0 | GG107: 0 | GH107: 0 | GI107: 0 | GJ107: 0
E108: > 22 kV & < = 33 kV ; Switch | F108: 58.72116244 | G108: 57.17485767 | H108: 7.5614058 | I108: 2
E109: > 22 kV & < = 33 kV ; Circuit Breaker | F109: 211.5176893 | G109: 53.66300276 | H109: 7.325503584 | I109: 2
A110: 6 | D110: SWITCHGEAR | E110: > 33 kV & < = 66 kV ; Switch | F110: 71.66604134 | G110: 65.51961038 | H110: 8.094418471 | I110: 2 | J110: 0 | K110: 1 | L110: 6 | M110: 0 | N110: 3 | O110: 2 | P110: 6 | Q110: 2 | R110: 8 | S110: 4 | T110: 3 | U110: 4 | V110: 8 | W110: 15 | X110: 3 | Y110: 5 | Z110: 0 | AA110: 1 | AB110: 1 | AC110: 0 | AD110: 0 | AE110: 0 | AF110: 0 | AG110: 1 | AH110: 0 | AI110: 3 | AJ110: 0 | AK110: 8 | AL110: 1 | AM110: 5 | AN110: 0 | AO110: 4 | AP110: 0 | AQ110: 8 | AR110: 0 | AS110: 10 | AT110: 26 | AU110: 0 | AV110: 16 | AW110: 9 | AX110: 0 | AY110: 0 | AZ110: 0 | BA110: 0 | BB110: 4 | BC110: 20 | BD110: 8 | BE110: 12 | BF110: 4 | BG110: 11 | BH110: 13 | BI110: 5 | BJ110: 13 | BK110: 4 | BL110: 4 | BM110: 11 | BN110: 5 | BO110: 0 | BP110: 0 | BQ110: 2 | BR110: 6 | BS110: 0 | BT110: 1 | BU110: 0 | BV110: 1 | BW110: 0 | BX110: 0 | BY110: 0 | BZ110: 0 | CA110: 0 | CB110: 0 | CC110: 0 | CD110: 0 | CE110: 0 | CF110: 0 | CG110: 0 | CH110: 0 | CI110: 0 | CJ110: 0 | CK110: 0 | CL110: 0 | CM110: 0 | CN110: 0 | CO110: 0 | CP110: 0 | CQ110: 0 | CR110: 0 | CS110: 0 | CT110: 0 | CU110: 0 | CV110: 0 | CX110: 0 | CY110: 71.66604134 | CZ110: 429.9962481 | DA110: 0 | DB110: 214.998124 | DC110: 143.3320827 | DD110: 429.9962481 | DE110: 143.3320827 | DF110: 573.3283307 | DG110: 286.6641654 | DH110: 214.998124 | DI110: 286.6641654 | DJ110: 573.3283307 | DK110: 1074.99062 | DL110: 214.998124 | DM110: 358.3302067 | DN110: 0 | DO110: 71.66604134 | DP110: 71.66604134 | DQ110: 0 | DR110: 0 | DS110: 0 | DT110: 0 | DU110: 71.66604134 | DV110: 0 | DW110: 214.998124 | DX110: 0 | DY110: 573.3283307 | DZ110: 71.66604134 | EA110: 358.3302067 | EB110: 0 | EC110: 286.6641654 | ED110: 0 | EE110: 573.3283307 | EF110: 0 | EG110: 716.6604134 | EH110: 1863.317075 | EI110: 0 | EJ110: 1146.656661 | EK110: 644.9943721 | EL110: 0 | EM110: 0 | EN110: 0 | EO110: 0 | EP110: 286.6641654 | EQ110: 1433.320827 | ER110: 573.3283307 | ES110: 859.9924961 | ET110: 286.6641654 | EU110: 788.3264548 | EV110: 931.6585375 | EW110: 358.3302067 | EX110: 931.6585375 | EY110: 286.6641654 | EZ110: 286.6641654 | FA110: 788.3264548 | FB110: 358.3302067 | FC110: 0 | FD110: 0 | FE110: 143.3320827 | FF110: 429.9962481 | FG110: 0 | FH110: 71.66604134 | FI110: 0 | FJ110: 71.66604134 | FK110: 0 | FL110: 0 | FM110: 0 | FN110: 0 | FO110: 0 | FP110: 0 | FQ110: 0 | FR110: 0 | FS110: 0 | FT110: 0 | FU110: 0 | FV110: 0 | FW110: 0 | FX110: 0 | FY110: 0 | FZ110: 0 | GA110: 0 | GB110: 0 | GC110: 0 | GD110: 0 | GE110: 0 | GF110: 0 | GG110: 0 | GH110: 0 | GI110: 0 | GJ110: 0
A111: 6 | D111: SWITCHGEAR | E111: > 33 kV & < = 66 kV ; Circuit Breaker | F111: 143.537987 | G111: 51.10739513 | H111: 7.148943637 | I111: 2 | J111: 7 | K111: 4 | L111: 2 | M111: 9 | N111: 6 | O111: 8 | P111: 4 | Q111: 3 | R111: 4 | S111: 7 | T111: 6 | U111: 5 | V111: 2 | W111: 5 | X111: 2 | Y111: 1 | Z111: 1 | AA111: 0 | AB111: 0 | AC111: 0 | AD111: 0 | AE111: 0 | AF111: 0 | AG111: 0 | AH111: 0 | AI111: 1 | AJ111: 0 | AK111: 0 | AL111: 2 | AM111: 0 | AN111: 3 | AO111: 0 | AP111: 18 | AQ111: 0 | AR111: 0 | AS111: 0 | AT111: 0 | AU111: 21 | AV111: 0 | AW111: 18 | AX111: 0 | AY111: 0 | AZ111: 0 | BA111: 0 | BB111: 0 | BC111: 5 | BD111: 0 | BE111: 6 | BF111: 0 | BG111: 4 | BH111: 5 | BI111: 12 | BJ111: 9 | BK111: 0 | BL111: 6 | BM111: 1 | BN111: 0 | BO111: 0 | BP111: 0 | BQ111: 0 | BR111: 0 | BS111: 0 | BT111: 0 | BU111: 0 | BV111: 0 | BW111: 0 | BX111: 0 | BY111: 0 | BZ111: 0 | CA111: 0 | CB111: 0 | CC111: 0 | CD111: 0 | CE111: 0 | CF111: 0 | CG111: 0 | CH111: 0 | CI111: 0 | CJ111: 0 | CK111: 0 | CL111: 0 | CM111: 0 | CN111: 0 | CO111: 0 | CP111: 0 | CQ111: 0 | CR111: 0 | CS111: 0 | CT111: 0 | CU111: 0 | CV111: 0 | CX111: 1004.765909 | CY111: 574.151948 | CZ111: 287.075974 | DA111: 1291.841883 | DB111: 861.227922 | DC111: 1148.303896 | DD111: 574.151948 | DE111: 430.613961 | DF111: 574.151948 | DG111: 1004.765909 | DH111: 861.227922 | DI111: 717.689935 | DJ111: 287.075974 | DK111: 717.689935 | DL111: 287.075974 | DM111: 143.537987 | DN111: 143.537987 | DO111: 0 | DP111: 0 | DQ111: 0 | DR111: 0 | DS111: 0 | DT111: 0 | DU111: 0 | DV111: 0 | DW111: 143.537987 | DX111: 0 | DY111: 0 | DZ111: 287.075974 | EA111: 0 | EB111: 430.613961 | EC111: 0 | ED111: 2583.683766 | EE111: 0 | EF111: 0 | EG111: 0 | EH111: 0 | EI111: 3014.297727 | EJ111: 0 | EK111: 2583.683766 | EL111: 0 | EM111: 0 | EN111: 0 | EO111: 0 | EP111: 0 | EQ111: 717.689935 | ER111: 0 | ES111: 861.227922 | ET111: 0 | EU111: 574.151948 | EV111: 717.689935 | EW111: 1722.455844 | EX111: 1291.841883 | EY111: 0 | EZ111: 861.227922 | FA111: 143.537987 | FB111: 0 | FC111: 0 | FD111: 0 | FE111: 0 | FF111: 0 | FG111: 0 | FH111: 0 | FI111: 0 | FJ111: 0 | FK111: 0 | FL111: 0 | FM111: 0 | FN111: 0 | FO111: 0 | FP111: 0 | FQ111: 0 | FR111: 0 | FS111: 0 | FT111: 0 | FU111: 0 | FV111: 0 | FW111: 0 | FX111: 0 | FY111: 0 | FZ111: 0 | GA111: 0 | GB111: 0 | GC111: 0 | GD111: 0 | GE111: 0 | GF111: 0 | GG111: 0 | GH111: 0 | GI111: 0 | GJ111: 0
E112: > 66 kV & < = 132 kV ; Switch | F112: 152.263602 | G112: 40.33283942 | H112: 6.350814076 | I112: 2
E113: > 66 kV & < = 132 kV ; Circuit Breaker | F113: 183.0976595 | G113: 42.36248164 | H113: 6.508646683 | I113: 2
E114: > 132 kV ; Switch | F114: 0.0001 | G114: 0 | H114: 0 | I114: 2
E115: > 132 kV ; Circuit Breaker | F115: 0.0001 | G115: 0 | H115: 0 | I115: 2
